Workbook

Sheet START
A1: =muni -> LIM355 Lepelle-Nkumpi

Sheet Instructions
D2: 2020
X4: Yes
X5: No
W7: Type of Entities Range: | X7: Parent Municipality
X8: Consolidated Information
W10: Date linked | X10: 3
W11: Date | X11: =VLOOKUP(X10,W39:X55,2) -> M03 September | Y11: 2013-08-01
W19: MTREF Range: | X19: 2008
X20: 2009
X21: 2010
X22: 2011
X23: 2012
X24: 2013
X25: 2014
X26: 2015
X27: 2016
X28: 2017
X29: 2018
X30: 2019
X31: 2020
X32: 2021
X33: 2022
W34: MTREF Linked:
W35: MTREF: | X35: 15
X36: =INDEX(X19:X33,X35,1) -> 2022
W37: Fin Year:
X38: =MTREF&"/"&RIGHT(MTREF,2)+1 -> 2022/23
V39: Date/type of report | W39: 1 | X39: M01 July
W40: 2 | X40: M02 August
W41: 3 | X41: M03 September
W42: 4 | X42: M04 October
W43: 5 | X43: M05 November
W44: 6 | X44: M06 December
W45: 7 | X45: M07 January
W46: 8 | X46: M08 February
W47: 9 | X47: M09 March
W48: 10 | X48: M10 April
W49: 11 | X49: M11 May
W50: 12 | X50: M12 June
W51: 13 | X51: Q1 First Quarter
W52: 14 | X52: Q2 Second Quarter
W53: 15 | X53: Q3 Third Quarter
W54: 16 | X54: Q4 Fourth Quarter
W55: 17 | X55: Mid-Year Assessment

Sheet Template names (hidden)
A1: Common sheet headings
A2: Head1 | B2: =HLOOKUP(MTREF,Headings,2) -> 2021/22 | C2: Prior year -1
A3: Head2 | B3: =HLOOKUP(MTREF,Headings,5) -> Budget Year 2022/23 | C3: Year of approved budget
A4: Head2A | B4: =HLOOKUP(MTREF,Headings,4) -> 2022/23 | C4: Approved budget year
A5: Head3 | B5: =HLOOKUP(MTREF,Headings,3) -> 2022/23 Medium Term Revenue & Expenditure Framework | C5: MTREF header name
A6: Head5 | B6: Audited Outcome
A7: Head5A | B7: Outcome
A8: Head5B | B8: Pre-audit outcome
A9: Head6 | B9: Original Budget
A10: Head7 | B10: Adjusted Budget
A11: Head8 | B11: Full Year Forecast
A12: Head9 | B12: =HLOOKUP(MTREF,Headings,5) -> Budget Year 2022/23 | C12: 1st year of MTREF | D12: Year1
A13: Head10 | B13: =HLOOKUP(MTREF,Headings,6) -> Budget Year +1 2023/24 | C13: 2nd year of MTREF | D13: Year2
A14: Head11 | B14: =HLOOKUP(MTREF,Headings,7) -> Budget Year +2 2024/25 | C14: 3rd year of MTREF | D14: Year3
A15: Head12 | B15: Forecast 2010/11 | D15: Year4
A16: Head13 | B16: Forecast 2011/12 | D16: Year5
A17: Head14 | B17: Forecast 2012/13 | D17: Year6
A18: Head15 | B18: Forecast 2013/14 | D18: Year7
A19: Head16 | B19: Forecast 2014/15 | D19: Year8
A20: Head17 | B20: Forecast 2015/16 | D20: Year9
A21: Head18 | B21: Forecast 2016/17 | D21: Year10
A22: Head19 | B22: Forecast 2017/18 | D22: Year11
A23: Head20 | B23: Forecast 2018/19 | D23: Year12
A24: Head21 | B24: Forecast 2019/20 | D24: Year13
A25: Head22 | B25: Forecast 2020/21 | D25: Year14
A26: Head23 | B26: Forecast 2021/22 | D26: Year15
A27: Head24 | B27: Description | D27: Desc
A28: Head25 | B28: Schedule of funding diligence | D28: fdil
A29: Head26 | B29: Vote Description | D29: VDesc
A30: Head27 | B30: Ref
A31: Head27a | B31: References
A32: Head28 | B32: Surplus/ (Deficit) for the year | D32: Result
A33: Head29 | B33: Annual target 2007/08
A34: Head30 | B34: Revised target 2007/08
A35: Head31 | B35: Quarter ended 30 September
A36: Head32 | B36: Quarter ended 31 December
A37: Head33 | B37: Quarter ended 31 March
A38: Head34 | B38: Quarter ended 30 June
A39: Head35 | B39: Variance explanation
A40: Head36 | B40: YTD Actual 31 Dec
A41: Head37 | B41: YTD Budget 31 Dec
A42: Head38 | B42: Monthly actual
A43: Head39 | B43: YearTD actual
A44: Head40 | B44: YearTD budget
A45: Head41 | B45: YTD variance
A46: Head42 | B46: Surplus/ (Deficit) for the yr/period
A47: Head43 | B47: =Head3&" Summary" -> 2022/23 Medium Term Revenue & Expenditure Framework Summary
A48: Head44 | B48: 1996 Census
A49: Head45 | B49: 2001 Census
A50: Head46 | B50: - Adjustments Budget - Month YYYY
A51: Head47 | B51: Previous target year to complete
A52: Head48 | B52: Present value
A53: Head49 | B53: Virement
A54: Head50 | B54: Other Adjusts.
A55: Head51 | B55: Accum. Funds
A56: Head52 | B56: Multi-year capital
A57: Head53 | B57: Unfore. Unavoid.
A58: Head54 | B58: Prior Adjusted
A59: Head55 | B59: Nat. or Prov. Govt
A60: Head56 | B60: Total Adjusts.
A61: Head57 | B61: =date -> M03 September
A62: Head58 | B62: Parent muni.
A63: Head59 | B63: Downward adjusts
A64: Head60 | B64: Month | C64: Report header part name | D64: =date -> M03 September
A65: SFPerf1 | B65: Budgeted Financial Performance
A66: SFPerf2 | B66: Forecast Financial Performance
A67: SFPos1 | B67: Budgeted Financial Position
A68: SFPos2 | B68: Forecast Financial Position
A69: Cash1 | B69: Budget Cash Flow
A70: Cash2 | B70: Forecast Cash Flow
A71: RandM | B71: Expenditure includes repairs & maintenance of R'000
A72: Standard nomenclature
A73: Muni | B73: ='Lookup and lists'!B27 -> LIM355 Lepelle-Nkumpi
A74: Municipal Entities | B74: 2 | C74: Type of report: | D74: 1
A75: =IF((MuniEntities=1)*(MuniType=2),"YES","NO") -> NO | B75: Does this municipality have entities (consolidated budget and entity budgets required)? YES/NO
A76: s71 (Monthly Mayor report) schedules and charts
A77: S71sum | B77: =IF(Consolques="YES",E77,F77) -> Table C1 Monthly Budget Statement Summary | D77: Table C1 | E77: =D77&"Consolidated Monthly Budget Statement Summary" -> Table C1 Consolidated Monthly Budget Statement Summary | F77: =D77&"Monthly Budget Statement Summary" -> Table C1 Monthly Budget Statement Summary
A78: S71C | B78: Table C3 Monthly Budget Statement - Financial Performance (revenue and expenditure by municipal vote) | D78: Table C3 | E78: =D78&"Consolidated Monthly Budget Statement - Financial Performance (revenue and expenditure by municipal vote) " -> Table C3 Consolidated Monthly Budget Statement - Financial Performance (revenue and expenditure by municipal vote) | F78: =D78&"Monthly Budget Statement - Financial Performance (revenue and expenditure by municipal vote)" -> Table C3 Monthly Budget Statement - Financial Performance (revenue and expenditure by municipal vote)
A79: S71A | B79: =IF(Consolques="YES",E79,F79) -> Table C2 Monthly Budget Statement - Financial Performance (functional classification) | D79: Table C2 | E79: =D79&"Consolidated Monthly Budget Statement - Financial Performance (functional classification) " -> Table C2 Consolidated Monthly Budget Statement - Financial Performance (functional classification) | F79: =D79&"Monthly Budget Statement - Financial Performance (functional classification)" -> Table C2 Monthly Budget Statement - Financial Performance (functional classification)
A80: S71B | B80: =IF(Consolques="YES",E80,F80) -> Table C4 Monthly Budget Statement - Financial Performance (revenue and expenditure) | D80: Table C4 | E80: =D80&"Consolidated Monthly Budget Statement - Financial Performance (revenue and expenditure) " -> Table C4 Consolidated Monthly Budget Statement - Financial Performance (revenue and expenditure) | F80: =D80&"Monthly Budget Statement - Financial Performance (revenue and expenditure)" -> Table C4 Monthly Budget Statement - Financial Performance (revenue and expenditure)
A81: S71D | B81: =IF(Consolques="YES",E81,F81) -> Table C5 Monthly Budget Statement - Capital Expenditure (municipal vote, functional classification and funding) | D81: Table C5 | E81: =D81&"Consolidated Monthly Budget Statement - Capital Expenditure (municipal vote, functional classification and funding " -> Table C5 Consolidated Monthly Budget Statement - Capital Expenditure (municipal vote, functional classification and funding | F81: =D81&"Monthly Budget Statement - Capital Expenditure (municipal vote, functional classification and funding)" -> Table C5 Monthly Budget Statement - Capital Expenditure (municipal vote, functional classification and funding)
A82: S71E | B82: Table C6 Monthly Budget Statement - Financial Position | D82: Table C6 | E82: =D82&"Consolidated Monthly Budget Statement - Financial Position " -> Table C6 Consolidated Monthly Budget Statement - Financial Position | F82: =D82&"Monthly Budget Statement - Financial Position" -> Table C6 Monthly Budget Statement - Financial Position
A83: S71F | B83: Table C7 Monthly Budget Statement - Cash Flow | D83: Table C7 | E83: =D83&"Consolidated Monthly Budget Statement - Cash Flow " -> Table C7 Consolidated Monthly Budget Statement - Cash Flow | F83: =D83&"Monthly Budget Statement - Cash Flow " -> Table C7 Monthly Budget Statement - Cash Flow
A84: S71G | B84: =D84&"Material variance explanations " -> Supporting Table SC1 Material variance explanations | D84: Supporting Table SC1
A85: S71H | B85: =D85&"Monthly Budget Statement - performance indicators " -> Supporting Table SC2 Monthly Budget Statement - performance indicators | D85: Supporting Table SC2
A86: S71I | B86: =D86&"Monthly Budget Statement - aged debtors" -> Supporting Table SC3 Monthly Budget Statement - aged debtors | D86: Supporting Table SC3
A87: S71J | B87: =D87&"Monthly Budget Statement - aged creditors " -> Supporting Table SC4 Monthly Budget Statement - aged creditors | D87: Supporting Table SC4
A88: S71K | B88: =D88&"Monthly Budget Statement - investment portfolio " -> Supporting Table SC5 Monthly Budget Statement - investment portfolio | D88: Supporting Table SC5
A89: S71L | B89: =D89&"Monthly Budget Statement - transfers and grant receipts " -> Supporting Table SC6 Monthly Budget Statement - transfers and grant receipts | D89: Supporting Table SC6
A90: S71M | B90: =D90&" Monthly Budget Statement - transfers and grant expenditure " -> Supporting Table SC7(1) Monthly Budget Statement - transfers and grant expenditure | D90: Supporting Table SC7(1)
A91: S71N | B91: =D91&"Monthly Budget Statement - councillor and staff benefits " -> Supporting Table SC8 Monthly Budget Statement - councillor and staff benefits | D91: Supporting Table SC8
A92: S71O | B92: =D92&"Monthly Budget Statement - actuals and revised targets for cash receipts" -> Supporting Table SC9 Monthly Budget Statement - actuals and revised targets for cash receipts | D92: Supporting Table SC9
A93: S71P | B93: =IF(Consolques="YES",E93,F93) -> NOT REQUIRED - municipality does not have entities or this is the parent municipality's budget | D93: Supporting Table SC10 | E93: =D93&"Monthly Budget Statement - Parent Municipality Financial Performance (revenue and expenditure) " -> Supporting Table SC10 Monthly Budget Statement - Parent Municipality Financial Performance (revenue and expenditure) | F93: NOT REQUIRED - municipality does not have entities or this is the parent municipality's budget
A94: S71Q | B94: NOT REQUIRED - municipality does not have entities or this is the parent municipality's budget | D94: Supporting Table SC11 | E94: =D94&"Monthly Budget Statement - summary of municipal entities" -> Supporting Table SC11 Monthly Budget Statement - summary of municipal entities | F94: NOT REQUIRED - municipality does not have entities or this is the parent municipality's budget
A95: S71R | B95: Supporting Table SC12 Monthly Budget Statement - capital expenditure trend | D95: Supporting Table SC12 | E95: =D95&"Consolidated Monthly Budget Statement - capital expenditure trend " -> Supporting Table SC12 Consolidated Monthly Budget Statement - capital expenditure trend | F95: =D95&"Monthly Budget Statement - capital expenditure trend" -> Supporting Table SC12 Monthly Budget Statement - capital expenditure trend
A96: S71Sa | B96: Supporting Table SC13a Monthly Budget Statement - capital expenditure on new assets by asset class | D96: Supporting Table SC13a | E96: =D96&"Consolidated Monthly Budget Statement - capital expenditure on new assets by asset class" -> Supporting Table SC13a Consolidated Monthly Budget Statement - capital expenditure on new assets by asset class | F96: =D96&"Monthly Budget Statement - capital expenditure on new assets by asset class" -> Supporting Table SC13a Monthly Budget Statement - capital expenditure on new assets by asset class
A97: S71Sb | B97: Supporting Table SC13b Monthly Budget Statement - capital expenditure on renewal of existing assets by asset class | D97: Supporting Table SC13b | E97: =D97&"Consolidated Monthly Budget Statement - capital expenditure on renewal of existing assets by asset class" -> Supporting Table SC13b Consolidated Monthly Budget Statement - capital expenditure on renewal of existing assets by asset class | F97: =D97&"Monthly Budget Statement - capital expenditure on renewal of existing assets by asset class" -> Supporting Table SC13b Monthly Budget Statement - capital expenditure on renewal of existing assets by asset class
A98: S71Sc | B98: Supporting Table SC13c Monthly Budget Statement - expenditure on repairs and maintenance by asset class | D98: Supporting Table SC13c | E98: =D98&"Consolidated Monthly Budget Statement - expenditure on repairs and maintenance by asset class" -> Supporting Table SC13c Consolidated Monthly Budget Statement - expenditure on repairs and maintenance by asset class | F98: =D98&"Monthly Budget Statement - expenditure on repairs and maintenance by asset class" -> Supporting Table SC13c Monthly Budget Statement - expenditure on repairs and maintenance by asset class
A99: S71Sd | B99: Supporting Table SC13d Monthly Budget Statement - depreciation by asset class | D99: Supporting Table SC13d | E99: =D99&"Consolidated Monthly Budget Statement - depreciation by asset class" -> Supporting Table SC13d Consolidated Monthly Budget Statement - depreciation by asset class | F99: =D99&"Monthly Budget Statement - depreciation by asset class" -> Supporting Table SC13d Monthly Budget Statement - depreciation by asset class
A100: S71Se | B100: =IF(Consolques="YES",E100,F100) -> Supporting Table SC13e Monthly Budget Statement - capital expenditure on upgrading of existing assets by asset class | D100: Supporting Table SC13e | E100: =D100&"Consolidated Monthly Budget Statement - capital expenditure on upgrading of existing assets by asset class" -> Supporting Table SC13e Consolidated Monthly Budget Statement - capital expenditure on upgrading of existing assets by asset class | F100: =D100&"Monthly Budget Statement - capital expenditure on upgrading of existing assets by asset class" -> Supporting Table SC13e Monthly Budget Statement - capital expenditure on upgrading of existing assets by asset class
B101: s71 charts listing
B102: =D102&Head2A&" Capital Expenditure Monthly Trend: actual v target" -> Chart C1 2022/23 Capital Expenditure Monthly Trend: actual v target | D102: Chart C1
B103: =D103&Head2A&" Capital Expenditure: YTD actual v YTD target" -> Chart C2 2022/23 Capital Expenditure: YTD actual v YTD target | D103: Chart C2
B104: =D104&"Aged Consumer Debtors Analysis" -> Chart C3 Aged Consumer Debtors Analysis | D104: Chart C3
B105: =D105&"Consumer Debtors (total by Debtor Customer Category)" -> Chart C4 Consumer Debtors (total by Debtor Customer Category) | D105: Chart C4
B106: =D106&"Aged Creditors Analysis" -> Chart C5 Aged Creditors Analysis | D106: Chart C5
A107: S71T | B107: =D107&" Monthly Budget Statement - Expenditure against approved rollovers" -> Supporting Table SC7(2) Monthly Budget Statement - Expenditure against approved rollovers | D107: Supporting Table SC7(2)

Sheet Lookup and lists (hidden)
A1: Description | B1: 2013 | C1: 2014 | D1: 2015 | E1: 2016 | F1: 2017 | G1: 2018 | H1: 2019 | I1: 2020 | J1: 2021 | K1: 2022 | L1: 2023 | M1: 2024 | N1: 2025 | O1: 2026 | Q1: Grants: | R1: National - opex | S1: Provincial - opex | T1: National - capex | U1: Provincial - capex | V1: YESNO
A2: ='Template names'!C2 -> Prior year -1 | B2: =B1-1&"/"&RIGHT(B1,2)-0 -> 2012/13 | C2: =C1-1&"/"&RIGHT(C1,2)-0 -> 2013/14 | D2: =D1-1&"/"&RIGHT(D1,2)-0 -> 2014/15 | E2: =E1-1&"/"&RIGHT(E1,2)-0 -> 2015/16 | F2: =F1-1&"/"&RIGHT(F1,2)-0 -> 2016/17 | G2: 2017/18 | H2: 2018/19 | I2: 2019/20 | J2: 2020/21 | K2: 2021/22 | L2: 2022/23 | M2: 2023/24 | N2: 2024/25 | O2: 2025/26 | R2: Local Government Equitable Share | S2: Health subsidy | T2: Municipal Infrastructure Grant (MIG) | U2: Agriculture | V2: Yes
A3: ='Template names'!C5 -> MTREF header name | B3: =B1&"/"&RIGHT(B1,2)+1&" Medium Term Revenue & Expenditure Framework" -> 2013/14 Medium Term Revenue & Expenditure Framework | C3: =C1&"/"&RIGHT(C1,2)+1&" Medium Term Revenue & Expenditure Framework" -> 2014/15 Medium Term Revenue & Expenditure Framework | D3: =D1&"/"&RIGHT(D1,2)+1&" Medium Term Revenue & Expenditure Framework" -> 2015/16 Medium Term Revenue & Expenditure Framework | E3: =E1&"/"&RIGHT(E1,2)+1&" Medium Term Revenue & Expenditure Framework" -> 2016/17 Medium Term Revenue & Expenditure Framework | F3: =F1&"/"&RIGHT(F1,2)+1&" Medium Term Revenue & Expenditure Framework" -> 2017/18 Medium Term Revenue & Expenditure Framework | G3: 2018/19 Medium Term Revenue & Expenditure Framework | H3: 2019/20 Medium Term Revenue & Expenditure Framework | I3: 2020/21 Medium Term Revenue & Expenditure Framework | J3: 2021/22 Medium Term Revenue & Expenditure Framework | K3: 2022/23 Medium Term Revenue & Expenditure Framework | L3: 2023/24 Medium Term Revenue & Expenditure Framework | M3: 2024/25 Medium Term Revenue & Expenditure Framework | N3: 2025/26 Medium Term Revenue & Expenditure Framework | O3: 2026/27 Medium Term Revenue & Expenditure Framework | R3: RSC Levy Replacement | S3: Ambulance subsidy | T3: Public Transport and Systems | U3: Education | V3: No
A4: ='Template names'!C4 -> Approved budget year | B4: =B1&"/"&RIGHT(B1,2)+1 -> 2013/14 | C4: =C1&"/"&RIGHT(C1,2)+1 -> 2014/15 | D4: =D1&"/"&RIGHT(D1,2)+1 -> 2015/16 | E4: =E1&"/"&RIGHT(E1,2)+1 -> 2016/17 | F4: =F1&"/"&RIGHT(F1,2)+1 -> 2017/18 | G4: 2018/19 | H4: 2019/20 | I4: 2020/21 | J4: 2021/22 | K4: 2022/23 | L4: 2023/24 | M4: 2024/25 | N4: 2025/26 | O4: 2026/27 | R4: Finance Management | S4: Housing | T4: Rural Transport Services and Infrastructure | U4: Health
A5: ='Template names'!C12 -> 1st year of MTREF | B5: ="Budget Year "&B1&"/"&RIGHT(B1,2)+1 -> Budget Year 2013/14 | C5: ="Budget Year "&C1&"/"&RIGHT(C1,2)+1 -> Budget Year 2014/15 | D5: ="Budget Year "&D1&"/"&RIGHT(D1,2)+1 -> Budget Year 2015/16 | E5: ="Budget Year "&E1&"/"&RIGHT(E1,2)+1 -> Budget Year 2016/17 | F5: ="Budget Year "&F1&"/"&RIGHT(F1,2)+1 -> Budget Year 2017/18 | G5: Budget Year 2018/19 | H5: Budget Year 2019/20 | I5: Budget Year 2020/21 | J5: Budget Year 2021/22 | K5: Budget Year 2022/23 | L5: Budget Year 2023/24 | M5: Budget Year 2024/25 | N5: Budget Year 2025/26 | O5: Budget Year 2026/27 | R5: Municipal Systems Improvement | S5: Sport and Recreation | T5: Regional Bulk Infrastructure | U5: Housing and Local Government
A6: ='Template names'!C13 -> 2nd year of MTREF | B6: ="Budget Year +1 "&B1+1&"/"&RIGHT(B1,2)+2 -> Budget Year +1 2014/15 | C6: ="Budget Year +1 "&C1+1&"/"&RIGHT(C1,2)+2 -> Budget Year +1 2015/16 | D6: ="Budget Year +1 "&D1+1&"/"&RIGHT(D1,2)+2 -> Budget Year +1 2016/17 | E6: ="Budget Year +1 "&E1+1&"/"&RIGHT(E1,2)+2 -> Budget Year +1 2017/18 | F6: ="Budget Year +1 "&F1+1&"/"&RIGHT(F1,2)+2 -> Budget Year +1 2018/19 | G6: Budget Year +1 2019/20 | H6: Budget Year +1 2020/21 | I6: Budget Year +1 2021/22 | J6: Budget Year +1 2022/23 | K6: Budget Year +1 2023/24 | L6: Budget Year +1 2024/25 | M6: Budget Year +1 2025/26 | N6: Budget Year +1 2026/27 | O6: Budget Year +1 2027/28 | R6: Water Services Operating Subsidy | T6: Rural Households Infrastructure | U6: Other Departments
A7: ='Template names'!C14 -> 3rd year of MTREF | B7: ="Budget Year +2 "&B1+2&"/"&RIGHT(B1,2)+3 -> Budget Year +2 2015/16 | C7: ="Budget Year +2 "&C1+2&"/"&RIGHT(C1,2)+3 -> Budget Year +2 2016/17 | D7: ="Budget Year +2 "&D1+2&"/"&RIGHT(D1,2)+3 -> Budget Year +2 2017/18 | E7: ="Budget Year +2 "&E1+2&"/"&RIGHT(E1,2)+3 -> Budget Year +2 2018/19 | F7: ="Budget Year +2 "&F1+2&"/"&RIGHT(F1,2)+3 -> Budget Year +2 2019/20 | G7: Budget Year +2 2020/21 | H7: Budget Year +2 2021/22 | I7: Budget Year +2 2022/23 | J7: Budget Year +2 2023/24 | K7: Budget Year +2 2024/25 | L7: Budget Year +2 2025/26 | M7: Budget Year +2 2026/27 | N7: Budget Year +2 2027/28 | O7: Budget Year +2 2028/29 | R7: Energy Efficiency and Demand Management | T7: Neighbourhood Development Partnership | U7: Public Works, Roads, Transport
A8: NOTE: This sheet should not be directly amended - select headings from sheet 'S' | R8: Integrated National Electrification Programme | T8: 2010 FIFA World Cup Stadiums Development | U8: Sport and Recreation
R9: Municipal Drought Relief
R10: 2010 FIFA World Cup Operating
R11: Electricity Demand Side Management
R12: EPWP Incentive
A26: Name link | B26: 143
A27: Name of Muni | B27: =INDEX(B28:B311,B26,1) -> LIM355 Lepelle-Nkumpi
B28: Choose name from list | C28: Set name on 'Instructions' sheet
B29: BUF Buffalo City | C29: EC EASTERN CAPE
B30: NMA Nelson Mandela Bay | C30: EC EASTERN CAPE
B31: EC101 Dr Beyers Naude | C31: EC EASTERN CAPE
B32: EC102 Blue Crane Route | C32: EC EASTERN CAPE
B33: EC104 Makana | C33: EC EASTERN CAPE
B34: EC105 Ndlambe | C34: EC EASTERN CAPE
B35: EC106 Sundays River Valley | C35: EC EASTERN CAPE
B36: EC108 Kouga | C36: EC EASTERN CAPE
B37: EC109 Kou-Kamma | C37: EC EASTERN CAPE
B38: DC10 Sarah Baartman | C38: EC EASTERN CAPE
B39: EC121 Mbhashe | C39: EC EASTERN CAPE
B40: EC122 Mnquma | C40: EC EASTERN CAPE
B41: EC123 Great Kei | C41: EC EASTERN CAPE
B42: EC124 Amahlathi | C42: EC EASTERN CAPE
B43: EC126 Ngqushwa | C43: EC EASTERN CAPE
B44: EC129 Raymond Mhlaba | C44: EC EASTERN CAPE
B45: DC12 Amathole | C45: EC EASTERN CAPE
B46: EC131 Inxuba Yethemba | C46: EC EASTERN CAPE
B47: EC135 Intsika Yethu | C47: EC EASTERN CAPE
B48: EC136 Emalahleni (Ec) | C48: EC EASTERN CAPE
B49: EC137 Engcobo | C49: EC EASTERN CAPE
B50: EC138 Sakhisizwe | C50: EC EASTERN CAPE
B51: EC139 Enoch Mgijima | C51: EC EASTERN CAPE
B52: DC13 Chris Hani | C52: EC EASTERN CAPE
B53: EC141 Elundini | C53: EC EASTERN CAPE
B54: EC142 Senqu | C54: EC EASTERN CAPE
B55: EC145 Walter Sisulu | C55: EC EASTERN CAPE
B56: DC14 Joe Gqabi | C56: EC EASTERN CAPE
B57: EC153 Ngquza Hills | C57: EC EASTERN CAPE
B58: EC154 Port St Johns | C58: EC EASTERN CAPE
B59: EC155 Nyandeni | C59: EC EASTERN CAPE
B60: EC156 Mhlontlo | C60: EC EASTERN CAPE
B61: EC157 King Sabata Dalindyebo | C61: EC EASTERN CAPE
B62: DC15 O .R. Tambo | C62: EC EASTERN CAPE
B63: EC441 Matatiele | C63: EC EASTERN CAPE
B64: EC442 Umzimvubu | C64: EC EASTERN CAPE
B65: EC443 Winnie Madikizela Mandela | C65: EC EASTERN CAPE
B66: EC444 Ntabankulu | C66: EC EASTERN CAPE
B67: DC44 Alfred Nzo | C67: EC EASTERN CAPE
B68: MAN Mangaung | C68: FS FREE STATE
B69: FS161 Letsemeng | C69: FS FREE STATE
B70: FS162 Kopanong | C70: FS FREE STATE
B71: FS163 Mohokare | C71: FS FREE STATE
B72: DC16 Xhariep | C72: FS FREE STATE
B73: FS181 Masilonyana | C73: FS FREE STATE
B74: FS182 Tokologo | C74: FS FREE STATE
B75: FS183 Tswelopele | C75: FS FREE STATE
B76: FS184 Matjhabeng | C76: FS FREE STATE
B77: FS185 Nala | C77: FS FREE STATE
B78: DC18 Lejweleputswa | C78: FS FREE STATE
B79: FS191 Setsoto | C79: FS FREE STATE
B80: FS192 Dihlabeng | C80: FS FREE STATE
B81: FS193 Nketoana | C81: FS FREE STATE
B82: FS194 Maluti-a-Phofung | C82: FS FREE STATE
B83: FS195 Phumelela | C83: FS FREE STATE
B84: FS196 Mantsopa | C84: FS FREE STATE
B85: DC19 Thabo Mofutsanyana | C85: FS FREE STATE
B86: FS201 Moqhaka | C86: FS FREE STATE
B87: FS203 Ngwathe | C87: FS FREE STATE
B88: FS204 Metsimaholo | C88: FS FREE STATE
B89: FS205 Mafube | C89: FS FREE STATE
B90: DC20 Fezile Dabi | C90: FS FREE STATE
B91: EKU City of Ekurhuleni | C91: GT GAUTENG
B92: JHB City Of Johannesburg | C92: GT GAUTENG
B93: TSH City Of Tshwane | C93: GT GAUTENG
B94: GT421 Emfuleni | C94: GT GAUTENG
B95: GT422 Midvaal | C95: GT GAUTENG
B96: GT423 Lesedi | C96: GT GAUTENG
B97: DC42 Sedibeng | C97: GT GAUTENG
B98: GT481 Mogale City | C98: GT GAUTENG
B99: GT484 Merafong City | C99: GT GAUTENG
B100: GT485 Rand West City | C100: GT GAUTENG
B101: DC48 West Rand | C101: GT GAUTENG
B102: ETH eThekwini | C102: KZN KWAZULU-NATAL
B103: KZN212 Umdoni | C103: KZN KWAZULU-NATAL
B104: KZN213 Umzumbe | C104: KZN KWAZULU-NATAL
B105: KZN214 uMuziwabantu | C105: KZN KWAZULU-NATAL
B106: KZN216 Ray Nkonyeni | C106: KZN KWAZULU-NATAL
B107: DC21 Ugu | C107: KZN KWAZULU-NATAL
B108: KZN221 uMshwathi | C108: KZN KWAZULU-NATAL
B109: KZN222 uMngeni | C109: KZN KWAZULU-NATAL
B110: KZN223 Mpofana | C110: KZN KWAZULU-NATAL
B111: KZN224 Impendle | C111: KZN KWAZULU-NATAL
B112: KZN225 Msunduzi | C112: KZN KWAZULU-NATAL
B113: KZN226 Mkhambathini | C113: KZN KWAZULU-NATAL
B114: KZN227 Richmond | C114: KZN KWAZULU-NATAL
B115: DC22 uMgungundlovu | C115: KZN KWAZULU-NATAL
B116: KZN235 Okhahlamba | C116: KZN KWAZULU-NATAL
B117: KZN237 Inkosi Langalibalele | C117: KZN KWAZULU-NATAL
B118: KZN238 Alfred Duma | C118: KZN KWAZULU-NATAL
B119: DC23 Uthukela | C119: KZN KWAZULU-NATAL
B120: KZN241 Endumeni | C120: KZN KWAZULU-NATAL
B121: KZN242 Nquthu | C121: KZN KWAZULU-NATAL
B122: KZN244 Msinga | C122: KZN KWAZULU-NATAL
B123: KZN245 Umvoti | C123: KZN KWAZULU-NATAL
B124: DC24 Umzinyathi | C124: KZN KWAZULU-NATAL
B125: KZN252 Newcastle | C125: KZN KWAZULU-NATAL
B126: KZN253 Emadlangeni | C126: KZN KWAZULU-NATAL
B127: KZN254 Dannhauser | C127: KZN KWAZULU-NATAL
B128: DC25 Amajuba | C128: KZN KWAZULU-NATAL
B129: KZN261 eDumbe | C129: KZN KWAZULU-NATAL
B130: KZN262 uPhongolo | C130: KZN KWAZULU-NATAL
B131: KZN263 Abaqulusi | C131: KZN KWAZULU-NATAL
B132: KZN265 Nongoma | C132: KZN KWAZULU-NATAL
B133: KZN266 Ulundi | C133: KZN KWAZULU-NATAL
B134: DC26 Zululand | C134: KZN KWAZULU-NATAL
B135: KZN271 Umhlabuyalingana | C135: KZN KWAZULU-NATAL
B136: KZN272 Jozini | C136: KZN KWAZULU-NATAL
B137: KZN275 Mtubatuba | C137: KZN KWAZULU-NATAL
B138: KZN276 Hlabisa Big Five | C138: KZN KWAZULU-NATAL
B139: DC27 Umkhanyakude | C139: KZN KWAZULU-NATAL
B140: KZN281 Mfolozi | C140: KZN KWAZULU-NATAL
B141: KZN282 uMhlathuze | C141: KZN KWAZULU-NATAL
B142: KZN284 uMlalazi | C142: KZN KWAZULU-NATAL
B143: KZN285 Mthonjaneni | C143: KZN KWAZULU-NATAL
B144: KZN286 Nkandla | C144: KZN KWAZULU-NATAL
B145: DC28 King Cetshwayo | C145: KZN KWAZULU-NATAL
B146: KZN291 Mandeni | C146: KZN KWAZULU-NATAL
B147: KZN292 KwaDukuza | C147: KZN KWAZULU-NATAL
B148: KZN293 Ndwedwe | C148: KZN KWAZULU-NATAL
B149: KZN294 Maphumulo | C149: KZN KWAZULU-NATAL
B150: DC29 iLembe | C150: KZN KWAZULU-NATAL
B151: KZN433 Greater Kokstad | C151: KZN KWAZULU-NATAL
B152: KZN434 Ubuhlebezwe | C152: KZN KWAZULU-NATAL
B153: KZN435 Umzimkhulu | C153: KZN KWAZULU-NATAL
B154: KZN436 Dr Nkosazana Dlamini Zuma | C154: KZN KWAZULU-NATAL
B155: DC43 Harry Gwala | C155: KZN KWAZULU-NATAL
B156: LIM331 Greater Giyani | C156: LIM LIMPOPO
B157: LIM332 Greater Letaba | C157: LIM LIMPOPO
B158: LIM333 Greater Tzaneen | C158: LIM LIMPOPO
B159: LIM334 Ba-Phalaborwa | C159: LIM LIMPOPO
B160: LIM335 Maruleng | C160: LIM LIMPOPO
B161: DC33 Mopani | C161: LIM LIMPOPO
B162: LIM341 Musina | C162: LIM LIMPOPO
B163: LIM343 Thulamela | C163: LIM LIMPOPO
B164: LIM344 Makhado | C164: LIM LIMPOPO
B165: LIM345 Collins Chabane | C165: LIM LIMPOPO
B166: DC34 Vhembe | C166: LIM LIMPOPO
B167: LIM351 Blouberg | C167: LIM LIMPOPO
B168: LIM353 Molemole | C168: LIM LIMPOPO
B169: LIM354 Polokwane | C169: LIM LIMPOPO
B170: LIM355 Lepelle-Nkumpi | C170: LIM LIMPOPO
B171: DC35 Capricorn | C171: LIM LIMPOPO
B172: LIM361 Thabazimbi | C172: LIM LIMPOPO
B173: LIM362 Lephalale | C173: LIM LIMPOPO
B174: LIM366 Bela Bela | C174: LIM LIMPOPO
B175: LIM367 Mogalakwena | C175: LIM LIMPOPO
B176: LIM368 Modimolle-Mookgopong | C176: LIM LIMPOPO
B177: DC36 Waterberg | C177: LIM LIMPOPO
B178: LIM471 Ephraim Mogale | C178: LIM LIMPOPO
B179: LIM472 Elias Motsoaledi | C179: LIM LIMPOPO
B180: LIM473 Makhuduthamaga | C180: LIM LIMPOPO
B181: LIM476 Tubatse Fetakgomo | C181: LIM LIMPOPO
B182: DC47 Sekhukhune | C182: LIM LIMPOPO
B183: MP301 Albert Luthuli | C183: MP MPUMALANGA
B184: MP302 Msukaligwa | C184: MP MPUMALANGA
B185: MP303 Mkhondo | C185: MP MPUMALANGA
B186: MP304 Pixley Ka Seme (MP) | C186: MP MPUMALANGA
B187: MP305 Lekwa | C187: MP MPUMALANGA
B188: MP306 Dipaleseng | C188: MP MPUMALANGA
B189: MP307 Govan Mbeki | C189: MP MPUMALANGA
B190: DC30 Gert Sibande | C190: MP MPUMALANGA
B191: MP311 Victor Khanye | C191: MP MPUMALANGA
B192: MP312 Emalahleni (Mp) | C192: MP MPUMALANGA
B193: MP313 Steve Tshwete | C193: MP MPUMALANGA
B194: MP314 Emakhazeni | C194: MP MPUMALANGA
B195: MP315 Thembisile Hani | C195: MP MPUMALANGA
B196: MP316 Dr J.S. Moroka | C196: MP MPUMALANGA
B197: DC31 Nkangala | C197: MP MPUMALANGA
B198: MP321 Thaba Chweu | C198: MP MPUMALANGA
B199: MP324 Nkomazi | C199: MP MPUMALANGA
B200: MP325 Bushbuckridge | C200: MP MPUMALANGA
B201: MP326 City of Mbombela | C201: MP MPUMALANGA
B202: DC32 Ehlanzeni | C202: MP MPUMALANGA
B203: NC451 Joe Morolong | C203: NC NORTHERN CAPE
B204: NC452 Ga-Segonyana | C204: NC NORTHERN CAPE
B205: NC453 Gamagara | C205: NC NORTHERN CAPE
B206: DC45 John Taolo Gaetsewe | C206: NC NORTHERN CAPE
B207: NC061 Richtersveld | C207: NC NORTHERN CAPE
B208: NC062 Nama Khoi | C208: NC NORTHERN CAPE
B209: NC064 Kamiesberg | C209: NC NORTHERN CAPE
B210: NC065 Hantam | C210: NC NORTHERN CAPE
B211: NC066 Karoo Hoogland | C211: NC NORTHERN CAPE
B212: NC067 Khai-Ma | C212: NC NORTHERN CAPE
B213: DC6 Namakwa | C213: NC NORTHERN CAPE
... 73 more rows

Sheet Org structure
A1: Organisational Structure Votes | C1: Organisational Structure Sub-Votes | E1: Display Sub-Votes
A2: =B2&" - "&C2 -> Vote 01 - Executive And Council | B2: Vote 01 | C2: Executive And Council
A3: =B7&" - "&C7 -> Vote 02 - Municipal Manager | B3: 01.1 | C3: Mayor & Councillors | D3: =CONCATENATE(B3, " - ", C3) -> 01.1 - Mayor & Councillors | E3: 01.1 - Mayor & Councillors
A4: =B14&" - "&C14 -> Vote 03 - Corporate Services | B4: 01.2 | C4: Mayor & Council Support | D4: =CONCATENATE(B4, " - ", C4) -> 01.2 - Mayor & Council Support | E4: 01.2 - Mayor & Council Support
A5: =B22&" - "&C22 -> Vote 04 - Budget And Treasury | B5: 01.3 | C5: Board General Mayor | D5: =CONCATENATE(B5, " - ", C5) -> 01.3 - Board General Mayor | E5: 01.3 - Board General Mayor
A6: =B29&" - "&C29 -> Vote 05 - Community Services | B6: 01.4 | C6: Board General Speaker | D6: =CONCATENATE(B6, " - ", C6) -> 01.4 - Board General Speaker | E6: 01.4 - Board General Speaker
A7: =B40&" - "&C40 -> Vote 06 - Planning And Development | B7: Vote 02 | C7: Municipal Manager
A8: =B48&" - "&C48 -> Vote 07 - Infrastructure Development | B8: 02.1 | C8: Municipal Manager Administration | D8: =CONCATENATE(B8, " - ", C8) -> 02.1 - Municipal Manager Administration | E8: 02.1 - Municipal Manager Administration
A9: =B59&" - "&C59 -> Vote 08 - | B9: 02.2 | C9: Municipal Manager | D9: 02.2 - Municipal Manager | E9: 02.2 - Municipal Manager
A10: Vote 09 - | B10: 02.3 | C10: Municipal Manager Support | D10: 02.3 - Municipal Manager Support | E10: 02.3 - Municipal Manager Support
A11: Vote 10 - | B11: 02.4 | C11: Internal Audit | D11: 02.4 - Internal Audit | E11: 02.4 - Internal Audit
A12: Vote 11 - | B12: 02.5 | C12: Communications | D12: 02.5 - Communications | E12: 02.5 - Communications
A13: Vote 12 - | B13: 02.6 | C13: Risk Management | D13: 02.6 - Risk Management | E13: 02.6 - Risk Management
A14: Vote 13 - | B14: Vote 03 | C14: Corporate Services
A15: Vote 14 - | B15: 03.1 | C15: Executive Manager: Corporate Services | D15: =CONCATENATE(B15, " - ", C15) -> 03.1 - Executive Manager: Corporate Services | E15: 03.1 - Executive Manager: Corporate Services
A16: Vote 15 - Other | B16: 03.2 | C16: Human Resource Management & Development | D16: 03.2 - Human Resource Management & Development | E16: 03.2 - Human Resource Management & Development
B17: 03.3 | C17: Information Technology | D17: 03.3 - Information Technology | E17: 03.3 - Information Technology
B18: 03.4 | C18: Legal Services | D18: 03.4 - Legal Services | E18: 03.4 - Legal Services
B19: 03.5 | C19: Gen Adm_Sec_Fleet: General Administrat | D19: 03.5 - Gen Adm_Sec_Fleet: General Administrat | E19: 03.5 - Gen Adm_Sec_Fleet: General Administrat
B20: 03.6 | C20: Gen Adm_Sec_Fleet: Security Services | D20: 03.6 - Gen Adm_Sec_Fleet: Security Services | E20: 03.6 - Gen Adm_Sec_Fleet: Security Services
B21: 03.7 | C21: Gen Adm_Sec_Fleet: Fleet Management | D21: 03.7 - Gen Adm_Sec_Fleet: Fleet Management | E21: 03.7 - Gen Adm_Sec_Fleet: Fleet Management
B22: Vote 04 | C22: Budget And Treasury
B23: 04.1 | C23: Chief Financial Officer | D23: =CONCATENATE(B23, " - ", C23) -> 04.1 - Chief Financial Officer | E23: 04.1 - Chief Financial Officer
B24: 04.2 | C24: Budget Planning & Management | D24: 04.2 - Budget Planning & Management | E24: 04.2 - Budget Planning & Management
B25: 04.3 | C25: Expenditure Management | D25: 04.3 - Expenditure Management | E25: 04.3 - Expenditure Management
B26: 04.4 | C26: Revenue Management | D26: 04.4 - Revenue Management | E26: 04.4 - Revenue Management
B27: 04.5 | C27: Asset Management | D27: 04.5 - Asset Management | E27: 04.5 - Asset Management
B28: 04.6 | C28: Supply Chain Management | D28: 04.6 - Supply Chain Management | E28: 04.6 - Supply Chain Management
B29: Vote 05 | C29: Community Services
B30: 05.1 | C30: Executive Manager: Community Services | D30: =CONCATENATE(B30, " - ", C30) -> 05.1 - Executive Manager: Community Services | E30: 05.1 - Executive Manager: Community Services
B31: 05.2 | C31: Waste Management Services | D31: 05.2 - Waste Management Services | E31: 05.2 - Waste Management Services
B32: 05.3 | C32: Environmental Management Services | D32: 05.3 - Environmental Management Services | E32: 05.3 - Environmental Management Services
B33: 05.4 | C33: Road Traffic & Law Enforce: Traffic Serv | D33: 05.4 - Road Traffic & Law Enforce: Traffic Serv | E33: 05.4 - Road Traffic & Law Enforce: Traffic Serv
B34: 05.5 | C34: Road Traffic&Law Enforce: Licencing Serv | D34: 05.5 - Road Traffic&Law Enforce: Licencing Serv | E34: 05.5 - Road Traffic&Law Enforce: Licencing Serv
B35: 05.6 | C35: Road Traffic&Law Enforce: Pound | D35: 05.6 - Road Traffic&Law Enforce: Pound | E35: 05.6 - Road Traffic&Law Enforce: Pound
B36: 05.7 | C36: Institutional & Social Dev Management | D36: 05.7 - Institutional & Social Dev Management | E36: 05.7 - Institutional & Social Dev Management
B37: 05.8 | C37: Libraries And Archives | D37: 05.8 - Libraries And Archives | E37: 05.8 - Libraries And Archives
B38: 05.9 | C38: Community Halls And Facilities | D38: 05.9 - Community Halls And Facilities | E38: 05.9 - Community Halls And Facilities
B39: 05.10 | C39: Disaster Management | D39: 05.10 - Disaster Management | E39: 05.10 - Disaster Management
B40: Vote 06 | C40: Planning And Development
B41: 06.1 | C41: Executive Manager:Planning & Development | D41: =CONCATENATE(B41, " - ", C41) -> 06.1 - Executive Manager:Planning & Development | E41: 06.1 - Executive Manager:Planning & Development
B42: 06.2 | C42: Economic Development & Planning | D42: 06.2 - Economic Development & Planning | E42: 06.2 - Economic Development & Planning
B43: 06.3 | C43: Development & Town Planning | D43: 06.3 - Development & Town Planning | E43: 06.3 - Development & Town Planning
B44: 06.4 | C44: Property Management & Housing | D44: 06.4 - Property Management & Housing | E44: 06.4 - Property Management & Housing
B45: 06.5 | C45: Integrated Development Planning | D45: 06.5 - Integrated Development Planning | E45: 06.5 - Integrated Development Planning
B46: 06.6 | C46: Performance Management | D46: 06.6 - Performance Management | E46: 06.6 - Performance Management
B47: 06.7 | C47: Local Economic Development | D47: 06.7 - Local Economic Development | E47: 06.7 - Local Economic Development
B48: Vote 07 | C48: Infrastructure Development
B49: 07.1 | C49: Technical Services Administration | D49: =CONCATENATE(B49, " - ", C49) -> 07.1 - Technical Services Administration | E49: 07.1 - Technical Services Administration
B50: 07.2 | C50: Roads | D50: 07.2 - Roads | E50: 07.2 - Roads
B51: 07.3 | C51: Workshop | D51: 07.3 - Workshop | E51: 07.3 - Workshop
B52: 07.4 | C52: Sewerage Network | D52: 07.4 - Sewerage Network | E52: 07.4 - Sewerage Network
B53: 07.5 | C53: Sewerage Purification | D53: 07.5 - Sewerage Purification | E53: 07.5 - Sewerage Purification
B54: 07.6 | C54: Irrigation | D54: 07.6 - Irrigation | E54: 07.6 - Irrigation
B55: 07.7 | C55: Executive Manager: Infrastructure Dev | D55: 07.7 - Executive Manager: Infrastructure Dev | E55: 07.7 - Executive Manager: Infrastructure Dev
B56: 07.8 | C56: Road Construction & Maintenance | D56: 07.8 - Road Construction & Maintenance | E56: 07.8 - Road Construction & Maintenance
B57: 07.9 | C57: Electrical & Mechanical Works | D57: 07.9 - Electrical & Mechanical Works | E57: 07.9 - Electrical & Mechanical Works
B58: 07.10 | C58: Project Management | D58: 07.10 - Project Management | E58: 07.10 - Project Management
B59: Vote 08
B60: Vote 09
B61: Vote 10
B62: Vote 11
B63: Vote 12
B64: Vote 13
B65: Vote 14
B66: Vote 15 | C66: Other

Sheet Contacts
A1: =muni&" - "&" Contact Information" -> LIM355 Lepelle-Nkumpi - Contact Information
A3: A. GENERAL INFORMATION
A4: Municipality | B4: =muni -> LIM355 Lepelle-Nkumpi | C4: Set name on 'Instructions' sheet
A6: Grade | B6: 5 | C6: 1 Grade in terms of the Remuneration of Public Office Bearers Act.
A8: Province | B8: =IF(B4>" ",VLOOKUP(B4,'Lookup and lists'!B28:C311,2, FALSE)," ") -> LIM LIMPOPO
A10: Web Address | B10: www.lepelle-nkumpi.gov.za
A12: e-mail Address
A14: B. CONTACT INFORMATION
A15: Postal address:
A16: P.O. Box | B16: P/B X07
A17: City / Town | B17: Chuenespoort
A18: Postal Code | B18: 0745
A20: Street address
A21: Building | B21: 170 BA
A22: Street No. & Name | B22: civic center
A23: City / Town | B23: lebowakgomo
A24: Postal Code | B24: 0737
A26: General Contacts
A27: Telephone number | B27: 015 633 4500
A28: Fax number | B28: 015 633 6896
A30: C. POLITICAL LEADERSHIP
A31: Speaker: | C31: Secretary/PA to the Speaker:
A32: ID Number | B32: 6801305480084 | C32: ID Number | D32: 8809211020082
A33: Title | B33: Mr | C33: Title | D33: Ms
A34: Name | B34: Matsimele Makonko Daniel | C34: Name | D34: Lebogang Kekana
A35: Telephone number | B35: 015 633 4525 | C35: Telephone number | D35: 015 633 4525
A36: Cell number | B36: 079 136 2402 | C36: Cell number | D36: 0724985740
A37: Fax number | B37: 015 633 6896 | C37: Fax number | D37: 015 633 6896
A38: E-mail address | B38: makonko.matsimele@lepelle-nkumpi.gov.za | C38: E-mail address | D38: jeanette.mphahlel@lepelle-nkumpi.gov.za
A40: Mayor/Executive Mayor: | C40: Secretary/PA to the Mayor/Executive Mayor:
A41: ID Number | B41: 6806060319088 | C41: ID Number | D41: 8809211020082
A42: Title | B42: Ms | C42: Title | D42: Ms
A43: Name | B43: MM Molala | C43: Name | D43: Lebogang Kekana
A44: Telephone number | B44: 015 633 4500 | C44: Telephone number | D44: 015 633 4518
A45: Cell number | B45: 0711042289 | C45: Cell number | D45: 0714800336
A46: Fax number | B46: 015 633 6896 | C46: Fax number | D46: 015 633 6896
A47: E-mail address | B47: merriam.molala@lepelle-nkumpi.gov.za | C47: E-mail address | D47: lebogang.kekana@lepelle-nkumpi.gov.za
A49: Deputy Mayor/Executive Mayor: | C49: Secretary/PA to the Deputy Mayor/Executive Mayor:
A50: ID Number | B50: 6806060319088 | C50: ID Number
A51: Title | B51: Ms | C51: Title
A52: Name | B52: MM Molala | C52: Name
A53: Telephone number | B53: 015 633 4520 | C53: Telephone number
A54: Cell number | B54: 0711042289 | C54: Cell number
A55: Fax number | B55: 015 633 6896 | C55: Fax number
A56: E-mail address | B56: merriam.molala@lepelle-nkumpi.gov.za | C56: E-mail address
A58: D. MANAGEMENT LEADERSHIP
A59: Municipal Manager: | C59: Secretary/PA to the Municipal Manager:
A60: ID Number | C60: ID Number | D60: 8110230738089
A61: Title | B61: Ms | C61: Title | D61: Ms
A62: Name | B62: Khomotjo Mankga | C62: Name | D62: Lekgau Theresho
A63: Telephone number | B63: 015 633 4520 | C63: Telephone number | D63: 015 633 4508
A64: Cell number | B64: 064 538 6703 | C64: Cell number | D64: 082 371 9768
A65: Fax number | B65: 015 633 6896 | C65: Fax number | D65: 015 633 6896
A66: E-mail address | B66: khomotjo.mankga@lepelle-nkumpi.gov.za | C66: E-mail address | D66: theresho.lekgau@lepelle-nkumpi.gov.za
A68: Chief Financial Officer | C68: Secretary/PA to the Chief Financial Officer
A69: ID Number | B69: 7704030318083 | C69: ID Number | D69: 8706271296083
A70: Title | B70: Ms | C70: Title | D70: Ms
A71: Name | B71: Mathebo Nancy Masemola | C71: Name | D71: Agnes Lehomo
A72: Telephone number | B72: 015 633 4512 | C72: Telephone number | D72: 0156334537
A73: Cell number | B73: 079 778 5141 | C73: Cell number | D73: 071 371 9977
A74: Fax number | B74: 015 633 6896 | C74: Fax number | D74: 015 633 6896
A75: E-mail address | B75: nancy.masemola@lepelle-nkumpi.gov.za | C75: E-mail address | D75: agnes.lehomo@lepelle-nkumpi.gov.za
A77: Official responsible for submitting financial information | C77: Official responsible for submitting financial information
A78: ID Number | B78: 7809210399082 | C78: ID Number
A79: Title | B79: Ms | C79: Title
A80: Name | B80: DAPHNEY MOEMA | C80: Name
A81: Telephone number | B81: 015 633 4503 | C81: Telephone number
A82: Cell number | B82: 071 416 1345 | C82: Cell number
A83: Fax number | B83: 015 633 6896 | C83: Fax number
A84: E-mail address | B84: daphney.moroaswi@lepelle-nkumpi.gov.za | C84: E-mail address
A85: Official responsible for submitting financial information | C85: Official responsible for submitting financial information
A86: ID Number | C86: ID Number
A87: Title | C87: Title
A88: Name | C88: Name
A89: Telephone number | C89: Telephone number
A90: Cell number | C90: Cell number
A91: Fax number | C91: Fax number
A92: E-mail address | C92: E-mail address
A93: Official responsible for submitting financial information | C93: Official responsible for submitting financial information
A94: ID Number | C94: ID Number
A95: Title | C95: Title
A96: Name | C96: Name
A97: Telephone number | C97: Telephone number
A98: Cell number | C98: Cell number
A99: Fax number | C99: Fax number
A100: E-mail address | C100: E-mail address
A101: Official responsible for submitting financial information | C101: Official responsible for submitting financial information
A102: ID Number | C102: ID Number
A103: Title | C103: Title
A104: Name | C104: Name
A105: Telephone number | C105: Telephone number
A106: Cell number | C106: Cell number
A107: Fax number | C107: Fax number
A108: E-mail address | C108: E-mail address
A109: Official responsible for submitting financial information | C109: Official responsible for submitting financial information
A110: ID Number | C110: ID Number
A111: Title | C111: Title
A112: Name | C112: Name
A113: Telephone number | C113: Telephone number
A114: Cell number | C114: Cell number
A115: Fax number | C115: Fax number
A116: E-mail address | C116: E-mail address
A117: Official responsible for submitting financial information | C117: Official responsible for submitting financial information
A118: ID Number | C118: ID Number
A119: Title | C119: Title
A120: Name | C120: Name
A121: Telephone number | C121: Telephone number
A122: Cell number | C122: Cell number
A123: Fax number | C123: Fax number
A124: E-mail address | C124: E-mail address
A125: Official responsible for submitting financial information | C125: Official responsible for submitting financial information
A126: ID Number | C126: ID Number
A127: Title | C127: Title
A128: Name | C128: Name
A129: Telephone number | C129: Telephone number
A130: Cell number | C130: Cell number
A131: Fax number | C131: Fax number
A132: E-mail address | C132: E-mail address
A133: Official responsible for submitting financial information
A134: ID Number
A135: Title
A136: Name
A137: Telephone number
A138: Cell number
A139: Fax number
A140: E-mail address

Sheet C1-Sum
A1: =muni& " - "&s71sum& " - "&date -> LIM355 Lepelle-Nkumpi - Table C1 Monthly Budget Statement Summary - M03 September
A2: =desc -> Description | B2: =Head1 -> 2021/22 | C2: =Head2 -> Budget Year 2022/23
B3: =Head5 -> Audited Outcome | C3: =Head6 -> Original Budget | D3: =Head7 -> Adjusted Budget | E3: =Head38 -> Monthly actual | F3: =Head39 -> YearTD actual | G3: =Head40 -> YearTD budget | H3: =Head41 -> YTD variance | I3: =Head41 -> YTD variance | J3: =Head8 -> Full Year Forecast
A4: R thousands | I4: %
A5: Financial Performance
A6: Property rates | B6: =SUM('C4-FinPerf RE'!C6:C6) -> 30520670.65 | C6: =SUM('C4-FinPerf RE'!D6:D6) -> 34373881 | D6: =SUM('C4-FinPerf RE'!E6:E6) -> 34373881 | E6: =SUM('C4-FinPerf RE'!F6:F6) -> 3228097.12 | F6: =SUM('C4-FinPerf RE'!G6:G6) -> 9672269.8 | G6: =SUM('C4-FinPerf RE'!H6:H6) -> 8593458 | H6: =F6-G6 -> 1078811.8 | I6: =IF(H6=0,"",H6/G6) -> 0.1255387296 | J6: =SUM('C4-FinPerf RE'!K6:K6) -> 34373881
A7: Service charges | B7: =SUM('C4-FinPerf RE'!C7:C10) -> 2814398.78 | C7: =SUM('C4-FinPerf RE'!D7:D10) -> 7120609 | D7: =SUM('C4-FinPerf RE'!E7:E10) -> 7120609 | E7: =SUM('C4-FinPerf RE'!F7:F10) -> 6255040.72 | F7: =SUM('C4-FinPerf RE'!G7:G10) -> 13091384.69 | G7: =SUM('C4-FinPerf RE'!H7:H10) -> 1780146 | H7: =F7-G7 -> 11311238.69 | I7: =IF(H7=0,"",H7/G7) -> 6.354107298 | J7: =SUM('C4-FinPerf RE'!K7:K10) -> 7120609
A8: Investment revenue | B8: ='C4-FinPerf RE'!C13 -> 12812681.85 | C8: ='C4-FinPerf RE'!D13 -> 13169720 | D8: ='C4-FinPerf RE'!E13 -> 13169720 | E8: ='C4-FinPerf RE'!F13 -> 1085450.61 | F8: ='C4-FinPerf RE'!G13 -> 2462520.81 | G8: ='C4-FinPerf RE'!H13 -> 3292425 | H8: =F8-G8 -> -829904.19 | I8: =IF(H8=0,"",H8/G8) -> -0.2520647213 | J8: ='C4-FinPerf RE'!K13 -> 13169720
A9: Transfers and subsidies | B9: ='C4-FinPerf RE'!C19 -> 283498760.8 | C9: ='C4-FinPerf RE'!D19 -> 310408898 | D9: ='C4-FinPerf RE'!E19 -> 310408898 | E9: ='C4-FinPerf RE'!F19 -> 24999.99 | F9: ='C4-FinPerf RE'!G19 -> 118141268.9 | G9: ='C4-FinPerf RE'!H19 -> 77602218 | H9: =F9-G9 -> 40539050.88 | I9: =IF(H9=0,"",H9/G9) -> 0.5223955181 | J9: ='C4-FinPerf RE'!K19 -> 310408898
A10: Other own revenue | B10: ='C4-FinPerf RE'!C12+'C4-FinPerf RE'!C14+'C4-FinPerf RE'!C15+'C4-FinPerf RE'!C16+'C4-FinPerf RE'!C17+'C4-FinPerf RE'!C18+'C4-FinPerf RE'!C20+'C4-FinPerf RE'!C21 -> 81139049.13 | C10: ='C4-FinPerf RE'!D12+'C4-FinPerf RE'!D14+'C4-FinPerf RE'!D15+'C4-FinPerf RE'!D16+'C4-FinPerf RE'!D17+'C4-FinPerf RE'!D18+'C4-FinPerf RE'!D20+'C4-FinPerf RE'!D21 -> 200238788 | D10: ='C4-FinPerf RE'!E12+'C4-FinPerf RE'!E14+'C4-FinPerf RE'!E15+'C4-FinPerf RE'!E16+'C4-FinPerf RE'!E17+'C4-FinPerf RE'!E18+'C4-FinPerf RE'!E20+'C4-FinPerf RE'!E21 -> 200238788 | E10: ='C4-FinPerf RE'!F12+'C4-FinPerf RE'!F14+'C4-FinPerf RE'!F15+'C4-FinPerf RE'!F16+'C4-FinPerf RE'!F17+'C4-FinPerf RE'!F18+'C4-FinPerf RE'!F20+'C4-FinPerf RE'!F21 -> 5569866.95 | F10: ='C4-FinPerf RE'!G12+'C4-FinPerf RE'!G14+'C4-FinPerf RE'!G15+'C4-FinPerf RE'!G16+'C4-FinPerf RE'!G17+'C4-FinPerf RE'!G18+'C4-FinPerf RE'!G20+'C4-FinPerf RE'!G21 -> 15496031.38 | G10: ='C4-FinPerf RE'!H12+'C4-FinPerf RE'!H14+'C4-FinPerf RE'!H15+'C4-FinPerf RE'!H16+'C4-FinPerf RE'!H17+'C4-FinPerf RE'!H18+'C4-FinPerf RE'!H20+'C4-FinPerf RE'!H21 -> 50059647 | H10: =F10-G10 -> -34563615.62 | I10: =IF(H10=0,"",H10/G10) -> -0.6904486486 | J10: ='C4-FinPerf RE'!K12+'C4-FinPerf RE'!K14+'C4-FinPerf RE'!K15+'C4-FinPerf RE'!K16+'C4-FinPerf RE'!K17+'C4-FinPerf RE'!K18+'C4-FinPerf RE'!K20+'C4-FinPerf RE'!K21 -> 200238788
A11: Total Revenue (excluding capital transfers and contributions) | B11: =SUM(B6:B10) -> 410785561.2 | C11: 565311896 | D11: 565311896 | E11: 16163455.39 | F11: 158863475.6 | G11: 141327894 | H11: =F11-G11 -> 17535581.56 | I11: =IF(H11=0,"",H11/G11) -> 0.1240772863 | J11: 565311896
A12: Employee costs | B12: ='C4-FinPerf RE'!C25 -> 92930048.43 | C12: ='C4-FinPerf RE'!D25 -> 134714216 | D12: ='C4-FinPerf RE'!E25 -> 134714216 | E12: ='C4-FinPerf RE'!F25 -> 8197398.68 | F12: ='C4-FinPerf RE'!G25 -> 24625045.34 | G12: ='C4-FinPerf RE'!H25 -> 33678966 | H12: -9053920.66 | I12: -0.2688301256 | J12: ='C4-FinPerf RE'!K25 -> 134714216
A13: Remuneration of Councillors | B13: ='C4-FinPerf RE'!C26 -> 22406928.87 | C13: ='C4-FinPerf RE'!D26 -> 22394173 | D13: ='C4-FinPerf RE'!E26 -> 22394173 | E13: ='C4-FinPerf RE'!F26 -> 1864188.94 | F13: ='C4-FinPerf RE'!G26 -> 6082981.78 | G13: ='C4-FinPerf RE'!H26 -> 5598549 | H13: 484432.78 | I13: 0.08652827367 | J13: ='C4-FinPerf RE'!K26 -> 22394173
A14: Depreciation & asset impairment | B14: ='C4-FinPerf RE'!C28 -> 28302993.82 | C14: ='C4-FinPerf RE'!D28 -> 37699942 | D14: ='C4-FinPerf RE'!E28 -> 37699942 | E14: ='C4-FinPerf RE'!F28 -> 2338156.17 | F14: ='C4-FinPerf RE'!G28 -> 7014468.51 | G14: ='C4-FinPerf RE'!H28 -> 9425010 | H14: -2410541.49 | I14: -0.2557600989 | J14: ='C4-FinPerf RE'!K28 -> 37699942
A15: Finance charges | B15: ='C4-FinPerf RE'!C29 -> 0 | C15: ='C4-FinPerf RE'!D29 -> 153613 | D15: ='C4-FinPerf RE'!E29 -> 153613 | E15: ='C4-FinPerf RE'!F29 -> 0 | F15: ='C4-FinPerf RE'!G29 -> 0 | G15: ='C4-FinPerf RE'!H29 -> 38406 | H15: -38406 | I15: -1 | J15: ='C4-FinPerf RE'!K29 -> 153613
A16: Inventory consumed and bulk purchases | B16: =SUM('C4-FinPerf RE'!C30:C31) -> 1836301.14 | C16: =SUM('C4-FinPerf RE'!D30:D31) -> 4983423 | D16: =SUM('C4-FinPerf RE'!E30:E31) -> 4983423 | E16: =SUM('C4-FinPerf RE'!F30:F31) -> 366283.94 | F16: =SUM('C4-FinPerf RE'!G30:G31) -> 551398.65 | G16: =SUM('C4-FinPerf RE'!H30:H31) -> 1245879 | H16: -694480.35 | I16: -0.5574219888 | J16: =SUM('C4-FinPerf RE'!K30:K31) -> 4983423
A17: Transfers and subsidies | B17: ='C4-FinPerf RE'!C33 -> 0 | C17: ='C4-FinPerf RE'!D33 -> 0 | D17: ='C4-FinPerf RE'!E33 -> 0 | E17: ='C4-FinPerf RE'!F33 -> 0 | F17: ='C4-FinPerf RE'!G33 -> 0 | G17: ='C4-FinPerf RE'!H33 -> 0 | H17: 0 | J17: ='C4-FinPerf RE'!K33 -> 0
A18: Other expenditure | B18: ='C4-FinPerf RE'!C36-SUM('C1-Sum'!B12:B17) -> 185377689.2 | C18: ='C4-FinPerf RE'!D36-SUM('C1-Sum'!C12:C17) -> 235664393 | D18: ='C4-FinPerf RE'!E36-SUM('C1-Sum'!D12:D17) -> 235664393 | E18: ='C4-FinPerf RE'!F36-SUM('C1-Sum'!E12:E17) -> 11785164.21 | F18: ='C4-FinPerf RE'!G36-SUM('C1-Sum'!F12:F17) -> 27235485.59 | G18: ='C4-FinPerf RE'!H36-SUM('C1-Sum'!G12:G17) -> 58916346 | H18: -31680860.41 | I18: -0.5377261585 | J18: ='C4-FinPerf RE'!K36-SUM('C1-Sum'!J12:J17) -> 235664393
A19: Total Expenditure | B19: =SUM(B12:B18) -> 330853961.4 | C19: 435609760 | D19: 435609760 | E19: 24551191.94 | F19: 65509379.87 | G19: 108903156 | H19: -43393776.13 | I19: -0.3984620623 | J19: =SUM(J12:J18) -> 435609760
A20: Surplus/(Deficit) | B20: =B11-B19 -> 79931599.8 | C20: 129702136 | D20: 129702136 | E20: -8387736.55 | F20: 93354095.69 | G20: 32424738 | H20: 60929357.69 | I20: 1.879101003 | J20: =J11-J19 -> 129702136
A21: ='C4-FinPerf RE'!A39 -> Transfers and subsidies - capital (monetary allocations) (National / Provincial and District) | B21: ='C4-FinPerf RE'!C39 -> 50792084.59 | C21: ='C4-FinPerf RE'!D39 -> 61628000 | D21: ='C4-FinPerf RE'!E39 -> 61628000 | E21: ='C4-FinPerf RE'!F39 -> 95344.26 | F21: ='C4-FinPerf RE'!G39 -> 5461067.74 | G21: ='C4-FinPerf RE'!H39 -> 15406998 | H21: -9945930.26 | I21: -0.645546281 | J21: ='C4-FinPerf RE'!K39 -> 61628000
A22: ='C4-FinPerf RE'!A40&" & "&'C4-FinPerf RE'!A41 -> Transfers and subsidies - capital (monetary allocations) (National / Provincial Departmental Agencies, Households, Non-profit Institutions, Private Enterprises, Public Corporatons, Higher Educational Institutions) & Transfers and subsidies - capital (in-kind - all) | B22: =SUM('C4-FinPerf RE'!C40:C41) -> 0 | C22: =SUM('C4-FinPerf RE'!D40:D41) -> 0 | D22: =SUM('C4-FinPerf RE'!E40:E41) -> 0 | E22: =SUM('C4-FinPerf RE'!F40:F41) -> 0 | F22: =SUM('C4-FinPerf RE'!G40:G41) -> 0 | G22: =SUM('C4-FinPerf RE'!H40:H41) -> 0 | H22: 0 | J22: =SUM('C4-FinPerf RE'!K40:K41) -> 0
A23: Surplus/(Deficit) after capital transfers & contributions | B23: =B20+B21+B22 -> 130723684.4 | C23: 191330136 | D23: 191330136 | E23: -8292392.29 | F23: 98815163.43 | G23: 47831736 | H23: 50983427.43 | I23: 1.06589122 | J23: =J20+J21+J22 -> 191330136
A24: Share of surplus/ (deficit) of associate | B24: ='C4-FinPerf RE'!C47 -> 0 | C24: ='C4-FinPerf RE'!D47 -> 0 | D24: ='C4-FinPerf RE'!E47 -> 0 | E24: ='C4-FinPerf RE'!F47 -> 0 | F24: ='C4-FinPerf RE'!G47 -> 0 | G24: ='C4-FinPerf RE'!H47 -> 0 | H24: 0 | J24: ='C4-FinPerf RE'!K47 -> 0
A25: Surplus/ (Deficit) for the year | B25: =B23+B24 -> 130723684.4 | C25: 191330136 | D25: 191330136 | E25: -8292392.29 | F25: 98815163.43 | G25: 47831736 | H25: 50983427.43 | I25: 1.06589122 | J25: =J23+J24 -> 191330136
A27: Capital expenditure & funds sources
A28: Capital expenditure | B28: ='C5-Capex'!C40 -> 56710454.62 | C28: ='C5-Capex'!D40 -> 191330136 | D28: ='C5-Capex'!E40 -> 191330136 | E28: ='C5-Capex'!F40 -> 0 | F28: ='C5-Capex'!G40 -> 4457700.99 | G28: ='C5-Capex'!H40 -> 47832576 | H28: =F28-G28 -> -43374875.01 | I28: =IF(H28=0,"",H28/G28) -> -0.9068061693 | J28: ='C5-Capex'!K40 -> 191330136
A29: Capital transfers recognised | B29: ='C5-Capex'!C70 -> 42548887.74 | C29: ='C5-Capex'!D70 -> 58546601 | D29: ='C5-Capex'!E70 -> 58546601 | E29: ='C5-Capex'!F70 -> 0 | F29: ='C5-Capex'!G70 -> 4457700.99 | G29: ='C5-Capex'!H70 -> 14636658 | H29: -10178957.01 | I29: -0.6954427035 | J29: ='C5-Capex'!K70 -> 58546601
A31: Borrowing | B31: ='C5-Capex'!C72 -> 0 | C31: ='C5-Capex'!D72 -> 0 | D31: ='C5-Capex'!E72 -> 0 | E31: ='C5-Capex'!F72 -> 0 | F31: ='C5-Capex'!G72 -> 0 | G31: ='C5-Capex'!H72 -> 0 | H31: 0 | J31: ='C5-Capex'!K72 -> 0
A32: Internally generated funds | B32: ='C5-Capex'!C73 -> 14161566.88 | C32: ='C5-Capex'!D73 -> 132783535 | D32: ='C5-Capex'!E73 -> 132783535 | E32: ='C5-Capex'!F73 -> 0 | F32: ='C5-Capex'!G73 -> 0 | G32: ='C5-Capex'!H73 -> 33195918 | H32: -33195918 | I32: -1 | J32: ='C5-Capex'!K73 -> 132783535
A33: Total sources of capital funds | B33: =+B29+B31+B32 -> 56710454.62 | C33: 191330136 | D33: 191330136 | E33: 0 | F33: 4457700.99 | G33: 47832576 | H33: -43374875.01 | I33: -0.9068061693 | J33: =+J29+J31+J32 -> 191330136
A35: Financial position
A36: Total current assets | B36: ='C6-FinPos'!C13 -> 775776606.6 | C36: ='C6-FinPos'!D13 -> 679305051 | D36: ='C6-FinPos'!E13 -> 679305051 | F36: ='C6-FinPos'!F13 -> 813831838.4 | J36: ='C6-FinPos'!G13 -> 679305051
A37: Total non current assets | B37: ='C6-FinPos'!C25 -> 1002132938 | C37: ='C6-FinPos'!D25 -> 979162553 | D37: ='C6-FinPos'!E25 -> 979162553 | F37: ='C6-FinPos'!F25 -> 999576170.7 | J37: ='C6-FinPos'!G25 -> 979162553
A38: Total current liabilities | B38: ='C6-FinPos'!C35 -> 294015286.3 | C38: ='C6-FinPos'!D35 -> -231360122 | D38: ='C6-FinPos'!E35 -> -231360122 | F38: ='C6-FinPos'!F35 -> 352196378.7 | J38: ='C6-FinPos'!G35 -> -231360122
A39: Total non current liabilities | B39: ='C6-FinPos'!C40 -> 238138.31 | C39: ='C6-FinPos'!D40 -> 238138 | D39: ='C6-FinPos'!E40 -> 238138 | F39: ='C6-FinPos'!F40 -> 238138.31 | J39: ='C6-FinPos'!G40 -> 238138
A40: Community wealth/Equity | B40: ='C6-FinPos'!C48 -> 1250121476 | C40: ='C6-FinPos'!D48 -> 1698259452 | D40: ='C6-FinPos'!E48 -> 1698259452 | F40: ='C6-FinPos'!F48 -> 1460973492 | J40: ='C6-FinPos'!G48 -> 1698259452
A42: Cash flows
A43: Net cash from (used) operating | B43: ='C7-CFlow'!C18 -> 213438493.3 | C43: ='C7-CFlow'!D18 -> 164603979 | D43: ='C7-CFlow'!E18 -> 164603979 | E43: ='C7-CFlow'!F18 -> 0 | F43: ='C7-CFlow'!G18 -> 19272774.77 | G43: ='C7-CFlow'!H18 -> 41150994.72 | H43: =G43-F43 -> 21878219.95 | I43: =IF(H43=0,"",H43/G43) -> 0.5316571349 | J43: ='C7-CFlow'!K18 -> 164603979
A44: Net cash from (used) investing | B44: ='C7-CFlow'!C28 -> -56401054.79 | C44: ='C7-CFlow'!D28 -> -341330136 | D44: ='C7-CFlow'!E28 -> -191330136 | E44: ='C7-CFlow'!F28 -> 0 | F44: ='C7-CFlow'!G28 -> 145542299 | G44: ='C7-CFlow'!H28 -> -47832534.06 | H44: =G44-F44 -> -193374833.1 | I44: =IF(H44=0,"",H44/G44) -> 4.042746989 | J44: ='C7-CFlow'!K28 -> -191330136
A45: Net cash from (used) financing | B45: ='C7-CFlow'!C37 -> 0 | C45: ='C7-CFlow'!D37 -> 0 | D45: ='C7-CFlow'!E37 -> 0 | E45: ='C7-CFlow'!F37 -> 0 | F45: ='C7-CFlow'!G37 -> 0 | G45: ='C7-CFlow'!H37 -> 0 | H45: =G45-F45 -> 0 | I45: =IF(H45=0,"",H45/G45) ->  | J45: ='C7-CFlow'!K37 -> 0
A46: Cash/cash equivalents at the month/year end | B46: ='C7-CFlow'!C41 -> 452034953.2 | C46: ='C7-CFlow'!D41 -> 63351525 | D46: ='C7-CFlow'!E41 -> 213351525 | E46: ='C7-CFlow'!F41 -> 0 | F46: ='C7-CFlow'!G41 -> 665084986.8 | G46: ='C7-CFlow'!H41 -> 233396142.7 | H46: =G46-F46 -> -431688844.1 | I46: =IF(H46=0,"",H46/G46) -> -1.849597167 | J46: ='C7-CFlow'!K41 -> 473543756
A48: Debtors & creditors analysis | B48: ='SC3'!C3 -> 0-30 Days | C48: ='SC3'!D3 -> 31-60 Days | D48: ='SC3'!E3 -> 61-90 Days | E48: ='SC3'!F3 -> 91-120 Days | F48: ='SC3'!G3 -> 121-150 Dys | G48: ='SC3'!H3 -> 151-180 Dys | H48: ='SC3'!I3 -> 181 Dys-1 Yr | I48: ='SC3'!J3 -> Over 1Yr | J48: Total
A49: =LEFT('SC3'!A4,20) -> Debtors Age Analysis
A50: ='SC3'!A14 -> Total By Income Source | B50: ='SC3'!C14 -> 0 | C50: ='SC3'!D14 -> 0 | D50: ='SC3'!E14 -> 0 | E50: ='SC3'!F14 -> 0 | F50: ='SC3'!G14 -> 0 | G50: ='SC3'!H14 -> 0 | H50: ='SC3'!I14 -> 0 | I50: ='SC3'!J14 -> 0 | J50: ='SC3'!K14 -> 0
A51: =LEFT('SC4'!A5,22) -> Creditors Age Analysis
A52: Total Creditors | B52: ='SC4'!C15 -> 0 | C52: ='SC4'!D15 -> 0 | D52: ='SC4'!E15 -> 0 | E52: ='SC4'!F15 -> 0 | F52: ='SC4'!G15 -> 0 | G52: ='SC4'!H15 -> 0 | H52: ='SC4'!I15 -> 0 | I52: ='SC4'!J15 -> 0 | J52: ='SC4'!K15 -> 0

Sheet C2-FinPerf SC
A1: =muni& " - "&S71A& " - "&date -> LIM355 Lepelle-Nkumpi - Table C2 Monthly Budget Statement - Financial Performance (functional classification) - M03 September
A2: =desc -> Description | B2: =head27 -> Ref | C2: =Head1 -> 2021/22 | D2: =Head2 -> Budget Year 2022/23
C3: =Head5 -> Audited Outcome | D3: =Head6 -> Original Budget | E3: =Head7 -> Adjusted Budget | F3: =Head38 -> Monthly actual | G3: =Head39 -> YearTD actual | H3: =Head40 -> YearTD budget | I3: =Head41 -> YTD variance | J3: =Head41 -> YTD variance | K3: =Head8 -> Full Year Forecast
A4: R thousands | B4: 1 | J4: %
A5: Revenue - Functional
A6: Governance and administration | C6: =SUM(C7:C9) -> 383615942 | D6: 514790312 | E6: 514790312 | F6: 6123517.37 | G6: 135578944.1 | H6: 128697534 | I6: =G6-H6 -> 6881410.07 | J6: =IF(I6=0,"",I6/H6) -> 0.05346963424 | K6: =SUM(K7:K9) -> 514790312
A7: Executive and council | C7: ='C2C'!C7 -> 0 | D7: ='C2C'!D7 -> 0 | E7: ='C2C'!E7 -> 0 | F7: ='C2C'!F7 -> 0 | G7: ='C2C'!G7 -> 0 | H7: ='C2C'!H7 -> 0 | I7: 0 | J7: =IF(I7=0,"",I7/H7) ->  | K7: ='C2C'!K7 -> 0
A8: Finance and administration | C8: ='C2C'!C10 -> 383615942 | D8: ='C2C'!D10 -> 514790312 | E8: ='C2C'!E10 -> 514790312 | F8: ='C2C'!F10 -> 6123517.37 | G8: ='C2C'!G10 -> 135578944.1 | H8: ='C2C'!H10 -> 128697534 | I8: 6881410.07 | J8: 0.05346963424 | K8: ='C2C'!K10 -> 514790312
A9: Internal audit | C9: ='C2C'!C24 -> 0 | D9: ='C2C'!D24 -> 0 | E9: ='C2C'!E24 -> 0 | F9: ='C2C'!F24 -> 0 | G9: ='C2C'!G24 -> 0 | H9: ='C2C'!H24 -> 0 | I9: 0 | K9: ='C2C'!K24 -> 0
A10: Community and public safety | C10: =SUM(C11:C15) -> 7672907.45 | D10: 12430748 | E10: 12430748 | F10: 5156.51 | G10: 29989.09 | H10: 3107679 | I10: -3077689.91 | J10: -0.990350004 | K10: =SUM(K11:K15) -> 12430748
A11: Community and social services | C11: ='C2C'!C27 -> 5662357.46 | D11: ='C2C'!D27 -> 376570 | E11: ='C2C'!E27 -> 376570 | F11: ='C2C'!F27 -> 4956.51 | G11: ='C2C'!G27 -> 26782.57 | H11: ='C2C'!H27 -> 94137 | I11: -67354.43 | J11: -0.7154936954 | K11: ='C2C'!K27 -> 376570
A12: Sport and recreation | C12: ='C2C'!C49 -> 0 | D12: ='C2C'!D49 -> 0 | E12: ='C2C'!E49 -> 0 | F12: ='C2C'!F49 -> 0 | G12: ='C2C'!G49 -> 0 | H12: ='C2C'!H49 -> 0 | I12: 0 | K12: ='C2C'!K49 -> 0
A13: Public safety | C13: ='C2C'!C55 -> 2010549.99 | D13: ='C2C'!D55 -> 12054178 | E13: ='C2C'!E55 -> 12054178 | F13: ='C2C'!F55 -> 200 | G13: ='C2C'!G55 -> 3206.52 | H13: ='C2C'!H55 -> 3013542 | I13: -3010335.48 | J13: -0.9989359631 | K13: ='C2C'!K55 -> 12054178
A14: Housing | C14: ='C2C'!C64 -> 0 | D14: ='C2C'!D64 -> 0 | E14: ='C2C'!E64 -> 0 | F14: ='C2C'!F64 -> 0 | G14: ='C2C'!G64 -> 0 | H14: ='C2C'!H64 -> 0 | I14: 0 | K14: ='C2C'!K64 -> 0
A15: Health | C15: ='C2C'!C67 -> 0 | D15: ='C2C'!D67 -> 0 | E15: ='C2C'!E67 -> 0 | F15: ='C2C'!F67 -> 0 | G15: ='C2C'!G67 -> 0 | H15: ='C2C'!H67 -> 0 | I15: 0 | K15: ='C2C'!K67 -> 0
A16: Economic and environmental services | C16: =SUM(C17:C19) -> 58621557.03 | D16: 86207364 | E16: 86207364 | F16: 9542111.82 | G16: 26954337.39 | H16: 21551820 | I16: 5402517.39 | J16: 0.2506756919 | K16: =SUM(K17:K19) -> 86207364
A17: Planning and development | C17: ='C2C'!C76 -> 55995842.63 | D17: ='C2C'!D76 -> 80157778 | E17: ='C2C'!E76 -> 80157778 | F17: ='C2C'!F76 -> 41216.95 | G17: ='C2C'!G76 -> 5552948.07 | H17: ='C2C'!H76 -> 20039427 | I17: -14486478.93 | J17: -0.7228988598 | K17: ='C2C'!K76 -> 80157778
A18: Road transport | C18: ='C2C'!C87 -> 2625714.4 | D18: ='C2C'!D87 -> 6033131 | E18: ='C2C'!E87 -> 6033131 | F18: ='C2C'!F87 -> 9500894.87 | G18: ='C2C'!G87 -> 21401389.32 | H18: ='C2C'!H87 -> 1508280 | I18: 19893109.32 | J18: 13.18926812 | K18: ='C2C'!K87 -> 6033131
A19: Environmental protection | C19: ='C2C'!C92 -> 0 | D19: ='C2C'!D92 -> 16455 | E19: ='C2C'!E92 -> 16455 | F19: ='C2C'!F92 -> 0 | G19: ='C2C'!G92 -> 0 | H19: ='C2C'!H92 -> 4113 | I19: -4113 | J19: -1 | K19: ='C2C'!K92 -> 16455
A20: Trading services | C20: =SUM(C21:C24) -> 11667239.34 | D20: =SUM(D21:D24) -> 13511472 | E20: 13511472 | F20: 588013.95 | G20: 1761272.75 | H20: 3377859 | I20: -1616586.25 | J20: -0.4785831055 | K20: =SUM(K21:K24) -> 13511472
A21: Energy sources | C21: ='C2C'!C100 -> 3884000 | D21: ='C2C'!D100 -> 5000000 | E21: ='C2C'!E100 -> 5000000 | F21: ='C2C'!F100 -> 0 | G21: ='C2C'!G100 -> 0 | H21: ='C2C'!H100 -> 1249998 | I21: =G21-H21 -> -1249998 | J21: -1 | K21: ='C2C'!K100 -> 5000000
A22: Water management | C22: ='C2C'!C104 -> 0 | D22: ='C2C'!D104 -> 0 | E22: ='C2C'!E104 -> 0 | F22: ='C2C'!F104 -> 0 | G22: ='C2C'!G104 -> 0 | H22: ='C2C'!H104 -> 0 | I22: =G22-H22 -> 0 | K22: ='C2C'!K104 -> 0
A23: Waste water management | C23: ='C2C'!C108 -> 0 | D23: ='C2C'!D108 -> 0 | E23: ='C2C'!E108 -> 0 | F23: ='C2C'!F108 -> 0 | G23: ='C2C'!G108 -> 0 | H23: ='C2C'!H108 -> 0 | I23: =G23-H23 -> 0 | K23: ='C2C'!K108 -> 0
A24: Waste management | C24: ='C2C'!C113 -> 7783239.34 | D24: ='C2C'!D113 -> 8511472 | E24: ='C2C'!E113 -> 8511472 | F24: ='C2C'!F113 -> 588013.95 | G24: ='C2C'!G113 -> 1761272.75 | H24: ='C2C'!H113 -> 2127861 | I24: =G24-H24 -> -366588.25 | J24: -0.1722801677 | K24: ='C2C'!K113 -> 8511472
A25: Other | B25: 4 | C25: ='C2C'!C118 -> 0 | D25: ='C2C'!D118 -> 0 | E25: ='C2C'!E118 -> 0 | F25: ='C2C'!F118 -> 0 | G25: ='C2C'!G118 -> 0 | H25: ='C2C'!H118 -> 0 | I25: =G25-H25 -> 0 | K25: ='C2C'!K118 -> 0
A26: Total Revenue - Functional | B26: 2 | C26: =C6+C10+C16+C20+C25 -> 461577645.8 | D26: =D6+D10+D16+D20+D25 -> 626939896 | E26: 626939896 | F26: 16258799.65 | G26: 164324543.3 | H26: 156734892 | I26: 7589651.3 | J26: 0.04842349526 | K26: =K6+K10+K16+K20+K25 -> 626939896
A28: Expenditure - Functional
A29: Governance and administration | C29: =SUM(C30:C32) -> 241273627.8 | D29: 258843293 | E29: 258843293 | F29: 16791241.05 | G29: 43770342.51 | H29: 64711290 | I29: =G29-H29 -> -20940947.49 | J29: =IF(I29=0,"",I29/H29) -> -0.3236057802 | K29: =SUM(K30:K32) -> 258843293
A30: Executive and council | C30: ='C2C'!C129 -> 28757850.17 | D30: ='C2C'!D129 -> 36616655 | E30: ='C2C'!E129 -> 36616655 | F30: ='C2C'!F129 -> 2499470.47 | G30: ='C2C'!G129 -> 7767027.41 | H30: ='C2C'!H129 -> 9154200 | I30: -1387172.59 | J30: =IF(I30=0,"",I30/H30) -> -0.1515340052 | K30: ='C2C'!K129 -> 36616655
A31: Finance and administration | C31: ='C2C'!C132 -> 203828004.1 | D31: ='C2C'!D132 -> 212100946 | E31: ='C2C'!E132 -> 212100946 | F31: ='C2C'!F132 -> 13936338.7 | G31: ='C2C'!G132 -> 35095163.25 | H31: ='C2C'!H132 -> 53025648 | I31: -17930484.75 | J31: -0.3381473952 | K31: ='C2C'!K132 -> 212100946
A32: Internal audit | C32: ='C2C'!C146 -> 8687773.5 | D32: ='C2C'!D146 -> 10125692 | E32: ='C2C'!E146 -> 10125692 | F32: ='C2C'!F146 -> 355431.88 | G32: ='C2C'!G146 -> 908151.85 | H32: ='C2C'!H146 -> 2531442 | I32: -1623290.15 | J32: -0.6412511723 | K32: ='C2C'!K146 -> 10125692
A33: Community and public safety | C33: =SUM(C34:C38) -> 21918479.88 | D33: 31124989 | E33: 31124989 | F33: 1796083.33 | G33: 5356740.31 | H33: 7781331 | I33: -2424590.69 | J33: -0.3115907407 | K33: =SUM(K34:K38) -> 31124989
A34: Community and social services | C34: ='C2C'!C149 -> 11058400.45 | D34: ='C2C'!D149 -> 14823426 | E34: ='C2C'!E149 -> 14823426 | F34: ='C2C'!F149 -> 1014118.44 | G34: ='C2C'!G149 -> 2798754.88 | H34: ='C2C'!H149 -> 3705903 | I34: -907148.12 | J34: -0.2447846368 | K34: ='C2C'!K149 -> 14823426
A35: Sport and recreation | C35: ='C2C'!C171 -> 0 | D35: ='C2C'!D171 -> 0 | E35: ='C2C'!E171 -> 0 | F35: ='C2C'!F171 -> 0 | G35: ='C2C'!G171 -> 0 | H35: ='C2C'!H171 -> 0 | I35: 0 | K35: ='C2C'!K171 -> 0
A36: Public safety | C36: ='C2C'!C177 -> 10860079.43 | D36: ='C2C'!D177 -> 16301563 | E36: ='C2C'!E177 -> 16301563 | F36: ='C2C'!F177 -> 781964.89 | G36: ='C2C'!G177 -> 2557985.43 | H36: ='C2C'!H177 -> 4075428 | I36: -1517442.57 | J36: -0.3723394377 | K36: ='C2C'!K177 -> 16301563
A37: Housing | C37: ='C2C'!C186 -> 0 | D37: ='C2C'!D186 -> 0 | E37: ='C2C'!E186 -> 0 | F37: ='C2C'!F186 -> 0 | G37: ='C2C'!G186 -> 0 | H37: ='C2C'!H186 -> 0 | I37: 0 | K37: ='C2C'!K186 -> 0
A38: Health | C38: ='C2C'!C189 -> 0 | D38: ='C2C'!D189 -> 0 | E38: ='C2C'!E189 -> 0 | F38: ='C2C'!F189 -> 0 | G38: ='C2C'!G189 -> 0 | H38: ='C2C'!H189 -> 0 | I38: 0 | K38: ='C2C'!K189 -> 0
A39: Economic and environmental services | C39: =SUM(C40:C42) -> 42181978.3 | D39: 64640177 | E39: 64640177 | F39: 3259870.13 | G39: 9648162.16 | H39: 16160163 | I39: -6512000.84 | J39: -0.4029662844 | K39: =SUM(K40:K42) -> 64640177
A40: Planning and development | C40: ='C2C'!C198 -> 10088925.04 | D40: ='C2C'!D198 -> 16981128 | E40: ='C2C'!E198 -> 16981128 | F40: ='C2C'!F198 -> 799216.97 | G40: ='C2C'!G198 -> 2205682.88 | H40: ='C2C'!H198 -> 4245354 | I40: -2039671.12 | J40: -0.4804478307 | K40: ='C2C'!K198 -> 16981128
A41: Road transport | C41: ='C2C'!C209 -> 31423153.44 | D41: ='C2C'!D209 -> 46860170 | E41: ='C2C'!E209 -> 46860170 | F41: ='C2C'!F209 -> 2409709.26 | G41: ='C2C'!G209 -> 7289647.58 | H41: ='C2C'!H209 -> 11715075 | I41: -4425427.42 | J41: -0.3777549371 | K41: ='C2C'!K209 -> 46860170
A42: Environmental protection | C42: ='C2C'!C214 -> 669899.82 | D42: ='C2C'!D214 -> 798879 | E42: ='C2C'!E214 -> 798879 | F42: ='C2C'!F214 -> 50943.9 | G42: ='C2C'!G214 -> 152831.7 | H42: ='C2C'!H214 -> 199734 | I42: -46902.3 | J42: -0.2348238157 | K42: ='C2C'!K214 -> 798879
A43: Trading services | C43: =SUM(C44:C47) -> 25479875.42 | D43: =SUM(D44:D47) -> 81001301 | E43: 81001301 | F43: 2703997.43 | G43: 6734134.89 | H43: 20250372 | I43: -13516237.11 | J43: -0.6674562378 | K43: =SUM(K44:K47) -> 81001301
A44: Energy sources | C44: ='C2C'!C222 -> 9577243.85 | D44: ='C2C'!D222 -> 58191507 | E44: ='C2C'!E222 -> 58191507 | F44: ='C2C'!F222 -> 1519577.59 | G44: ='C2C'!G222 -> 3439671.85 | H44: ='C2C'!H222 -> 14547897 | I44: -11108225.15 | J44: -0.7635622626 | K44: ='C2C'!K222 -> 58191507
A45: Water management | C45: ='C2C'!C226 -> 0 | D45: ='C2C'!D226 -> 0 | E45: ='C2C'!E226 -> 0 | F45: ='C2C'!F226 -> 0 | G45: ='C2C'!G226 -> 0 | H45: ='C2C'!H226 -> 0 | I45: 0 | K45: ='C2C'!K226 -> 0
A46: Waste water management | C46: ='C2C'!C230 -> 0 | D46: ='C2C'!D230 -> 0 | E46: ='C2C'!E230 -> 0 | F46: ='C2C'!F230 -> 0 | G46: ='C2C'!G230 -> 0 | H46: ='C2C'!H230 -> 0 | I46: 0 | K46: ='C2C'!K230 -> 0
A47: Waste management | C47: ='C2C'!C235 -> 15902631.57 | D47: ='C2C'!D235 -> 22809794 | E47: ='C2C'!E235 -> 22809794 | F47: ='C2C'!F235 -> 1184419.84 | G47: ='C2C'!G235 -> 3294463.04 | H47: ='C2C'!H235 -> 5702475 | I47: -2408011.96 | J47: -0.4222748824 | K47: ='C2C'!K235 -> 22809794
A48: Other | C48: ='C2C'!C240 -> 0 | D48: ='C2C'!D240 -> 0 | E48: ='C2C'!E240 -> 0 | F48: ='C2C'!F240 -> 0 | G48: ='C2C'!G240 -> 0 | H48: ='C2C'!H240 -> 0 | I48: 0 | K48: ='C2C'!K240 -> 0
A49: Total Expenditure - Functional | B49: 3 | C49: =C29+C33+C39+C43+C48 -> 330853961.4 | D49: =D29+D33+D39+D43+D48 -> 435609760 | E49: 435609760 | F49: 24551191.94 | G49: 65509379.87 | H49: 108903156 | I49: -43393776.13 | J49: -0.3984620623 | K49: =K29+K33+K39+K43+K48 -> 435609760
A50: Surplus/ (Deficit) for the year | C50: =C26-C49 -> 130723684.4 | D50: 191330136 | E50: 191330136 | F50: -8292392.29 | G50: 98815163.43 | H50: 47831736 | I50: =I26-I49 -> 50983427.43 | J50: =IF(I50=0,"",I50/H50) -> 1.06589122 | K50: =K26-K49 -> 191330136
A51: =head27a -> References
A52: 1. Government Finance Statistics Functions and Sub-functions are standardised to assist the compilation of national and international accounts for comparison purposes
A53: 2. Total Revenue by functional classification must reconcile to Total Operating Revenue shown in the Financial Performance Statement
A54: 3. Total Expenditure by functional classification must reconcile to total operating expenditure shown in 'Financial Performance Statement'
A55: 4. All amounts must be classified under a functional classification (modified GFS). The GFS function 'Other' is only for Abbatoirs, Air Transport, Licensing and Regulation, Markets and Tourism - and if used must be supported by footnotes. Nothing else may be placed under 'Other'. Assign associate share to relevant classification

Sheet C2C
A1: =muni& " - "&S71A& " - "&date -> LIM355 Lepelle-Nkumpi - Table C2 Monthly Budget Statement - Financial Performance (functional classification) - M03 September
A2: =desc -> Description | B2: =head27 -> Ref | C2: =Head1 -> 2021/22 | D2: =Head2 -> Budget Year 2022/23
C3: =Head5 -> Audited Outcome | D3: =Head6 -> Original Budget | E3: =Head7 -> Adjusted Budget | F3: =Head38 -> Monthly actual | G3: =Head39 -> YearTD actual | H3: =Head40 -> YearTD budget | I3: =Head41 -> YTD variance | J3: =Head41 -> YTD variance | K3: =Head8 -> Full Year Forecast
A4: R thousands | B4: 1 | J4: %
A5: Revenue - Functional
A6: Municipal governance and administration | C6: =C7+C10+C24 -> 383615942 | D6: 514790312 | E6: 514790312 | F6: 6123517.37 | G6: 135578944.1 | H6: 128697534 | I6: =G6-H6 -> 6881410.07 | J6: =IF(I6=0,"",I6/H6) -> 0.05346963424 | K6: =K7+K10+K24 -> 514790312
A7: Executive and council | C7: =SUM(C8:C9) -> 0 | D7: =SUM(D8:D9) -> 0 | E7: 0 | F7: 0 | G7: 0 | H7: 0 | I7: =G7-H7 -> 0 | J7: =IF(I7=0,"",I7/H7) ->  | K7: 0
A8: Mayor and Council | I8: 0
A9: Municipal Manager, Town Secretary and Chief Executive | I9: 0
A10: Finance and administration | C10: =SUM(C11:C23) -> 383615942 | D10: 514790312 | E10: 514790312 | F10: 6123517.37 | G10: 135578944.1 | H10: 128697534 | I10: 6881410.07 | J10: 0.05346963424 | K10: =SUM(K11:K23) -> 514790312
A11: Administrative and Corporate Support | C11: 134588.27 | D11: 187726 | E11: 187726 | F11: 9739.15 | G11: 19660.92 | H11: 46929 | I11: -27268.08 | J11: -0.5810496708 | K11: 187726
A12: Asset Management | C12: 1317806.7 | D12: 44133 | E12: 44133 | F12: 0 | G12: 0 | H12: 11031 | I12: -11031 | J12: -1 | K12: 44133
A13: Finance | C13: 350960150.9 | D13: 479067874 | E13: 479067874 | F13: 2846072.71 | G13: 125768597.7 | H13: 119766954 | I13: 6001643.65 | J13: 0.05011101518 | K13: 479067874
A14: Fleet Management | I14: 0
A15: Human Resources | C15: 180584.57 | D15: 463020 | E15: 463020 | F15: 0 | G15: 0 | H15: 115752 | I15: -115752 | J15: -1 | K15: 463020
A16: Information Technology | C16: 272366.15 | D16: 227574 | E16: 227574 | F16: 17445.5 | G16: 52336.5 | H16: 56892 | I16: -4555.5 | J16: -0.08007276946 | K16: 227574
A17: Legal Services | I17: 0
A18: Marketing, Customer Relations, Publicity and Media Co-ordination | C18: 0 | D18: 0 | E18: 0 | F18: 0 | G18: 0 | H18: 0 | I18: 0 | K18: 0
A19: Property Services | C19: 30750445.39 | D19: 34729985 | E19: 34729985 | F19: 3250260.01 | G19: 9738349 | H19: 8682477 | I19: 1055872 | J19: 0.1216095361 | K19: 34729985
A20: Risk Management | I20: 0
A21: Security Services | C21: 0 | D21: 70000 | E21: 70000 | F21: 0 | G21: 0 | H21: 17499 | I21: -17499 | J21: -1 | K21: 70000
A22: Supply Chain Management | C22: 0 | D22: 0 | E22: 0 | F22: 0 | G22: 0 | H22: 0 | I22: 0 | K22: 0
A23: Valuation Service | I23: 0
A24: Internal audit | C24: =SUM(C25:C25) -> 0 | D24: 0 | E24: 0 | F24: 0 | G24: 0 | H24: 0 | I24: 0 | K24: =SUM(K25:K25) -> 0
A25: Governance Function | I25: 0
A26: Community and public safety | C26: =C27+C49+C55+C64+C67 -> 7672907.45 | D26: =D27+D49+D55+D64+D67 -> 12430748 | E26: 12430748 | F26: 5156.51 | G26: 29989.09 | H26: 3107679 | I26: -3077689.91 | J26: -0.990350004 | K26: 12430748
A27: Community and social services | C27: =SUM(C28:C48) -> 5662357.46 | D27: 376570 | E27: 376570 | F27: 4956.51 | G27: 26782.57 | H27: 94137 | I27: -67354.43 | J27: -0.7154936954 | K27: =SUM(K28:K48) -> 376570
A28: Aged Care | I28: 0
A29: Agricultural | I29: 0
A30: Animal Care and Diseases | I30: 0
A31: Cemeteries, Funeral Parlours and Crematoriums | I31: 0
A32: Child Care Facilities | I32: 0
A33: Community Halls and Facilities | C33: 44956.45 | D33: 375481 | E33: 375481 | F33: 4956.51 | G33: 26782.57 | H33: 93867 | I33: -67084.43 | J33: -0.7146753385 | K33: 375481
A34: Consumer Protection | I34: 0
A35: Cultural Matters | I35: 0
A36: Disaster Management | C36: 5617401.01 | D36: 0 | E36: 0 | F36: 0 | G36: 0 | H36: 0 | I36: 0 | K36: 0
A37: Education | I37: 0
A38: Indigenous and Customary Law | I38: 0
A39: Industrial Promotion | I39: 0
A40: Language Policy | I40: 0
A41: Libraries and Archives | C41: 0 | D41: 1089 | E41: 1089 | F41: 0 | G41: 0 | H41: 270 | I41: -270 | J41: -1 | K41: 1089
A42: Literacy Programmes | I42: 0
A43: Media Services | I43: 0
A44: Museums and Art Galleries | I44: 0
A45: Population Development | I45: 0
A46: Provincial Cultural Matters | I46: 0
A47: Theatres | I47: 0
A48: Zoo's | I48: 0
A49: Sport and recreation | C49: =SUM(C50:C54) -> 0 | D49: =SUM(D50:D54) -> 0 | E49: 0 | F49: 0 | G49: 0 | H49: 0 | I49: 0 | K49: 0
A50: Beaches and Jetties | I50: 0
A51: Casinos, Racing, Gambling, Wagering | I51: 0
A52: Community Parks (including Nurseries) | I52: 0
A53: Recreational Facilities | I53: 0
A54: Sports Grounds and Stadiums | I54: 0
A55: Public safety | C55: =SUM(C56:C63) -> 2010549.99 | D55: =SUM(D56:D63) -> 12054178 | E55: 12054178 | F55: 200 | G55: 3206.52 | H55: 3013542 | I55: -3010335.48 | J55: -0.9989359631 | K55: 12054178
A56: Civil Defence | I56: 0
A57: Cleansing | I57: 0
A58: Control of Public Nuisances | I58: =G58-H58 -> 0 | J58: =IF(I58=0,"",I58/H58) -> 
A59: Fencing and Fences | I59: 0
A60: Fire Fighting and Protection | I60: 0
A61: Licensing and Control of Animals | I61: =G61-H61 -> 0 | J61: =IF(I61=0,"",I61/H61) -> 
A62: Police Forces, Traffic and Street Parking Control | C62: 1995950 | D62: 12052000 | E62: 12052000 | F62: 200 | G62: 2250 | H62: 3012999 | I62: =G62-H62 -> -3010749 | J62: =IF(I62=0,"",I62/H62) -> -0.9992532357 | K62: 12052000
A63: Pounds | C63: 14599.99 | D63: 2178 | E63: 2178 | F63: 0 | G63: 956.52 | H63: 543 | I63: 413.52 | J63: 0.7615469613 | K63: 2178
A64: Housing | C64: =SUM(C65:C66) -> 0 | D64: 0 | E64: 0 | F64: 0 | G64: 0 | H64: 0 | I64: =G64-H64 -> 0 | J64: =IF(I64=0,"",I64/H64) ->  | K64: =SUM(K65:K66) -> 0
A65: Housing | I65: =G65-H65 -> 0 | J65: =IF(I65=0,"",I65/H65) -> 
A66: Informal Settlements | I66: =G66-H66 -> 0 | J66: =IF(I66=0,"",I66/H66) -> 
A67: Health | C67: =SUM(C68:C74) -> 0 | D67: 0 | E67: 0 | F67: 0 | G67: 0 | H67: 0 | I67: 0 | K67: =SUM(K68:K74) -> 0
A68: Ambulance | I68: 0
A69: Health Services | I69: 0
A70: Laboratory Services | I70: =G70-H70 -> 0 | J70: =IF(I70=0,"",I70/H70) -> 
A71: Food Control | I71: =G71-H71 -> 0 | J71: =IF(I71=0,"",I71/H71) -> 
A72: Health Surveillance and Prevention of Communicable Diseases including immunizations | I72: 0
A73: Vector Control | I73: 0
A74: Chemical Safety | I74: 0
A75: Economic and environmental services | C75: =C76+C87+C92 -> 58621557.03 | D75: 86207364 | E75: 86207364 | F75: 9542111.82 | G75: 26954337.39 | H75: 21551820 | I75: 5402517.39 | J75: 0.2506756919 | K75: =K76+K87+K92 -> 86207364
A76: Planning and development | C76: =SUM(C77:C86) -> 55995842.63 | D76: 80157778 | E76: 80157778 | F76: 41216.95 | G76: 5552948.07 | H76: 20039427 | I76: -14486478.93 | J76: -0.7228988598 | K76: =SUM(K77:K86) -> 80157778
A77: Billboards | I77: =G77-H77 -> 0 | J77: =IF(I77=0,"",I77/H77) -> 
A78: Corporate Wide Strategic Planning (IDPs, LEDs) | C78: 0 | D78: 377308 | E78: 377308 | F78: 0 | G78: 0 | H78: 94326 | I78: -94326 | J78: -1 | K78: 377308
A79: Central City Improvement District | I79: 0
A80: Development Facilitation | I80: =G80-H80 -> 0 | J80: =IF(I80=0,"",I80/H80) -> 
A81: Economic Development/Planning | C81: 2301.95 | D81: 6830 | E81: 6830 | F81: 0 | G81: 0 | H81: 1704 | I81: =G81-H81 -> -1704 | J81: =IF(I81=0,"",I81/H81) -> -1 | K81: 6830
A82: Regional Planning and Development | I82: =G82-H82 -> 0 | J82: =IF(I82=0,"",I82/H82) -> 
A83: Town Planning, Building Regulations and Enforcement, and City Engineer | C83: 4491187.89 | D83: 18145640 | E83: 18145640 | F83: -54127.31 | G83: 91880.33 | H83: 4536399 | I83: =G83-H83 -> -4444518.67 | J83: =IF(I83=0,"",I83/H83) -> -0.9797459769 | K83: 18145640
A84: Project Management Unit | C84: 51502352.79 | D84: 61628000 | E84: 61628000 | F84: 95344.26 | G84: 5461067.74 | H84: 15406998 | I84: -9945930.26 | J84: -0.645546281 | K84: 61628000
A85: Provincial Planning | I85: 0
A86: Support to Local Municipalities | I86: 0
A87: Road transport | C87: =SUM(C88:C91) -> 2625714.4 | D87: 6033131 | E87: 6033131 | F87: 9500894.87 | G87: 21401389.32 | H87: 1508280 | I87: 19893109.32 | J87: 13.18926812 | K87: =SUM(K88:K91) -> 6033131
A88: Public Transport | I88: 0
A89: Road and Traffic Regulation | C89: 5625554.96 | D89: 6033131 | E89: 6033131 | F89: 421881.67 | G89: 3292778.54 | H89: 1508280 | I89: 1784498.54 | J89: 1.183134789 | K89: 6033131
A90: Roads | C90: -2999840.56 | D90: 0 | E90: 0 | F90: 9079013.2 | G90: 18108610.78 | H90: 0 | I90: 18108610.78 | K90: 0
A91: Taxi Ranks | I91: 0
A92: Environmental protection | C92: =SUM(C93:C98) -> 0 | D92: =SUM(D93:D98) -> 16455 | E92: 16455 | F92: 0 | G92: 0 | H92: 4113 | I92: -4113 | J92: -1 | K92: 16455
A93: Biodiversity and Landscape | I93: 0
A94: Coastal Protection | I94: 0
A95: Indigenous Forests | I95: =G95-H95 -> 0 | J95: =IF(I95=0,"",I95/H95) -> 
A96: Nature Conservation | I96: =G96-H96 -> 0 | J96: =IF(I96=0,"",I96/H96) -> 
A97: Pollution Control | C97: 0 | D97: 16455 | E97: 16455 | F97: 0 | G97: 0 | H97: 4113 | I97: -4113 | J97: -1 | K97: 16455
A98: Soil Conservation | I98: 0
A99: Trading services | C99: =C100+C104+C108+C113 -> 11667239.34 | D99: =D100+D104+D108+D113 -> 13511472 | E99: 13511472 | F99: 588013.95 | G99: 1761272.75 | H99: 3377859 | I99: -1616586.25 | J99: -0.4785831055 | K99: =K100+K104+K108+K113 -> 13511472
A100: Energy sources | C100: =SUM(C101:C103) -> 3884000 | D100: =SUM(D101:D103) -> 5000000 | E100: 5000000 | F100: 0 | G100: 0 | H100: 1249998 | I100: -1249998 | J100: -1 | K100: 5000000
A101: Electricity | C101: 3884000 | D101: 5000000 | E101: 5000000 | F101: 0 | G101: 0 | H101: 1249998 | I101: -1249998 | J101: -1 | K101: 5000000
A102: Street Lighting and Signal Systems | I102: =G102-H102 -> 0 | J102: =IF(I102=0,"",I102/H102) -> 
A103: Nonelectric Energy | I103: 0
A104: Water management | C104: =SUM(C105:C107) -> 0 | D104: =SUM(D105:D107) -> 0 | E104: 0 | F104: 0 | G104: 0 | H104: 0 | I104: 0 | K104: 0
A105: Water Treatment | I105: 0
A106: Water Distribution | I106: =G106-H106 -> 0 | J106: =IF(I106=0,"",I106/H106) -> 
A107: Water Storage | I107: 0
A108: Waste water management | C108: =SUM(C109:C112) -> 0 | D108: =SUM(D109:D112) -> 0 | E108: 0 | F108: 0 | G108: 0 | H108: 0 | I108: 0 | K108: 0
A109: Public Toilets | I109: 0
A110: Sewerage | I110: 0
A111: Storm Water Management | I111: =G111-H111 -> 0 | J111: =IF(I111=0,"",I111/H111) -> 
A112: Waste Water Treatment | I112: 0
A113: Waste management | C113: =SUM(C114:C117) -> 7783239.34 | D113: 8511472 | E113: 8511472 | F113: 588013.95 | G113: 1761272.75 | H113: 2127861 | I113: -366588.25 | J113: -0.1722801677 | K113: =SUM(K114:K117) -> 8511472
A114: Recycling | I114: =G114-H114 -> 0 | J114: =IF(I114=0,"",I114/H114) -> 
A115: Solid Waste Disposal (Landfill Sites) | I115: =G115-H115 -> 0 | J115: =IF(I115=0,"",I115/H115) -> 
A116: Solid Waste Removal | C116: 7783239.34 | D116: 8511472 | E116: 8511472 | F116: 588013.95 | G116: 1761272.75 | H116: 2127861 | I116: -366588.25 | J116: -0.1722801677 | K116: 8511472
A117: Street Cleaning | I117: =G117-H117 -> 0 | J117: =IF(I117=0,"",I117/H117) -> 
A118: Other | C118: =SUM(C119:C124) -> 0 | D118: =SUM(D119:D124) -> 0 | E118: 0 | F118: 0 | G118: 0 | H118: 0 | I118: 0 | K118: 0
A119: Abattoirs | I119: 0
A120: Air Transport | I120: 0
A121: Forestry | I121: =G121-H121 -> 0 | J121: =IF(I121=0,"",I121/H121) -> 
A122: Licensing and Regulation | I122: 0
A123: Markets | I123: 0
A124: Tourism | I124: =G124-H124 -> 0 | J124: =IF(I124=0,"",I124/H124) -> 
A125: ="Total "&A5 -> Total Revenue - Functional | B125: 2 | C125: =C6+C26+C75+C99+C118 -> 461577645.8 | D125: 626939896 | E125: 626939896 | F125: 16258799.65 | G125: 164324543.3 | H125: 156734892 | I125: =G125-H125 -> 7589651.3 | J125: =IF(I125=0,"",I125/H125) -> 0.04842349526 | K125: =K6+K26+K75+K99+K118 -> 626939896
A127: Expenditure - Functional
A128: =A6 -> Municipal governance and administration | C128: =C129+C132+C146 -> 241273627.8 | D128: 258843293 | E128: 258843293 | F128: 16791241.05 | G128: 43770342.51 | H128: 64711290 | I128: =G128-H128 -> -20940947.49 | J128: =IF(I128=0,"",I128/H128) -> -0.3236057802 | K128: =K129+K132+K146 -> 258843293
A129: Executive and council | C129: =SUM(C130:C131) -> 28757850.17 | D129: 36616655 | E129: 36616655 | F129: 2499470.47 | G129: 7767027.41 | H129: 9154200 | I129: -1387172.59 | J129: -0.1515340052 | K129: 36616655
A130: Mayor and Council | C130: 28720509.25 | D130: 35096483 | E130: 35096483 | F130: 2495765.67 | G130: 7759871.01 | H130: 8774151 | I130: -1014279.99 | J130: -0.1155986477 | K130: 35096483
A131: Municipal Manager, Town Secretary and Chief Executive | C131: 37340.92 | D131: 1520172 | E131: 1520172 | F131: 3704.8 | G131: 7156.4 | H131: 380049 | I131: -372892.6 | J131: -0.9811697965 | K131: 1520172
A132: Finance and administration | C132: =SUM(C133:C145) -> 203828004.1 | D132: 212100946 | E132: 212100946 | F132: 13936338.7 | G132: 35095163.25 | H132: 53025648 | I132: -17930484.75 | J132: -0.3381473952 | K132: =SUM(K133:K145) -> 212100946
A133: Administrative and Corporate Support | C133: 35970963.74 | D133: 39133836 | E133: 39133836 | F133: 2452079.26 | G133: 6746224.61 | H133: 9783597 | I133: -3037372.39 | J133: -0.3104555911 | K133: 39133836
A134: Asset Management | C134: 6289237.26 | D134: 7974731 | E134: 7974731 | F134: 1237860.12 | G134: 1712748.39 | H134: 1993704 | I134: -280955.61 | J134: -0.1409214256 | K134: 7974731
A135: Finance | C135: 105066508.8 | D135: 74347347 | E135: 74347347 | F135: 3267477.44 | G135: 6455706.69 | H135: 18586899 | I135: -12131192.31 | J135: -0.6526743547 | K135: 74347347
A136: Fleet Management | C136: 14331708.72 | D136: 15042705 | E136: 15042705 | F136: 1587592.43 | G136: 4539142.23 | H136: 3760698 | I136: 778444.23 | J136: 0.2069946138 | K136: 15042705
A137: Human Resources | C137: 9475455.52 | D137: 15059614 | E137: 15059614 | F137: 527073.1 | G137: 3192812.45 | H137: 3764940 | I137: -572127.55 | J137: -0.1519619303 | K137: 15059614
A138: Information Technology | C138: 1747771.34 | D138: 8360811 | E138: 8360811 | F138: 367248.68 | G138: 2087634.92 | H138: 2090232 | I138: -2597.08 | J138: -0.001242484088 | K138: 8360811
A139: Legal Services | C139: 11689661.17 | D139: 14129344 | E139: 14129344 | F139: 2379361.52 | G139: 5048656.73 | H139: 3532353 | I139: 1516303.73 | J139: 0.429261665 | K139: 14129344
A140: Marketing, Customer Relations, Publicity and Media Co-ordination | C140: 2353375.69 | D140: 4234070 | E140: 4234070 | F140: 157490.75 | G140: 456326.94 | H140: 1058538 | I140: -602211.06 | J140: -0.5689083056 | K140: 4234070
A141: Property Services | C141: 13940951.85 | D141: 11874016 | E141: 11874016 | F141: 377281.74 | G141: 1667569.77 | H141: 2968521 | I141: -1300951.23 | J141: -0.4382489563 | K141: 11874016
A142: Risk Management | C142: 1090767.71 | D142: 2162951 | E142: 2162951 | F142: 64835.75 | G142: 184044.97 | H142: 540759 | I142: -356714.03 | J142: -0.6596543562 | K142: 2162951
A143: Security Services | C143: 920905.15 | D143: 16116673 | E143: 16116673 | F143: 1433010 | G143: 2732970 | H143: 4029177 | I143: -1296207 | J143: -0.3217051522 | K143: 16116673
A144: Supply Chain Management | C144: 950697.16 | D144: 3664848 | E144: 3664848 | F144: 85027.91 | G144: 271325.55 | H144: 916230 | I144: -644904.45 | J144: -0.7038674241 | K144: 3664848
A145: Valuation Service | I145: 0
A146: Internal audit | C146: =SUM(C147:C147) -> 8687773.5 | D146: 10125692 | E146: 10125692 | F146: 355431.88 | G146: 908151.85 | H146: 2531442 | I146: -1623290.15 | J146: -0.6412511723 | K146: =SUM(K147:K147) -> 10125692
A147: Governance Function | C147: 8687773.5 | D147: 10125692 | E147: 10125692 | F147: 355431.88 | G147: 908151.85 | H147: 2531442 | I147: -1623290.15 | J147: -0.6412511723 | K147: 10125692
A148: Community and public safety | C148: =C149+C171+C177+C186+C189 -> 21918479.88 | D148: 31124989 | E148: 31124989 | F148: 1796083.33 | G148: 5356740.31 | H148: 7781331 | I148: -2424590.69 | J148: -0.3115907407 | K148: =K149+K171+K177+K186+K189 -> 31124989
A149: Community and social services | C149: =SUM(C150:C170) -> 11058400.45 | D149: 14823426 | E149: 14823426 | F149: 1014118.44 | G149: 2798754.88 | H149: 3705903 | I149: -907148.12 | J149: -0.2447846368 | K149: =SUM(K150:K170) -> 14823426
A150: Aged Care | I150: 0
A151: Agricultural | I151: 0
A152: Animal Care and Diseases | I152: 0
A153: Cemeteries, Funeral Parlours and Crematoriums | I153: 0
A154: Child Care Facilities | I154: 0
A155: Community Halls and Facilities | C155: 9348517.02 | D155: 12642772 | E155: 12642772 | F155: 754301.52 | G155: 2274461.73 | H155: 3160710 | I155: -886248.27 | J155: -0.2803953131 | K155: 12642772
A156: Consumer Protection | I156: 0
A157: Cultural Matters | I157: =G157-H157 -> 0 | J157: =IF(I157=0,"",I157/H157) -> 
A158: Disaster Management | C158: 875399.02 | D158: 861007 | E158: 861007 | F158: 190472.83 | G158: 316260.88 | H158: 215268 | I158: =G158-H158 -> 100992.88 | J158: =IF(I158=0,"",I158/H158) -> 0.4691495252 | K158: 861007
A159: Education | I159: =G159-H159 -> 0 | J159: =IF(I159=0,"",I159/H159) -> 
A160: Indigenous and Customary Law | I160: 0
A161: Industrial Promotion | I161: 0
A162: Language Policy | I162: 0
A163: Libraries and Archives | C163: 834484.41 | D163: 1319647 | E163: 1319647 | F163: 69344.09 | G163: 208032.27 | H163: 329925 | I163: -121892.73 | J163: -0.3694558763 | K163: 1319647
A164: Literacy Programmes | I164: 0
A165: Media Services | I165: 0
A166: Museums and Art Galleries | I166: 0
A167: Population Development | I167: 0
A168: Provincial Cultural Matters | I168: 0
A169: Theatres | I169: 0
A170: Zoo's | I170: 0
A171: Sport and recreation | C171: =SUM(C172:C176) -> 0 | D171: 0 | E171: 0 | F171: 0 | G171: 0 | H171: 0 | I171: 0 | K171: 0
A172: Beaches and Jetties | I172: 0
A173: Casinos, Racing, Gambling, Wagering | I173: 0
A174: Community Parks (including Nurseries) | I174: 0
A175: Recreational Facilities | I175: 0
A176: Sports Grounds and Stadiums | I176: 0
A177: Public safety | C177: =SUM(C178:C185) -> 10860079.43 | D177: 16301563 | E177: 16301563 | F177: 781964.89 | G177: 2557985.43 | H177: 4075428 | I177: -1517442.57 | J177: -0.3723394377 | K177: 16301563
A178: Civil Defence | I178: 0
A179: Cleansing | I179: 0
A180: Control of Public Nuisances | I180: =G180-H180 -> 0 | J180: =IF(I180=0,"",I180/H180) -> 
A181: Fencing and Fences | I181: 0
A182: Fire Fighting and Protection | I182: 0
A183: Licensing and Control of Animals | I183: =G183-H183 -> 0 | J183: =IF(I183=0,"",I183/H183) -> 
A184: Police Forces, Traffic and Street Parking Control | C184: 10278148.54 | D184: 15096931 | E184: 15096931 | F184: 735462.02 | G184: 2409350.79 | H184: 3774255 | I184: =G184-H184 -> -1364904.21 | J184: =IF(I184=0,"",I184/H184) -> -0.3616353982 | K184: 15096931
A185: Pounds | C185: 581930.89 | D185: 1204632 | E185: 1204632 | F185: 46502.87 | G185: 148634.64 | H185: 301173 | I185: -152538.36 | J185: -0.5064808598 | K185: 1204632
A186: Housing | C186: =SUM(C187:C188) -> 0 | D186: 0 | E186: 0 | F186: 0 | G186: 0 | H186: 0 | I186: =G186-H186 -> 0 | J186: =IF(I186=0,"",I186/H186) ->  | K186: =SUM(K187:K188) -> 0
A187: Housing | I187: =G187-H187 -> 0 | J187: =IF(I187=0,"",I187/H187) -> 
A188: Informal Settlements | I188: =G188-H188 -> 0 | J188: =IF(I188=0,"",I188/H188) -> 
A189: Health | C189: =SUM(C190:C196) -> 0 | D189: 0 | E189: 0 | F189: 0 | G189: 0 | H189: 0 | I189: 0 | K189: 0
A190: Ambulance | I190: 0
A191: Health Services | I191: 0
A192: =A70 -> Laboratory Services | I192: 0
A193: Food Control | I193: =G193-H193 -> 0 | J193: =IF(I193=0,"",I193/H193) -> 
A194: Health Surveillance and Prevention of Communicable Diseases including immunizations | I194: =G194-H194 -> 0 | J194: =IF(I194=0,"",I194/H194) -> 
A195: Vector Control | I195: 0
A196: Chemical Safety | I196: 0
A197: Economic and environmental services | C197: =C198+C209+C214 -> 42181978.3 | D197: 64640177 | E197: 64640177 | F197: 3259870.13 | G197: 9648162.16 | H197: 16160163 | I197: -6512000.84 | J197: -0.4029662844 | K197: =K198+K209+K214 -> 64640177
A198: Planning and development | C198: =SUM(C199:C208) -> 10088925.04 | D198: 16981128 | E198: 16981128 | F198: 799216.97 | G198: 2205682.88 | H198: 4245354 | I198: -2039671.12 | J198: -0.4804478307 | K198: 16981128
A199: Billboards | I199: 0
A200: Corporate Wide Strategic Planning (IDPs, LEDs) | C200: 2220635.19 | D200: 4448282 | E200: 4448282 | F200: 213410.4 | G200: 558598.6 | H200: 1112097 | I200: -553498.4 | J200: -0.4977069446 | K200: 4448282
A201: Central City Improvement District | I201: 0
... 54 more rows

Sheet C3-FinPerf V
A1: =muni& " - "&S71C& " - "&date -> LIM355 Lepelle-Nkumpi - Table C3 Monthly Budget Statement - Financial Performance (revenue and expenditure by municipal vote) - M03 September
A2: =Vdesc -> Vote Description | B2: =head27 -> Ref | C2: =Head1 -> 2021/22 | D2: =Head2 -> Budget Year 2022/23
C3: =Head5 -> Audited Outcome | D3: =Head6 -> Original Budget | E3: =Head7 -> Adjusted Budget | F3: =Head38 -> Monthly actual | G3: =Head39 -> YearTD actual | H3: =Head40 -> YearTD budget | I3: =Head41 -> YTD variance | J3: =Head41 -> YTD variance | K3: =Head8 -> Full Year Forecast
A4: R thousands | J4: %
A5: Revenue by Vote | B5: 1
A6: ='Org structure'!A2 -> Vote 01 - Executive And Council | C6: ='C3C'!C6 -> 0 | D6: ='C3C'!D6 -> 0 | E6: ='C3C'!E6 -> 0 | F6: ='C3C'!F6 -> 0 | G6: ='C3C'!G6 -> 0 | H6: ='C3C'!H6 -> 0 | I6: =G6-H6 -> 0 | J6: =IF(I6=0,"",I6/H6) ->  | K6: ='C3C'!K6 -> 0
A7: ='Org structure'!A3 -> Vote 02 - Municipal Manager | C7: ='C3C'!C11 -> 0 | D7: ='C3C'!D11 -> 0 | E7: ='C3C'!E11 -> 0 | F7: ='C3C'!F11 -> 0 | G7: ='C3C'!G11 -> 0 | H7: ='C3C'!H11 -> 0 | I7: 0 | K7: ='C3C'!K11 -> 0
A8: ='Org structure'!A4 -> Vote 03 - Corporate Services | C8: ='C3C'!C18 -> 452950.72 | D8: ='C3C'!D18 -> 760594 | E8: ='C3C'!E18 -> 760594 | F8: ='C3C'!F18 -> 17445.5 | G8: ='C3C'!G18 -> 52336.5 | H8: ='C3C'!H18 -> 190143 | I8: -137806.5 | J8: -0.7247518973 | K8: ='C3C'!K18 -> 760594
A9: ='Org structure'!A5 -> Vote 04 - Budget And Treasury | C9: ='C3C'!C26 -> 352277957.6 | D9: ='C3C'!D26 -> 479112007 | E9: ='C3C'!E26 -> 479112007 | F9: ='C3C'!F26 -> 2846072.71 | G9: ='C3C'!G26 -> 125768597.6 | H9: ='C3C'!H26 -> 119777985 | I9: 5990612.65 | J9: 0.0500143048 | K9: ='C3C'!K26 -> 479112007
A10: ='Org structure'!A6 -> Vote 05 - Community Services | C10: ='C3C'!C33 -> 21216290.02 | D10: ='C3C'!D33 -> 27179532 | E10: ='C3C'!E33 -> 27179532 | F10: ='C3C'!F33 -> 1024791.28 | G10: ='C3C'!G33 -> 5103701.3 | H10: ='C3C'!H33 -> 6794862 | I10: -1691160.7 | J10: -0.2488881599 | K10: ='C3C'!K33 -> 27179532
A11: ='Org structure'!A7 -> Vote 06 - Planning And Development | C11: ='C3C'!C44 -> 35243935.23 | D11: ='C3C'!D44 -> 53259763 | E11: ='C3C'!E44 -> 53259763 | F11: ='C3C'!F44 -> 3196132.7 | G11: ='C3C'!G44 -> 9830229.33 | H11: ='C3C'!H44 -> 13314906 | I11: -3484676.67 | J11: -0.2617124499 | K11: ='C3C'!K44 -> 53259763
A12: ='Org structure'!A8 -> Vote 07 - Infrastructure Development | C12: ='C3C'!C52 -> 52386512.23 | D12: ='C3C'!D52 -> 66628000 | E12: ='C3C'!E52 -> 66628000 | F12: ='C3C'!F52 -> 9174357.46 | G12: ='C3C'!G52 -> 23569678.52 | H12: ='C3C'!H52 -> 16656996 | I12: 6912682.52 | J12: 0.4150017518 | K12: ='C3C'!K52 -> 66628000
A13: ='Org structure'!A9 -> Vote 08 - | C13: ='C3C'!C63 -> 0 | D13: ='C3C'!D63 -> 0 | E13: ='C3C'!E63 -> 0 | F13: ='C3C'!F63 -> 0 | G13: ='C3C'!G63 -> 0 | H13: ='C3C'!H63 -> 0 | I13: =G13-H13 -> 0 | J13: =IF(I13=0,"",I13/H13) ->  | K13: ='C3C'!K63 -> 0
A14: ='Org structure'!A10 -> Vote 09 - | C14: ='C3C'!C64 -> 0 | D14: ='C3C'!D64 -> 0 | E14: ='C3C'!E64 -> 0 | F14: ='C3C'!F64 -> 0 | G14: ='C3C'!G64 -> 0 | H14: ='C3C'!H64 -> 0 | I14: 0 | K14: ='C3C'!K64 -> 0
A15: ='Org structure'!A11 -> Vote 10 - | C15: ='C3C'!C65 -> 0 | D15: ='C3C'!D65 -> 0 | E15: ='C3C'!E65 -> 0 | F15: ='C3C'!F65 -> 0 | G15: ='C3C'!G65 -> 0 | H15: ='C3C'!H65 -> 0 | I15: 0 | K15: ='C3C'!K65 -> 0
A16: ='Org structure'!A12 -> Vote 11 - | C16: ='C3C'!C66 -> 0 | D16: ='C3C'!D66 -> 0 | E16: ='C3C'!E66 -> 0 | F16: ='C3C'!F66 -> 0 | G16: ='C3C'!G66 -> 0 | H16: ='C3C'!H66 -> 0 | I16: 0 | K16: ='C3C'!K66 -> 0
A17: ='Org structure'!A13 -> Vote 12 - | C17: ='C3C'!C67 -> 0 | D17: ='C3C'!D67 -> 0 | E17: ='C3C'!E67 -> 0 | F17: ='C3C'!F67 -> 0 | G17: ='C3C'!G67 -> 0 | H17: ='C3C'!H67 -> 0 | I17: 0 | K17: ='C3C'!K67 -> 0
A18: ='Org structure'!A14 -> Vote 13 - | C18: ='C3C'!C68 -> 0 | D18: ='C3C'!D68 -> 0 | E18: ='C3C'!E68 -> 0 | F18: ='C3C'!F68 -> 0 | G18: ='C3C'!G68 -> 0 | H18: ='C3C'!H68 -> 0 | I18: 0 | K18: ='C3C'!K68 -> 0
A19: ='Org structure'!A15 -> Vote 14 - | C19: ='C3C'!C69 -> 0 | D19: ='C3C'!D69 -> 0 | E19: ='C3C'!E69 -> 0 | F19: ='C3C'!F69 -> 0 | G19: ='C3C'!G69 -> 0 | H19: ='C3C'!H69 -> 0 | I19: 0 | K19: ='C3C'!K69 -> 0
A20: ='Org structure'!A16 -> Vote 15 - Other | C20: ='C3C'!C70 -> 0 | D20: ='C3C'!D70 -> 0 | E20: ='C3C'!E70 -> 0 | F20: ='C3C'!F70 -> 0 | G20: ='C3C'!G70 -> 0 | H20: ='C3C'!H70 -> 0 | I20: 0 | K20: ='C3C'!K70 -> 0
A21: Total Revenue by Vote | B21: 2 | C21: =SUM(C6:C20) -> 461577645.8 | D21: =SUM(D6:D20) -> 626939896 | E21: 626939896 | F21: 16258799.65 | G21: 164324543.3 | H21: 156734892 | I21: 7589651.3 | J21: 0.04842349526 | K21: =SUM(K6:K20) -> 626939896
A23: Expenditure by Vote | B23: 1
A24: ='Org structure'!A2 -> Vote 01 - Executive And Council | C24: ='C3C'!C74 -> 34856652.99 | D24: ='C3C'!D74 -> 46461700 | E24: ='C3C'!E74 -> 46461700 | F24: ='C3C'!F74 -> 3120055.28 | G24: ='C3C'!G74 -> 9578797.98 | H24: ='C3C'!H74 -> 11615499 | I24: =G24-H24 -> -2036701.02 | J24: =IF(I24=0,"",I24/H24) -> -0.1753433942 | K24: ='C3C'!K74 -> 46461700
A25: ='Org structure'!A3 -> Vote 02 - Municipal Manager | C25: ='C3C'!C79 -> 12599168.41 | D25: ='C3C'!D79 -> 19716043 | E25: ='C3C'!E79 -> 19716043 | F25: ='C3C'!F79 -> 612912.87 | G25: ='C3C'!G79 -> 1673825.78 | H25: ='C3C'!H79 -> 4929096 | I25: -3255270.22 | J25: -0.6604193183 | K25: ='C3C'!K79 -> 19716043
A26: ='Org structure'!A4 -> Vote 03 - Corporate Services | C26: ='C3C'!C86 -> 64199480.86 | D26: ='C3C'!D86 -> 85985241 | E26: ='C3C'!E86 -> 85985241 | F26: ='C3C'!F86 -> 7696335.25 | G26: ='C3C'!G86 -> 21024927.58 | H26: ='C3C'!H86 -> 21496455 | I26: -471527.42 | J26: -0.02193512465 | K26: ='C3C'!K86 -> 85985241
A27: ='Org structure'!A5 -> Vote 04 - Budget And Treasury | C27: ='C3C'!C94 -> 112306443.3 | D27: ='C3C'!D94 -> 85986926 | E27: ='C3C'!E94 -> 85986926 | F27: ='C3C'!F94 -> 4590365.47 | G27: ='C3C'!G94 -> 8439780.63 | H27: ='C3C'!H94 -> 21496833 | I27: -13057052.37 | J27: -0.607394232 | K27: ='C3C'!K94 -> 85986926
A28: ='Org structure'!A6 -> Vote 05 - Community Services | C28: ='C3C'!C101 -> 47370048.08 | D28: ='C3C'!D101 -> 68543373 | E28: ='C3C'!E101 -> 68543373 | F28: ='C3C'!F101 -> 4011169.67 | G28: ='C3C'!G101 -> 11740005.46 | H28: ='C3C'!H101 -> 17136006 | I28: -5396000.54 | J28: -0.314892545 | K28: ='C3C'!K101 -> 68543373
A29: ='Org structure'!A7 -> Vote 06 - Planning And Development | C29: ='C3C'!C112 -> 23573797.51 | D29: ='C3C'!D112 -> 29012730 | E29: ='C3C'!E112 -> 29012730 | F29: ='C3C'!F112 -> 1190886.95 | G29: ='C3C'!G112 -> 4034046.64 | H29: ='C3C'!H112 -> 7253283 | I29: -3219236.36 | J29: -0.4438316222 | K29: ='C3C'!K112 -> 29012730
A30: ='Org structure'!A8 -> Vote 07 - Infrastructure Development | C30: ='C3C'!C120 -> 35948370.31 | D30: ='C3C'!D120 -> 99903747 | E30: ='C3C'!E120 -> 99903747 | F30: ='C3C'!F120 -> 3329466.45 | G30: ='C3C'!G120 -> 9017995.8 | H30: ='C3C'!H120 -> 24975984 | I30: -15957988.2 | J30: -0.6389333129 | K30: ='C3C'!K120 -> 99903747
A31: ='Org structure'!A9 -> Vote 08 - | C31: ='C3C'!C131 -> 0 | D31: ='C3C'!D131 -> 0 | E31: ='C3C'!E131 -> 0 | F31: ='C3C'!F131 -> 0 | G31: ='C3C'!G131 -> 0 | H31: ='C3C'!H131 -> 0 | I31: =G31-H31 -> 0 | J31: =IF(I31=0,"",I31/H31) ->  | K31: ='C3C'!K131 -> 0
A32: ='Org structure'!A10 -> Vote 09 - | C32: ='C3C'!C132 -> 0 | D32: ='C3C'!D132 -> 0 | E32: ='C3C'!E132 -> 0 | F32: ='C3C'!F132 -> 0 | G32: ='C3C'!G132 -> 0 | H32: ='C3C'!H132 -> 0 | I32: 0 | K32: ='C3C'!K132 -> 0
A33: ='Org structure'!A11 -> Vote 10 - | C33: ='C3C'!C133 -> 0 | D33: ='C3C'!D133 -> 0 | E33: ='C3C'!E133 -> 0 | F33: ='C3C'!F133 -> 0 | G33: ='C3C'!G133 -> 0 | H33: ='C3C'!H133 -> 0 | I33: 0 | J33: =IF(I33=0,"",I33/H33) ->  | K33: ='C3C'!K133 -> 0
A34: ='Org structure'!A12 -> Vote 11 - | C34: ='C3C'!C134 -> 0 | D34: ='C3C'!D134 -> 0 | E34: ='C3C'!E134 -> 0 | F34: ='C3C'!F134 -> 0 | G34: ='C3C'!G134 -> 0 | H34: ='C3C'!H134 -> 0 | I34: 0 | J34: =IF(I34=0,"",I34/H34) ->  | K34: ='C3C'!K134 -> 0
A35: ='Org structure'!A13 -> Vote 12 - | C35: ='C3C'!C135 -> 0 | D35: ='C3C'!D135 -> 0 | E35: ='C3C'!E135 -> 0 | F35: ='C3C'!F135 -> 0 | G35: ='C3C'!G135 -> 0 | H35: ='C3C'!H135 -> 0 | I35: 0 | J35: =IF(I35=0,"",I35/H35) ->  | K35: ='C3C'!K135 -> 0
A36: ='Org structure'!A14 -> Vote 13 - | C36: ='C3C'!C136 -> 0 | D36: ='C3C'!D136 -> 0 | E36: ='C3C'!E136 -> 0 | F36: ='C3C'!F136 -> 0 | G36: ='C3C'!G136 -> 0 | H36: ='C3C'!H136 -> 0 | I36: 0 | J36: =IF(I36=0,"",I36/H36) ->  | K36: ='C3C'!K136 -> 0
A37: ='Org structure'!A15 -> Vote 14 - | C37: ='C3C'!C137 -> 0 | D37: ='C3C'!D137 -> 0 | E37: ='C3C'!E137 -> 0 | F37: ='C3C'!F137 -> 0 | G37: ='C3C'!G137 -> 0 | H37: ='C3C'!H137 -> 0 | I37: 0 | J37: =IF(I37=0,"",I37/H37) ->  | K37: ='C3C'!K137 -> 0
A38: ='Org structure'!A16 -> Vote 15 - Other | C38: ='C3C'!C138 -> 0 | D38: ='C3C'!D138 -> 0 | E38: ='C3C'!E138 -> 0 | F38: ='C3C'!F138 -> 0 | G38: ='C3C'!G138 -> 0 | H38: ='C3C'!H138 -> 0 | I38: 0 | K38: ='C3C'!K138 -> 0
A39: Total Expenditure by Vote | B39: 2 | C39: =SUM(C24:C38) -> 330853961.4 | D39: =SUM(D24:D38) -> 435609760 | E39: 435609760 | F39: 24551191.94 | G39: 65509379.87 | H39: 108903156 | I39: -43393776.13 | J39: =IF(I39=0,"",I39/H39) -> -0.3984620623 | K39: =SUM(K24:K38) -> 435609760
A40: =result -> Surplus/ (Deficit) for the year | B40: 2 | C40: =C21-C39 -> 130723684.4 | D40: 191330136 | E40: 191330136 | F40: -8292392.29 | G40: 98815163.43 | H40: 47831736 | I40: =I21-I39 -> 50983427.43 | J40: =IF(I40=0,"",I40/H40) -> 1.06589122 | K40: =K21-K39 -> 191330136
A41: =head27a -> References
A42: 1. Insert 'Vote'; e.g. Department, if different to standard classification structure
A43: 2. Must reconcile to Monthly Budget Statement - Financial Performance Statement (standard classification)

Sheet C3C
A1: =muni& " - "&S71C& " - "&"A"& " - "&date -> LIM355 Lepelle-Nkumpi - Table C3 Monthly Budget Statement - Financial Performance (revenue and expenditure by municipal vote) - A - M03 September
A2: =Vdesc -> Vote Description | B2: =head27 -> Ref | C2: =Head1 -> 2021/22 | D2: =Head2 -> Budget Year 2022/23 | L2: =Head4 -> 
A3: R thousand | C3: =Head5 -> Audited Outcome | D3: =Head6 -> Original Budget | E3: =Head7 -> Adjusted Budget | F3: =Head38 -> Monthly actual | G3: =Head39 -> YearTD actual | H3: =Head40 -> YearTD budget | I3: =Head41 -> YTD variance | J3: =Head41 -> YTD variance | K3: =Head8 -> Full Year Forecast | L3: =Head12 -> Forecast 2010/11 | M3: =Head13 -> Forecast 2011/12 | N3: =Head14 -> Forecast 2012/13 | O3: =Head15 -> Forecast 2013/14 | P3: =Head16 -> Forecast 2014/15 | Q3: =Head17 -> Forecast 2015/16 | R3: =Head18 -> Forecast 2016/17 | S3: =Head19 -> Forecast 2017/18 | T3: =Head20 -> Forecast 2018/19 | U3: =Head21 -> Forecast 2019/20 | V3: =Head22 -> Forecast 2020/21 | W3: =Head23 -> Forecast 2021/22
J4: %
A5: Revenue by Vote | B5: 1
A6: ='Org structure'!A2 -> Vote 01 - Executive And Council | C6: =SUM(C7:C10) -> 0 | D6: 0 | E6: 0 | F6: 0 | G6: 0 | H6: 0 | I6: =G6-H6 -> 0 | J6: =IF(I6=0,"",I6/H6) ->  | K6: =SUM(K7:K10) -> 0
A7: ='Org structure'!E3 -> 01.1 - Mayor & Councillors | C7: 0 | D7: 0 | E7: 0 | F7: 0 | G7: 0 | H7: 0 | I7: =G7-H7 -> 0 | J7: =IF(I7=0,"",I7/H7) ->  | K7: 0
A8: ='Org structure'!E4 -> 01.2 - Mayor & Council Support | C8: 0 | D8: 0 | E8: 0 | F8: 0 | G8: 0 | H8: 0 | I8: =G8-H8 -> 0 | J8: =IF(I8=0,"",I8/H8) ->  | K8: 0
A9: ='Org structure'!E5 -> 01.3 - Board General Mayor | C9: 0 | D9: 0 | E9: 0 | F9: 0 | G9: 0 | H9: 0 | I9: =G9-H9 -> 0 | J9: =IF(I9=0,"",I9/H9) ->  | K9: 0
A10: ='Org structure'!E6 -> 01.4 - Board General Speaker | C10: 0 | D10: 0 | E10: 0 | F10: 0 | G10: 0 | H10: 0 | I10: =G10-H10 -> 0 | J10: =IF(I10=0,"",I10/H10) ->  | K10: 0
A11: ='Org structure'!A3 -> Vote 02 - Municipal Manager | C11: =SUM(C12:C17) -> 0 | D11: 0 | E11: 0 | F11: 0 | G11: 0 | H11: 0 | I11: 0 | K11: =SUM(K12:K17) -> 0
A12: ='Org structure'!E8 -> 02.1 - Municipal Manager Administration | C12: 0 | D12: 0 | E12: 0 | F12: 0 | G12: 0 | H12: 0 | I12: =G12-H12 -> 0 | J12: =IF(I12=0,"",I12/H12) ->  | K12: 0
A13: ='Org structure'!E9 -> 02.2 - Municipal Manager | C13: 0 | D13: 0 | E13: 0 | F13: 0 | G13: 0 | H13: 0 | I13: 0 | K13: 0
A14: ='Org structure'!E10 -> 02.3 - Municipal Manager Support | C14: 0 | D14: 0 | E14: 0 | F14: 0 | G14: 0 | H14: 0 | I14: 0 | K14: 0
A15: ='Org structure'!E11 -> 02.4 - Internal Audit | C15: 0 | D15: 0 | E15: 0 | F15: 0 | G15: 0 | H15: 0 | I15: 0 | K15: 0
A16: ='Org structure'!E12 -> 02.5 - Communications | C16: 0 | D16: 0 | E16: 0 | F16: 0 | G16: 0 | H16: 0 | I16: 0 | K16: 0
A17: ='Org structure'!E13 -> 02.6 - Risk Management | C17: 0 | D17: 0 | E17: 0 | F17: 0 | G17: 0 | H17: 0 | I17: 0 | K17: 0
A18: ='Org structure'!A4 -> Vote 03 - Corporate Services | C18: =SUM(C19:C25) -> 452950.72 | D18: 760594 | E18: 760594 | F18: 17445.5 | G18: 52336.5 | H18: 190143 | I18: -137806.5 | J18: -0.7247518973 | K18: =SUM(K19:K25) -> 760594
A19: ='Org structure'!E15 -> 03.1 - Executive Manager: Corporate Services | C19: 0 | D19: 0 | E19: 0 | F19: 0 | G19: 0 | H19: 0 | I19: =G19-H19 -> 0 | J19: =IF(I19=0,"",I19/H19) ->  | K19: 0
A20: ='Org structure'!E16 -> 03.2 - Human Resource Management & Development | C20: 180584.57 | D20: 463020 | E20: 463020 | F20: 0 | G20: 0 | H20: 115752 | I20: -115752 | J20: -1 | K20: 463020
A21: ='Org structure'!E17 -> 03.3 - Information Technology | C21: 272366.15 | D21: 227574 | E21: 227574 | F21: 17445.5 | G21: 52336.5 | H21: 56892 | I21: -4555.5 | J21: -0.08007276946 | K21: 227574
A22: ='Org structure'!E18 -> 03.4 - Legal Services | C22: 0 | D22: 0 | E22: 0 | F22: 0 | G22: 0 | H22: 0 | I22: 0 | K22: 0
A23: ='Org structure'!E19 -> 03.5 - Gen Adm_Sec_Fleet: General Administrat | C23: 0 | D23: 0 | E23: 0 | F23: 0 | G23: 0 | H23: 0 | I23: 0 | K23: 0
A24: ='Org structure'!E20 -> 03.6 - Gen Adm_Sec_Fleet: Security Services | C24: 0 | D24: 70000 | E24: 70000 | F24: 0 | G24: 0 | H24: 17499 | I24: -17499 | J24: -1 | K24: 70000
A25: ='Org structure'!E21 -> 03.7 - Gen Adm_Sec_Fleet: Fleet Management | C25: 0 | D25: 0 | E25: 0 | F25: 0 | G25: 0 | H25: 0 | I25: 0 | K25: 0
A26: ='Org structure'!A5 -> Vote 04 - Budget And Treasury | C26: =SUM(C27:C32) -> 352277957.6 | D26: 479112007 | E26: 479112007 | F26: 2846072.71 | G26: 125768597.6 | H26: 119777985 | I26: 5990612.65 | J26: 0.0500143048 | K26: =SUM(K27:K32) -> 479112007
A27: ='Org structure'!E23 -> 04.1 - Chief Financial Officer | C27: 0 | D27: 0 | E27: 0 | F27: 0 | G27: 0 | H27: 0 | I27: =G27-H27 -> 0 | J27: =IF(I27=0,"",I27/H27) ->  | K27: 0
A28: ='Org structure'!E24 -> 04.2 - Budget Planning & Management | C28: 277645760.8 | D28: 303329000 | E28: 303329000 | F28: 24999.99 | G28: 118141268.9 | H28: 75832248 | I28: 42309020.88 | J28: 0.5579291396 | K28: 303329000
A29: ='Org structure'!E25 -> 04.3 - Expenditure Management | C29: 223.1 | D29: 0 | E29: 0 | F29: 0 | G29: 0 | H29: 0 | I29: 0 | K29: 0
A30: ='Org structure'!E26 -> 04.4 - Revenue Management | C30: 73314167 | D30: 175738874 | E30: 175738874 | F30: 2821072.72 | G30: 7627328.77 | H30: 43934706 | I30: -36307377.23 | J30: -0.8263939954 | K30: 175738874
A31: ='Org structure'!E27 -> 04.5 - Asset Management | C31: 1317806.7 | D31: 44133 | E31: 44133 | F31: 0 | G31: 0 | H31: 11031 | I31: -11031 | J31: -1 | K31: 44133
A32: ='Org structure'!E28 -> 04.6 - Supply Chain Management | C32: 0 | D32: 0 | E32: 0 | F32: 0 | G32: 0 | H32: 0 | I32: 0 | K32: 0
A33: ='Org structure'!A6 -> Vote 05 - Community Services | C33: =SUM(C34:C43) -> 21216290.02 | D33: 27179532 | E33: 27179532 | F33: 1024791.28 | G33: 5103701.3 | H33: 6794862 | I33: -1691160.7 | J33: -0.2488881599 | K33: =SUM(K34:K43) -> 27179532
A34: ='Org structure'!E30 -> 05.1 - Executive Manager: Community Services | C34: 0 | D34: 0 | E34: 0 | F34: 0 | G34: 0 | H34: 0 | I34: =G34-H34 -> 0 | J34: =IF(I34=0,"",I34/H34) ->  | K34: 0
A35: ='Org structure'!E31 -> 05.2 - Waste Management Services | C35: 7783239.34 | D35: 8511472 | E35: 8511472 | F35: 588013.95 | G35: 1761272.75 | H35: 2127861 | I35: -366588.25 | J35: -0.1722801677 | K35: 8511472
A36: ='Org structure'!E32 -> 05.3 - Environmental Management Services | C36: 0 | D36: 16455 | E36: 16455 | F36: 0 | G36: 0 | H36: 4113 | I36: -4113 | J36: -1 | K36: 16455
A37: ='Org structure'!E33 -> 05.4 - Road Traffic & Law Enforce: Traffic Serv | C37: 1995950 | D37: 12052000 | E37: 12052000 | F37: 200 | G37: 2250 | H37: 3012999 | I37: -3010749 | J37: -0.9992532357 | K37: 12052000
A38: ='Org structure'!E34 -> 05.5 - Road Traffic&Law Enforce: Licencing Serv | C38: 5625554.96 | D38: 6033131 | E38: 6033131 | F38: 421881.67 | G38: 3292778.54 | H38: 1508280 | I38: 1784498.54 | J38: 1.183134789 | K38: 6033131
A39: ='Org structure'!E35 -> 05.6 - Road Traffic&Law Enforce: Pound | C39: 14599.99 | D39: 2178 | E39: 2178 | F39: 0 | G39: 956.52 | H39: 543 | I39: 413.52 | J39: 0.7615469613 | K39: 2178
A40: ='Org structure'!E36 -> 05.7 - Institutional & Social Dev Management | C40: 134588.27 | D40: 187726 | E40: 187726 | F40: 9739.15 | G40: 19660.92 | H40: 46929 | I40: -27268.08 | J40: -0.5810496708 | K40: 187726
A41: ='Org structure'!E37 -> 05.8 - Libraries And Archives | C41: 0 | D41: 1089 | E41: 1089 | F41: 0 | G41: 0 | H41: 270 | I41: -270 | J41: -1 | K41: 1089
A42: ='Org structure'!E38 -> 05.9 - Community Halls And Facilities | C42: 44956.45 | D42: 375481 | E42: 375481 | F42: 4956.51 | G42: 26782.57 | H42: 93867 | I42: -67084.43 | J42: -0.7146753385 | K42: 375481
A43: ='Org structure'!E39 -> 05.10 - Disaster Management | C43: 5617401.01 | D43: 0 | E43: 0 | F43: 0 | G43: 0 | H43: 0 | I43: 0 | K43: 0
A44: ='Org structure'!A7 -> Vote 06 - Planning And Development | C44: =SUM(C45:C51) -> 35243935.23 | D44: 53259763 | E44: 53259763 | F44: 3196132.7 | G44: 9830229.33 | H44: 13314906 | I44: -3484676.67 | J44: -0.2617124499 | K44: =SUM(K45:K51) -> 53259763
A45: ='Org structure'!E41 -> 06.1 - Executive Manager:Planning & Development | C45: 0 | D45: 0 | E45: 0 | F45: 0 | G45: 0 | H45: 0 | I45: =G45-H45 -> 0 | J45: =IF(I45=0,"",I45/H45) ->  | K45: 0
A46: ='Org structure'!E42 -> 06.2 - Economic Development & Planning | C46: 2301.95 | D46: 6830 | E46: 6830 | F46: 0 | G46: 0 | H46: 1704 | I46: -1704 | J46: -1 | K46: 6830
A47: ='Org structure'!E43 -> 06.3 - Development & Town Planning | C47: 4491187.89 | D47: 18145640 | E47: 18145640 | F47: -54127.31 | G47: 91880.33 | H47: 4536399 | I47: -4444518.67 | J47: -0.9797459769 | K47: 18145640
A48: ='Org structure'!E44 -> 06.4 - Property Management & Housing | C48: 30750445.39 | D48: 34729985 | E48: 34729985 | F48: 3250260.01 | G48: 9738349 | H48: 8682477 | I48: 1055872 | J48: 0.1216095361 | K48: 34729985
A49: ='Org structure'!E45 -> 06.5 - Integrated Development Planning | C49: 0 | D49: 377308 | E49: 377308 | F49: 0 | G49: 0 | H49: 94326 | I49: -94326 | J49: -1 | K49: 377308
A50: ='Org structure'!E46 -> 06.6 - Performance Management | C50: 0 | D50: 0 | E50: 0 | F50: 0 | G50: 0 | H50: 0 | I50: 0 | K50: 0
A51: ='Org structure'!E47 -> 06.7 - Local Economic Development | C51: 0 | D51: 0 | E51: 0 | F51: 0 | G51: 0 | H51: 0 | I51: 0 | K51: 0
A52: ='Org structure'!A8 -> Vote 07 - Infrastructure Development | C52: =SUM(C53:C62) -> 52386512.23 | D52: 66628000 | E52: 66628000 | F52: 9174357.46 | G52: 23569678.52 | H52: 16656996 | I52: =G52-H52 -> 6912682.52 | J52: =IF(I52=0,"",I52/H52) -> 0.4150017518 | K52: =SUM(K53:K62) -> 66628000
A53: ='Org structure'!E49 -> 07.1 - Technical Services Administration | C53: 0 | D53: 0 | E53: 0 | F53: 0 | G53: 0 | H53: 0 | I53: =G53-H53 -> 0 | J53: =IF(I53=0,"",I53/H53) ->  | K53: 0
A54: ='Org structure'!E50 -> 07.2 - Roads | C54: 0 | D54: 0 | E54: 0 | F54: 0 | G54: 0 | H54: 0 | I54: 0 | K54: 0
A55: ='Org structure'!E51 -> 07.3 - Workshop | C55: 0 | D55: 0 | E55: 0 | F55: 0 | G55: 0 | H55: 0 | I55: 0 | K55: 0
A56: ='Org structure'!E52 -> 07.4 - Sewerage Network | C56: 0 | D56: 0 | E56: 0 | F56: 0 | G56: 0 | H56: 0 | I56: 0 | K56: 0
A57: ='Org structure'!E53 -> 07.5 - Sewerage Purification | C57: 0 | D57: 0 | E57: 0 | F57: 0 | G57: 0 | H57: 0 | I57: 0 | K57: 0
A58: ='Org structure'!E54 -> 07.6 - Irrigation | C58: 0 | D58: 0 | E58: 0 | F58: 0 | G58: 0 | H58: 0 | I58: 0 | K58: 0
A59: ='Org structure'!E55 -> 07.7 - Executive Manager: Infrastructure Dev | C59: 0 | D59: 0 | E59: 0 | F59: 0 | G59: 0 | H59: 0 | I59: 0 | K59: 0
A60: ='Org structure'!E56 -> 07.8 - Road Construction & Maintenance | C60: -2999840.56 | D60: 0 | E60: 0 | F60: 9079013.2 | G60: 18108610.78 | H60: 0 | I60: 18108610.78 | K60: 0
A61: ='Org structure'!E57 -> 07.9 - Electrical & Mechanical Works | C61: 3884000 | D61: 5000000 | E61: 5000000 | F61: 0 | G61: 0 | H61: 1249998 | I61: -1249998 | J61: -1 | K61: 5000000
A62: ='Org structure'!E58 -> 07.10 - Project Management | C62: 51502352.79 | D62: 61628000 | E62: 61628000 | F62: 95344.26 | G62: 5461067.74 | H62: 15406998 | I62: -9945930.26 | J62: -0.645546281 | K62: 61628000
A63: ='Org structure'!A9 -> Vote 08 - | C63: 0 | D63: 0 | E63: 0 | F63: 0 | G63: 0 | H63: 0 | I63: 0 | K63: 0
A64: ='Org structure'!A10 -> Vote 09 - | C64: 0 | D64: 0 | E64: 0 | F64: 0 | G64: 0 | H64: 0 | I64: 0 | K64: 0
A65: ='Org structure'!A11 -> Vote 10 - | C65: 0 | D65: 0 | E65: 0 | F65: 0 | G65: 0 | H65: 0 | I65: 0 | K65: 0
A66: ='Org structure'!A12 -> Vote 11 - | C66: 0 | D66: 0 | E66: 0 | F66: 0 | G66: 0 | H66: 0 | I66: 0 | K66: 0
A67: ='Org structure'!A13 -> Vote 12 - | C67: 0 | D67: 0 | E67: 0 | F67: 0 | G67: 0 | H67: 0 | I67: 0 | K67: 0
A68: ='Org structure'!A14 -> Vote 13 - | C68: 0 | D68: 0 | E68: 0 | F68: 0 | G68: 0 | H68: 0 | I68: =G68-H68 -> 0 | J68: =IF(I68=0,"",I68/H68) ->  | K68: 0
A69: ='Org structure'!A15 -> Vote 14 - | C69: 0 | D69: 0 | E69: 0 | F69: 0 | G69: 0 | H69: 0 | I69: 0 | K69: 0
A70: ='Org structure'!A16 -> Vote 15 - Other | C70: 0 | D70: 0 | E70: 0 | F70: 0 | G70: 0 | H70: 0 | I70: 0 | K70: 0
A71: Total Revenue by Vote | B71: 2 | C71: =C6+C11+C18+C26+C33+C44+C52+C63+C64+C65+C66+C67+C68+C69+C70 -> 461577645.8 | D71: 626939896 | E71: 626939896 | F71: 16258799.65 | G71: 164324543.3 | H71: 156734892 | I71: 7589651.3 | J71: 0.04842349526 | K71: =K6+K11+K18+K26+K33+K44+K52+K63+K64+K65+K66+K67+K68+K69+K70 -> 626939896
I72: 0
A73: Expenditure by Vote | B73: 1 | I73: 0
A74: ='Org structure'!A2 -> Vote 01 - Executive And Council | C74: =SUM(C75:C78) -> 34856652.99 | D74: 46461700 | E74: 46461700 | F74: 3120055.28 | G74: 9578797.98 | H74: 11615499 | I74: -2036701.02 | J74: -0.1753433942 | K74: =SUM(K75:K78) -> 46461700
A75: ='Org structure'!E3 -> 01.1 - Mayor & Councillors | C75: 28720509.25 | D75: 35096483 | E75: 35096483 | F75: 2495765.67 | G75: 7759871.01 | H75: 8774151 | I75: =G75-H75 -> -1014279.99 | J75: =IF(I75=0,"",I75/H75) -> -0.1155986477 | K75: 35096483
A76: ='Org structure'!E4 -> 01.2 - Mayor & Council Support | C76: 6136143.74 | D76: 11365217 | E76: 11365217 | F76: 624289.61 | G76: 1818926.97 | H76: 2841348 | I76: =G76-H76 -> -1022421.03 | J76: =IF(I76=0,"",I76/H76) -> -0.3598366092 | K76: 11365217
A77: ='Org structure'!E5 -> 01.3 - Board General Mayor | C77: 0 | D77: 0 | E77: 0 | F77: 0 | G77: 0 | H77: 0 | I77: =G77-H77 -> 0 | J77: =IF(I77=0,"",I77/H77) ->  | K77: 0
A78: ='Org structure'!E6 -> 01.4 - Board General Speaker | C78: 0 | D78: 0 | E78: 0 | F78: 0 | G78: 0 | H78: 0 | I78: =G78-H78 -> 0 | J78: =IF(I78=0,"",I78/H78) ->  | K78: 0
A79: ='Org structure'!A3 -> Vote 02 - Municipal Manager | C79: =SUM(C80:C85) -> 12599168.41 | D79: 19716043 | E79: 19716043 | F79: 612912.87 | G79: 1673825.78 | H79: 4929096 | I79: -3255270.22 | J79: -0.6604193183 | K79: =SUM(K80:K85) -> 19716043
A80: ='Org structure'!E8 -> 02.1 - Municipal Manager Administration | C80: 0 | D80: 0 | E80: 0 | F80: 0 | G80: 0 | H80: 0 | I80: =G80-H80 -> 0 | J80: =IF(I80=0,"",I80/H80) ->  | K80: 0
A81: ='Org structure'!E9 -> 02.2 - Municipal Manager | C81: 37340.92 | D81: 1520172 | E81: 1520172 | F81: 3704.8 | G81: 7156.4 | H81: 380049 | I81: -372892.6 | J81: -0.9811697965 | K81: 1520172
A82: ='Org structure'!E10 -> 02.3 - Municipal Manager Support | C82: 429910.59 | D82: 1673158 | E82: 1673158 | F82: 31449.69 | G82: 118145.62 | H82: 418308 | I82: -300162.38 | J82: -0.7175630875 | K82: 1673158
A83: ='Org structure'!E11 -> 02.4 - Internal Audit | C83: 8687773.5 | D83: 10125692 | E83: 10125692 | F83: 355431.88 | G83: 908151.85 | H83: 2531442 | I83: -1623290.15 | J83: -0.6412511723 | K83: 10125692
A84: ='Org structure'!E12 -> 02.5 - Communications | C84: 2353375.69 | D84: 4234070 | E84: 4234070 | F84: 157490.75 | G84: 456326.94 | H84: 1058538 | I84: -602211.06 | J84: -0.5689083056 | K84: 4234070
A85: ='Org structure'!E13 -> 02.6 - Risk Management | C85: 1090767.71 | D85: 2162951 | E85: 2162951 | F85: 64835.75 | G85: 184044.97 | H85: 540759 | I85: -356714.03 | J85: -0.6596543562 | K85: 2162951
A86: ='Org structure'!A4 -> Vote 03 - Corporate Services | C86: =SUM(C87:C93) -> 64199480.86 | D86: 85985241 | E86: 85985241 | F86: 7696335.25 | G86: 21024927.58 | H86: 21496455 | I86: -471527.42 | J86: -0.02193512465 | K86: =SUM(K87:K93) -> 85985241
A87: ='Org structure'!E15 -> 03.1 - Executive Manager: Corporate Services | C87: 1157605 | D87: 1259869 | E87: 1259869 | F87: 92732.5 | G87: 278197.5 | H87: 314970 | I87: =G87-H87 -> -36772.5 | J87: =IF(I87=0,"",I87/H87) -> -0.1167492142 | K87: 1259869
A88: ='Org structure'!E16 -> 03.2 - Human Resource Management & Development | C88: 9475455.52 | D88: 15059614 | E88: 15059614 | F88: 527073.1 | G88: 3192812.45 | H88: 3764940 | I88: -572127.55 | J88: -0.1519619303 | K88: 15059614
A89: ='Org structure'!E17 -> 03.3 - Information Technology | C89: 1747771.34 | D89: 8360811 | E89: 8360811 | F89: 367248.68 | G89: 2087634.92 | H89: 2090232 | I89: -2597.08 | J89: -0.001242484088 | K89: 8360811
A90: ='Org structure'!E18 -> 03.4 - Legal Services | C90: 11689661.17 | D90: 14129344 | E90: 14129344 | F90: 2379361.52 | G90: 5048656.73 | H90: 3532353 | I90: 1516303.73 | J90: 0.429261665 | K90: 14129344
A91: ='Org structure'!E19 -> 03.5 - Gen Adm_Sec_Fleet: General Administrat | C91: 24876373.96 | D91: 16016225 | E91: 16016225 | F91: 1309317.02 | G91: 3145513.75 | H91: 4004085 | I91: -858571.25 | J91: -0.2144238322 | K91: 16016225
A92: ='Org structure'!E20 -> 03.6 - Gen Adm_Sec_Fleet: Security Services | C92: 920905.15 | D92: 16116673 | E92: 16116673 | F92: 1433010 | G92: 2732970 | H92: 4029177 | I92: -1296207 | J92: -0.3217051522 | K92: 16116673
A93: ='Org structure'!E21 -> 03.7 - Gen Adm_Sec_Fleet: Fleet Management | C93: 14331708.72 | D93: 15042705 | E93: 15042705 | F93: 1587592.43 | G93: 4539142.23 | H93: 3760698 | I93: 778444.23 | J93: 0.2069946138 | K93: 15042705
A94: ='Org structure'!A5 -> Vote 04 - Budget And Treasury | C94: =SUM(C95:C100) -> 112306443.3 | D94: 85986926 | E94: 85986926 | F94: 4590365.47 | G94: 8439780.63 | H94: 21496833 | I94: =G94-H94 -> -13057052.37 | J94: =IF(I94=0,"",I94/H94) -> -0.607394232 | K94: =SUM(K95:K100) -> 85986926
A95: ='Org structure'!E23 -> 04.1 - Chief Financial Officer | C95: 1054029 | D95: 1175606 | E95: 1175606 | F95: 88185.5 | G95: 264556.5 | H95: 293904 | I95: =G95-H95 -> -29347.5 | J95: =IF(I95=0,"",I95/H95) -> -0.09985403397 | K95: 1175606
A96: ='Org structure'!E24 -> 04.2 - Budget Planning & Management | C96: 9431636.56 | D96: 17823930 | E96: 17823930 | F96: 1864647.26 | G96: 3071955.81 | H96: 4456005 | I96: -1384049.19 | J96: -0.3106031501 | K96: 17823930
A97: ='Org structure'!E25 -> 04.3 - Expenditure Management | C97: 4394590.04 | D97: 4349487 | E97: 4349487 | F97: 288407 | G97: 892812.19 | H97: 1087389 | I97: -194576.81 | J97: -0.1789394688 | K97: 4349487
A98: ='Org structure'!E26 -> 04.4 - Revenue Management | C98: 90186253.23 | D98: 50998324 | E98: 50998324 | F98: 1026237.68 | G98: 2226382.19 | H98: 12749601 | I98: -10523218.81 | J98: -0.8253763243 | K98: 50998324
A99: ='Org structure'!E27 -> 04.5 - Asset Management | C99: 6289237.26 | D99: 7974731 | E99: 7974731 | F99: 1237860.12 | G99: 1712748.39 | H99: 1993704 | I99: -280955.61 | J99: -0.1409214256 | K99: 7974731
A100: ='Org structure'!E28 -> 04.6 - Supply Chain Management | C100: 950697.16 | D100: 3664848 | E100: 3664848 | F100: 85027.91 | G100: 271325.55 | H100: 916230 | I100: -644904.45 | J100: -0.7038674241 | K100: 3664848
A101: ='Org structure'!A6 -> Vote 05 - Community Services | C101: =SUM(C102:C111) -> 47370048.08 | D101: 68543373 | E101: 68543373 | F101: 4011169.67 | G101: 11740005.46 | H101: 17136006 | I101: -5396000.54 | J101: -0.314892545 | K101: =SUM(K102:K111) -> 68543373
A102: ='Org structure'!E30 -> 05.1 - Executive Manager: Community Services | C102: 228523.04 | D102: 1167293 | E102: 1167293 | F102: 0 | G102: 0 | H102: 291825 | I102: =G102-H102 -> -291825 | J102: =IF(I102=0,"",I102/H102) -> -1 | K102: 1167293
A103: ='Org structure'!E31 -> 05.2 - Waste Management Services | C103: 15902631.57 | D103: 22809794 | E103: 22809794 | F103: 1184419.84 | G103: 3294463.04 | H103: 5702475 | I103: -2408011.96 | J103: -0.4222748824 | K103: 22809794
A104: ='Org structure'!E32 -> 05.3 - Environmental Management Services | C104: 669899.82 | D104: 798879 | E104: 798879 | F104: 50943.9 | G104: 152831.7 | H104: 199734 | I104: -46902.3 | J104: -0.2348238157 | K104: 798879
A105: ='Org structure'!E33 -> 05.4 - Road Traffic & Law Enforce: Traffic Serv | C105: 10278148.54 | D105: 15096931 | E105: 15096931 | F105: 735462.02 | G105: 2409350.79 | H105: 3774255 | I105: -1364904.21 | J105: -0.3616353982 | K105: 15096931
A106: ='Org structure'!E34 -> 05.5 - Road Traffic&Law Enforce: Licencing Serv | C106: 7093069.44 | D106: 9446623 | E106: 9446623 | F106: 695164.66 | G106: 1991810.48 | H106: 2361672 | I106: -369861.52 | J106: -0.1566100288 | K106: 9446623
A107: ='Org structure'!E35 -> 05.6 - Road Traffic&Law Enforce: Pound | C107: 581930.89 | D107: 1204632 | E107: 1204632 | F107: 46502.87 | G107: 148634.64 | H107: 301173 | I107: -152538.36 | J107: -0.5064808598 | K107: 1204632
A108: ='Org structure'!E36 -> 05.7 - Institutional & Social Dev Management | C108: 1557444.33 | D108: 3195795 | E108: 3195795 | F108: 284557.94 | G108: 944159.93 | H108: 798969 | I108: 145190.93 | J108: 0.1817228578 | K108: 3195795
A109: ='Org structure'!E37 -> 05.8 - Libraries And Archives | C109: 834484.41 | D109: 1319647 | E109: 1319647 | F109: 69344.09 | G109: 208032.27 | H109: 329925 | I109: -121892.73 | J109: -0.3694558763 | K109: 1319647
A110: ='Org structure'!E38 -> 05.9 - Community Halls And Facilities | C110: 9348517.02 | D110: 12642772 | E110: 12642772 | F110: 754301.52 | G110: 2274461.73 | H110: 3160710 | I110: -886248.27 | J110: -0.2803953131 | K110: 12642772
A111: ='Org structure'!E39 -> 05.10 - Disaster Management | C111: 875399.02 | D111: 861007 | E111: 861007 | F111: 190472.83 | G111: 316260.88 | H111: 215268 | I111: 100992.88 | J111: 0.4691495252 | K111: 861007
A112: ='Org structure'!A7 -> Vote 06 - Planning And Development | C112: =SUM(C113:C119) -> 23573797.51 | D112: 29012730 | E112: 29012730 | F112: 1190886.95 | G112: 4034046.64 | H112: 7253283 | I112: -3219236.36 | J112: -0.4438316222 | K112: =SUM(K113:K119) -> 29012730
A113: ='Org structure'!E41 -> 06.1 - Executive Manager:Planning & Development | C113: 261556.5 | D113: 1242293 | E113: 1242293 | F113: 0 | G113: 112083.34 | H113: 310578 | I113: =G113-H113 -> -198494.66 | J113: =IF(I113=0,"",I113/H113) -> -0.639113717 | K113: 1242293
A114: ='Org structure'!E42 -> 06.2 - Economic Development & Planning | C114: 2393441.55 | D114: 4242718 | E114: 4242718 | F114: 256975.65 | G114: 664796.57 | H114: 1060701 | I114: -395904.43 | J114: -0.3732479087 | K114: 4242718
A115: ='Org structure'!E43 -> 06.3 - Development & Town Planning | C115: 3433805.84 | D115: 5158728 | E115: 5158728 | F115: 233486.66 | G115: 701800.86 | H115: 1289697 | I115: -587896.14 | J115: -0.4558405114 | K115: 5158728
A116: ='Org structure'!E44 -> 06.4 - Property Management & Housing | C116: 13940951.85 | D116: 11874016 | E116: 11874016 | F116: 377281.74 | G116: 1667569.77 | H116: 2968521 | I116: -1300951.23 | J116: -0.4382489563 | K116: 11874016
A117: ='Org structure'!E45 -> 06.5 - Integrated Development Planning | C117: 2220635.19 | D117: 4448282 | E117: 4448282 | F117: 213410.4 | G117: 558598.6 | H117: 1112097 | I117: -553498.4 | J117: -0.4977069446 | K117: 4448282
A118: ='Org structure'!E46 -> 06.6 - Performance Management | C118: 1323406.58 | D118: 2046693 | E118: 2046693 | F118: 109732.5 | G118: 329197.5 | H118: 511689 | I118: -182491.5 | J118: -0.3566453451 | K118: 2046693
A119: ='Org structure'!E47 -> 06.7 - Local Economic Development | C119: 0 | D119: 0 | E119: 0 | F119: 0 | G119: 0 | H119: 0 | I119: 0 | K119: 0
A120: ='Org structure'!A8 -> Vote 07 - Infrastructure Development | C120: =SUM(C121:C130) -> 35948370.31 | D120: 99903747 | E120: 99903747 | F120: 3329466.45 | G120: 9017995.8 | H120: 24975984 | I120: -15957988.2 | J120: -0.6389333129 | K120: =SUM(K121:K130) -> 99903747
A121: ='Org structure'!E49 -> 07.1 - Technical Services Administration | C121: 0 | D121: 0 | E121: 0 | F121: 0 | G121: 0 | H121: 0 | I121: =G121-H121 -> 0 | J121: =IF(I121=0,"",I121/H121) ->  | K121: 0
A122: ='Org structure'!E50 -> 07.2 - Roads | C122: 0 | D122: 0 | E122: 0 | F122: 0 | G122: 0 | H122: 0 | I122: 0 | K122: 0
A123: ='Org structure'!E51 -> 07.3 - Workshop | C123: 0 | D123: 0 | E123: 0 | F123: 0 | G123: 0 | H123: 0 | I123: 0 | K123: 0
A124: ='Org structure'!E52 -> 07.4 - Sewerage Network | C124: 0 | D124: 0 | E124: 0 | F124: 0 | G124: 0 | H124: 0 | I124: 0 | K124: 0
A125: ='Org structure'!E53 -> 07.5 - Sewerage Purification | C125: 0 | D125: 0 | E125: 0 | F125: 0 | G125: 0 | H125: 0 | I125: 0 | K125: 0
A126: ='Org structure'!E54 -> 07.6 - Irrigation | C126: 0 | D126: 0 | E126: 0 | F126: 0 | G126: 0 | H126: 0 | I126: 0 | K126: 0
A127: ='Org structure'!E55 -> 07.7 - Executive Manager: Infrastructure Dev | C127: 0 | D127: 1167293 | E127: 1167293 | F127: 0 | G127: 0 | H127: 291825 | I127: -291825 | J127: -1 | K127: 1167293
A128: ='Org structure'!E56 -> 07.8 - Road Construction & Maintenance | C128: 24330084 | D128: 37413547 | E128: 37413547 | F128: 1714544.6 | G128: 5297837.1 | H128: 9353403 | I128: -4055565.9 | J128: -0.4335925545 | K128: 37413547
A129: ='Org structure'!E57 -> 07.9 - Electrical & Mechanical Works | C129: 9577243.85 | D129: 58191507 | E129: 58191507 | F129: 1519577.59 | G129: 3439671.85 | H129: 14547897 | I129: -11108225.15 | J129: -0.7635622626 | K129: 58191507
A130: ='Org structure'!E58 -> 07.10 - Project Management | C130: 2041042.46 | D130: 3131400 | E130: 3131400 | F130: 95344.26 | G130: 280486.85 | H130: 782859 | I130: -502372.15 | J130: -0.6417147277 | K130: 3131400
A131: ='Org structure'!A9 -> Vote 08 - | C131: 0 | D131: 0 | E131: 0 | F131: 0 | G131: 0 | H131: 0 | I131: 0 | K131: 0
A132: ='Org structure'!A10 -> Vote 09 - | C132: 0 | D132: 0 | E132: 0 | F132: 0 | G132: 0 | H132: 0 | I132: =G132-H132 -> 0 | J132: =IF(I132=0,"",I132/H132) ->  | K132: 0
A133: ='Org structure'!A11 -> Vote 10 - | C133: 0 | D133: 0 | E133: 0 | F133: 0 | G133: 0 | H133: 0 | I133: 0 | K133: 0
A134: ='Org structure'!A12 -> Vote 11 - | C134: 0 | D134: 0 | E134: 0 | F134: 0 | G134: 0 | H134: 0 | I134: 0 | K134: 0
A135: ='Org structure'!A13 -> Vote 12 - | C135: 0 | D135: 0 | E135: 0 | F135: 0 | G135: 0 | H135: 0 | I135: 0 | K135: 0
A136: ='Org structure'!A14 -> Vote 13 - | C136: 0 | D136: 0 | E136: 0 | F136: 0 | G136: 0 | H136: 0 | I136: 0 | K136: 0
A137: ='Org structure'!A15 -> Vote 14 - | C137: 0 | D137: 0 | E137: 0 | F137: 0 | G137: 0 | H137: 0 | I137: 0 | K137: 0
A138: ='Org structure'!A16 -> Vote 15 - Other | C138: 0 | D138: 0 | E138: 0 | F138: 0 | G138: 0 | H138: 0 | I138: =G138-H138 -> 0 | J138: =IF(I138=0,"",I138/H138) ->  | K138: 0
A139: Total Expenditure by Vote | B139: 2 | C139: =C74+C79+C86+C94+C101+C112+C120+C131+C132+C133+C134+C135+C136+C137+C138 -> 330853961.4 | D139: 435609760 | E139: 435609760 | F139: 24551191.94 | G139: 65509379.87 | H139: 108903156 | I139: -43393776.13 | J139: -0.3984620623 | K139: =K74+K79+K86+K94+K101+K112+K120+K131+K132+K133+K134+K135+K136+K137+K138 -> 435609760
I140: 0 | L140: =#REF!-#REF! ->  | M140: =#REF!-#REF! ->  | N140: =#REF!-#REF! ->  | O140: =#REF!-#REF! ->  | P140: =#REF!-#REF! ->  | Q140: =#REF!-#REF! ->  | R140: =#REF!-#REF! ->  | S140: =#REF!-#REF! ->  | T140: =#REF!-#REF! ->  | U140: =#REF!-#REF! ->  | V140: =#REF!-#REF! ->  | W140: =#REF!-#REF! -> 
A141: =result -> Surplus/ (Deficit) for the year | B141: 2 | C141: =C71-C139 -> 130723684.4 | D141: 191330136 | E141: 191330136 | F141: -8292392.29 | G141: 98815163.43 | H141: 47831736 | I141: 50983427.43 | J141: 1.06589122 | K141: =K71-K139 -> 191330136
A142: =head27a -> References
A143: 1. Insert 'Vote'; e.g. Department, if different to standard structure
A144: 2. Must reconcile to Financial Performance ('Revenue and Expenditure by Standard Classification' and 'Revenue and Expenditure')
A145: 3. Assign share in 'associate' to relevant Vote
A147: check revenue
A148: check expenditure

Sheet C4-FinPerf RE
A1: =muni& " - "&S71B& " - "&date -> LIM355 Lepelle-Nkumpi - Table C4 Monthly Budget Statement - Financial Performance (revenue and expenditure) - M03 September
A2: =desc -> Description | B2: =head27 -> Ref | C2: =Head1 -> 2021/22 | D2: =Head2 -> Budget Year 2022/23
C3: =Head5 -> Audited Outcome | D3: =Head6 -> Original Budget | E3: =Head7 -> Adjusted Budget | F3: =Head38 -> Monthly actual | G3: =Head39 -> YearTD actual | H3: =Head40 -> YearTD budget | I3: =Head41 -> YTD variance | J3: =Head41 -> YTD variance | K3: =Head8 -> Full Year Forecast
A4: R thousands | J4: %
A5: Revenue By Source
A6: Property rates | C6: 30520670.65 | D6: 34373881 | E6: 34373881 | F6: 3228097.12 | G6: 9672269.8 | H6: 8593458 | I6: =G6-H6 -> 1078811.8 | J6: =IF(I6=0,"",I6/H6) -> 0.1255387296 | K6: 34373881
A7: Service charges - electricity revenue | I7: 0
A8: Service charges - water revenue | C8: -2754337.53 | D8: 0 | E8: 0 | F8: 4866279.17 | G8: 9728791.14 | H8: 0 | I8: 9728791.14 | K8: 0
A9: Service charges - sanitation revenue | C9: -245503.03 | D9: 0 | E9: 0 | F9: 800747.6 | G9: 1601320.8 | H9: 0 | I9: 1601320.8 | K9: 0
A10: Service charges - refuse revenue | C10: 5814239.34 | D10: 7120609 | E10: 7120609 | F10: 588013.95 | G10: 1761272.75 | H10: 1780146 | I10: -18873.25 | J10: -0.01060207983 | K10: 7120609
A12: Rental of facilities and equipment | C12: 305268.62 | D12: 334006 | E12: 334006 | F12: 22402.01 | G12: 79119.07 | H12: 83496 | I12: -4376.93 | J12: -0.05242083453 | K12: 334006
A13: Interest earned - external investments | C13: 12812681.85 | D13: 13169720 | E13: 13169720 | F13: 1085450.61 | G13: 2462520.81 | H13: 3292425 | I13: -829904.19 | J13: -0.2520647213 | K13: 13169720
A14: Interest earned - outstanding debtors | C14: 17778694.18 | D14: 15421529 | E14: 15421529 | F14: 5125645.72 | G14: 11869306.94 | H14: 3855381 | I14: 8013925.94 | J14: 2.078633977 | K14: 15421529
A15: Dividends received | C15: 0 | D15: 0 | E15: 0 | F15: 0 | G15: 0 | H15: 0 | I15: 0 | K15: 0
A16: Fines, penalties and forfeits | C16: 2010549.99 | D16: 12061306 | E16: 12061306 | F16: 200 | G16: 3206.52 | H16: 3015324 | I16: -3012117.48 | J16: -0.9989365919 | K16: 12061306
A17: Licences and permits | C17: 727.08 | D17: 6367 | E17: 6367 | F17: 0 | G17: 249 | H17: 1590 | I17: -1341 | J17: -0.8433962264 | K17: 6367
A18: Agency services | C18: 37876174.79 | D18: 40615498 | E18: 40615498 | F18: 421881.67 | G18: 3292529.54 | H18: 10153872 | I18: -6861342.46 | J18: -0.6757365525 | K18: 40615498
A19: Transfers and subsidies | C19: 283498760.8 | D19: 310408898 | E19: 310408898 | F19: 24999.99 | G19: 118141268.9 | H19: 77602218 | I19: 40539050.88 | J19: 0.5223955181 | K19: 310408898
A20: Other revenue | C20: 16827688.18 | D20: 131730082 | E20: 131730082 | F20: -262.45 | G20: 251620.31 | H20: 32932485 | I20: -32680864.69 | J20: -0.9923595104 | K20: 131730082
A21: Gains | C21: 6339946.29 | D21: 70000 | E21: 70000 | F21: 0 | G21: 0 | H21: 17499 | I21: -17499 | J21: -1 | K21: 70000
A22: Total Revenue (excluding capital transfers and contributions) | C22: =SUM(C6:C10)+SUM(C12:C21) -> 410785561.2 | D22: 565311896 | E22: 565311896 | F22: 16163455.39 | G22: 158863475.6 | H22: 141327894 | I22: 17535581.56 | J22: 0.1240772863 | K22: =SUM(K6:K10)+SUM(K12:K21) -> 565311896
A24: Expenditure By Type
A25: Employee related costs | C25: 92930048.43 | D25: 134714216 | E25: 134714216 | F25: 8197398.68 | G25: 24625045.34 | H25: 33678966 | I25: =G25-H25 -> -9053920.66 | J25: =IF(I25=0,"",I25/H25) -> -0.2688301256 | K25: 134714216
A26: Remuneration of councillors | C26: 22406928.87 | D26: 22394173 | E26: 22394173 | F26: 1864188.94 | G26: 6082981.78 | H26: 5598549 | I26: 484432.78 | J26: 0.08652827367 | K26: 22394173
A27: Debt impairment | C27: 85336204.48 | D27: 54242089 | E27: 54242089 | F27: 545209.55 | G27: 945498.82 | H27: 13560525 | I27: -12615026.18 | J27: -0.9302756479 | K27: 54242089
A28: Depreciation & asset impairment | C28: 28302993.82 | D28: 37699942 | E28: 37699942 | F28: 2338156.17 | G28: 7014468.51 | H28: 9425010 | I28: -2410541.49 | J28: -0.2557600989 | K28: 37699942
A29: Finance charges | C29: 0 | D29: 153613 | E29: 153613 | F29: 0 | G29: 0 | H29: 38406 | I29: -38406 | J29: -1 | K29: 153613
A30: Bulk purchases - electricity | I30: 0
A31: Inventory consumed | C31: 1836301.14 | D31: 4983423 | E31: 4983423 | F31: 366283.94 | G31: 551398.65 | H31: 1245879 | I31: -694480.35 | J31: -0.5574219888 | K31: 4983423
A32: Contracted services | C32: 50292234.14 | D32: 127041777 | E32: 127041777 | F32: 7571436.59 | G32: 14383569.74 | H32: 31760553 | I32: -17376983.26 | J32: -0.5471247072 | K32: 127041777
A33: Transfers and subsidies | I33: 0
A34: Other expenditure | C34: 46202147.06 | D34: 54380527 | E34: 54380527 | F34: 3668518.07 | G34: 11906417.03 | H34: 13595268 | I34: -1688850.97 | J34: -0.1242234408 | K34: 54380527
A35: Losses | C35: 3547103.47 | D35: 0 | E35: 0 | F35: 0 | G35: 0 | H35: 0 | I35: 0 | K35: 0
A36: Total Expenditure | C36: =SUM(C25:C35) -> 330853961.4 | D36: =SUM(D25:D35) -> 435609760 | E36: =SUM(E25:E35) -> 435609760 | F36: 24551191.94 | G36: 65509379.87 | H36: 108903156 | I36: -43393776.13 | J36: -0.3984620623 | K36: 435609760
A38: Surplus/(Deficit) | C38: =C22-C36 -> 79931599.8 | D38: 129702136 | E38: 129702136 | F38: -8387736.55 | G38: 93354095.69 | H38: 32424738 | I38: =I22-I36 -> 60929357.69 | J38: 1.879101003 | K38: =K22-K36 -> 129702136
A39: Transfers and subsidies - capital (monetary allocations) (National / Provincial and District) | C39: 50792084.59 | D39: 61628000 | E39: 61628000 | F39: 95344.26 | G39: 5461067.74 | H39: 15406998 | I39: =G39-H39 -> -9945930.26 | J39: -0.645546281 | K39: 61628000
A40: Transfers and subsidies - capital (monetary allocations) (National / Provincial Departmental Agencies, Households, Non-profit Institutions, Private Enterprises, Public Corporatons, Higher Educational Institutions) | I40: =G40-H40 -> 0
A41: Transfers and subsidies - capital (in-kind - all) | I41: =G41-H41 -> 0
A42: Surplus/(Deficit) after capital transfers & contributions | C42: =C38+SUM(C39:C41) -> 130723684.4 | D42: 191330136 | E42: 191330136 | F42: -8292392.29 | G42: 98815163.43 | H42: 47831736 | K42: =K38+SUM(K39:K41) -> 191330136
A43: Taxation | I43: =G43-H43 -> 0 | J43: =IF(I43=0,"",I43/H43) -> 
A44: Surplus/(Deficit) after taxation | C44: =C42-C43 -> 130723684.4 | D44: 191330136 | E44: 191330136 | F44: -8292392.29 | G44: 98815163.43 | H44: 47831736 | K44: =K42-K43 -> 191330136
A45: Attributable to minorities
A46: Surplus/(Deficit) attributable to municipality | C46: =SUM(C44:C45) -> 130723684.4 | D46: 191330136 | E46: 191330136 | F46: -8292392.29 | G46: 98815163.43 | H46: 47831736 | K46: =SUM(K44:K45) -> 191330136
A47: Share of surplus/ (deficit) of associate
A48: Surplus/ (Deficit) for the year | C48: =C46+C47 -> 130723684.4 | D48: 191330136 | E48: 191330136 | F48: -8292392.29 | G48: 98815163.43 | H48: 47831736 | K48: =K46+K47 -> 191330136
A49: =head27a -> References
A50: 1. Material variances to be explained on Table SC1
A53: =A22&" including capital transfers/contributions etc" -> Total Revenue (excluding capital transfers and contributions) including capital transfers/contributions etc | C53: =C22+SUM(C39:C41) -> 461577645.8 | D53: 626939896 | E53: 626939896 | F53: 16258799.65 | G53: 164324543.3 | H53: 156734892 | K53: =K22+SUM(K39:K41) -> 626939896

Sheet C5-Capex
A1: =muni& " - "&S71D& " - "&date -> LIM355 Lepelle-Nkumpi - Table C5 Monthly Budget Statement - Capital Expenditure (municipal vote, functional classification and funding) - M03 September
A2: =Vdesc -> Vote Description | B2: =head27 -> Ref | C2: =Head1 -> 2021/22 | D2: =Head2 -> Budget Year 2022/23
C3: =Head5 -> Audited Outcome | D3: =Head6 -> Original Budget | E3: =Head7 -> Adjusted Budget | F3: =Head38 -> Monthly actual | G3: =Head39 -> YearTD actual | H3: =Head40 -> YearTD budget | I3: =Head41 -> YTD variance | J3: =Head41 -> YTD variance | K3: =Head8 -> Full Year Forecast
A4: R thousands | B4: 1 | J4: %
A5: Multi-Year expenditure appropriation | B5: 2
A6: ='Org structure'!A2 -> Vote 01 - Executive And Council | C6: ='C5C'!C7 -> 0 | D6: ='C5C'!D7 -> 0 | E6: ='C5C'!E7 -> 0 | F6: ='C5C'!F7 -> 0 | G6: ='C5C'!G7 -> 0 | H6: ='C5C'!H7 -> 0 | I6: =G6-H6 -> 0 | J6: =IF(I6=0,"",I6/H6) ->  | K6: ='C5C'!K7 -> 0
A7: ='Org structure'!A3 -> Vote 02 - Municipal Manager | C7: ='C5C'!C12 -> 0 | D7: ='C5C'!D12 -> 0 | E7: ='C5C'!E12 -> 0 | F7: ='C5C'!F12 -> 0 | G7: ='C5C'!G12 -> 0 | H7: ='C5C'!H12 -> 0 | I7: 0 | K7: ='C5C'!K12 -> 0
A8: ='Org structure'!A4 -> Vote 03 - Corporate Services | C8: ='C5C'!C19 -> 0 | D8: ='C5C'!D19 -> 0 | E8: ='C5C'!E19 -> 0 | F8: ='C5C'!F19 -> 0 | G8: ='C5C'!G19 -> 0 | H8: ='C5C'!H19 -> 0 | I8: 0 | K8: ='C5C'!K19 -> 0
A9: ='Org structure'!A5 -> Vote 04 - Budget And Treasury | C9: ='C5C'!C27 -> 0 | D9: ='C5C'!D27 -> 0 | E9: ='C5C'!E27 -> 0 | F9: ='C5C'!F27 -> 0 | G9: ='C5C'!G27 -> 0 | H9: ='C5C'!H27 -> 0 | I9: 0 | K9: ='C5C'!K27 -> 0
A10: ='Org structure'!A6 -> Vote 05 - Community Services | C10: ='C5C'!C34 -> 0 | D10: ='C5C'!D34 -> 0 | E10: ='C5C'!E34 -> 0 | F10: ='C5C'!F34 -> 0 | G10: ='C5C'!G34 -> 0 | H10: ='C5C'!H34 -> 0 | I10: 0 | K10: ='C5C'!K34 -> 0
A11: ='Org structure'!A7 -> Vote 06 - Planning And Development | C11: ='C5C'!C45 -> 0 | D11: ='C5C'!D45 -> 0 | E11: ='C5C'!E45 -> 0 | F11: ='C5C'!F45 -> 0 | G11: ='C5C'!G45 -> 0 | H11: ='C5C'!H45 -> 0 | I11: 0 | K11: ='C5C'!K45 -> 0
A12: ='Org structure'!A8 -> Vote 07 - Infrastructure Development | C12: ='C5C'!C53 -> 0 | D12: ='C5C'!D53 -> 0 | E12: ='C5C'!E53 -> 0 | F12: ='C5C'!F53 -> 0 | G12: ='C5C'!G53 -> 0 | H12: ='C5C'!H53 -> 0 | I12: 0 | K12: ='C5C'!K53 -> 0
A13: ='Org structure'!A9 -> Vote 08 - | C13: ='C5C'!C64 -> 0 | D13: ='C5C'!D64 -> 0 | E13: ='C5C'!E64 -> 0 | F13: ='C5C'!F64 -> 0 | G13: ='C5C'!G64 -> 0 | H13: ='C5C'!H64 -> 0 | I13: =G13-H13 -> 0 | J13: =IF(I13=0,"",I13/H13) ->  | K13: ='C5C'!K64 -> 0
A14: ='Org structure'!A10 -> Vote 09 - | C14: ='C5C'!C65 -> 0 | D14: ='C5C'!D65 -> 0 | E14: ='C5C'!E65 -> 0 | F14: ='C5C'!F65 -> 0 | G14: ='C5C'!G65 -> 0 | H14: ='C5C'!H65 -> 0 | I14: 0 | K14: ='C5C'!K65 -> 0
A15: ='Org structure'!A11 -> Vote 10 - | C15: ='C5C'!C66 -> 0 | D15: ='C5C'!D66 -> 0 | E15: ='C5C'!E66 -> 0 | F15: ='C5C'!F66 -> 0 | G15: ='C5C'!G66 -> 0 | H15: ='C5C'!H66 -> 0 | I15: 0 | K15: ='C5C'!K66 -> 0
A16: ='Org structure'!A12 -> Vote 11 - | C16: ='C5C'!C67 -> 0 | D16: ='C5C'!D67 -> 0 | E16: ='C5C'!E67 -> 0 | F16: ='C5C'!F67 -> 0 | G16: ='C5C'!G67 -> 0 | H16: ='C5C'!H67 -> 0 | I16: 0 | K16: ='C5C'!K67 -> 0
A17: ='Org structure'!A13 -> Vote 12 - | C17: ='C5C'!C68 -> 0 | D17: ='C5C'!D68 -> 0 | E17: ='C5C'!E68 -> 0 | F17: ='C5C'!F68 -> 0 | G17: ='C5C'!G68 -> 0 | H17: ='C5C'!H68 -> 0 | I17: 0 | K17: ='C5C'!K68 -> 0
A18: ='Org structure'!A14 -> Vote 13 - | C18: ='C5C'!C69 -> 0 | D18: ='C5C'!D69 -> 0 | E18: ='C5C'!E69 -> 0 | F18: ='C5C'!F69 -> 0 | G18: ='C5C'!G69 -> 0 | H18: ='C5C'!H69 -> 0 | I18: =G18-H18 -> 0 | J18: =IF(I18=0,"",I18/H18) ->  | K18: ='C5C'!K69 -> 0
A19: ='Org structure'!A15 -> Vote 14 - | C19: ='C5C'!C70 -> 0 | D19: ='C5C'!D70 -> 0 | E19: ='C5C'!E70 -> 0 | F19: ='C5C'!F70 -> 0 | G19: ='C5C'!G70 -> 0 | H19: ='C5C'!H70 -> 0 | I19: =G19-H19 -> 0 | J19: =IF(I19=0,"",I19/H19) ->  | K19: ='C5C'!K70 -> 0
A20: ='Org structure'!A16 -> Vote 15 - Other | C20: ='C5C'!C71 -> 0 | D20: ='C5C'!D71 -> 0 | E20: ='C5C'!E71 -> 0 | F20: ='C5C'!F71 -> 0 | G20: ='C5C'!G71 -> 0 | H20: ='C5C'!H71 -> 0 | I20: =G20-H20 -> 0 | J20: =IF(I20=0,"",I20/H20) ->  | K20: ='C5C'!K71 -> 0
A21: Total Capital Multi-year expenditure | B21: 4,7 | C21: =SUM(C6:C20) -> 0 | D21: =SUM(D6:D20) -> 0 | E21: 0 | F21: 0 | G21: 0 | H21: 0 | I21: 0 | J21: =IF(I21=0,"",I21/H21) ->  | K21: =SUM(K6:K20) -> 0
A23: Single Year expenditure appropriation | B23: 2
A24: ='C5C'!A76 -> Vote 01 - Executive And Council | C24: ='C5C'!C76 -> 0 | D24: ='C5C'!D76 -> 0 | E24: ='C5C'!E76 -> 0 | F24: ='C5C'!F76 -> 0 | G24: ='C5C'!G76 -> 0 | H24: ='C5C'!H76 -> 0 | I24: =G24-H24 -> 0 | J24: =IF(I24=0,"",I24/H24) ->  | K24: ='C5C'!K76 -> 0
A25: ='C5C'!A81 -> Vote 02 - Municipal Manager | C25: ='C5C'!C81 -> 0 | D25: ='C5C'!D81 -> 100000 | E25: ='C5C'!E81 -> 100000 | F25: ='C5C'!F81 -> 0 | G25: ='C5C'!G81 -> 0 | H25: ='C5C'!H81 -> 25002 | I25: -25002 | J25: -1 | K25: ='C5C'!K81 -> 100000
A26: ='C5C'!A88 -> Vote 03 - Corporate Services | C26: ='C5C'!C88 -> 885778.48 | D26: ='C5C'!D88 -> 18405000 | E26: ='C5C'!E88 -> 18405000 | F26: ='C5C'!F88 -> 0 | G26: ='C5C'!G88 -> 0 | H26: ='C5C'!H88 -> 4601256 | I26: -4601256 | J26: -1 | K26: ='C5C'!K88 -> 18405000
A27: ='C5C'!A96 -> Vote 04 - Budget And Treasury | C27: ='C5C'!C96 -> 0 | D27: ='C5C'!D96 -> 0 | E27: ='C5C'!E96 -> 0 | F27: ='C5C'!F96 -> 0 | G27: ='C5C'!G96 -> 0 | H27: ='C5C'!H96 -> 0 | I27: 0 | K27: ='C5C'!K96 -> 0
A28: ='C5C'!A103 -> Vote 05 - Community Services | C28: ='C5C'!C103 -> 8430999.14 | D28: ='C5C'!D103 -> 23200000 | E28: ='C5C'!E103 -> 23200000 | F28: ='C5C'!F103 -> 0 | G28: ='C5C'!G103 -> 0 | H28: ='C5C'!H103 -> 5800008 | I28: -5800008 | J28: -1 | K28: ='C5C'!K103 -> 23200000
A29: ='C5C'!A114 -> Vote 06 - Planning And Development | C29: ='C5C'!C114 -> 5844448.54 | D29: ='C5C'!D114 -> 3500000 | E29: ='C5C'!E114 -> 3500000 | F29: ='C5C'!F114 -> 0 | G29: ='C5C'!G114 -> 0 | H29: ='C5C'!H114 -> 875004 | I29: -875004 | J29: -1 | K29: ='C5C'!K114 -> 3500000
A30: ='C5C'!A122 -> Vote 07 - Infrastructure Development | C30: ='C5C'!C122 -> 41549228.46 | D30: ='C5C'!D122 -> 146125136 | E30: ='C5C'!E122 -> 146125136 | F30: ='C5C'!F122 -> 0 | G30: ='C5C'!G122 -> 4457700.99 | H30: ='C5C'!H122 -> 36531306 | I30: -32073605.01 | J30: -0.8779758657 | K30: ='C5C'!K122 -> 146125136
A31: ='Org structure'!A9 -> Vote 08 - | C31: ='C5C'!C133 -> 0 | D31: ='C5C'!D133 -> 0 | E31: ='C5C'!E133 -> 0 | F31: ='C5C'!F133 -> 0 | G31: ='C5C'!G133 -> 0 | H31: ='C5C'!H133 -> 0 | I31: ='C5C'!I133 -> 0 | J31: =IF(I31=0,"",I31/H31) ->  | K31: ='C5C'!K133 -> 0
A32: ='Org structure'!A10 -> Vote 09 - | C32: ='C5C'!C134 -> 0 | D32: ='C5C'!D134 -> 0 | E32: ='C5C'!E134 -> 0 | F32: ='C5C'!F134 -> 0 | G32: ='C5C'!G134 -> 0 | H32: ='C5C'!H134 -> 0 | I32: ='C5C'!I134 -> 0 | K32: ='C5C'!K134 -> 0
A33: ='Org structure'!A11 -> Vote 10 - | C33: ='C5C'!C135 -> 0 | D33: ='C5C'!D135 -> 0 | E33: ='C5C'!E135 -> 0 | F33: ='C5C'!F135 -> 0 | G33: ='C5C'!G135 -> 0 | H33: ='C5C'!H135 -> 0 | I33: ='C5C'!I135 -> 0 | K33: ='C5C'!K135 -> 0
A34: ='Org structure'!A12 -> Vote 11 - | C34: ='C5C'!C136 -> 0 | D34: ='C5C'!D136 -> 0 | E34: ='C5C'!E136 -> 0 | F34: ='C5C'!F136 -> 0 | G34: ='C5C'!G136 -> 0 | H34: ='C5C'!H136 -> 0 | I34: ='C5C'!I136 -> 0 | K34: ='C5C'!K136 -> 0
A35: ='Org structure'!A13 -> Vote 12 - | C35: ='C5C'!C137 -> 0 | D35: ='C5C'!D137 -> 0 | E35: ='C5C'!E137 -> 0 | F35: ='C5C'!F137 -> 0 | G35: ='C5C'!G137 -> 0 | H35: ='C5C'!H137 -> 0 | I35: ='C5C'!I137 -> 0 | K35: ='C5C'!K137 -> 0
A36: ='Org structure'!A14 -> Vote 13 - | C36: ='C5C'!C138 -> 0 | D36: ='C5C'!D138 -> 0 | E36: ='C5C'!E138 -> 0 | F36: ='C5C'!F138 -> 0 | G36: ='C5C'!G138 -> 0 | H36: ='C5C'!H138 -> 0 | I36: ='C5C'!I138 -> 0 | K36: ='C5C'!K138 -> 0
A37: ='Org structure'!A15 -> Vote 14 - | C37: ='C5C'!C139 -> 0 | D37: ='C5C'!D139 -> 0 | E37: ='C5C'!E139 -> 0 | F37: ='C5C'!F139 -> 0 | G37: ='C5C'!G139 -> 0 | H37: ='C5C'!H139 -> 0 | I37: ='C5C'!I139 -> 0 | K37: ='C5C'!K139 -> 0
A38: ='Org structure'!A16 -> Vote 15 - Other | C38: ='C5C'!C140 -> 0 | D38: ='C5C'!D140 -> 0 | E38: ='C5C'!E140 -> 0 | F38: ='C5C'!F140 -> 0 | G38: ='C5C'!G140 -> 0 | H38: ='C5C'!H140 -> 0 | I38: ='C5C'!I140 -> 0 | K38: ='C5C'!K140 -> 0
A39: Total Capital single-year expenditure | B39: 4 | C39: =SUM(C24:C38) -> 56710454.62 | D39: 191330136 | E39: 191330136 | F39: 0 | G39: 4457700.99 | H39: 47832576 | I39: -43374875.01 | J39: -0.9068061693 | K39: =SUM(K24:K38) -> 191330136
A40: Total Capital Expenditure | C40: =C39+C21 -> 56710454.62 | D40: 191330136 | E40: 191330136 | F40: 0 | G40: 4457700.99 | H40: 47832576 | I40: -43374875.01 | J40: =IF(I40=0,"",I40/H40) -> -0.9068061693 | K40: =K39+K21 -> 191330136
A42: Capital Expenditure - Functional Classification
A43: Governance and administration | C43: =SUM(C44:C46) -> 885778.48 | D43: 18505000 | E43: 18505000 | F43: 0 | G43: 0 | H43: 4626258 | I43: =G43-H43 -> -4626258 | J43: =IF(I43=0,"",I43/H43) -> -1 | K43: =SUM(K44:K46) -> 18505000
A44: Executive and council | I44: 0 | J44: =IF(I44=0,"",I44/H44) -> 
A45: Finance and administration | C45: 885778.48 | D45: 18505000 | E45: 18505000 | F45: 0 | G45: 0 | H45: 4626258 | I45: -4626258 | J45: -1 | K45: 18505000
A46: Internal audit | I46: 0
A47: Community and public safety | C47: =SUM(C48:C52) -> 8430999.14 | D47: 8360000 | E47: 8360000 | F47: 0 | G47: 0 | H47: 2090004 | I47: -2090004 | J47: -1 | K47: =SUM(K48:K52) -> 8360000
A48: Community and social services | C48: 8430999.14 | D48: 8200000 | E48: 8200000 | F48: 0 | G48: 0 | H48: 2050002 | I48: -2050002 | J48: -1 | K48: 8200000
A49: Sport and recreation | I49: 0
A50: Public safety | C50: 0 | D50: 160000 | E50: 160000 | F50: 0 | G50: 0 | H50: 40002 | I50: -40002 | J50: -1 | K50: 160000
A51: Housing | I51: 0
A52: Health | I52: 0
A53: Economic and environmental services | C53: =SUM(C54:C56) -> 47393677 | D53: 156325136 | E53: 156325136 | F53: 0 | G53: 4457700.99 | H53: 39081312 | I53: -34623611.01 | J53: -0.8859377856 | K53: =SUM(K54:K56) -> 156325136
A54: Planning and development | C54: 43508639.75 | D54: 62046601 | E54: 62046601 | F54: 0 | G54: 4457700.99 | H54: 15511662 | I54: -11053961.01 | J54: -0.7126226068 | K54: 62046601
A55: Road transport | C55: 3885037.25 | D55: 93578535 | E55: 93578535 | F55: 0 | G55: 0 | H55: 23394648 | I55: -23394648 | J55: -1 | K55: 93578535
A56: Environmental protection | C56: 0 | D56: 700000 | E56: 700000 | F56: 0 | G56: 0 | H56: 175002 | I56: -175002 | J56: -1 | K56: 700000
A57: Trading services | C57: =SUM(C58:C61) -> 0 | D57: 8140000 | E57: 8140000 | F57: 0 | G57: 0 | H57: 2035002 | I57: -2035002 | J57: -1 | K57: =SUM(K58:K61) -> 8140000
A58: Energy sources | C58: 0 | D58: 6000000 | E58: 6000000 | F58: 0 | G58: 0 | H58: 1500000 | I58: -1500000 | J58: -1 | K58: 6000000
A59: Water management | I59: 0
A60: Waste water management | I60: 0
A61: Waste management | C61: 0 | D61: 2140000 | E61: 2140000 | F61: 0 | G61: 0 | H61: 535002 | I61: -535002 | J61: -1 | K61: 2140000
A62: Other | I62: 0
A63: Total Capital Expenditure - Functional Classification | B63: 3 | C63: =C43+C47+C53+C57+C62 -> 56710454.62 | D63: =D43+D47+D53+D57+D62 -> 191330136 | E63: 191330136 | F63: 0 | G63: 4457700.99 | H63: 47832576 | I63: -43374875.01 | J63: -0.9068061693 | K63: =K43+K47+K53+K57+K62 -> 191330136
A65: Funded by:
A66: National Government | C66: 42548887.74 | D66: 58546601 | E66: 58546601 | F66: 0 | G66: 4457700.99 | H66: 14636658 | I66: =G66-H66 -> -10178957.01 | J66: =IF(I66=0,"",I66/H66) -> -0.6954427035 | K66: 58546601
A67: Provincial Government | C67: 0 | D67: 0 | E67: 0 | F67: 0 | G67: 0 | H67: 0 | I67: 0 | K67: 0
A68: District Municipality | I68: 0
A69: ='C4-FinPerf RE'!A40 -> Transfers and subsidies - capital (monetary allocations) (National / Provincial Departmental Agencies, Households, Non-profit Institutions, Private Enterprises, Public Corporatons, Higher Educational Institutions) | I69: 0
A70: Transfers recognised - capital | C70: =SUM(C66:C69) -> 42548887.74 | D70: 58546601 | E70: 58546601 | F70: 0 | G70: 4457700.99 | H70: 14636658 | I70: -10178957.01 | J70: -0.6954427035 | K70: =SUM(K66:K69) -> 58546601
A72: Borrowing | B72: 6 | I72: 0
A73: Internally generated funds | C73: 14161566.88 | D73: 132783535 | E73: 132783535 | F73: 0 | G73: 0 | H73: 33195918 | I73: -33195918 | J73: -1 | K73: 132783535
A74: Total Capital Funding | C74: =+C70+C72+C73 -> 56710454.62 | D74: 191330136 | E74: 191330136 | F74: 0 | G74: 4457700.99 | H74: 47832576 | I74: -43374875.01 | J74: -0.9068061693 | K74: =+K70+K72+K73 -> 191330136
A75: =head27a -> References
A76: 1. Municipalities may choose to appropriate for capital expenditure for three years or for one year (if one year appropriation projected expenditure required for yr2 and yr3).
A77: 2. Include capital component of PPP unitary payment
A78: 3. Capital expenditure by functional classification must reconcile to the total of multi-year and single year appropriations
A79: 4. Include expenditure on investment property, intangible and biological assets
A81: 6. Include finance leases and PPP capital funding component of unitary payment - total borrowing/repayments to reconcile to changes in Table SA17
A86: check balance | C86: =C40-C74 -> 0 | D86: =D40-D74 -> 0 | E86: 0 | F86: 0 | G86: 0 | H86: 0 | K86: 0

Sheet C5C
A1: =muni& " - "&S71D& " - "&"A"& " - "&date -> LIM355 Lepelle-Nkumpi - Table C5 Monthly Budget Statement - Capital Expenditure (municipal vote, functional classification and funding) - A - M03 September
A2: =Vdesc -> Vote Description | B2: =head27 -> Ref | C2: =Head1 -> 2021/22 | D2: =Head2 -> Budget Year 2022/23 | L2: =Head4 -> 
A3: R thousand | C3: =Head5 -> Audited Outcome | D3: =Head6 -> Original Budget | E3: =Head7 -> Adjusted Budget | F3: =Head38 -> Monthly actual | G3: =Head39 -> YearTD actual | H3: =Head40 -> YearTD budget | I3: =Head41 -> YTD variance | J3: =Head41 -> YTD variance | K3: =Head8 -> Full Year Forecast | L3: =Head12 -> Forecast 2010/11 | M3: =Head13 -> Forecast 2011/12 | N3: =Head14 -> Forecast 2012/13 | O3: =Head15 -> Forecast 2013/14 | P3: =Head16 -> Forecast 2014/15 | Q3: =Head17 -> Forecast 2015/16 | R3: =Head18 -> Forecast 2016/17 | S3: =Head19 -> Forecast 2017/18 | T3: =Head20 -> Forecast 2018/19 | U3: =Head21 -> Forecast 2019/20 | V3: =Head22 -> Forecast 2020/21 | W3: =Head23 -> Forecast 2021/22
J4: %
A5: Capital expenditure - Municipal Vote
A6: Expenditure of multi-year capital appropriation | B6: 1
A7: ='Org structure'!A2 -> Vote 01 - Executive And Council | C7: =SUM(C8:C11) -> 0 | D7: 0 | E7: 0 | F7: 0 | G7: 0 | H7: 0 | I7: =G7-H7 -> 0 | J7: =IF(I7=0,"",I7/H7) ->  | K7: =SUM(K8:K11) -> 0
A8: ='Org structure'!E3 -> 01.1 - Mayor & Councillors | I8: =G8-H8 -> 0 | J8: =IF(I8=0,"",I8/H8) ->  | K8: 0
A9: ='Org structure'!E4 -> 01.2 - Mayor & Council Support | I9: =G9-H9 -> 0 | J9: =IF(I9=0,"",I9/H9) ->  | K9: 0
A10: ='Org structure'!E5 -> 01.3 - Board General Mayor | I10: =G10-H10 -> 0 | J10: =IF(I10=0,"",I10/H10) ->  | K10: 0
A11: ='Org structure'!E6 -> 01.4 - Board General Speaker | I11: =G11-H11 -> 0 | J11: =IF(I11=0,"",I11/H11) ->  | K11: 0
A12: ='Org structure'!A3 -> Vote 02 - Municipal Manager | C12: =SUM(C13:C18) -> 0 | D12: 0 | E12: 0 | F12: 0 | G12: 0 | H12: 0 | I12: 0 | K12: =SUM(K13:K18) -> 0
A13: ='Org structure'!E8 -> 02.1 - Municipal Manager Administration | I13: =G13-H13 -> 0 | J13: =IF(I13=0,"",I13/H13) ->  | K13: 0
A14: ='Org structure'!E9 -> 02.2 - Municipal Manager | I14: 0 | K14: 0
A15: ='Org structure'!E10 -> 02.3 - Municipal Manager Support | I15: 0 | K15: 0
A16: ='Org structure'!E11 -> 02.4 - Internal Audit | I16: 0 | K16: 0
A17: ='Org structure'!E12 -> 02.5 - Communications | I17: 0 | K17: 0
A18: ='Org structure'!E13 -> 02.6 - Risk Management | I18: 0 | K18: 0
A19: ='Org structure'!A4 -> Vote 03 - Corporate Services | C19: =SUM(C20:C26) -> 0 | D19: 0 | E19: 0 | F19: 0 | G19: 0 | H19: 0 | I19: 0 | K19: =SUM(K20:K26) -> 0
A20: ='Org structure'!E15 -> 03.1 - Executive Manager: Corporate Services | I20: =G20-H20 -> 0 | J20: =IF(I20=0,"",I20/H20) ->  | K20: 0
A21: ='Org structure'!E16 -> 03.2 - Human Resource Management & Development | I21: 0 | K21: 0
A22: ='Org structure'!E17 -> 03.3 - Information Technology | I22: 0 | K22: 0
A23: ='Org structure'!E18 -> 03.4 - Legal Services | I23: 0 | K23: 0
A24: ='Org structure'!E19 -> 03.5 - Gen Adm_Sec_Fleet: General Administrat | I24: 0 | K24: 0
A25: ='Org structure'!E20 -> 03.6 - Gen Adm_Sec_Fleet: Security Services | I25: 0 | K25: 0
A26: ='Org structure'!E21 -> 03.7 - Gen Adm_Sec_Fleet: Fleet Management | I26: 0 | K26: 0
A27: ='Org structure'!A5 -> Vote 04 - Budget And Treasury | C27: =SUM(C28:C33) -> 0 | D27: 0 | E27: 0 | F27: 0 | G27: 0 | H27: 0 | I27: 0 | K27: =SUM(K28:K33) -> 0
A28: ='Org structure'!E23 -> 04.1 - Chief Financial Officer | I28: =G28-H28 -> 0 | J28: =IF(I28=0,"",I28/H28) ->  | K28: 0
A29: ='Org structure'!E24 -> 04.2 - Budget Planning & Management | I29: 0 | K29: 0
A30: ='Org structure'!E25 -> 04.3 - Expenditure Management | I30: 0 | K30: 0
A31: ='Org structure'!E26 -> 04.4 - Revenue Management | I31: 0 | K31: 0
A32: ='Org structure'!E27 -> 04.5 - Asset Management | I32: 0 | K32: 0
A33: ='Org structure'!E28 -> 04.6 - Supply Chain Management | I33: 0 | K33: 0
A34: ='Org structure'!A6 -> Vote 05 - Community Services | C34: =SUM(C35:C44) -> 0 | D34: 0 | E34: 0 | F34: 0 | G34: 0 | H34: 0 | I34: 0 | K34: =SUM(K35:K44) -> 0
A35: ='Org structure'!E30 -> 05.1 - Executive Manager: Community Services | I35: =G35-H35 -> 0 | J35: =IF(I35=0,"",I35/H35) ->  | K35: 0
A36: ='Org structure'!E31 -> 05.2 - Waste Management Services | I36: 0 | K36: 0
A37: ='Org structure'!E32 -> 05.3 - Environmental Management Services | I37: 0 | K37: 0
A38: ='Org structure'!E33 -> 05.4 - Road Traffic & Law Enforce: Traffic Serv | I38: 0 | K38: 0
A39: ='Org structure'!E34 -> 05.5 - Road Traffic&Law Enforce: Licencing Serv | I39: 0 | K39: 0
A40: ='Org structure'!E35 -> 05.6 - Road Traffic&Law Enforce: Pound | I40: 0 | K40: 0
A41: ='Org structure'!E36 -> 05.7 - Institutional & Social Dev Management | I41: 0 | K41: 0
A42: ='Org structure'!E37 -> 05.8 - Libraries And Archives | I42: 0 | K42: 0
A43: ='Org structure'!E38 -> 05.9 - Community Halls And Facilities | I43: 0 | K43: 0
A44: ='Org structure'!E39 -> 05.10 - Disaster Management | I44: 0 | K44: 0
A45: ='Org structure'!A7 -> Vote 06 - Planning And Development | C45: =SUM(C46:C52) -> 0 | D45: 0 | E45: 0 | F45: 0 | G45: 0 | H45: 0 | I45: 0 | K45: =SUM(K46:K52) -> 0
A46: ='Org structure'!E41 -> 06.1 - Executive Manager:Planning & Development | I46: =G46-H46 -> 0 | J46: =IF(I46=0,"",I46/H46) ->  | K46: 0
A47: ='Org structure'!E42 -> 06.2 - Economic Development & Planning | I47: 0 | K47: 0
A48: ='Org structure'!E43 -> 06.3 - Development & Town Planning | I48: 0 | K48: 0
A49: ='Org structure'!E44 -> 06.4 - Property Management & Housing | I49: 0 | K49: 0
A50: ='Org structure'!E45 -> 06.5 - Integrated Development Planning | I50: 0 | K50: 0
A51: ='Org structure'!E46 -> 06.6 - Performance Management | I51: 0 | K51: 0
A52: ='Org structure'!E47 -> 06.7 - Local Economic Development | I52: 0 | K52: 0
A53: ='Org structure'!A8 -> Vote 07 - Infrastructure Development | C53: =SUM(C54:C63) -> 0 | D53: 0 | E53: 0 | F53: 0 | G53: 0 | H53: 0 | I53: =G53-H53 -> 0 | J53: =IF(I53=0,"",I53/H53) ->  | K53: =SUM(K54:K63) -> 0
A54: ='Org structure'!E49 -> 07.1 - Technical Services Administration | I54: =G54-H54 -> 0 | J54: =IF(I54=0,"",I54/H54) ->  | K54: 0
A55: ='Org structure'!E50 -> 07.2 - Roads | I55: 0 | K55: 0
A56: ='Org structure'!E51 -> 07.3 - Workshop | I56: 0 | K56: 0
A57: ='Org structure'!E52 -> 07.4 - Sewerage Network | I57: 0 | K57: 0
A58: ='Org structure'!E53 -> 07.5 - Sewerage Purification | I58: 0 | K58: 0
A59: ='Org structure'!E54 -> 07.6 - Irrigation | I59: 0 | K59: 0
A60: ='Org structure'!E55 -> 07.7 - Executive Manager: Infrastructure Dev | I60: 0 | K60: 0
A61: ='Org structure'!E56 -> 07.8 - Road Construction & Maintenance | I61: 0 | K61: 0
A62: ='Org structure'!E57 -> 07.9 - Electrical & Mechanical Works | I62: 0 | K62: 0
A63: ='Org structure'!E58 -> 07.10 - Project Management | I63: 0 | K63: 0
A64: ='Org structure'!A9 -> Vote 08 - | C64: 0 | D64: 0 | E64: 0 | F64: 0 | G64: 0 | H64: 0 | I64: 0 | K64: 0
A65: ='Org structure'!A10 -> Vote 09 - | C65: 0 | D65: 0 | E65: 0 | F65: 0 | G65: 0 | H65: 0 | I65: 0 | K65: 0
A66: ='Org structure'!A11 -> Vote 10 - | C66: 0 | D66: 0 | E66: 0 | F66: 0 | G66: 0 | H66: 0 | I66: 0 | K66: 0
A67: ='Org structure'!A12 -> Vote 11 - | C67: 0 | D67: 0 | E67: 0 | F67: 0 | G67: 0 | H67: 0 | I67: 0 | K67: 0
A68: ='Org structure'!A13 -> Vote 12 - | C68: 0 | D68: 0 | E68: 0 | F68: 0 | G68: 0 | H68: 0 | I68: 0 | K68: 0
A69: ='Org structure'!A14 -> Vote 13 - | C69: 0 | D69: 0 | E69: 0 | F69: 0 | G69: 0 | H69: 0 | I69: =G69-H69 -> 0 | J69: =IF(I69=0,"",I69/H69) ->  | K69: 0
A70: ='Org structure'!A15 -> Vote 14 - | C70: 0 | D70: 0 | E70: 0 | F70: 0 | G70: 0 | H70: 0 | I70: 0 | K70: 0
A71: ='Org structure'!A16 -> Vote 15 - Other | C71: 0 | D71: 0 | E71: 0 | F71: 0 | G71: 0 | H71: 0 | I71: 0 | K71: 0
A72: Total multi-year capital expenditure | C72: =C7+C12+C19+C27+C34+C45+C53+C64+C65+C66+C67+C68+C69+C70+C71 -> 0 | D72: 0 | E72: 0 | F72: 0 | G72: 0 | H72: 0 | I72: 0 | K72: =K7+K12+K19+K27+K34+K45+K53+K64+K65+K66+K67+K68+K69+K70+K71 -> 0
I73: 0
A74: Capital expenditure - Municipal Vote
A75: Expenditue of single-year capital appropriation | B75: 1 | I75: 0
A76: ='Org structure'!A2 -> Vote 01 - Executive And Council | C76: =SUM(C77:C80) -> 0 | D76: 0 | E76: 0 | F76: 0 | G76: 0 | H76: 0 | I76: 0 | K76: =SUM(K77:K80) -> 0
A77: ='Org structure'!E3 -> 01.1 - Mayor & Councillors | C77: 0 | D77: 0 | E77: 0 | F77: 0 | G77: 0 | H77: 0 | I77: 0 | K77: 0
A78: ='Org structure'!E4 -> 01.2 - Mayor & Council Support | C78: 0 | D78: 0 | E78: 0 | F78: 0 | G78: 0 | H78: 0 | I78: 0 | K78: 0
A79: ='Org structure'!E5 -> 01.3 - Board General Mayor | C79: 0 | D79: 0 | E79: 0 | F79: 0 | G79: 0 | H79: 0 | I79: 0 | K79: 0
A80: ='Org structure'!E6 -> 01.4 - Board General Speaker | C80: 0 | D80: 0 | E80: 0 | F80: 0 | G80: 0 | H80: 0 | I80: 0 | K80: 0
A81: ='Org structure'!A3 -> Vote 02 - Municipal Manager | C81: =SUM(C82:C87) -> 0 | D81: 100000 | E81: 100000 | F81: 0 | G81: 0 | H81: 25002 | I81: -25002 | J81: -1 | K81: =SUM(K82:K87) -> 100000
A82: ='Org structure'!E8 -> 02.1 - Municipal Manager Administration | C82: 0 | D82: 0 | E82: 0 | F82: 0 | G82: 0 | H82: 0 | I82: 0 | K82: 0
A83: ='Org structure'!E9 -> 02.2 - Municipal Manager | C83: 0 | D83: 0 | E83: 0 | F83: 0 | G83: 0 | H83: 0 | I83: 0 | K83: 0
A84: ='Org structure'!E10 -> 02.3 - Municipal Manager Support | C84: 0 | D84: 0 | E84: 0 | F84: 0 | G84: 0 | H84: 0 | I84: 0 | K84: 0
A85: ='Org structure'!E11 -> 02.4 - Internal Audit | C85: 0 | D85: 0 | E85: 0 | F85: 0 | G85: 0 | H85: 0 | I85: 0 | K85: 0
A86: ='Org structure'!E12 -> 02.5 - Communications | C86: 0 | D86: 100000 | E86: 100000 | F86: 0 | G86: 0 | H86: 25002 | I86: -25002 | J86: -1 | K86: 100000
A87: ='Org structure'!E13 -> 02.6 - Risk Management | C87: 0 | D87: 0 | E87: 0 | F87: 0 | G87: 0 | H87: 0 | I87: 0 | K87: 0
A88: ='Org structure'!A4 -> Vote 03 - Corporate Services | C88: =SUM(C89:C95) -> 885778.48 | D88: 18405000 | E88: 18405000 | F88: 0 | G88: 0 | H88: 4601256 | I88: -4601256 | J88: -1 | K88: =SUM(K89:K95) -> 18405000
A89: ='Org structure'!E15 -> 03.1 - Executive Manager: Corporate Services | C89: 0 | D89: 0 | E89: 0 | F89: 0 | G89: 0 | H89: 0 | I89: 0 | K89: 0
A90: ='Org structure'!E16 -> 03.2 - Human Resource Management & Development | C90: 0 | D90: 0 | E90: 0 | F90: 0 | G90: 0 | H90: 0 | I90: =G90-H90 -> 0 | J90: =IF(I90=0,"",I90/H90) ->  | K90: 0
A91: ='Org structure'!E17 -> 03.3 - Information Technology | C91: 819576 | D91: 5500000 | E91: 5500000 | F91: 0 | G91: 0 | H91: 1375002 | I91: -1375002 | J91: -1 | K91: 5500000
A92: ='Org structure'!E18 -> 03.4 - Legal Services | C92: 0 | D92: 0 | E92: 0 | F92: 0 | G92: 0 | H92: 0 | I92: 0 | K92: 0
A93: ='Org structure'!E19 -> 03.5 - Gen Adm_Sec_Fleet: General Administrat | C93: 66202.48 | D93: 12590000 | E93: 12590000 | F93: 0 | G93: 0 | H93: 3147504 | I93: -3147504 | J93: -1 | K93: 12590000
A94: ='Org structure'!E20 -> 03.6 - Gen Adm_Sec_Fleet: Security Services | C94: 0 | D94: 315000 | E94: 315000 | F94: 0 | G94: 0 | H94: 78750 | I94: -78750 | J94: -1 | K94: 315000
A95: ='Org structure'!E21 -> 03.7 - Gen Adm_Sec_Fleet: Fleet Management | C95: 0 | D95: 0 | E95: 0 | F95: 0 | G95: 0 | H95: 0 | I95: 0 | K95: 0
A96: ='Org structure'!A5 -> Vote 04 - Budget And Treasury | C96: =SUM(C97:C102) -> 0 | D96: 0 | E96: 0 | F96: 0 | G96: 0 | H96: 0 | I96: 0 | K96: =SUM(K97:K102) -> 0
A97: ='Org structure'!E23 -> 04.1 - Chief Financial Officer | C97: 0 | D97: 0 | E97: 0 | F97: 0 | G97: 0 | H97: 0 | I97: 0 | K97: 0
A98: ='Org structure'!E24 -> 04.2 - Budget Planning & Management | C98: 0 | D98: 0 | E98: 0 | F98: 0 | G98: 0 | H98: 0 | I98: 0 | K98: 0
A99: ='Org structure'!E25 -> 04.3 - Expenditure Management | C99: 0 | D99: 0 | E99: 0 | F99: 0 | G99: 0 | H99: 0 | I99: 0 | K99: 0
A100: ='Org structure'!E26 -> 04.4 - Revenue Management | C100: 0 | D100: 0 | E100: 0 | F100: 0 | G100: 0 | H100: 0 | I100: 0 | K100: 0
A101: ='Org structure'!E27 -> 04.5 - Asset Management | C101: 0 | D101: 0 | E101: 0 | F101: 0 | G101: 0 | H101: 0 | I101: 0 | K101: 0
A102: ='Org structure'!E28 -> 04.6 - Supply Chain Management | C102: 0 | D102: 0 | E102: 0 | F102: 0 | G102: 0 | H102: 0 | I102: 0 | K102: 0
A103: ='Org structure'!A6 -> Vote 05 - Community Services | C103: =SUM(C104:C113) -> 8430999.14 | D103: 23200000 | E103: 23200000 | F103: 0 | G103: 0 | H103: 5800008 | I103: -5800008 | J103: -1 | K103: =SUM(K104:K113) -> 23200000
A104: ='Org structure'!E30 -> 05.1 - Executive Manager: Community Services | C104: 0 | D104: 0 | E104: 0 | F104: 0 | G104: 0 | H104: 0 | I104: 0 | K104: 0
A105: ='Org structure'!E31 -> 05.2 - Waste Management Services | C105: 0 | D105: 2140000 | E105: 2140000 | F105: 0 | G105: 0 | H105: 535002 | I105: -535002 | J105: -1 | K105: 2140000
A106: ='Org structure'!E32 -> 05.3 - Environmental Management Services | C106: 0 | D106: 700000 | E106: 700000 | F106: 0 | G106: 0 | H106: 175002 | I106: -175002 | J106: -1 | K106: 700000
A107: ='Org structure'!E33 -> 05.4 - Road Traffic & Law Enforce: Traffic Serv | C107: 0 | D107: 160000 | E107: 160000 | F107: 0 | G107: 0 | H107: 40002 | I107: -40002 | J107: -1 | K107: 160000
A108: ='Org structure'!E34 -> 05.5 - Road Traffic&Law Enforce: Licencing Serv | C108: 0 | D108: 12000000 | E108: 12000000 | F108: 0 | G108: 0 | H108: 3000000 | I108: -3000000 | J108: -1 | K108: 12000000
A109: ='Org structure'!E35 -> 05.6 - Road Traffic&Law Enforce: Pound | C109: 0 | D109: 0 | E109: 0 | F109: 0 | G109: 0 | H109: 0 | I109: 0 | K109: 0
A110: ='Org structure'!E36 -> 05.7 - Institutional & Social Dev Management | C110: 0 | D110: 0 | E110: 0 | F110: 0 | G110: 0 | H110: 0 | I110: 0 | K110: 0
A111: ='Org structure'!E37 -> 05.8 - Libraries And Archives | C111: 0 | D111: 0 | E111: 0 | F111: 0 | G111: 0 | H111: 0 | I111: 0 | K111: 0
A112: ='Org structure'!E38 -> 05.9 - Community Halls And Facilities | C112: 3546302.61 | D112: 8200000 | E112: 8200000 | F112: 0 | G112: 0 | H112: 2050002 | I112: -2050002 | J112: -1 | K112: 8200000
A113: ='Org structure'!E39 -> 05.10 - Disaster Management | C113: 4884696.53 | D113: 0 | E113: 0 | F113: 0 | G113: 0 | H113: 0 | K113: 0
A114: ='Org structure'!A7 -> Vote 06 - Planning And Development | C114: =SUM(C115:C121) -> 5844448.54 | D114: 3500000 | E114: 3500000 | F114: 0 | G114: 0 | H114: 875004 | I114: -875004 | J114: -1 | K114: =SUM(K115:K121) -> 3500000
A115: ='Org structure'!E41 -> 06.1 - Executive Manager:Planning & Development | C115: 0 | D115: 0 | E115: 0 | F115: 0 | G115: 0 | H115: 0 | I115: 0 | K115: 0
A116: ='Org structure'!E42 -> 06.2 - Economic Development & Planning | C116: 0 | D116: 2000000 | E116: 2000000 | F116: 0 | G116: 0 | H116: 500001 | I116: -500001 | J116: -1 | K116: 2000000
A117: ='Org structure'!E43 -> 06.3 - Development & Town Planning | C117: 5844448.54 | D117: 1500000 | E117: 1500000 | F117: 0 | G117: 0 | H117: 375003 | I117: -375003 | J117: -1 | K117: 1500000
A118: ='Org structure'!E44 -> 06.4 - Property Management & Housing | C118: 0 | D118: 0 | E118: 0 | F118: 0 | G118: 0 | H118: 0 | I118: 0 | K118: 0
A119: ='Org structure'!E45 -> 06.5 - Integrated Development Planning | C119: 0 | D119: 0 | E119: 0 | F119: 0 | G119: 0 | H119: 0 | I119: 0 | K119: 0
A120: ='Org structure'!E46 -> 06.6 - Performance Management | C120: 0 | D120: 0 | E120: 0 | F120: 0 | G120: 0 | H120: 0 | I120: 0 | K120: 0
A121: ='Org structure'!E47 -> 06.7 - Local Economic Development | C121: 0 | D121: 0 | E121: 0 | F121: 0 | G121: 0 | H121: 0 | I121: 0 | K121: 0
A122: ='Org structure'!A8 -> Vote 07 - Infrastructure Development | C122: =SUM(C123:C132) -> 41549228.46 | D122: 146125136 | E122: 146125136 | F122: 0 | G122: 4457700.99 | H122: 36531306 | I122: -32073605.01 | J122: -0.8779758657 | K122: =SUM(K123:K132) -> 146125136
A123: ='Org structure'!E49 -> 07.1 - Technical Services Administration | C123: 0 | D123: 0 | E123: 0 | F123: 0 | G123: 0 | H123: 0 | I123: 0 | K123: 0
A124: ='Org structure'!E50 -> 07.2 - Roads | C124: 0 | D124: 0 | E124: 0 | F124: 0 | G124: 0 | H124: 0 | I124: 0 | K124: 0
A125: ='Org structure'!E51 -> 07.3 - Workshop | C125: 0 | D125: 0 | E125: 0 | F125: 0 | G125: 0 | H125: 0 | I125: 0 | K125: 0
A126: ='Org structure'!E52 -> 07.4 - Sewerage Network | C126: 0 | D126: 0 | E126: 0 | F126: 0 | G126: 0 | H126: 0 | I126: 0 | K126: 0
A127: ='Org structure'!E53 -> 07.5 - Sewerage Purification | C127: 0 | D127: 0 | E127: 0 | F127: 0 | G127: 0 | H127: 0 | I127: 0 | K127: 0
A128: ='Org structure'!E54 -> 07.6 - Irrigation | C128: 0 | D128: 0 | E128: 0 | F128: 0 | G128: 0 | H128: 0 | I128: 0 | K128: 0
A129: ='Org structure'!E55 -> 07.7 - Executive Manager: Infrastructure Dev | C129: 0 | D129: 0 | E129: 0 | F129: 0 | G129: 0 | H129: 0 | I129: 0 | K129: 0
A130: ='Org structure'!E56 -> 07.8 - Road Construction & Maintenance | C130: 3885037.25 | D130: 81578535 | E130: 81578535 | F130: 0 | G130: 0 | H130: 20394648 | I130: -20394648 | J130: -1 | K130: 81578535
A131: ='Org structure'!E57 -> 07.9 - Electrical & Mechanical Works | C131: 0 | D131: 6000000 | E131: 6000000 | F131: 0 | G131: 0 | H131: 1500000 | I131: -1500000 | J131: -1 | K131: 6000000
A132: ='Org structure'!E58 -> 07.10 - Project Management | C132: 37664191.21 | D132: 58546601 | E132: 58546601 | F132: 0 | G132: 4457700.99 | H132: 14636658 | K132: 58546601
A133: ='Org structure'!A9 -> Vote 08 - | C133: 0 | D133: 0 | E133: 0 | F133: 0 | G133: 0 | H133: 0 | I133: 0 | K133: 0
A134: ='Org structure'!A10 -> Vote 09 - | C134: 0 | D134: 0 | E134: 0 | F134: 0 | G134: 0 | H134: 0 | I134: =G134-H134 -> 0 | J134: =IF(I134=0,"",I134/H134) ->  | K134: 0
A135: ='Org structure'!A11 -> Vote 10 - | C135: 0 | D135: 0 | E135: 0 | F135: 0 | G135: 0 | H135: 0 | I135: 0 | K135: 0
A136: ='Org structure'!A12 -> Vote 11 - | C136: 0 | D136: 0 | E136: 0 | F136: 0 | G136: 0 | H136: 0 | I136: 0 | K136: 0
A137: ='Org structure'!A13 -> Vote 12 - | C137: 0 | D137: 0 | E137: 0 | F137: 0 | G137: 0 | H137: 0 | I137: 0 | K137: 0
A138: ='Org structure'!A14 -> Vote 13 - | C138: 0 | D138: 0 | E138: 0 | F138: 0 | G138: 0 | H138: 0 | I138: 0 | K138: 0
A139: ='Org structure'!A15 -> Vote 14 - | C139: 0 | D139: 0 | E139: 0 | F139: 0 | G139: 0 | H139: 0 | I139: 0 | K139: 0
A140: ='Org structure'!A16 -> Vote 15 - Other | C140: 0 | D140: 0 | E140: 0 | F140: 0 | G140: 0 | H140: 0 | I140: =G140-H140 -> 0 | J140: =IF(I140=0,"",I140/H140) ->  | K140: 0
A141: Total single-year capital expenditure | C141: =C76+C81+C88+C96+C103+C114+C122+C133+C134+C135+C136+C137+C138+C139+C140 -> 56710454.62 | D141: 191330136 | E141: 191330136 | F141: 0 | G141: 4457700.99 | H141: 47832576 | I141: -43374875.01 | J141: -0.9068061693 | K141: =K76+K81+K88+K96+K103+K114+K122+K133+K134+K135+K136+K137+K138+K139+K140 -> 191330136
A142: Total Capital Expenditure | C142: =C72+C141 -> 56710454.62 | D142: 191330136 | E142: 191330136 | F142: 0 | G142: 4457700.99 | H142: 47832576 | I142: -43374875.01 | J142: -0.9068061693 | K142: =K72+K141 -> 191330136
A143: =head27a -> References
A144: 1. Insert 'Vote'; e.g. Department, if different to standard structure

Sheet C6-FinPos
A1: =muni& " - "&S71E& " - "&date -> LIM355 Lepelle-Nkumpi - Table C6 Monthly Budget Statement - Financial Position - M03 September
A2: =desc -> Description | B2: =head27 -> Ref | C2: =Head1 -> 2021/22 | D2: =Head2 -> Budget Year 2022/23
C3: =Head5 -> Audited Outcome | D3: =Head6 -> Original Budget | E3: =Head7 -> Adjusted Budget | F3: =Head39 -> YearTD actual | G3: =Head8 -> Full Year Forecast
A4: R thousands | B4: 1
A5: ASSETS
A6: Current assets
A7: Cash | C7: 142064009.6 | D7: 30475257 | E7: 30475257 | F7: 53969769.59 | G7: 30475257
A8: Call investment deposits | C8: 392850028.2 | D8: 326101582 | E8: 326101582 | F8: 487326280.9 | G8: 326101582
A9: Consumer debtors | C9: 103151931.4 | D9: 170793073 | E9: 170793073 | F9: 129255635.9 | G9: 170793073
A10: Other debtors | C10: 30050583.07 | D10: 47462690 | E10: 47462690 | F10: 35685915.52 | G10: 47462690
A11: Current portion of long-term receivables
A12: Inventory | C12: 107660054.4 | D12: 104472449 | E12: 104472449 | F12: 107594236.5 | G12: 104472449
A13: Total current assets | C13: =SUM(C7:C12) -> 775776606.6 | D13: =SUM(D7:D12) -> 679305051 | E13: =SUM(E7:E12) -> 679305051 | F13: =SUM(F7:F12) -> 813831838.4 | G13: =SUM(G7:G12) -> 679305051
A15: Non current assets
A16: Long-term receivables | C16: 0 | D16: 0 | E16: 0 | F16: 0 | G16: 0
A17: Investments | C17: 150000000 | D17: 0 | E17: 0 | F17: 150000000 | G17: 0
A18: Investment property | C18: 108452669.2 | D18: 103625000 | E18: 103625000 | F18: 108452669.2 | G18: 103625000
A19: Investments in Associate
A20: Property, plant and equipment | C20: 743341830.8 | D20: 871699115 | E20: 871699115 | F20: 740785063.3 | G20: 871699115
A22: Biological
A23: Intangible | C23: 154753.87 | D23: 3654754 | E23: 3654754 | F23: 154753.87 | G23: 3654754
A24: Other non-current assets | C24: 183684.33 | D24: 183684 | E24: 183684 | F24: 183684.33 | G24: 183684
A25: Total non current assets | C25: =SUM(C16:C20)+SUM(C22:C24) -> 1002132938 | D25: =SUM(D16:D20)+SUM(D22:D24) -> 979162553 | E25: =SUM(E16:E20)+SUM(E22:E24) -> 979162553 | F25: =SUM(F16:F20)+SUM(F22:F24) -> 999576170.7 | G25: =SUM(G16:G20)+SUM(G22:G24) -> 979162553
A26: TOTAL ASSETS | C26: =C13+C25 -> 1777909545 | D26: =D13+D25 -> 1658467604 | E26: =E13+E25 -> 1658467604 | F26: =F13+F25 -> 1813408009 | G26: =G13+G25 -> 1658467604
A28: LIABILITIES
A29: Current liabilities
A30: Bank overdraft | C30: 0 | D30: 0 | E30: 0 | F30: 0 | G30: 0
A31: Borrowing | C31: -238137.84 | D31: -238138 | E31: -238138 | F31: -238137.84 | G31: -238138
A32: Consumer deposits | C32: 2197677.13 | D32: 2210477 | E32: 2210477 | F32: 2224077.13 | G32: 2210477
A33: Trade and other payables | C33: 273198879.3 | D33: -255031321 | E33: -255031321 | F33: 331353571.8 | G33: -255031321
A34: Provisions | C34: 18856867.64 | D34: 21698860 | E34: 21698860 | F34: 18856867.64 | G34: 21698860
A35: Total current liabilities | C35: =SUM(C30:C34) -> 294015286.3 | D35: =SUM(D30:D34) -> -231360122 | E35: =SUM(E30:E34) -> -231360122 | F35: =SUM(F30:F34) -> 352196378.7 | G35: =SUM(G30:G34) -> -231360122
A37: Non current liabilities
A38: Borrowing | C38: 238138.31 | D38: 238138 | E38: 238138 | F38: 238138.31 | G38: 238138
A39: Provisions | C39: 0 | D39: 0 | E39: 0 | F39: 0 | G39: 0
A40: Total non current liabilities | C40: =SUM(C38:C39) -> 238138.31 | D40: =SUM(D38:D39) -> 238138 | E40: =SUM(E38:E39) -> 238138 | F40: =SUM(F38:F39) -> 238138.31 | G40: =SUM(G38:G39) -> 238138
A41: TOTAL LIABILITIES | C41: =C35+C40 -> 294253424.6 | D41: =D35+D40 -> -231121984 | E41: =E35+E40 -> -231121984 | F41: =F35+F40 -> 352434517 | G41: =G35+G40 -> -231121984
A43: NET ASSETS | B43: 2 | C43: =C26-C41 -> 1483656120 | D43: =D26-D41 -> 1889589588 | E43: =E26-E41 -> 1889589588 | F43: =F26-F41 -> 1460973492 | G43: =G26-G41 -> 1889589588
A45: COMMUNITY WEALTH/EQUITY
A46: Accumulated Surplus/(Deficit) | C46: 1250121476 | D46: 1698259452 | E46: 1698259452 | F46: 1460973492 | G46: 1698259452
A47: Reserves | C47: 0 | D47: 0 | E47: 0 | F47: 0 | G47: 0
A48: TOTAL COMMUNITY WEALTH/EQUITY | B48: 2 | C48: =SUM(C46:C47) -> 1250121476 | D48: =SUM(D46:D47) -> 1698259452 | E48: =SUM(E46:E47) -> 1698259452 | F48: =SUM(F46:F47) -> 1460973492 | G48: =SUM(G46:G47) -> 1698259452
A49: =head27a -> References
A50: 1. Material variances to be explained in Table SC1
A51: 2. Net assets must balance with Total Community Wealth/Equity
A54: check balance | C54: =C43-C48 -> 233534643.9 | D54: =D43-D48 -> 191330136 | E54: =E43-E48 -> 191330136 | F54: =F43-F48 -> 0 | G54: =G43-G48 -> 191330136

Sheet C7-CFlow
A1: =muni& " - "&S71F& " - "&date -> LIM355 Lepelle-Nkumpi - Table C7 Monthly Budget Statement - Cash Flow - M03 September
A2: =desc -> Description | B2: =head27 -> Ref | C2: =Head1 -> 2021/22 | D2: =Head2 -> Budget Year 2022/23
C3: =Head5 -> Audited Outcome | D3: =Head6 -> Original Budget | E3: =Head7 -> Adjusted Budget | F3: =Head38 -> Monthly actual | G3: =Head39 -> YearTD actual | H3: =Head40 -> YearTD budget | I3: =Head41 -> YTD variance | J3: =Head41 -> YTD variance | K3: =Head8 -> Full Year Forecast
A4: R thousands | B4: 1 | J4: %
A5: CASH FLOW FROM OPERATING ACTIVITIES
A6: Receipts
A7: Property rates | C7: 14457137.81 | D7: 13095531 | E7: 13095531 | F7: 0 | G7: 1928746.18 | H7: 3273882.75 | I7: =G7-H7 -> -1345136.57 | J7: =IF(I7=0,"",I7/H7) -> -0.4108688895 | K7: 13095531
A8: Service charges | C8: 20056695.46 | D8: 49376975 | E8: 49376975 | F8: 0 | G8: 5657240.09 | H8: 12344243.76 | I8: -6687003.67 | J8: =IF(I8=0,"",I8/H8) -> -0.541710274 | K8: 49376975
A9: Other revenue | C9: 311788614.3 | D9: 550665189 | E9: 550665189 | F9: 0 | G9: 50848658.15 | H9: 137666297.2 | I9: -86817639.07 | J9: =IF(I9=0,"",I9/H9) -> -0.6306382958 | K9: 550665189
A10: Transfers and Subsidies - Operational | C10: 7803669.21 | D10: 5683443 | E10: 5683443 | F10: 0 | G10: 2345000 | H10: 1420860.75 | I10: 924139.25 | J10: =IF(I10=0,"",I10/H10) -> 0.6504080361 | K10: 5683443
A11: Transfers and Subsidies - Capital | C11: 66710000 | D11: 61628000 | E11: 61628000 | F11: 0 | G11: 12574000 | H11: 15407000.01 | I11: -2833000.01 | J11: =IF(I11=0,"",I11/H11) -> -0.1838774588 | K11: 61628000
A12: Interest | C12: 12812681.85 | D12: 4188218 | E12: 4188218 | F12: 0 | G12: 1377070.2 | H12: 1047054.48 | I12: 330015.72 | J12: 0.3151848603 | K12: 4188218
A13: Dividends | C13: 0 | D13: 0 | E13: 0 | F13: 0 | G13: 0 | H13: 0 | I13: 0 | K13: 0
A14: Payments
A15: Suppliers and employees | C15: -220190305.3 | D15: -520033377 | E15: -520033377 | F15: 0 | G15: -55457939.85 | H15: -130008344.2 | I15: =H15-G15 -> -74550404.4 | J15: 0.5734278429 | K15: -520033377
A16: Finance charges | I16: =H16-G16 -> 0
A17: Transfers and Grants | I17: =H17-G17 -> 0
A18: NET CASH FROM/(USED) OPERATING ACTIVITIES | C18: =SUM(C7:C13)+SUM(C15:C17) -> 213438493.3 | D18: 164603979 | E18: 164603979 | F18: 0 | G18: 19272774.77 | H18: 41150994.72 | I18: =H18-G18 -> 21878219.95 | J18: 0.5316571349 | K18: =SUM(K7:K13)+SUM(K15:K17) -> 164603979
A20: CASH FLOWS FROM INVESTING ACTIVITIES
A21: Receipts
A22: Proceeds on disposal of PPE | I22: =G22-H22 -> 0 | J22: =IF(I22=0,"",I22/H22) -> 
A24: Decrease (increase) in non-current receivables | C24: 0 | D24: 0 | E24: 0 | F24: 0 | G24: 0 | H24: 0 | I24: =G24-H24 -> 0 | K24: 0
A25: Decrease (increase) in non-current investments | C25: 0 | D25: -150000000 | E25: 0 | F25: 0 | G25: 150000000 | H25: 0 | I25: =G25-H25 -> 150000000 | K25: 0
A26: Payments
A27: Capital assets | C27: -56401054.79 | D27: -191330136 | E27: -191330136 | F27: 0 | G27: -4457700.99 | H27: -47832534.06 | I27: =H27-G27 -> -43374833.07 | J27: 0.9068060876 | K27: -191330136
A28: NET CASH FROM/(USED) INVESTING ACTIVITIES | C28: =SUM(C22:C25)+C27 -> -56401054.79 | D28: =SUM(D22:D25)+D27 -> -341330136 | E28: -191330136 | F28: 0 | G28: 145542299 | H28: -47832534.06 | I28: =H28-G28 -> -193374833.1 | J28: 4.042746989 | K28: =SUM(K22:K25)+K27 -> -191330136
A30: CASH FLOWS FROM FINANCING ACTIVITIES
A31: Receipts
A32: Short term loans | I32: =G32-H32 -> 0 | J32: =IF(I32=0,"",I32/H32) -> 
A33: Borrowing long term/refinancing | I33: =G33-H33 -> 0
A34: Increase (decrease) in consumer deposits | I34: =G34-H34 -> 0
A35: Payments
A36: Repayment of borrowing | I36: =H36-G36 -> 0
A37: NET CASH FROM/(USED) FINANCING ACTIVITIES | C37: =SUM(C32:C34)+C36 -> 0 | D37: 0 | E37: 0 | F37: 0 | G37: 0 | H37: 0 | I37: =H37-G37 -> 0 | K37: =SUM(K32:K34)+K36 -> 0
A39: NET INCREASE/ (DECREASE) IN CASH HELD | C39: =C18+C28+C37 -> 157037438.5 | D39: -176726157 | E39: -26726157 | F39: 0 | G39: 164815073.8 | H39: -6681539.34 | K39: =K18+K28+K37 -> -26726157
A40: Cash/cash equivalents at beginning: | C40: 294997514.7 | D40: 240077682 | E40: 240077682 | F40: 41026137.45 | G40: 500269913 | H40: =IF(E40=0, D40, E40) -> 240077682 | K40: =G40 -> 500269913
A41: Cash/cash equivalents at month/year end: | C41: =C39+C40 -> 452034953.2 | D41: =D39+D40 -> 63351525 | E41: =E39+E40 -> 213351525 | G41: =G39+G40 -> 665084986.8 | H41: =H39+H40 -> 233396142.7 | K41: =K39+K40 -> 473543756
A42: References
A43: 1. Material variances to be explained in Table SC1

Sheet SC1
A1: =muni& " - "&S71G& " - "&date -> LIM355 Lepelle-Nkumpi - Supporting Table SC1 Material variance explanations - M03 September
A2: =head27 -> Ref | B2: =desc -> Description
C3: Variance | D3: Reasons for material deviations | E3: Remedial or corrective steps/remarks
B4: R thousands
A5: 1 | B5: ='C4-FinPerf RE'!A5 -> Revenue By Source
B6: Client elected Not to populate this sheet
A10: 2 | B10: ='C4-FinPerf RE'!A24 -> Expenditure By Type
B11: Client elected Not to populate this sheet
A15: 3 | B15: =RIGHT('C5-Capex'!A40,19) -> Capital Expenditure
B16: Client elected Not to populate this sheet
A20: 4 | B20: Financial Position
B21: Client elected Not to populate this sheet
A25: 5 | B25: Cash Flow
B26: Client elected Not to populate this sheet
A30: 6 | B30: Measureable performance
B31: Client elected Not to populate this sheet
A35: 7 | B35: Municipal Entities
B36: Client elected Not to populate this sheet
A41: =head27a -> References
A42: 1. Revenue for each source, vote and standard classification
A43: 2. Expenditure for each type, vote and standard classification
A44: 3. Capital expenditure for each vote and standard classification
A45: 4. Explain any material variances between the annual budget and the expected financial position based on current trends
A46: 5. Cash receipts by source and cash payments by type where not explained under revenue and expenditure
A47: 6. For Sept, Dec, Mar and Jun statements explain any material variances in achievement of measurable performance objectives

Sheet SC2
A1: =muni& " - "&S71H& " - "&Head57 -> LIM355 Lepelle-Nkumpi - Supporting Table SC2 Monthly Budget Statement - performance indicators - M03 September
A2: Description of financial indicator | B2: Basis of calculation | C2: =head27 -> Ref | D2: =Head1 -> 2021/22 | E2: =Head2 -> Budget Year 2022/23
D3: =Head5 -> Audited Outcome | E3: =Head6 -> Original Budget | F3: =Head7 -> Adjusted Budget | G3: =Head39 -> YearTD actual | H3: =Head8 -> Full Year Forecast
A5: Borrowing Management
A7: Capital Charges to Operating Expenditure | B7: Interest & principal paid/Operating Expenditure | D7: =IF(ISERROR((D42-D43)/D45),0,((D42-D43)/D45)) -> 0 | E7: =IF(ISERROR((E42+E44)/E45),0,((E42+E44)/E45)) -> 0.08689785784 | F7: =IF(ISERROR((F42+F44)/F45),0,((F42+F44)/F45)) -> 0.08689785784 | G7: =IF(ISERROR((G42+G44)/G45),0,((G42+G44)/G45)) -> 0 | H7: =IF(ISERROR((H42+H44)/H45),0,((H42+H44)/H45)) -> 0.05176143436
A8: Borrowed funding of 'own' capital expenditure | B8: Borrowings/Capital expenditure excl. transfers and grants | D8: =IF(ISERROR(D47/D46),0,(D47/D46)) -> 0 | E8: =IF(ISERROR(E47/E46),0,(E47/E46)) -> 0 | F8: =IF(ISERROR(F47/F46),0,(F47/F46)) -> 0 | G8: =IF(ISERROR(G47/G46),0,(G47/G46)) -> 0 | H8: =IF(ISERROR(H47/H46),0,(H47/H46)) -> 0
A9: Safety of Capital
A10: Debt to Equity | B10: Loans, Accounts Payable, Overdraft & Tax Provision/ Funds & Reserves | D10: =IF(ISERROR(D48/D49),0,(D48/D49)) -> 0.2185378661 | E10: =IF(ISERROR(E48/E49),0,(E48/E49)) -> -0.1501721782 | F10: =IF(ISERROR(F48/F49),0,(F48/F49)) -> -0.1501721782 | G10: =IF(ISERROR(G48/G49),0,(G48/G49)) -> 0.2268032747 | H10: =IF(ISERROR(H48/H49),0,(H48/H49)) -> -0.1501721782
A11: Gearing | B11: Long Term Borrowing/ Funds & Reserves | D11: =IF(ISERROR(D51/D50),0,(D51/D50)) -> 0 | E11: =IF(ISERROR(E51/E50),0,(E51/E50)) -> 0 | F11: =IF(ISERROR(F51/F50),0,(F51/F50)) -> 0 | G11: =IF(ISERROR(G51/G50),0,(G51/G50)) -> 0 | H11: =IF(ISERROR(H51/H50),0,(H51/H50)) -> 0
A12: Liquidity
A13: Current Ratio | B13: Current assets/current liabilities | C13: 1 | D13: =IF(ISERROR(D52/D53),0,(D52/D53)) -> 2.638558751 | E13: =IF(ISERROR(E52/E53),0,(E52/E53)) -> -2.936137158 | F13: =IF(ISERROR(F52/F53),0,(F52/F53)) -> -2.936137158 | G13: =IF(ISERROR(G52/G53),0,(G52/G53)) -> 2.310733124 | H13: =IF(ISERROR(H52/H53),0,(H52/H53)) -> -2.936137158
A14: Liquidity Ratio | B14: Monetary Assets/Current Liabilities | D14: =IF(ISERROR(D54/D53),0,(D54/D53)) -> 1.819340908 | E14: =IF(ISERROR(E54/E53),0,(E54/E53)) -> -1.541219964 | F14: =IF(ISERROR(F54/F53),0,(F54/F53)) -> -1.541219964 | G14: =IF(ISERROR(G54/G53),0,(G54/G53)) -> 1.536915435 | H14: =IF(ISERROR(H54/H53),0,(H54/H53)) -> -1.541219964
A15: Revenue Management
A16: Annual Debtors Collection Rate (Payment Level %) | B16: Last 12 Mths Receipts/ Last 12 Mths Billing
A17: Outstanding Debtors to Revenue | B17: Total Outstanding Debtors to Annual Revenue | D17: =IF(ISERROR(D59/D55),0,(D59/D55)) -> 0.3242628929 | E17: =IF(ISERROR(E59/E55),0,(E59/E55)) -> 0.3860802586 | F17: =IF(ISERROR(F59/F55),0,(F59/F55)) -> 0.3860802586 | G17: =IF(ISERROR(G59/G55),0,(G59/G55)) -> 1.038259744 | H17: =IF(ISERROR(H59/H55),0,(H59/H55)) -> 0.3860802586
A18: Longstanding Debtors Recovered | B18: Debtors > 12 Mths Recovered/Total Debtors > 12 Months Old | D18: =IF(ISERROR(D64/D63),0,(D64/D63)) -> 0 | E18: =IF(ISERROR(E64/E63),0,(E64/E63)) -> 0 | F18: =IF(ISERROR(F64/F63),0,(F64/F63)) -> 0 | G18: =IF(ISERROR(G64/G63),0,(G64/G63)) -> 0 | H18: =IF(ISERROR(H64/H63),0,(H64/H63)) -> 0
A19: Creditors Management
A20: Creditors System Efficiency | B20: % of Creditors Paid Within Terms (within MFMA s 65(e))
A21: Funding of Provisions
A22: Percentage Of Provisions Not Funded | B22: Unfunded Provisions/Total Provisions
A23: Other Indicators
A24: Electricity Distribution Losses | B24: % Volume (units purchased and generated less units sold)/units purchased and generated | C24: 2 | D24: 0 | E24: 0 | F24: 0 | G24: 0 | H24: 0
A25: Water Distribution Losses | B25: % Volume (units purchased and own source less units sold)/Total units purchased and own source | C25: 2 | D25: 0 | E25: 0 | F25: 0 | G25: 0 | H25: 0
A26: Employee costs | B26: Employee costs/Total Revenue - capital revenue | D26: =IF(ISERROR(D40/D55),0,(D40/D55)) -> 0.2262252065 | E26: =IF(ISERROR(E40/E55),0,(E40/E55)) -> 0.238300692 | F26: =IF(ISERROR(F40/F55),0,(F40/F55)) -> 0.238300692 | G26: =IF(ISERROR(G40/G55),0,(G40/G55)) -> 0.1550075954 | H26: =IF(ISERROR(H40/H55),0,(H40/H55)) -> 0.238300692
A27: Repairs & Maintenance | B27: R&M/Total Revenue - capital revenue | D27: =IF(ISERROR(D41/D55),0,(D41/D55)) -> 0.004767405272 | E27: =IF(ISERROR(E41/E55),0,(E41/E55)) -> 0.03037968265 | F27: =IF(ISERROR(F41/F55),0,(F41/F55)) -> 0.03037968265 | G27: =IF(ISERROR(G41/G55),0,(G41/G55)) -> 0.008491559972 | H27: =IF(ISERROR(H41/H55),0,(H41/H55)) -> 0.03037968265
A28: Interest & Depreciation | B28: I&D/Total Revenue - capital revenue | D28: =IF(ISERROR((D42+D44)/D55),0,((D42+D44)/D55)) -> 0.06889968025 | E28: =IF(ISERROR((E42+E44)/E55),0,((E42+E44)/E55)) -> 0.0669604784 | F28: =IF(ISERROR((F42+F44)/F55),0,((F42+F44)/F55)) -> 0.0669604784 | G28: =IF(ISERROR((G42+G44)/G55),0,((G42+G44)/G55)) -> 0 | H28: =IF(ISERROR((H42+H44)/H55),0,((H42+H44)/H55)) -> 0.03988556788
A29: IDP regulation financial viability indicators
A30: i. Debt coverage | B30: (Total Operating Revenue - Operating Grants)/Debt service payments due within financial year)
A31: ii. O/S Service Debtors to Revenue | B31: Total outstanding service debtors/annual revenue received for services
A32: iii. Cost coverage | B32: (Available cash + Investments)/monthly fixed operational expenditure
A33: References
A34: 1. Consumer debtors > 12 months old are excluded from current assets.
A35: 2. Material variances to be explained.
A37: Calculations
A38: ='C6-FinPos'!A38 -> Borrowing | D38: ='C6-FinPos'!C38 -> 238138.31 | E38: ='C6-FinPos'!D38 -> 238138 | F38: ='C6-FinPos'!E38 -> 238138 | G38: ='C6-FinPos'!F38 -> 238138.31 | H38: 0
A39: Total Assets | D39: ='C6-FinPos'!C26 -> 1777909545 | E39: ='C6-FinPos'!D26 -> 1658467604 | F39: ='C6-FinPos'!E26 -> 1658467604 | G39: ='C6-FinPos'!F26 -> 1813408009 | H39: ='C6-FinPos'!G26 -> 1658467604
A40: ='C4-FinPerf RE'!A25 -> Employee related costs | D40: ='C4-FinPerf RE'!C25 -> 92930048.43 | E40: ='C4-FinPerf RE'!D25 -> 134714216 | F40: ='C4-FinPerf RE'!E25 -> 134714216 | G40: ='C4-FinPerf RE'!G25 -> 24625045.34 | H40: ='C4-FinPerf RE'!K25 -> 134714216
A41: =A27 -> Repairs & Maintenance | D41: 1958381.25 | E41: 17173996 | F41: 17173996 | G41: 1348998.73 | H41: 17173996
A42: Interest (finance charges) | D42: ='C4-FinPerf RE'!C29 -> 0 | E42: ='C4-FinPerf RE'!D29 -> 153613 | F42: ='C4-FinPerf RE'!E29 -> 153613 | G42: ='C4-FinPerf RE'!G29 -> 0 | H42: ='C4-FinPerf RE'!K29 -> 153613
A43: Principal paid | D43: =-'C7-CFlow'!C36 -> 0 | E43: =-'C7-CFlow'!D36 -> 0 | F43: =-'C7-CFlow'!E36 -> 0 | G43: =-'C7-CFlow'!G36 -> 0 | H43: =-'C7-CFlow'!K36 -> 0
A44: Depreciation | D44: ='C4-FinPerf RE'!C28 -> 28302993.82 | E44: ='C4-FinPerf RE'!D28 -> 37699942 | F44: ='C4-FinPerf RE'!E28 -> 37699942 | H44: ='C4-FinPerf RE'!K26 -> 22394173
A45: Operating expenditure | D45: ='C4-FinPerf RE'!C36 -> 330853961.4 | E45: ='C4-FinPerf RE'!D36 -> 435609760 | F45: ='C4-FinPerf RE'!E36 -> 435609760 | G45: ='C4-FinPerf RE'!G36 -> 65509379.87 | H45: ='C4-FinPerf RE'!K36 -> 435609760
A46: ='C5-Capex'!A40 -> Total Capital Expenditure | D46: ='C5-Capex'!C40 -> 56710454.62 | E46: ='C5-Capex'!D40 -> 191330136 | F46: ='C5-Capex'!E40 -> 191330136 | G46: ='C5-Capex'!G40 -> 4457700.99 | H46: ='C5-Capex'!K40 -> 191330136
A47: Borrowed funding for capital | D47: ='C5-Capex'!C72 -> 0 | E47: ='C5-Capex'!D72 -> 0 | F47: ='C5-Capex'!E72 -> 0 | G47: ='C5-Capex'!G72 -> 0 | H47: ='C5-Capex'!K72 -> 0
A48: Debt | D48: ='C6-FinPos'!C30+'C6-FinPos'!C31+'C6-FinPos'!C33+'C6-FinPos'!C38 -> 273198879.8 | E48: ='C6-FinPos'!D30+'C6-FinPos'!D31+'C6-FinPos'!D33+'C6-FinPos'!D38 -> -255031321 | F48: ='C6-FinPos'!E30+'C6-FinPos'!E31+'C6-FinPos'!E33+'C6-FinPos'!E38 -> -255031321 | G48: ='C6-FinPos'!F30+'C6-FinPos'!F31+'C6-FinPos'!F33+'C6-FinPos'!F38 -> 331353572.3 | H48: ='C6-FinPos'!G30+'C6-FinPos'!G31+'C6-FinPos'!G33+'C6-FinPos'!G38 -> -255031321
A49: Equity | D49: ='C6-FinPos'!C48 -> 1250121476 | E49: ='C6-FinPos'!D48 -> 1698259452 | F49: ='C6-FinPos'!E48 -> 1698259452 | G49: ='C6-FinPos'!F48 -> 1460973492 | H49: ='C6-FinPos'!G48 -> 1698259452
A50: ='C6-FinPos'!A47 -> Reserves | D50: ='C6-FinPos'!C47 -> 0 | E50: ='C6-FinPos'!D47 -> 0 | F50: ='C6-FinPos'!E47 -> 0 | G50: ='C6-FinPos'!F47 -> 0 | H50: ='C6-FinPos'!G47 -> 0
A51: ='C6-FinPos'!A38 -> Borrowing | D51: ='C6-FinPos'!C38 -> 238138.31 | E51: ='C6-FinPos'!D38 -> 238138 | F51: ='C6-FinPos'!E38 -> 238138 | G51: ='C6-FinPos'!F38 -> 238138.31 | H51: ='C6-FinPos'!G38 -> 238138
A52: ='C6-FinPos'!A6 -> Current assets | D52: ='C6-FinPos'!C13 -> 775776606.6 | E52: ='C6-FinPos'!D13 -> 679305051 | F52: ='C6-FinPos'!E13 -> 679305051 | G52: ='C6-FinPos'!F13 -> 813831838.4 | H52: ='C6-FinPos'!G13 -> 679305051
A53: ='C6-FinPos'!A29 -> Current liabilities | D53: ='C6-FinPos'!C35 -> 294015286.3 | E53: ='C6-FinPos'!D35 -> -231360122 | F53: ='C6-FinPos'!E35 -> -231360122 | G53: ='C6-FinPos'!F35 -> 352196378.7 | H53: ='C6-FinPos'!G35 -> -231360122
A54: Monetary assets | D54: ='C6-FinPos'!C7+'C6-FinPos'!C8 -> 534914037.8 | E54: ='C6-FinPos'!D7+'C6-FinPos'!D8 -> 356576839 | F54: ='C6-FinPos'!E7+'C6-FinPos'!E8 -> 356576839 | G54: ='C6-FinPos'!F7+'C6-FinPos'!F8 -> 541296050.5 | H54: ='C6-FinPos'!G7+'C6-FinPos'!G8 -> 356576839
A55: ='C4-FinPerf RE'!A22 -> Total Revenue (excluding capital transfers and contributions) | D55: ='C4-FinPerf RE'!C22 -> 410785561.2 | E55: ='C4-FinPerf RE'!D22 -> 565311896 | F55: ='C4-FinPerf RE'!E22 -> 565311896 | G55: ='C4-FinPerf RE'!G22 -> 158863475.6 | H55: ='C4-FinPerf RE'!K22 -> 565311896
A56: ='C4-FinPerf RE'!A19 -> Transfers and subsidies | D56: ='C4-FinPerf RE'!C19 -> 283498760.8 | E56: ='C4-FinPerf RE'!D19 -> 310408898 | F56: ='C4-FinPerf RE'!E19 -> 310408898 | G56: ='C4-FinPerf RE'!G19 -> 118141268.9 | H56: ='C4-FinPerf RE'!K19 -> 310408898
A57: ='C4-FinPerf RE'!A39 -> Transfers and subsidies - capital (monetary allocations) (National / Provincial and District) | D57: ='C4-FinPerf RE'!C39 -> 50792084.59 | E57: ='C4-FinPerf RE'!D39 -> 61628000 | F57: ='C4-FinPerf RE'!E39 -> 61628000 | G57: ='C4-FinPerf RE'!G39 -> 5461067.74 | H57: ='C4-FinPerf RE'!K39 -> 61628000
A58: Debt service payments | D58: ='C7-CFlow'!C12+'C7-CFlow'!C36 -> 12812681.85 | E58: ='C7-CFlow'!D12+'C7-CFlow'!D36 -> 4188218 | F58: ='C7-CFlow'!E12+'C7-CFlow'!E36 -> 4188218 | G58: ='C7-CFlow'!G16+'C7-CFlow'!G36 -> 0 | H58: ='C7-CFlow'!K16+'C7-CFlow'!K36 -> 0
A59: Outstanding debtors (receivables) | D59: ='C6-FinPos'!C9+'C6-FinPos'!C10+'C6-FinPos'!C11+'C6-FinPos'!C16 -> 133202514.5 | E59: ='C6-FinPos'!D9+'C6-FinPos'!D10+'C6-FinPos'!D11+'C6-FinPos'!D16 -> 218255763 | F59: ='C6-FinPos'!E9+'C6-FinPos'!E10+'C6-FinPos'!E11+'C6-FinPos'!E16 -> 218255763 | G59: ='C6-FinPos'!F9+'C6-FinPos'!F10+'C6-FinPos'!F11+'C6-FinPos'!F16 -> 164941551.4 | H59: ='C6-FinPos'!G9+'C6-FinPos'!G10+'C6-FinPos'!G11+'C6-FinPos'!G16 -> 218255763
A60: Annual services revenue | D60: =SUM('C4-FinPerf RE'!C7:C11) -> 2814398.78 | E60: =SUM('C4-FinPerf RE'!D7:D11) -> 7120609 | F60: =SUM('C4-FinPerf RE'!E7:E11) -> 7120609 | G60: =SUM('C4-FinPerf RE'!G7:G11) -> 13091384.69
A61: Cash + investments | B61: Including LT investments | D61: ='C6-FinPos'!C7+'C6-FinPos'!C8+'C6-FinPos'!C17-'C6-FinPos'!C30 -> 684914037.8 | E61: ='C6-FinPos'!D7+'C6-FinPos'!D8+'C6-FinPos'!D17-'C6-FinPos'!D30 -> 356576839 | F61: ='C6-FinPos'!E7+'C6-FinPos'!E8+'C6-FinPos'!E17-'C6-FinPos'!E30 -> 356576839 | G61: ='C6-FinPos'!F7+'C6-FinPos'!F8+'C6-FinPos'!F17-'C6-FinPos'!F30 -> 691296050.5 | H61: ='C6-FinPos'!G7+'C6-FinPos'!G8+'C6-FinPos'!G17-'C6-FinPos'!G30 -> 356576839
A62: Fixed operational expend. (monthly)
A63: Longstanding debtors outstanding | D63: ='C6-FinPos'!C16 -> 0 | E63: ='C6-FinPos'!D16 -> 0 | F63: ='C6-FinPos'!E16 -> 0 | G63: ='C6-FinPos'!F16 -> 0 | H63: ='C6-FinPos'!G16 -> 0
A64: Longstanding debtors recovered
A65: Attorney collections

Sheet SC3
A1: =muni& " - "&S71I& " - "&Head57 -> LIM355 Lepelle-Nkumpi - Supporting Table SC3 Monthly Budget Statement - aged debtors - M03 September
A2: =desc -> Description | C2: =Head2 -> Budget Year 2022/23
A3: R thousands | B3: NT Code | C3: 0-30 Days | D3: 31-60 Days | E3: 61-90 Days | F3: 91-120 Days | G3: 121-150 Dys | H3: 151-180 Dys | I3: 181 Dys-1 Yr | J3: Over 1Yr | K3: Total | L3: Total over 90 days | M3: Actual Bad Debts Written Off against Debtors | N3: Impairment - Bad Debts i.t.o Council Policy
A4: Debtors Age Analysis By Income Source
A5: Trade and Other Receivables from Exchange Transactions - Water | B5: 1200 | K5: =SUM(C5:J5) -> 0 | L5: =SUM(F5:J5) -> 0
A6: Trade and Other Receivables from Exchange Transactions - Electricity | B6: 1300 | K6: =SUM(C6:J6) -> 0 | L6: =SUM(F6:J6) -> 0
A7: Receivables from Non-exchange Transactions - Property Rates | B7: 1400 | K7: =SUM(C7:J7) -> 0 | L7: 0
A8: Receivables from Exchange Transactions - Waste Water Management | B8: 1500 | K8: 0 | L8: 0
A9: Receivables from Exchange Transactions - Waste Management | B9: 1600 | K9: 0 | L9: =SUM(F9:J9) -> 0
A10: Receivables from Exchange Transactions - Property Rental Debtors | B10: 1700 | K10: 0 | L10: =SUM(F10:J10) -> 0
A11: Interest on Arrear Debtor Accounts | B11: 1810 | K11: 0 | L11: 0
A12: Recoverable unauthorised, irregular, fruitless and wasteful expenditure | B12: 1820 | K12: 0 | L12: 0
A13: Other | B13: 1900 | K13: 0 | L13: =SUM(F13:J13) -> 0
A14: Total By Income Source | B14: 2000 | C14: =SUM(C5:C13) -> 0 | D14: 0 | E14: 0 | F14: 0 | G14: 0 | H14: 0 | I14: 0 | J14: 0 | K14: 0 | L14: =SUM(L5:L13) -> 0 | M14: 0 | N14: 0
A15: =Head1&" - totals only" -> 2021/22 - totals only | K15: =SUM(C15:J15) -> 0 | L15: =SUM(F15:J15) -> 0
A16: Debtors Age Analysis By Customer Group
A17: Organs of State | B17: 2200 | K17: =SUM(C17:J17) -> 0 | L17: =SUM(F17:J17) -> 0
A18: Commercial | B18: 2300 | K18: =SUM(C18:J18) -> 0 | L18: =SUM(F18:J18) -> 0
A19: Households | B19: 2400 | K19: =SUM(C19:J19) -> 0 | L19: =SUM(F19:J19) -> 0
A20: Other | B20: 2500 | K20: =SUM(C20:J20) -> 0 | L20: =SUM(F20:J20) -> 0
A21: Total By Customer Group | B21: 2600 | C21: =SUM(C17:C20) -> 0 | D21: 0 | E21: 0 | F21: 0 | G21: 0 | H21: 0 | I21: 0 | J21: =SUM(J17:J20) -> 0 | K21: =SUM(K17:K20) -> 0 | L21: =SUM(L17:L20) -> 0 | M21: =SUM(M17:M20) -> 0 | N21: =SUM(N17:N20) -> 0
A22: Notes
A23: Material increases in value of debtors' categories compared to previous month to be explained
A24: Bad debts = amounts actually written off in the month
A25: Total by Income Source must reconcile with Total by Customer Group
C26: =C14-C21 -> 0 | D26: =D14-D21 -> 0 | E26: =E14-E21 -> 0 | F26: 0 | G26: 0 | H26: 0 | I26: 0 | J26: =J14-J21 -> 0 | K26: 0
C27: =IF(C26=0,"","MUST AGREE") ->  | D27: =IF(D26=0,"","MUST AGREE") -> 

Sheet SC4
A1: =muni& " - "&S71J& " - "&Head57 -> LIM355 Lepelle-Nkumpi - Supporting Table SC4 Monthly Budget Statement - aged creditors - M03 September
A2: =desc -> Description | B2: NT Code | C2: =Head2 -> Budget Year 2022/23 | L2: Prior year totals for chart (same period)
C3: 0 - 30 Days | D3: 31 - 60 Days | E3: 61 - 90 Days | F3: 91 - 120 Days | G3: 121 - 150 Days | H3: 151 - 180 Days | I3: 181 Days - 1 Year | J3: Over 1 Year | K3: Total
A4: R thousands
A5: Creditors Age Analysis By Customer Type
A6: Bulk Electricity | B6: 0100 | K6: =SUM(C6:J6) -> 0
A7: Bulk Water | B7: 0200 | K7: =SUM(C7:J7) -> 0
A8: PAYE deductions | B8: 0300 | K8: 0
A9: VAT (output less input) | B9: 0400 | K9: 0
A10: Pensions / Retirement deductions | B10: 0500 | K10: 0
A11: Loan repayments | B11: 0600 | K11: 0
A12: Trade Creditors | B12: 0700 | K12: 0
A13: Auditor General | B13: 0800 | K13: 0
A14: Other | B14: 0900 | K14: =SUM(C14:J14) -> 0
A15: Total By Customer Type | B15: 1000 | C15: =SUM(C6:C14) -> 0 | D15: =SUM(D6:D14) -> 0 | E15: 0 | F15: 0 | G15: 0 | H15: 0 | I15: 0 | J15: 0 | K15: =SUM(K6:K14) -> 0 | L15: =SUM(L6:L14) -> 0
A16: Notes
A17: Material increases in value of creditors' categories compared to previous month to be explained

Sheet SC5
A1: =muni& " - "&S71K& " - "&Head57 -> LIM355 Lepelle-Nkumpi - Supporting Table SC5 Monthly Budget Statement - investment portfolio - M03 September
A2: Investments by maturity Name of institution & investment ID | B2: Ref | C2: Period of Investment | D2: Type of Investment | E2: Capital Guarantee (Yes/ No) | F2: Variable or Fixed interest rate | G2: Interest Rate ᶟ | H2: Commission Paid (Rands) | I2: Commission Recipient | J2: Expiry date of investment | K2: Opening balance | L2: Interest to be realised | M2: Partial / Premature Withdrawal (4) | N2: Investment Top Up | O2: Closing Balance
A3: R thousands | C3: Yrs/Months
A4: Municipality
A5: Nedbank Bank | C5: Months | D5: Nedbank | E5: Yes | F5: Variable | G5: 4.26 | H5: 0 | I5: 0 | J5: 2021-06-30 | K5: 52411226 | L5: 0 | M5: 0 | N5: 0 | O5: =SUM(K5:N5) -> 52411226
A6: Standard Bank | C6: Months | D6: STANDARD BANK | E6: Yes | F6: Variable | G6: 4.2 | H6: 0 | I6: 0 | J6: 2021-06-30 | K6: 52309937 | L6: 0 | M6: 0 | N6: 0 | O6: 52309937
A7: Absa Bank | C7: Months | D7: ABSA | E7: Yes | F7: Variable | G7: 4.25 | H7: 0 | I7: 0 | J7: 2021-06-30 | K7: 51609092 | L7: 0 | M7: 0 | N7: 0 | O7: 51609092
A8: Municipality sub-total | K8: =SUM(K5:K7) -> 156330255 | M8: =SUM(M5:M7) -> 0 | N8: =SUM(N5:N7) -> 0 | O8: =SUM(O5:O7) -> 156330255
A10: Entities
O11: =SUM(K11:N11) -> 0
O12: 0
O13: 0
O14: 0
O15: 0
O16: 0
O17: 0
A18: Entities sub-total | K18: =SUM(K11:K17) -> 0 | M18: =SUM(M11:M17) -> 0 | N18: =SUM(N11:N17) -> 0 | O18: =SUM(O11:O17) -> 0
A20: TOTAL INVESTMENTS AND INTEREST | B20: 2 | K20: =K8+K18 -> 156330255 | M20: =M8+M18 -> 0 | N20: =N8+N18 -> 0 | O20: =O8+O18 -> 156330255
A21: =head27a -> References
A22: 2. List investments in expiry date order
A23: 3. If 'variable' is selected in column F, input interest rate range
A24: 4. Withdrawals to be entered as negative

Sheet SC6
A1: =muni& " - "&S71L& " - "&Head57 -> LIM355 Lepelle-Nkumpi - Supporting Table SC6 Monthly Budget Statement - transfers and grant receipts - M03 September
A2: =desc -> Description | B2: =head27 -> Ref | C2: =Head1 -> 2021/22 | D2: =Head2 -> Budget Year 2022/23
C3: =Head5 -> Audited Outcome | D3: =Head6 -> Original Budget | E3: =Head7 -> Adjusted Budget | F3: =Head38 -> Monthly actual | G3: =Head39 -> YearTD actual | H3: =Head40 -> YearTD budget | I3: =Head41 -> YTD variance | J3: =Head41 -> YTD variance | K3: =Head8 -> Full Year Forecast
A4: R thousands | J4: %
A5: RECEIPTS: | B5: 1,2
A7: Operating Transfers and Grants
A8: National Government: | C8: =SUM(C9:C13) -> 283498760.8 | D8: 309709000 | E8: 309709000 | F8: 24999.99 | G8: 118141268.9 | H8: 77427246 | I8: =G8-H8 -> 40714022.88 | J8: =IF(H8=0,"",I8/H8) -> 0.5258358651 | K8: =SUM(K9:K13) -> 309709000
A9: Equitable Share | C9: 275926000 | D9: 301329000 | E9: 301329000 | F9: 0 | G9: 117518000 | H9: 75332250 | I9: 42185750 | J9: 0.5599958849 | K9: 301329000
A10: Expanded Public Works Programme Integrated Grant | C10: 1969000 | D10: 1380000 | E10: 1380000 | F10: 0 | G10: 0 | H10: 345000 | I10: -345000 | J10: -1 | K10: 1380000
A11: Integrated National Electrification Programme Grant | C11: 3884000 | D11: 5000000 | E11: 5000000 | F11: 0 | G11: 0 | H11: 1249998 | I11: -1249998 | J11: -1 | K11: 5000000
A12: Local Government Financial Management Grant | C12: 1719760.8 | D12: 2000000 | E12: 2000000 | F12: 24999.99 | G12: 623268.88 | H12: 499998 | I12: 123270.88 | J12: 0.2465427462 | K12: 2000000
A13: Municipal Disaster Relief Grant | C13: 0 | D13: 0 | E13: 0 | F13: 0 | G13: 0 | H13: 0 | I13: 0 | K13: 0
A14: Other transfers and grants [insert description] | I14: =G14-H14 -> 0 | J14: =IF(I14=0,"",I14/H14) -> 
A15: Provincial Government: | C15: =SUM(C16:C16) -> 0 | D15: 699898 | E15: 699898 | F15: 0 | G15: 0 | H15: 174972 | I15: =G15-H15 -> -174972 | J15: =IF(H15=0,"",I15/H15) -> -1 | K15: =SUM(K16:K16) -> 699898
A16: Capacity Building and Other Grants | C16: 0 | D16: 699898 | E16: 699898 | F16: 0 | G16: 0 | H16: 174972 | I16: =G16-H16 -> -174972 | J16: =IF(H16=0,"",I16/H16) -> -1 | K16: 699898
A17: Other transfers and grants [insert description] | I17: =G17-H17 -> 0
A18: District Municipality: | C18: =SUM(C19:C19) -> 0 | D18: 0 | E18: 0 | F18: 0 | G18: 0 | H18: 0 | I18: =G18-H18 -> 0 | J18: =IF(H18=0,"",I18/H18) ->  | K18: =SUM(K19:K19) -> 0
A19: Specify (Add grant description) | C19: 0 | D19: 0 | E19: 0 | F19: 0 | G19: 0 | H19: 0 | I19: =G19-H19 -> 0 | J19: =IF(H19=0,"",I19/H19) ->  | K19: 0
A20: Other grant providers: | C20: =SUM(C21:C22) -> 0 | D20: 0 | E20: 0 | F20: 0 | G20: 0 | H20: 0 | I20: =G20-H20 -> 0 | J20: =IF(H20=0,"",I20/H20) ->  | K20: =SUM(K21:K22) -> 0
A21: Library Donations | C21: 0 | D21: 0 | E21: 0 | F21: 0 | G21: 0 | H21: 0 | I21: =G21-H21 -> 0 | J21: =IF(H21=0,"",I21/H21) ->  | K21: 0
A22: Local Government Water and Related Service SETA | C22: 0 | D22: 0 | E22: 0 | F22: 0 | G22: 0 | H22: 0 | I22: =G22-H22 -> 0 | J22: =IF(H22=0,"",I22/H22) ->  | K22: 0
A23: Total Operating Transfers and Grants | B23: 5 | C23: =C8+C15+C18+C20 -> 283498760.8 | D23: 310408898 | E23: 310408898 | F23: 24999.99 | G23: 118141268.9 | H23: 77602218 | I23: 40539050.88 | J23: 0.5223955181 | K23: =K8+K15+K18+K20 -> 310408898
A25: Capital Transfers and Grants
A26: =A8 -> National Government: | C26: =SUM(C27:C28) -> 50792084.59 | D26: 61628000 | E26: 61628000 | F26: 95344.26 | G26: 5461067.74 | H26: 15406998 | I26: =G26-H26 -> -9945930.26 | J26: =IF(H26=0,"",I26/H26) -> -0.645546281 | K26: =SUM(K27:K28) -> 61628000
A27: Municipal Disaster Relief Grant | C27: 5617401.01 | D27: 0 | E27: 0 | F27: 0 | G27: 0 | H27: 0 | I27: =G27-H27 -> 0 | J27: =IF(H27=0,"",I27/H27) ->  | K27: 0
A28: Municipal Infrastructure Grant | C28: 45174683.58 | D28: 61628000 | E28: 61628000 | F28: 95344.26 | G28: 5461067.74 | H28: 15406998 | I28: =G28-H28 -> -9945930.26 | J28: =IF(H28=0,"",I28/H28) -> -0.645546281 | K28: 61628000
A29: =A15 -> Provincial Government: | C29: =SUM(C30:C30) -> 0 | D29: 0 | E29: 0 | F29: 0 | G29: 0 | H29: 0 | I29: =G29-H29 -> 0 | J29: =IF(H29=0,"",I29/H29) ->  | K29: =SUM(K30:K30) -> 0
A30: Infrastructure Grant | C30: 0 | D30: 0 | E30: 0 | F30: 0 | G30: 0 | H30: 0 | I30: =G30-H30 -> 0 | J30: =IF(H30=0,"",I30/H30) ->  | K30: 0
A31: =A18 -> District Municipality: | C31: =SUM(C32:C32) -> 0 | D31: 0 | E31: 0 | F31: 0 | G31: 0 | H31: 0 | I31: =G31-H31 -> 0 | J31: =IF(I31=0,"",I31/H31) ->  | K31: =SUM(K32:K32) -> 0
A32: [insert description] | I32: 0
A33: =A20 -> Other grant providers: | C33: =SUM(C34:C34) -> 0 | D33: 0 | E33: 0 | F33: 0 | G33: 0 | H33: 0 | I33: 0 | K33: =SUM(K34:K34) -> 0
A34: [insert description] | I34: 0 | J34: =IF(I34=0,"",I34/H34) -> 
A35: Total Capital Transfers and Grants | B35: 5 | C35: =C26+C29+C31+C33 -> 50792084.59 | D35: 61628000 | E35: 61628000 | F35: 95344.26 | G35: 5461067.74 | H35: 15406998 | I35: -9945930.26 | J35: -0.645546281 | K35: =K26+K29+K31+K33 -> 61628000
A37: TOTAL RECEIPTS OF TRANSFERS & GRANTS | B37: 5 | C37: =C23+C35 -> 334290845.4 | D37: 372036898 | E37: 372036898 | F37: 120344.25 | G37: 123602336.6 | H37: 93009216 | I37: 30593120.62 | J37: 0.3289256908 | K37: =K23+K35 -> 372036898
A38: =head27a -> References
A39: 1. Each grant is listed by name as gazetted together with the name of the transferring department or municipality, donor or other organisation
A40: 2. Grant expenditure must be separately listed for each grant received
A41: 3. Replacement of RSC levies
A42: 4. Housing subsidies for housing where ownership transferred
A43: 5. Total recurrent/capital grants and subsidies must reconcile to the 'Financial Performance' Statement

Sheet SC7(1)
A1: =muni& " - "&S71M& " - "&Head57 -> LIM355 Lepelle-Nkumpi - Supporting Table SC7(1) Monthly Budget Statement - transfers and grant expenditure - M03 September
A2: =desc -> Description | B2: =head27 -> Ref | C2: =Head1 -> 2021/22 | D2: =Head2 -> Budget Year 2022/23
C3: =Head5 -> Audited Outcome | D3: =Head6 -> Original Budget | E3: =Head7 -> Adjusted Budget | F3: =Head38 -> Monthly actual | G3: =Head39 -> YearTD actual | H3: =Head40 -> YearTD budget | I3: =Head41 -> YTD variance | J3: =Head41 -> YTD variance | K3: =Head8 -> Full Year Forecast
A4: R thousands | J4: %
A5: EXPENDITURE
A7: Operating expenditure of Transfers and Grants
A8: ='SC6'!A8 -> National Government: | C8: =SUM(C9:C14) -> 284261166.3 | D8: 312840402 | E8: 312840402 | F8: 20506606.43 | G8: 59149285.39 | H8: 78210792 | I8: -19061506.61 | J8: =IF(I8=0,"",I8/H8) -> -0.2437196469 | K8: =SUM(K9:K14) -> 312840402
I9: =G9-H9 -> 0
A10: Equitable Share | C10: 278925489.9 | D10: 301329002 | E10: 301329002 | F10: 20386012.19 | G10: 58308575.53 | H10: 75332925 | I10: =G10-H10 -> -17024349.47 | J10: =IF(H10=0,"",I10/H10) -> -0.2259881648 | K10: 301329002
A11: Expanded Public Works Programme Integrated Grant | C11: 1935475 | D11: 1380000 | E11: 1380000 | F11: 0 | G11: 0 | H11: 345000 | I11: =G11-H11 -> -345000 | J11: =IF(H11=0,"",I11/H11) -> -1 | K11: 1380000
A12: Integrated National Electrification Programme Grant | C12: -216048 | D12: 5000000 | E12: 5000000 | F12: 0 | G12: 0 | H12: 1250001 | I12: =G12-H12 -> -1250001 | J12: =IF(H12=0,"",I12/H12) -> -1 | K12: 5000000
A13: Local Government Financial Management Grant | C13: 1575206.88 | D13: 2000000 | E13: 2000000 | F13: 25249.98 | G13: 560223.01 | H13: 500007 | I13: =G13-H13 -> 60216.01 | J13: =IF(H13=0,"",I13/H13) -> 0.120430334 | K13: 2000000
A14: Municipal Infrastructure Grant | C14: 2041042.46 | D14: 3131400 | E14: 3131400 | F14: 95344.26 | G14: 280486.85 | H14: 782859 | I14: =G14-H14 -> -502372.15 | J14: =IF(H14=0,"",I14/H14) -> -0.6417147277 | K14: 3131400
A15: ='SC6'!A15 -> Provincial Government: | C15: =SUM(C16:C17) -> 0 | D15: 699898 | E15: 699898 | F15: 0 | G15: 0 | H15: 174981 | I15: -174981 | J15: -1 | K15: =SUM(K16:K17) -> 699898
I16: =G16-H16 -> 0
A17: Capacity Building and Other Grants | C17: 0 | D17: 699898 | E17: 699898 | F17: 0 | G17: 0 | H17: 174981 | I17: =G17-H17 -> -174981 | J17: =IF(H17=0,"",I17/H17) -> -1 | K17: 699898
A18: ='SC6'!A18 -> District Municipality: | C18: =SUM(C19:C19) -> 0 | D18: 0 | E18: 0 | F18: 0 | G18: 0 | H18: 0 | I18: 0 | K18: =SUM(K19:K19) -> 0
I19: 0
A20: Specify (Add grant description) | C20: 0 | D20: 0 | E20: 0 | F20: 0 | G20: 0 | H20: 0 | I20: =G20-H20 -> 0 | J20: =IF(H20=0,"",I20/H20) ->  | K20: 0
A21: ='SC6'!A20 -> Other grant providers: | C21: =SUM(C22:C22) -> 0 | D21: 0 | E21: 0 | F21: 0 | G21: 0 | H21: 0 | I21: 0 | K21: =SUM(K22:K22) -> 0
I22: 0
A23: Total operating expenditure of Transfers and Grants: | C23: =C8+C15+C18+C21 -> 284261166.3 | D23: 313540300 | E23: 313540300 | F23: 20506606.43 | G23: 59149285.39 | H23: 78385773 | I23: -19236487.61 | J23: -0.2454078958 | K23: =K8+K15+K18+K21 -> 313540300
A25: Capital expenditure of Transfers and Grants
A26: ='SC6'!A26 -> National Government: | C26: =SUM(C27:C28) -> 42548887.74 | D26: 58546601 | E26: 58546601 | F26: 0 | G26: 4457700.99 | H26: 14636658 | I26: -10178957.01 | J26: =IF(I26=0,"",I26/H26) -> -0.6954427035 | K26: =SUM(K27:K28) -> 58546601
A27: Municipal Disaster Relief Grant | C27: 4884696.53 | D27: 0 | E27: 0 | F27: 0 | G27: 0 | H27: 0 | I27: =G27-H27 -> 0 | J27: =IF(H27=0,"",I27/H27) ->  | K27: 0
A28: Municipal Infrastructure Grant | C28: 37664191.21 | D28: 58546601 | E28: 58546601 | F28: 0 | G28: 4457700.99 | H28: 14636658 | I28: =G28-H28 -> -10178957.01 | J28: =IF(H28=0,"",I28/H28) -> -0.6954427035 | K28: 58546601
A29: ='SC6'!A29 -> Provincial Government: | C29: =SUM(C30:C30) -> 0 | D29: 0 | E29: 0 | F29: 0 | G29: 0 | H29: 0 | I29: =G29-H29 -> 0 | K29: =SUM(K30:K30) -> 0
A30: Infrastructure Grant | C30: 0 | D30: 0 | E30: 0 | F30: 0 | G30: 0 | H30: 0 | I30: =G30-H30 -> 0 | J30: =IF(H30=0,"",I30/H30) ->  | K30: 0
A31: ='SC6'!A31 -> District Municipality: | C31: =SUM(C32:C32) -> 0 | D31: 0 | E31: 0 | F31: 0 | G31: 0 | H31: 0 | I31: 0 | K31: =SUM(K32:K32) -> 0
I32: 0
A33: ='SC6'!A33 -> Other grant providers: | C33: =SUM(C34:C34) -> 0 | D33: 0 | E33: 0 | F33: 0 | G33: 0 | H33: 0 | I33: 0 | K33: =SUM(K34:K34) -> 0
I34: 0
A35: Total capital expenditure of Transfers and Grants | C35: =C26+C29+C31+C33 -> 42548887.74 | D35: 58546601 | E35: 58546601 | F35: 0 | G35: 4457700.99 | H35: 14636658 | I35: -10178957.01 | J35: =IF(I35=0,"",I35/H35) -> -0.6954427035 | K35: =K26+K29+K31+K33 -> 58546601
A37: TOTAL EXPENDITURE OF TRANSFERS AND GRANTS | C37: =C23+C35 -> 326810054 | D37: 372086901 | E37: 372086901 | F37: 20506606.43 | G37: 63606986.38 | H37: 93022431 | I37: -29415444.62 | J37: =IF(I37=0,"",I37/H37) -> -0.3162188335 | K37: =K23+K35 -> 372086901
A38: =head27a -> References

Sheet SC7(2)
A1: =muni& " - "&S71T& " - "&Head57 -> LIM355 Lepelle-Nkumpi - Supporting Table SC7(2) Monthly Budget Statement - Expenditure against approved rollovers - M03 September
A2: =desc -> Description | B2: =head27 -> Ref | C2: =Head2 -> Budget Year 2022/23
C3: ="Approved Rollover " &Head1 -> Approved Rollover 2021/22 | D3: =Head38 -> Monthly actual | E3: =Head39 -> YearTD actual | F3: =Head41 -> YTD variance | G3: =Head41 -> YTD variance
A4: R thousands | G4: %
A5: EXPENDITURE
A7: Operating expenditure of Approved Roll-overs
A8: ='SC6'!A8 -> National Government: | C8: =SUM(C9:C9) -> 0 | D8: =SUM(D9:D9) -> 0 | E8: =SUM(E9:E9) -> 0 | F8: =SUM(F9:F9) -> 0 | G8: =IF(F8=0,"",F8/C8) -> 
F9: =E9-C9 -> 0 | G9: =IF(F9=0,"",F9/C9) -> 
A10: ='SC6'!A15 -> Provincial Government: | C10: =SUM(C11:C11) -> 0 | D10: =SUM(D11:D11) -> 0 | E10: =SUM(E11:E11) -> 0 | F10: =SUM(F11:F11) -> 0
F11: =C11-E11 -> 0
A12: ='SC6'!A18 -> District Municipality: | C12: =SUM(C13:C13) -> 0 | D12: =SUM(D13:D13) -> 0 | E12: =SUM(E13:E13) -> 0 | F12: =SUM(F13:F13) -> 0
F13: =C13-E13 -> 0
A14: ='SC6'!A20 -> Other grant providers: | C14: =SUM(C15:C15) -> 0 | D14: =SUM(D15:D15) -> 0 | E14: =SUM(E15:E15) -> 0 | F14: =SUM(F15:F15) -> 0
F15: =C15-E15 -> 0
A16: Total operating expenditure of Approved Roll-overs | C16: =C8+C10+C12+C14 -> 0 | D16: =D8+D10+D12+D14 -> 0 | E16: =E8+E10+E12+E14 -> 0 | F16: =F8+F10+F12+F14 -> 0
A18: Capital expenditure of Approved Roll-overs
A19: ='SC6'!A26 -> National Government: | C19: =SUM(C20:C20) -> 0 | D19: =SUM(D20:D20) -> 0 | E19: =SUM(E20:E20) -> 0 | F19: =SUM(F20:F20) -> 0
F20: =C20-E20 -> 0
A21: ='SC6'!A29 -> Provincial Government: | C21: =SUM(C22:C22) -> 0 | D21: =SUM(D22:D22) -> 0 | E21: =SUM(E22:E22) -> 0 | F21: =SUM(F22:F22) -> 0
F22: =C22-E22 -> 0
A23: ='SC6'!A31 -> District Municipality: | C23: =SUM(C24:C24) -> 0 | D23: =SUM(D24:D24) -> 0 | E23: =SUM(E24:E24) -> 0 | F23: =SUM(F24:F24) -> 0
F24: =C24-E24 -> 0
A25: ='SC6'!A33 -> Other grant providers: | C25: =SUM(C26:C26) -> 0 | D25: =SUM(D26:D26) -> 0 | E25: =SUM(E26:E26) -> 0 | F25: =SUM(F26:F26) -> 0
F26: =C26-E26 -> 0
A27: Total capital expenditure of Approved Roll-overs | C27: =C19+C21+C23+C25 -> 0 | D27: =D19+D21+D23+D25 -> 0 | E27: =E19+E21+E23+E25 -> 0 | F27: =F19+F21+F23+F25 -> 0
A29: TOTAL EXPENDITURE OF APPROVED ROLL-OVERS | C29: =C16+C27 -> 0 | D29: =D16+D27 -> 0 | E29: =E16+E27 -> 0 | F29: =F16+F27 -> 0
A30: =head27a -> References

Sheet SC8
A1: =muni& " - "&S71N& " - "&Head57 -> LIM355 Lepelle-Nkumpi - Supporting Table SC8 Monthly Budget Statement - councillor and staff benefits - M03 September
A2: Summary of Employee and Councillor remuneration | B2: =head27 -> Ref | C2: =Head1 -> 2021/22 | D2: =Head2 -> Budget Year 2022/23
C3: =Head5 -> Audited Outcome | D3: =Head6 -> Original Budget | E3: =Head7 -> Adjusted Budget | F3: =Head38 -> Monthly actual | G3: =Head39 -> YearTD actual | H3: =Head40 -> YearTD budget | I3: =Head41 -> YTD variance | J3: =Head41 -> YTD variance | K3: =Head8 -> Full Year Forecast
A4: R thousands | J4: %
B5: 1 | C5: A | D5: B | E5: C | K5: D
A6: Councillors (Political Office Bearers plus Other)
A7: Basic Salaries and Wages | C7: 17621125.45 | D7: 17534980 | E7: 17534980 | F7: 1471768.18 | G7: 4846595.33 | H7: 4383747 | I7: =G7-H7 -> 462848.33 | J7: =IF(I7=0,"",I7/H7) -> 0.1055828108 | K7: 17534980
A8: Pension and UIF Contributions | C8: 0 | D8: 0 | E8: 0 | F8: 0 | G8: 0 | H8: 0 | I8: 0 | K8: 0
A9: Medical Aid Contributions | C9: 0 | D9: 0 | E9: 0 | F9: 0 | G9: 0 | H9: 0 | I9: 0 | K9: 0
A10: Motor Vehicle Allowance | C10: 0 | D10: 0 | E10: 0 | F10: 0 | G10: 0 | H10: 0 | I10: =G10-H10 -> 0 | J10: =IF(I10=0,"",I10/H10) ->  | K10: 0
A11: Cellphone Allowance | C11: 2665681.34 | D11: 2664000 | E11: 2664000 | F11: 204000 | G11: 630000 | H11: 666000 | I11: =G11-H11 -> -36000 | J11: =IF(I11=0,"",I11/H11) -> -0.05405405405 | K11: 2664000
A12: Housing Allowances | C12: 0 | D12: 0 | E12: 0 | F12: 0 | G12: 0 | H12: 0 | I12: =G12-H12 -> 0 | J12: =IF(I12=0,"",I12/H12) ->  | K12: 0
A13: Other benefits and allowances | C13: 2120122.08 | D13: 2195193 | E13: 2195193 | F13: 188420.76 | G13: 606386.45 | H13: 548802 | I13: 57584.45 | J13: 0.1049275513 | K13: 2195193
A14: Sub Total - Councillors | C14: =SUM(C7:C13) -> 22406928.87 | D14: 22394173 | E14: 22394173 | F14: 1864188.94 | G14: 6082981.78 | H14: 5598549 | I14: 484432.78 | J14: 0.08652827367 | K14: 22394173
A15: % increase | B15: 4 | D15: =IF(D14=0,"",(D14/C14)-1) -> -0.0005692823891 | E15: =IF(E14=0,"",(E14/C14)-1) -> -0.0005692823891 | K15: =IF(K14=0,"",(K14/C14)-1) -> -0.0005692823891
A17: Senior Managers of the Municipality | B17: 3
A18: Basic Salaries and Wages | C18: 2656762.14 | D18: 7131808 | E18: 7131808 | F18: 176643.8 | G18: 638014.74 | H18: 1782963 | I18: =G18-H18 -> -1144948.26 | J18: =IF(I18=0,"",I18/H18) -> -0.642160415 | K18: 7131808
A19: Pension and UIF Contributions | C19: 0 | D19: 0 | E19: 0 | F19: 0 | G19: 0 | H19: 0 | I19: 0 | K19: 0
A20: Medical Aid Contributions | C20: 0 | D20: 0 | E20: 0 | F20: 0 | G20: 0 | H20: 0 | I20: 0 | K20: 0
A21: Overtime | C21: 0 | D21: 0 | E21: 0 | F21: 0 | G21: 0 | H21: 0 | I21: 0 | K21: 0
A22: Performance Bonus | C22: 0 | D22: 0 | E22: 0 | F22: 0 | G22: 0 | H22: 0 | I22: =G22-H22 -> 0 | J22: =IF(I22=0,"",I22/H22) ->  | K22: 0
A23: Motor Vehicle Allowance | C23: 0 | D23: 0 | E23: 0 | F23: 0 | G23: 0 | H23: 0 | I23: =G23-H23 -> 0 | J23: =IF(I23=0,"",I23/H23) ->  | K23: 0
A24: Cellphone Allowance | C24: 58000 | D24: 288000 | E24: 288000 | F24: 6000 | G24: 22000 | H24: 72000 | I24: =G24-H24 -> -50000 | J24: =IF(I24=0,"",I24/H24) -> -0.6944444444 | K24: 288000
A25: Housing Allowances | C25: 0 | D25: 0 | E25: 0 | F25: 0 | G25: 0 | H25: 0 | I25: =G25-H25 -> 0 | J25: =IF(I25=0,"",I25/H25) ->  | K25: 0
A26: Other benefits and allowances | C26: 0 | D26: 0 | E26: 0 | F26: 0 | G26: 0 | H26: 0 | I26: 0 | K26: 0
A27: Payments in lieu of leave | C27: 0 | D27: 0 | E27: 0 | F27: 0 | G27: 0 | H27: 0 | I27: 0 | K27: 0
A28: Long service awards | C28: 0 | D28: 0 | E28: 0 | F28: 0 | G28: 0 | H28: 0 | I28: 0 | K28: 0
A29: Post-retirement benefit obligations | B29: 2 | I29: 0
A30: Sub Total - Senior Managers of Municipality | C30: =SUM(C18:C29) -> 2714762.14 | D30: 7419808 | E30: 7419808 | F30: =SUM(F18:F29) -> 182643.8 | G30: =SUM(G18:G29) -> 660014.74 | H30: =SUM(H18:H29) -> 1854963 | I30: -1194948.26 | J30: =IF(I30=0,"",I30/H30) -> -0.6441898086 | K30: 7419808
A31: % increase | B31: 4 | D31: =IF(D30=0,"",(D30/C30)-1) -> 1.73313374 | E31: =IF(E30=0,"",(E30/C30)-1) -> 1.73313374 | K31: =IF(K30=0,"",(K30/C30)-1) -> 1.73313374
A33: Other Municipal Staff
A34: Basic Salaries and Wages | C34: 59579234.83 | D34: 80188886 | E34: 80188886 | F34: 5015843.43 | G34: 15111124.86 | H34: 20047299 | I34: =G34-H34 -> -4936174.14 | J34: =IF(I34=0,"",I34/H34) -> -0.2462263939 | K34: 80188886
A35: Pension and UIF Contributions | C35: 11950243.67 | D35: 15888336 | E35: 15888336 | F35: 1043691.58 | G35: 3149748.46 | H35: 3972159 | I35: -822410.54 | J35: -0.207043711 | K35: 15888336
A36: Medical Aid Contributions | C36: 3668811 | D36: 6219905 | E36: 6219905 | F36: 308483.52 | G36: 938238.96 | H36: 1554987 | I36: -616748.04 | J36: -0.3966258496 | K36: 6219905
A37: Overtime | C37: 1547336.7 | D37: 1626550 | E37: 1626550 | F37: 171978.34 | G37: 321198.73 | H37: 406644 | I37: -85445.27 | J37: -0.2101230314 | K37: 1626550
A38: Performance Bonus | C38: 4790495.43 | D38: 4930226 | E38: 4930226 | F38: 336646.11 | G38: 1312877.85 | H38: 1232601 | I38: 80276.85 | J38: 0.06512800979 | K38: 4930226
A39: Motor Vehicle Allowance | C39: 6911219.95 | D39: 9282719 | E39: 9282719 | F39: 624095.63 | G39: 1932208.95 | H39: 2320716 | I39: =G39-H39 -> -388507.05 | J39: =IF(I39=0,"",I39/H39) -> -0.1674082697 | K39: 9282719
A40: Cellphone Allowance | C40: 851410 | D40: 2391680 | E40: 2391680 | F40: 160635 | G40: 489135 | H40: 597924 | I40: =G40-H40 -> -108789 | J40: =IF(I40=0,"",I40/H40) -> -0.1819445281 | K40: 2391680
A41: Housing Allowances | C41: 252701.62 | D41: 265550 | E41: 265550 | F41: 23270.71 | G41: 69812.13 | H41: 66411 | I41: =G41-H41 -> 3401.13 | J41: =IF(I41=0,"",I41/H41) -> 0.05121335321 | K41: 265550
A42: Other benefits and allowances | C42: 2634791.04 | D42: 2602378 | E42: 2602378 | F42: 97396.26 | G42: 278048.16 | H42: 650640 | I42: -372591.84 | J42: -0.5726543711 | K42: 2602378
A43: Payments in lieu of leave | C43: -3097420.21 | D43: 3342859 | E43: 3342859 | F43: 93150.6 | G43: 195254.7 | H43: 835764 | I43: -640509.3 | J43: -0.7663757951 | K43: 3342859
A44: Long service awards | C44: 911744.26 | D44: 555319 | E44: 555319 | F44: 139563.7 | G44: 167382.8 | H44: 138858 | I44: 28524.8 | J44: 0.2054242464 | K44: 555319
A45: Post-retirement benefit obligations | B45: 2 | C45: 214718 | D45: 0 | E45: 0 | F45: 0 | G45: 0 | H45: 0 | I45: 0 | K45: 0
A46: Sub Total - Other Municipal Staff | C46: =SUM(C34:C45) -> 90215286.29 | D46: 127294408 | E46: 127294408 | F46: =SUM(F34:F45) -> 8014754.88 | G46: =SUM(G34:G45) -> 23965030.6 | H46: =SUM(H34:H45) -> 31824003 | I46: -7858972.4 | J46: =IF(I46=0,"",I46/H46) -> -0.2469510954 | K46: 127294408
A47: % increase | B47: 4 | D47: =IF(D46=0,"",(D46/C46)-1) -> 0.4110070836 | E47: =IF(E46=0,"",(E46/C46)-1) -> 0.4110070836 | K47: =IF(K46=0,"",(K46/C46)-1) -> 0.4110070836
A49: Total Parent Municipality | C49: =C14+C30+C46 -> 115336977.3 | D49: =D14+D30+D46 -> 157108389 | E49: 157108389 | F49: 10061587.62 | G49: 30708027.12 | H49: 39277515 | I49: =G49-H49 -> -8569487.88 | J49: =IF(I49=0,"",I49/H49) -> -0.2181779545 | K49: 157108389
D50: =IF(D49=0,"",(D49/C49)-1) -> 0.3621684275 | E50: =IF(E49=0,"",(E49/C49)-1) -> 0.3621684275 | K50: =IF(K49=0,"",(K49/C49)-1) -> 0.3621684275
A51: Unpaid salary, allowances & benefits in arrears:
A53: Board Members of Entities
A54: Basic Salaries and Wages | I54: =G54-H54 -> 0 | J54: =IF(I54=0,"",I54/H54) -> 
A55: Pension and UIF Contributions | I55: 0
A56: Medical Aid Contributions | I56: 0
A57: Overtime | I57: =G57-H57 -> 0 | J57: =IF(I57=0,"",I57/H57) -> 
A58: Performance Bonus | I58: =G58-H58 -> 0 | J58: =IF(I58=0,"",I58/H58) -> 
A59: Motor Vehicle Allowance | I59: =G59-H59 -> 0 | J59: =IF(I59=0,"",I59/H59) -> 
A60: Cellphone Allowance | I60: =G60-H60 -> 0 | J60: =IF(I60=0,"",I60/H60) -> 
A61: Housing Allowances | I61: =G61-H61 -> 0 | J61: =IF(I61=0,"",I61/H61) -> 
A62: Other benefits and allowances | I62: 0
A63: Board Fees | I63: =G63-H63 -> 0 | J63: =IF(I63=0,"",I63/H63) -> 
A64: Payments in lieu of leave | I64: 0
A65: Long service awards | I65: 0
A66: Post-retirement benefit obligations | I66: 0
A67: Sub Total - Board Members of Entities | B67: 2 | C67: =SUM(C54:C66) -> 0 | D67: 0 | E67: 0 | F67: =SUM(F54:F66) -> 0 | G67: =SUM(G54:G66) -> 0 | H67: =SUM(H54:H66) -> 0 | I67: 0 | J67: =IF(I67=0,"",I67/H67) ->  | K67: 0
A68: % increase | B68: 4 | D68: =IF(D67=0,"",(D67/C67)-1) ->  | E68: =IF(E67=0,"",(E67/C67)-1) ->  | K68: =IF(K67=0,"",(K67/C67)-1) -> 
A70: Senior Managers of Entities
A71: Basic Salaries and Wages | I71: =G71-H71 -> 0 | J71: =IF(I71=0,"",I71/H71) -> 
A72: Pension and UIF Contributions | I72: 0
A73: Medical Aid Contributions | I73: 0
A74: Overtime | I74: 0
A75: Performance Bonus | I75: =G75-H75 -> 0 | J75: =IF(I75=0,"",I75/H75) -> 
A76: Motor Vehicle Allowance | I76: =G76-H76 -> 0 | J76: =IF(I76=0,"",I76/H76) -> 
A77: Cellphone Allowance | I77: =G77-H77 -> 0 | J77: =IF(I77=0,"",I77/H77) -> 
A78: Housing Allowances | I78: =G78-H78 -> 0 | J78: =IF(I78=0,"",I78/H78) -> 
A79: Other benefits and allowances | I79: 0
A80: Payments in lieu of leave | I80: 0
A81: Long service awards | I81: 0
A82: Post-retirement benefit obligations | B82: 2 | I82: 0
A83: Sub Total - Senior Managers of Entities | C83: =SUM(C71:C82) -> 0 | D83: 0 | E83: 0 | F83: =SUM(F71:F82) -> 0 | G83: =SUM(G71:G82) -> 0 | H83: =SUM(H71:H82) -> 0 | I83: 0 | J83: =IF(I83=0,"",I83/H83) ->  | K83: 0
A84: % increase | B84: 4 | D84: =IF(D83=0,"",(D83/C83)-1) ->  | E84: =IF(E83=0,"",(E83/C83)-1) ->  | K84: =IF(K83=0,"",(K83/C83)-1) -> 
A86: Other Staff of Entities
A87: Basic Salaries and Wages | I87: =G87-H87 -> 0 | J87: =IF(I87=0,"",I87/H87) -> 
A88: Pension and UIF Contributions | I88: 0
A89: Medical Aid Contributions | I89: =G89-H89 -> 0 | J89: =IF(I89=0,"",I89/H89) -> 
A90: Overtime | I90: =G90-H90 -> 0 | J90: =IF(I90=0,"",I90/H90) -> 
A91: Performance Bonus | I91: =G91-H91 -> 0 | J91: =IF(I91=0,"",I91/H91) -> 
A92: Motor Vehicle Allowance | I92: =G92-H92 -> 0 | J92: =IF(I92=0,"",I92/H92) -> 
A93: Cellphone Allowance | I93: 0
A94: Housing Allowances | I94: 0
A95: Other benefits and allowances | I95: 0
A96: Payments in lieu of leave | I96: 0
A97: Long service awards | I97: 0
A98: Post-retirement benefit obligations | I98: 0
A99: Sub Total - Other Staff of Entities | C99: =SUM(C87:C98) -> 0 | D99: 0 | E99: 0 | F99: 0 | G99: 0 | H99: 0 | I99: 0 | J99: =IF(I99=0,"",I99/H99) ->  | K99: =SUM(K87:K98) -> 0
A100: % increase | B100: 4 | D100: =IF(D99=0,"",(D99/C99)-1) ->  | E100: =IF(E99=0,"",(E99/C99)-1) ->  | K100: =IF(K99=0,"",(K99/C99)-1) -> 
A102: Total Municipal Entities | C102: =C67+C83+C99 -> 0 | D102: 0 | E102: 0 | F102: 0 | G102: 0 | H102: 0 | I102: =G102-H102 -> 0 | J102: =IF(I102=0,"",I102/H102) ->  | K102: =K67+K83+K99 -> 0
A104: TOTAL SALARY, ALLOWANCES & BENEFITS | C104: =C49+C102 -> 115336977.3 | D104: 157108389 | E104: 157108389 | F104: 10061587.62 | G104: 30708027.12 | H104: 39277515 | I104: =G104-H104 -> -8569487.88 | J104: =IF(I104=0,"",I104/H104) -> -0.2181779545 | K104: =K49+K102 -> 157108389
A105: % increase | B105: 4 | D105: =IF(D104=0,"",(D104/C104)-1) -> 0.3621684275 | E105: =IF(E104=0,"",(E104/C104)-1) -> 0.3621684275 | K105: =IF(K104=0,"",(K104/C104)-1) -> 0.3621684275
A106: TOTAL MANAGERS AND STAFF | C106: =C30+C46+C83+C99 -> 92930048.43 | D106: 134714216 | E106: 134714216 | F106: 8197398.68 | G106: 24625045.34 | H106: 33678966 | I106: -9053920.66 | J106: =IF(I106=0,"",I106/H106) -> -0.2688301256 | K106: =K30+K46+K83+K99 -> 134714216
A107: =head27a -> References
A108: 1. Include 'Loans and advances' where applicable if any reportable amounts until phased compliance with s164 of MFMA achieved
A109: 2. If benefits in kind are provided (e.g. provision of living quarters) the full market value must be shown as the cost to the municipality
A110: 3. s57 of the Systems Act
A111: 4. B/A, C/A, D/A
A112: Column Definitions:
A113: A. Audited actual 2005/06 (audited financial statements). If audited amounts unavailable, unaudited amounts must be provided with a note stating these are unaudited
A114: B. The original budget approved by council for the 2006/07 budget year.
A115: C. The budget for 2006/07 budget year as adjusted by council resolution in terms of section 28 of the MFMA.
A116: D. An estimate of final actual amounts (pre audit - 2006/07 budget year) at the time of preparing the budget for the 2007/08 budget year. This may differ from C.

Sheet SC9
A1: =muni& " - "&S71O& " - "&Head57 -> LIM355 Lepelle-Nkumpi - Supporting Table SC9 Monthly Budget Statement - actuals and revised targets for cash receipts - M03 September
A2: =desc -> Description | B2: =head27 -> Ref | C2: =Head2 -> Budget Year 2022/23 | O2: ='Template names'!B5 -> 2022/23 Medium Term Revenue & Expenditure Framework
C3: July | D3: August | E3: Sept | F3: October | G3: Nov | H3: Dec | I3: January | J3: Feb | K3: March | L3: April | M3: May | N3: June | O3: =Head9 -> Budget Year 2022/23 | P3: =Head10 -> Budget Year +1 2023/24 | Q3: =Head11 -> Budget Year +2 2024/25
A4: R thousands | B4: 1 | C4: Outcome | D4: Outcome | E4: Outcome | F4: Budget | G4: Budget | H4: Budget | I4: Budget | J4: Budget | K4: Budget | L4: Budget | M4: Budget | N4: Budget
A5: Cash Receipts By Source
A6: Property rates | C6: 802498.36 | D6: 1126247.82 | E6: 0 | F6: 1091294.25 | G6: 1091294.25 | H6: 1091294.25 | I6: 1091294.25 | J6: 1091294.25 | K6: 1091294.25 | L6: 1091294.25 | M6: 1091294.25 | N6: =O6-SUM(C6:M6) -> 2436430.82 | O6: 13095531 | P6: 13671734 | Q6: 14286963
A7: Service charges - electricity revenue | N7: 0
A8: Service charges - water revenue | C8: 2140305.14 | D8: 2786443.97 | E8: 0 | F8: 3756969.67 | G8: 3756969.67 | H8: 3756969.67 | I8: 3756969.67 | J8: 3756969.67 | K8: 3756969.67 | L8: 3756969.67 | M8: 3756969.67 | N8: 10101129.53 | O8: 45083636 | P8: 47067316 | Q8: 49185345
A9: Service charges - sanitation revenue | C9: 114342.52 | D9: 175593.22 | E9: 0 | F9: 113932.67 | G9: 113932.67 | H9: 113932.67 | I9: 113932.67 | J9: 113932.67 | K9: 113932.67 | L9: 113932.67 | M9: 113932.67 | N9: 165794.9 | O9: 1367192 | P9: 1427348 | Q9: 1491579
A10: Service charges - refuse | C10: 214315.52 | D10: 226239.72 | E10: 0 | F10: 243845.58 | G10: 243845.58 | H10: 243845.58 | I10: 243845.58 | J10: 243845.58 | K10: 243845.58 | L10: 243845.58 | M10: 243845.58 | N10: 534827.12 | O10: 2926147 | P10: 3054898 | Q10: 3192368
A12: Rental of facilities and equipment | C12: 30836.79 | D12: 25880.27 | E12: 0 | F12: 27833.83 | G12: 27833.83 | H12: 27833.83 | I12: 27833.83 | J12: 27833.83 | K12: 27833.83 | L12: 27833.83 | M12: 27833.83 | N12: 54618.3 | O12: 334006 | P12: 348703 | Q12: 364394
A13: Interest earned - external investments | C13: 787502.88 | D13: 589567.32 | E13: 0 | F13: 349018.16 | G13: 349018.16 | H13: 349018.16 | I13: 349018.16 | J13: 349018.16 | K13: 349018.16 | L13: 349018.16 | M13: 349018.16 | N13: 19002.52 | O13: 4188218 | P13: 4372499 | Q13: 4569261
A14: Interest earned - outstanding debtors | N14: 0
A15: Dividends received | C15: 0 | D15: 0 | E15: 0 | F15: 0 | G15: 0 | H15: 0 | I15: 0 | J15: 0 | K15: 0 | L15: 0 | M15: 0 | N15: 0 | O15: 0 | P15: 0 | Q15: 0
A16: Fines, penalties and forfeits | C16: 956.52 | D16: 0 | E16: 0 | F16: 775.5 | G16: 775.5 | H16: 775.5 | I16: 775.5 | J16: 775.5 | K16: 775.5 | L16: 775.5 | M16: 775.5 | N16: 2145.48 | O16: 9306 | P16: 9715 | Q16: 10153
A17: Licences and permits | C17: 0 | D17: 249 | E17: 0 | F17: 530.58 | G17: 530.58 | H17: 530.58 | I17: 530.58 | J17: 530.58 | K17: 530.58 | L17: 530.58 | M17: 530.58 | N17: 1873.36 | O17: 6367 | P17: 6647 | Q17: 6946
A18: Agency services | C18: 1840084.62 | D18: 1030563.25 | E18: 0 | F18: 3384624.83 | G18: 3384624.83 | H18: 3384624.83 | I18: 3384624.83 | J18: 3384624.83 | K18: 3384624.83 | L18: 3384624.83 | M18: 3384624.83 | N18: 10667851.49 | O18: 40615498 | P18: 42402580 | Q18: 44310696
A19: Transfers and Subsidies - Operational | C19: 0 | D19: 2345000 | E19: 0 | F19: 473620.25 | G19: 473620.25 | H19: 473620.25 | I19: 473620.25 | J19: 473620.25 | K19: 473620.25 | L19: 473620.25 | M19: 473620.25 | N19: -450519 | O19: 5683443 | P19: 9000000 | Q19: 9404000
A20: Other revenue | C20: 21939089.01 | D20: 25980998.69 | E20: 0 | F20: 42475001 | G20: 42475001 | H20: 42475001 | I20: 42475001 | J20: 42475001 | K20: 42475001 | L20: 42475001 | M20: 42475001 | N20: 121979916.3 | O20: 509700012 | P20: 529059959 | Q20: 552878956
A21: Cash Receipts by Source | C21: =SUM(C6:C10)+SUM(C12:C20) -> 27869931.36 | D21: =SUM(D6:D10)+SUM(D12:D20) -> 34286783.26 | E21: 0 | F21: 51917446.32 | G21: 51917446.32 | H21: 51917446.32 | I21: 51917446.32 | J21: 51917446.32 | K21: 51917446.32 | L21: 51917446.32 | M21: 51917446.32 | N21: 145513070.8 | O21: 623009356 | P21: 650421399 | Q21: 679700661
N22: =O22-SUM(C22:M22) -> 0
A23: Other Cash Flows by Source | N23: 0
A24: ='C4-FinPerf RE'!A39 -> Transfers and subsidies - capital (monetary allocations) (National / Provincial and District) | C24: 12574000 | D24: 0 | E24: 0 | F24: 5135666.67 | G24: 5135666.67 | H24: 5135666.67 | I24: 5135666.67 | J24: 5135666.67 | K24: 5135666.67 | L24: 5135666.67 | M24: 5135666.67 | N24: 7968666.64 | O24: 61628000 | P24: 64340000 | Q24: 67225000
A25: ='C4-FinPerf RE'!A40 -> Transfers and subsidies - capital (monetary allocations) (National / Provincial Departmental Agencies, Households, Non-profit Institutions, Private Enterprises, Public Corporatons, Higher Educational Institutions) | N25: 0
A26: Proceeds on Disposal of Fixed and Intangible Assets | N26: 0
A27: Short term loans | N27: 0
A28: Borrowing long term/refinancing | N28: 0
A29: Increase (decrease) in consumer deposits | N29: 0
A31: Decrease (increase) in non-current receivables | C31: 0 | D31: 0 | E31: 0 | F31: 0 | G31: 0 | H31: 0 | I31: 0 | J31: 0 | K31: 0 | L31: 0 | M31: 0 | N31: 0 | O31: 0 | P31: 0 | Q31: 0
A32: Decrease (increase) in non-current investments | C32: 0 | D32: 0 | E32: 0 | F32: 0 | G32: 0 | H32: 0 | I32: 0 | J32: 0 | K32: 0 | L32: 0 | M32: 0 | N32: 150000000 | O32: 150000000 | P32: 0 | Q32: 0
A33: Total Cash Receipts by Source | C33: =SUM(C21:C29)+SUM(C31:C32) -> 40443931.36 | D33: =SUM(D21:D29)+SUM(D31:D32) -> 34286783.26 | E33: 0 | F33: 57053112.99 | G33: 57053112.99 | H33: 57053112.99 | I33: 57053112.99 | J33: 57053112.99 | K33: 57053112.99 | L33: 57053112.99 | M33: 57053112.99 | N33: 303481737.5 | O33: 834637356 | P33: 714761399 | Q33: 746925661
N34: =O34-SUM(C34:M34) -> 0
A35: Cash Payments by Type | N35: 0
A36: Employee related costs | C36: -10964634.51 | D36: -11482620.37 | E36: 0 | F36: 12790010.42 | G36: 12790010.42 | H36: 12790010.42 | I36: 12790010.42 | J36: 12790010.42 | K36: 12790010.42 | L36: 12790010.42 | M36: 12790010.42 | N36: 73607296.52 | O36: 153480125 | P36: 160233247 | Q36: 167443746
A37: Remuneration of councillors | N37: 0
A38: Interest paid | N38: 0
A39: Bulk purchases - Electricity | N39: 0
A40: Acquisitions - water & other inventory | N40: 0
A42: Contracted services | N42: 0
A43: Grants and subsidies paid - other municipalities | N43: 0
A44: Grants and subsidies paid - other | N44: 0
A45: General expenses | C45: -72744095.38 | D45: 52653896.81 | E45: 0 | F45: 30546104.33 | G45: 30546104.33 | H45: 30546104.33 | I45: 30546104.33 | J45: 30546104.33 | K45: 30546104.33 | L45: 30546104.33 | M45: 30546104.33 | N45: 142274615.9 | O45: 366553252 | P45: 371576147 | Q45: 393421994
A46: Cash Payments by Type | B46: =SUM(B36:B45) -> 0 | C46: =SUM(C36:C45) -> -83708729.89 | D46: =SUM(D36:D45) -> 41171276.44 | E46: 0 | F46: 43336114.75 | G46: 43336114.75 | H46: 43336114.75 | I46: 43336114.75 | J46: 43336114.75 | K46: 43336114.75 | L46: 43336114.75 | M46: 43336114.75 | N46: 215881912.4 | O46: 520033377 | P46: 531809394 | Q46: 560865740
N47: =O47-SUM(C47:M47) -> 0
A48: Other Cash Flows/Payments by Type
A49: Capital assets | C49: 0 | D49: 4457700.99 | E49: 0 | F49: 15944178.02 | G49: 15944178.02 | H49: 15944178.02 | I49: 15944178.02 | J49: 15944178.02 | K49: 15944178.02 | L49: 15944178.02 | M49: 15944178.02 | N49: =O49-SUM(C49:M49) -> 59319010.85 | O49: 191330136 | P49: 220008750 | Q49: 217802935
A50: Repayment of borrowing | N50: =O50-SUM(C50:M50) -> 0
A51: Other Cash Flows/Payments | C51: 0 | D51: 0 | E51: 0 | F51: 0 | G51: 0 | H51: 0 | I51: 0 | J51: 0 | K51: 0 | L51: 0 | M51: 0 | N51: =O51-SUM(C51:M51) -> 0 | O51: 0 | P51: 0 | Q51: 0
A52: Total Cash Payments by Type | B52: =SUM(B46:B51) -> 0 | C52: -83708729.89 | D52: 45628977.43 | E52: 0 | F52: 59280292.77 | G52: 59280292.77 | H52: 59280292.77 | I52: 59280292.77 | J52: 59280292.77 | K52: 59280292.77 | L52: 59280292.77 | M52: 59280292.77 | N52: 275200923.3 | O52: 711363513 | P52: 751818144 | Q52: 778668675
N53: =O53-SUM(C53:M53) -> 0
A54: NET INCREASE/(DECREASE) IN CASH HELD | B54: =B33-B52 -> 0 | C54: 124152661.2 | D54: -11342194.17 | E54: 0 | F54: -2227179.78 | G54: -2227179.78 | H54: -2227179.78 | I54: -2227179.78 | J54: -2227179.78 | K54: -2227179.78 | L54: -2227179.78 | M54: -2227179.78 | N54: 28280814.16 | O54: 123273843 | P54: -37056745 | Q54: -31743014
A55: Cash/cash equivalents at the month/year beginning: | C55: 404426541.7 | D55: =C56 -> 528579202.9 | E55: =D56 -> 517237008.8 | F55: 517237008.8 | G55: 515009829 | H55: 512782649.2 | I55: 510555469.4 | J55: 508328289.7 | K55: 506101109.9 | L55: 503873930.1 | M55: 501646750.3 | N55: 499419570.5 | O55: =C55 -> 404426541.7 | P55: =O56 -> 527700384.7 | Q55: =P56 -> 490643639.7
A56: Cash/cash equivalents at the month/year end: | C56: =C54+C55 -> 528579202.9 | D56: =D54+D55 -> 517237008.8 | E56: =E54+E55 -> 517237008.8 | F56: 515009829 | G56: 512782649.2 | H56: 510555469.4 | I56: 508328289.7 | J56: 506101109.9 | K56: 503873930.1 | L56: 501646750.3 | M56: 499419570.5 | N56: 527700384.7 | O56: =O54+O55 -> 527700384.7 | P56: =P54+P55 -> 490643639.7 | Q56: =Q54+Q55 -> 458900625.7
A57: =head27a -> References
A58: 1. Replace 'budget' heading with adjusted budget, or 'outcome' only for month/s complete
A59: 2. Total of monthly amounts must always agree to the approved or adjusted budget
A60: 3. Amend 'cash-at-beginning' when prior year actual known (as part of the adjustments budget)
E65: =E46+E64 -> 0 | F65: 43336114.75 | G65: 43336114.75 | H65: 43336114.75 | I65: 43336114.75 | J65: 43336114.75 | K65: 43336114.75 | L65: 43336114.75 | N65: =N46+N64 -> 215881912.4 | O65: 520033377 | P65: 531809394
E66: =E54-E64 -> 0 | F66: -2227179.78 | G66: -2227179.78 | H66: -2227179.78 | I66: -2227179.78 | J66: -2227179.78 | K66: -2227179.78 | L66: -2227179.78 | M66: =M54-M64 -> -2227179.78 | N66: =N54-N64 -> 28280814.16 | O66: 123273843 | P66: -37056745

Sheet SC10
A1: =muni& " - "&S71P& " - "&Head57 -> LIM355 Lepelle-Nkumpi - NOT REQUIRED - municipality does not have entities or this is the parent municipality's budget - M03 September
A2: =desc -> Description | B2: =head27 -> Ref | C2: =Head1 -> 2021/22 | D2: =Head2 -> Budget Year 2022/23
C3: =Head5 -> Audited Outcome | D3: =Head6 -> Original Budget | E3: =Head7 -> Adjusted Budget | F3: =Head38 -> Monthly actual | G3: =Head39 -> YearTD actual | H3: =Head40 -> YearTD budget | I3: =Head41 -> YTD variance | J3: =Head41 -> YTD variance | K3: =Head8 -> Full Year Forecast
A4: R thousands | B4: 1 | J4: %
A5: ='C4-FinPerf RE'!A5 -> Revenue By Source
A6: ='C4-FinPerf RE'!A6 -> Property rates | I6: =G6-H6 -> 0 | J6: =IF(I6=0,"",I6/H6) -> 
A7: ='C4-FinPerf RE'!A7 -> Service charges - electricity revenue | I7: 0 | J7: =IF(I7=0,"",I7/H7) -> 
A8: ='C4-FinPerf RE'!A8 -> Service charges - water revenue | I8: 0
A9: ='C4-FinPerf RE'!A9 -> Service charges - sanitation revenue | I9: 0
A10: ='C4-FinPerf RE'!A10 -> Service charges - refuse revenue | I10: 0
A12: ='C4-FinPerf RE'!A12 -> Rental of facilities and equipment | I12: 0
A13: ='C4-FinPerf RE'!A13 -> Interest earned - external investments | I13: 0
A14: ='C4-FinPerf RE'!A14 -> Interest earned - outstanding debtors | I14: 0
A15: ='C4-FinPerf RE'!A15 -> Dividends received | I15: 0
A16: ='C4-FinPerf RE'!A16 -> Fines, penalties and forfeits | I16: 0
A17: ='C4-FinPerf RE'!A17 -> Licences and permits | I17: 0
A18: ='C4-FinPerf RE'!A18 -> Agency services | I18: 0
A19: ='C4-FinPerf RE'!A19 -> Transfers and subsidies | I19: 0
A20: ='C4-FinPerf RE'!A20 -> Other revenue | I20: 0
A21: ='C4-FinPerf RE'!A21 -> Gains | I21: 0
A22: Total Revenue (excluding capital transfers and contributions) | C22: =SUM(C6:C10)+SUM(C12:C21) -> 0 | D22: 0 | E22: 0 | F22: 0 | G22: 0 | H22: 0 | I22: =G22-H22 -> 0 | K22: =SUM(K6:K10)+SUM(K12:K21) -> 0
A24: Expenditure By Type
A25: ='C4-FinPerf RE'!A25 -> Employee related costs | I25: =G25-H25 -> 0 | J25: =IF(I25=0,"",I25/H25) -> 
A26: ='C4-FinPerf RE'!A26 -> Remuneration of councillors | I26: 0
A27: ='C4-FinPerf RE'!A27 -> Debt impairment | I27: 0
A28: ='C4-FinPerf RE'!A28 -> Depreciation & asset impairment | I28: 0
A29: ='C4-FinPerf RE'!A29 -> Finance charges | I29: 0
A30: ='C4-FinPerf RE'!A30 -> Bulk purchases - electricity | I30: 0
A31: ='C4-FinPerf RE'!A31 -> Inventory consumed | I31: 0
A32: ='C4-FinPerf RE'!A32 -> Contracted services | I32: 0
A33: ='C4-FinPerf RE'!A33 -> Transfers and subsidies | I33: 0
A34: ='C4-FinPerf RE'!A34 -> Other expenditure | I34: 0
A35: ='C4-FinPerf RE'!A35 -> Losses | I35: 0
A36: Total Expenditure | C36: =SUM(C25:C35) -> 0 | D36: 0 | E36: 0 | F36: 0 | G36: 0 | H36: 0 | I36: 0 | K36: =SUM(K25:K35) -> 0
I37: 0
A38: ='C4-FinPerf RE'!A38 -> Surplus/(Deficit) | C38: =C22-C36 -> 0 | D38: 0 | E38: 0 | F38: 0 | G38: 0 | H38: 0 | I38: 0 | K38: =K22-K36 -> 0
A39: ='C4-FinPerf RE'!A39 -> Transfers and subsidies - capital (monetary allocations) (National / Provincial and District) | I39: 0
A40: ='C4-FinPerf RE'!A40 -> Transfers and subsidies - capital (monetary allocations) (National / Provincial Departmental Agencies, Households, Non-profit Institutions, Private Enterprises, Public Corporatons, Higher Educational Institutions) | I40: 0
A41: ='C4-FinPerf RE'!A41 -> Transfers and subsidies - capital (in-kind - all) | I41: 0
A42: ='C4-FinPerf RE'!A42 -> Surplus/(Deficit) after capital transfers & contributions | C42: =C38+SUM(C39:C41) -> 0 | D42: =D38+SUM(D39:D41) -> 0 | E42: 0 | F42: 0 | G42: 0 | H42: 0 | I42: 0 | K42: 0
A43: ='C4-FinPerf RE'!A43 -> Taxation | I43: 0
A44: ='C4-FinPerf RE'!A44 -> Surplus/(Deficit) after taxation | C44: =C42-C43 -> 0 | D44: 0 | E44: 0 | F44: 0 | G44: 0 | H44: 0 | I44: 0 | K44: =K42-K43 -> 0
A45: =head27a -> References
A46: 1. Votes (consolidated) are revenue sources and expenditure type

Sheet SC11
A1: =muni& " - "&S71Q& " - "&Head57 -> LIM355 Lepelle-Nkumpi - NOT REQUIRED - municipality does not have entities or this is the parent municipality's budget - M03 September
A2: =desc -> Description | B2: =head27 -> Ref | C2: =Head1 -> 2021/22 | D2: =Head2 -> Budget Year 2022/23
C3: =Head5 -> Audited Outcome | D3: =Head6 -> Original Budget | E3: =Head7 -> Adjusted Budget | F3: =Head38 -> Monthly actual | G3: =Head39 -> YearTD actual | H3: =Head40 -> YearTD budget | I3: =Head41 -> YTD variance | J3: =Head41 -> YTD variance | K3: =Head8 -> Full Year Forecast
A4: R thousands | J4: %
A5: Revenue By Municipal Entity
A6: Insert name of municipal entity | I6: =G6-H6 -> 0 | J6: =IF(I6=0,"",I6/H6) -> 
I7: 0 | J7: =IF(I7=0,"",I7/H7) -> 
I8: 0
I9: 0
I10: 0
I11: 0
I12: 0
I13: 0
I14: 0
I15: 0
A16: Total Operating Revenue | B16: 1 | C16: =SUM(C6:C15) -> 0 | D16: 0 | E16: 0 | F16: 0 | G16: 0 | H16: 0 | I16: 0 | K16: =SUM(K6:K15) -> 0
A18: Expenditure By Municipal Entity
A19: =A6 -> Insert name of municipal entity | I19: 0 | J19: =IF(I19=0,"",I19/H19) -> 
A20: =IF(A7="","",A7) ->  | I20: 0
A21: =IF(A8="","",A8) ->  | I21: 0
I22: 0
I23: 0
I24: 0
I25: 0
I26: 0
I27: 0
I28: 0
A29: Total Operating Expenditure | B29: 2 | C29: =SUM(C19:C28) -> 0 | D29: 0 | E29: 0 | F29: 0 | G29: 0 | H29: 0 | I29: 0 | K29: =SUM(K19:K28) -> 0
A31: =Head42 -> Surplus/ (Deficit) for the yr/period | C31: =C16-C29 -> 0 | D31: =D16-D29 -> 0 | E31: 0 | F31: 0 | G31: 0 | H31: 0 | I31: =I16+I29 -> 0 | K31: 0
A32: Capital Expenditure By Municipal Entity
A33: =$A$6 -> Insert name of municipal entity | I33: 0
A34: =IF(A7="","",A7) ->  | I34: 0
A35: =IF(A8="","",A8) ->  | I35: 0
I36: 0
I37: 0
I38: 0
I39: 0
I40: 0
I41: 0
A43: Total Capital Expenditure | B43: 3 | C43: =SUM(C32:C42) -> 0 | D43: =SUM(D32:D42) -> 0 | E43: 0 | F43: 0 | G43: 0 | H43: =SUM(H32:H42) -> 0 | I43: =G43-H43 -> 0 | K43: 0
A44: =head27a -> References
A45: 1. Must reconcile to the sum of all municipal entity monthly revenue reports
A46: 2. Must reconcile to the sum of all municipal entity monthly expenditure reports
A47: 3. YTD = Year to date; FAV - favourable variance or unfavourable variance
A48: 4. Material variances to be explained
A49: 5. Insert additional 'Adjustment' Budget column for each Adjustment made by an entity

Sheet SC12
A1: =muni& " - "&S71R& " - "&Head57 -> LIM355 Lepelle-Nkumpi - Supporting Table SC12 Monthly Budget Statement - capital expenditure trend - M03 September
A2: Month | B2: =Head1 -> 2021/22 | C2: =Head2 -> Budget Year 2022/23
B3: =Head5 -> Audited Outcome | C3: =Head6 -> Original Budget | D3: =Head7 -> Adjusted Budget | E3: =Head38 -> Monthly actual | F3: =Head39 -> YearTD actual | G3: =Head40 -> YearTD budget | H3: =Head41 -> YTD variance | I3: =Head41 -> YTD variance | J3: % spend of Original Budget
A4: R thousands | I4: %
A5: Monthly expenditure performance trend
A6: July | B6: 4725871.21 | C6: 15944178.02 | D6: 15944192 | E6: 0 | F6: =IF(E6>0,E6,"") ->  | G6: =IF(D6>0,D6,C6) -> 15944192 | H6: =IF(F6="",0,G6-F6) -> 0 | I6: =IF(F6="","",IF(H6=0,"",H6/G6)) ->  | J6: =IF(F6="","",F6/$C$18) -> 
A7: August | B7: 4725871.21 | C7: 15944178.02 | D7: 15944192 | E7: 4457700.99 | F7: =IF(E7>0,E7+F6,"") ->  | G7: =IF(D7>0,D7+D6,C7+C6) -> 31888384
A8: September | B8: 4725871.21 | C8: 15944178.02 | D8: 15944192 | E8: 0 | F8: =IF(E8>0,E8+F7,"") ->  | G8: =IF(D8>0,D8+G7,C8+G7) -> 47832576 | H8: 0
A9: October | B9: 4725871.21 | C9: 15944178.02 | D9: 15944192 | E9: 0 | G9: =IF(D9>0,D9+G8,C9+G8) -> 63776768 | H9: 0
A10: November | B10: 4725871.21 | C10: 15944178.02 | D10: 15944192 | E10: 0 | G10: 79720960 | H10: 0
A11: December | B11: 4725871.21 | C11: 15944178.02 | D11: 15944192 | E11: 0 | G11: 95665152 | H11: 0
A12: January | B12: 4725871.21 | C12: 15944178.02 | D12: 15944192 | E12: 0 | G12: 111609344 | H12: 0
A13: February | B13: 4725871.21 | C13: 15944178.02 | D13: 15944192 | E13: 0 | G13: 127553536 | H13: 0
A14: March | B14: 4725871.21 | C14: 15944178.02 | D14: 15944192 | E14: 0 | G14: 143497728 | H14: 0
A15: April | B15: 4725871.21 | C15: 15944178.02 | D15: 15944192 | E15: 0 | G15: 159441920 | H15: 0
A16: May | B16: 4725871.21 | C16: 15944178.02 | D16: 15944192 | E16: 0 | G16: 175386112 | H16: 0
A17: June | B17: 4725871.31 | C17: 15944177.78 | D17: 15944024 | E17: 0 | G17: 191330136 | H17: =IF(F17="",0,G17-F17) -> 0 | I17: =IF(F17="","",IF(H17=0,"",H17/G17)) ->  | J17: =IF(F17="","",F17/$C$18) -> 
A18: Total Capital expenditure | B18: =SUM(B6:B17) -> 56710454.62 | C18: =SUM(C6:C17) -> 191330136 | D18: =SUM(D6:D17) -> 191330136 | E18: =SUM(E6:E17) -> 4457700.99

Sheet SC13a
A1: =muni& " - "&S71Sa& " - "&Head57 -> LIM355 Lepelle-Nkumpi - Supporting Table SC13a Monthly Budget Statement - capital expenditure on new assets by asset class - M03 September
A2: =desc -> Description | B2: =head27 -> Ref | C2: =Head1 -> 2021/22 | D2: =Head2 -> Budget Year 2022/23
C3: =Head5 -> Audited Outcome | D3: =Head6 -> Original Budget | E3: =Head7 -> Adjusted Budget | F3: =Head38 -> Monthly actual | G3: =Head39 -> YearTD actual | H3: =Head40 -> YearTD budget | I3: =Head41 -> YTD variance | J3: =Head41 -> YTD variance | K3: =Head8 -> Full Year Forecast
A4: R thousands | B4: 1 | J4: %
A5: Capital expenditure on new assets by Asset Class/Sub-class
A7: Infrastructure | C7: =C8+C13+C17+C27+C38+C45+C53+C63+C69 -> 28792156.56 | D7: 83617135 | E7: 83617135 | F7: 0 | G7: 0 | H7: 20904297 | I7: =H7-G7 -> 20904297 | J7: =IF(I7=0,"",I7/H7) -> 1 | K7: =K8+K13+K17+K27+K38+K45+K53+K63+K69 -> 83617135
A8: Roads Infrastructure | C8: =SUM(C9:C12) -> 28792156.56 | D8: 73992135 | E8: 73992135 | F8: 0 | G8: 0 | H8: 18498045 | I8: 18498045 | J8: 1 | K8: =SUM(K9:K12) -> 73992135
A9: Roads | C9: 0 | D9: 0 | E9: 0 | F9: 0 | G9: 0 | H9: 0 | I9: 0 | K9: 0
A10: Road Structures | C10: 28792156.56 | D10: 73992135 | E10: 73992135 | F10: 0 | G10: 0 | H10: 18498045 | I10: 18498045 | J10: 1 | K10: 73992135
A11: Road Furniture | I11: 0
A12: Capital Spares | I12: 0
A13: Storm water Infrastructure | C13: =SUM(C14:C16) -> 0 | D13: 2400000 | E13: 2400000 | F13: 0 | G13: 0 | H13: 600000 | I13: 600000 | J13: 1 | K13: =SUM(K14:K16) -> 2400000
A14: Drainage Collection | I14: 0
A15: Storm water Conveyance | C15: 0 | D15: 2400000 | E15: 2400000 | F15: 0 | G15: 0 | H15: 600000 | I15: 600000 | J15: 1 | K15: 2400000
A16: Attenuation | I16: 0
A17: Electrical Infrastructure | C17: =SUM(C18:C26) -> 0 | D17: 5625000 | E17: 5625000 | F17: 0 | G17: 0 | H17: 1406250 | I17: 1406250 | J17: 1 | K17: =SUM(K18:K26) -> 5625000
A18: Power Plants | I18: 0
A19: HV Substations | I19: 0
A20: HV Switching Station | I20: 0
A21: HV Transmission Conductors | I21: 0
A22: MV Substations | I22: 0
A23: MV Switching Stations | I23: 0
A24: MV Networks | C24: 0 | D24: 4875000 | E24: 4875000 | F24: 0 | G24: 0 | H24: 1218750 | I24: 1218750 | J24: 1 | K24: 4875000
A25: LV Networks | C25: 0 | D25: 750000 | E25: 750000 | F25: 0 | G25: 0 | H25: 187500 | I25: 187500 | J25: 1 | K25: 750000
A26: Capital Spares | I26: 0
A27: Water Supply Infrastructure | C27: =SUM(C28:C37) -> 0 | D27: 0 | E27: 0 | F27: 0 | G27: 0 | H27: 0 | I27: 0 | K27: =SUM(K28:K37) -> 0
A28: Dams and Weirs | I28: 0
A29: Boreholes | I29: 0
A30: Reservoirs | I30: 0
A31: Pump Stations | I31: 0
A32: Water Treatment Works | C32: 0 | D32: 0 | E32: 0 | F32: 0 | G32: 0 | H32: 0 | I32: 0 | K32: 0
A33: Bulk Mains | I33: 0
A34: Distribution | I34: 0
A35: Distribution Points | I35: 0
A36: PRV Stations | I36: 0
A37: Capital Spares | C37: 0 | D37: 0 | E37: 0 | F37: 0 | G37: 0 | H37: 0 | I37: 0 | K37: 0
A38: Sanitation Infrastructure | C38: =SUM(C39:C44) -> 0 | D38: 0 | E38: 0 | F38: 0 | G38: 0 | H38: 0 | I38: 0 | K38: =SUM(K39:K44) -> 0
A39: Pump Station | I39: 0
A40: Reticulation | I40: =H40-G40 -> 0 | J40: =IF(I40=0,"",I40/H40) -> 
A41: Waste Water Treatment Works | I41: =H41-G41 -> 0 | J41: =IF(I41=0,"",I41/H41) -> 
A42: Outfall Sewers | I42: =H42-G42 -> 0 | J42: =IF(I42=0,"",I42/H42) -> 
A43: Toilet Facilities | I43: 0
A44: Capital Spares | I44: 0
A45: Solid Waste Infrastructure | C45: =SUM(C46:C52) -> 0 | D45: 1600000 | E45: 1600000 | F45: 0 | G45: 0 | H45: 400002 | I45: 400002 | J45: 1 | K45: =SUM(K46:K52) -> 1600000
A46: Landfill Sites | I46: 0
A47: Waste Transfer Stations | I47: 0
A48: Waste Processing Facilities | I48: =H48-G48 -> 0 | J48: =IF(I48=0,"",I48/H48) -> 
A49: Waste Drop-off Points | I49: 0
A50: Waste Separation Facilities | I50: 0
A51: Electricity Generation Facilities | I51: 0
A52: Capital Spares | C52: 0 | D52: 1600000 | E52: 1600000 | F52: 0 | G52: 0 | H52: 400002 | I52: 400002 | J52: 1 | K52: 1600000
A53: Rail Infrastructure | C53: =SUM(C54:C62) -> 0 | D53: 0 | E53: 0 | F53: 0 | G53: 0 | H53: 0 | I53: 0 | K53: =SUM(K54:K62) -> 0
A54: Rail Lines | I54: 0
A55: Rail Structures | I55: 0
A56: Rail Furniture | I56: 0
A57: Drainage Collection | I57: 0
A58: Storm water Conveyance | I58: 0
A59: Attenuation | I59: 0
A60: MV Substations | I60: 0
A61: LV Networks | I61: 0
A62: Capital Spares | I62: 0
A63: Coastal Infrastructure | C63: =SUM(C64:C68) -> 0 | D63: 0 | E63: 0 | F63: 0 | G63: 0 | H63: 0 | I63: 0 | K63: =SUM(K64:K68) -> 0
A64: Sand Pumps | I64: 0
A65: Piers | I65: 0
A66: Revetments | I66: 0
A67: Promenades | I67: 0
A68: Capital Spares | I68: 0
A69: Information and Communication Infrastructure | C69: =SUM(C70:C73) -> 0 | D69: 0 | E69: 0 | F69: 0 | G69: 0 | H69: 0 | I69: =H69-G69 -> 0 | K69: =SUM(K70:K73) -> 0
A70: Data Centres | I70: =H70-G70 -> 0
A71: Core Layers | I71: =H71-G71 -> 0 | J71: =IF(I71=0,"",I71/H71) -> 
A72: Distribution Layers | I72: =H72-G72 -> 0
A73: Capital Spares | I73: =H73-G73 -> 0
A75: Community Assets | C75: =+C76+C99 -> 7182390.37 | D75: 16000000 | E75: 16000000 | F75: 0 | G75: 0 | H75: 4000002 | I75: =H75-G75 -> 4000002 | J75: 1 | K75: =+K76+K99 -> 16000000
A76: Community Facilities | C76: =SUM(C77:C98) -> 0 | D76: 16000000 | E76: 16000000 | F76: 0 | G76: 0 | H76: 4000002 | I76: =H76-G76 -> 4000002 | J76: 1 | K76: =SUM(K77:K98) -> 16000000
A77: Halls | C77: 0 | D77: 2000000 | E77: 2000000 | F77: 0 | G77: 0 | H77: 500001 | I77: 500001 | J77: 1 | K77: 2000000
A78: Centres | C78: 0 | D78: 0 | E78: 0 | F78: 0 | G78: 0 | H78: 0 | I78: 0 | K78: 0
A79: Crèches | C79: 0 | D79: 0 | E79: 0 | F79: 0 | G79: 0 | H79: 0 | I79: 0 | K79: 0
A80: Clinics/Care Centres | I80: 0
A81: Fire/Ambulance Stations | I81: 0
A82: Testing Stations | C82: 0 | D82: 12000000 | E82: 12000000 | F82: 0 | G82: 0 | H82: 3000000 | I82: 3000000 | J82: 1 | K82: 12000000
A83: Museums | I83: 0
A84: Galleries | I84: 0
A85: Theatres | I85: 0
A86: Libraries | I86: 0
A87: Cemeteries/Crematoria | I87: 0
A88: Police | I88: 0
A89: Purls | I89: 0
A90: Public Open Space | I90: 0
A91: Nature Reserves | I91: 0
A92: Public Ablution Facilities | I92: 0
A93: Markets | I93: 0
A94: Stalls | C94: 0 | D94: 2000000 | E94: 2000000 | F94: 0 | G94: 0 | H94: 500001 | I94: 500001 | J94: 1 | K94: 2000000
A95: Abattoirs | I95: 0
A96: Airports | I96: 0
A97: Taxi Ranks/Bus Terminals | I97: 0
A98: Capital Spares | I98: 0
A99: Sport and Recreation Facilities | C99: =SUM(C100:C102) -> 7182390.37 | D99: 0 | E99: 0 | F99: 0 | G99: 0 | H99: 0 | I99: 0 | K99: =SUM(K100:K102) -> 0
A100: Indoor Facilities | C100: 0 | D100: 0 | E100: 0 | F100: 0 | G100: 0 | H100: 0 | I100: 0 | K100: 0
A101: Outdoor Facilities | C101: 7182390.37 | D101: 0 | E101: 0 | F101: 0 | G101: 0 | H101: 0 | I101: 0 | K101: 0
A102: Capital Spares | I102: 0
A103: Heritage assets | C103: =SUM(C104:C108) -> 0 | D103: 0 | E103: 0 | F103: 0 | G103: 0 | H103: 0 | I103: 0 | K103: =SUM(K104:K108) -> 0
A104: Monuments | I104: 0
A105: Historic Buildings | I105: 0
A106: Works of Art | I106: 0
A107: Conservation Areas | I107: 0
A108: Other Heritage | I108: 0
I109: 0
A110: Investment properties | C110: =+C111+C114 -> 5844448.54 | D110: 1500000 | E110: 1500000 | F110: 0 | G110: 0 | H110: 375003 | I110: 375003 | J110: 1 | K110: =+K111+K114 -> 1500000
A111: Revenue Generating | C111: =SUM(C112:C113) -> 0 | D111: 0 | E111: 0 | F111: 0 | G111: 0 | H111: 0 | I111: 0 | K111: =SUM(K112:K113) -> 0
A112: Improved Property | I112: 0
A113: Unimproved Property | I113: 0
A114: Non-revenue Generating | C114: =SUM(C115:C116) -> 5844448.54 | D114: 1500000 | E114: 1500000 | F114: 0 | G114: 0 | H114: 375003 | I114: 375003 | J114: 1 | K114: =SUM(K115:K116) -> 1500000
A115: Improved Property | I115: 0
A116: Unimproved Property | C116: 5844448.54 | D116: 1500000 | E116: 1500000 | F116: 0 | G116: 0 | H116: 375003 | I116: 375003 | J116: 1 | K116: 1500000
A117: Other assets | C117: =+C118+C130 -> 0 | D117: 950000 | E117: 950000 | F117: 0 | G117: 0 | H117: 237501 | I117: 237501 | J117: 1 | K117: =+K118+K130 -> 950000
A118: Operational Buildings | C118: =SUM(C119:C129) -> 0 | D118: 950000 | E118: 950000 | F118: 0 | G118: 0 | H118: 237501 | I118: 237501 | J118: 1 | K118: =SUM(K119:K129) -> 950000
A119: Municipal Offices | C119: 0 | D119: 950000 | E119: 950000 | F119: 0 | G119: 0 | H119: 237501 | I119: 237501 | J119: 1 | K119: 950000
A120: Pay/Enquiry Points | I120: 0
A121: Building Plan Offices | I121: 0
A122: Workshops | I122: 0
A123: Yards | I123: 0
A124: Stores | I124: 0
A125: Laboratories | I125: 0
A126: Training Centres | I126: 0
A127: Manufacturing Plant | I127: 0
A128: Depots | I128: 0
A129: Capital Spares | I129: 0
A130: Housing | C130: =SUM(C131:C133) -> 0 | D130: 0 | E130: 0 | F130: 0 | G130: 0 | H130: 0 | I130: 0 | K130: =SUM(K131:K133) -> 0
A131: Staff Housing | I131: 0
A132: Social Housing | I132: 0
A133: Capital Spares | I133: 0
A135: Biological or Cultivated Assets | C135: =SUM(C136:C136) -> 0 | D135: 0 | E135: 0 | F135: 0 | G135: 0 | H135: 0 | I135: =H135-G135 -> 0 | J135: =IF(I135=0,"",I135/H135) ->  | K135: =SUM(K136) -> 0
A136: Biological or Cultivated Assets | I136: =H136-G136 -> 0
A138: Intangible Assets | C138: =SUM(C139:C140) -> 0 | D138: 3500000 | E138: 3500000 | F138: 0 | G138: 0 | H138: 875001 | I138: =H138-G138 -> 875001 | J138: 1 | K138: =SUM(K139:K140) -> 3500000
A139: Servitudes | I139: 0
A140: Licences and Rights | C140: =SUM(C141:C146) -> 0 | D140: 3500000 | E140: 3500000 | F140: 0 | G140: 0 | H140: 875001 | I140: 875001 | J140: 1 | K140: =SUM(K141:K146) -> 3500000
A141: Water Rights | I141: 0
A142: Effluent Licenses | I142: 0
A143: Solid Waste Licenses | I143: 0
A144: Computer Software and Applications | C144: 0 | D144: 3500000 | E144: 3500000 | F144: 0 | G144: 0 | H144: 875001 | I144: 875001 | J144: 1 | K144: 3500000
A145: Load Settlement Software Applications | I145: 0
A146: Unspecified | I146: 0
A148: Computer Equipment | C148: =SUM(C149:C149) -> 819576 | D148: 2000000 | E148: 2000000 | F148: 0 | G148: 0 | H148: 500001 | I148: =H148-G148 -> 500001 | J148: =IF(I148=0,"",I148/H148) -> 1 | K148: =SUM(K149) -> 2000000
A149: Computer Equipment | C149: 819576 | D149: 2000000 | E149: 2000000 | F149: 0 | G149: 0 | H149: 500001 | I149: =H149-G149 -> 500001 | J149: =IF(I149=0,"",I149/H149) -> 1 | K149: 2000000
A151: Furniture and Office Equipment | C151: =SUM(C152:C152) -> 1303.48 | D151: 440000 | E151: 440000 | F151: 0 | G151: 0 | H151: 110001 | I151: =H151-G151 -> 110001 | J151: =IF(I151=0,"",I151/H151) -> 1 | K151: =SUM(K152) -> 440000
A152: Furniture and Office Equipment | C152: 1303.48 | D152: 440000 | E152: 440000 | F152: 0 | G152: 0 | H152: 110001 | I152: =H152-G152 -> 110001 | J152: =IF(I152=0,"",I152/H152) -> 1 | K152: 440000
J153: =IF(I153=0,"",I153/H153) -> 
A154: Machinery and Equipment | C154: =SUM(C155:C155) -> 384889 | D154: 16615000 | E154: 16615000 | F154: 0 | G154: 0 | H154: 4153755 | I154: =H154-G154 -> 4153755 | J154: =IF(I154=0,"",I154/H154) -> 1 | K154: =SUM(K155) -> 16615000
A155: Machinery and Equipment | C155: 384889 | D155: 16615000 | E155: 16615000 | F155: 0 | G155: 0 | H155: 4153755 | I155: =H155-G155 -> 4153755 | J155: =IF(I155=0,"",I155/H155) -> 1 | K155: 16615000
A157: Transport Assets | C157: =SUM(C158:C158) -> 0 | D157: 3200000 | E157: 3200000 | F157: 0 | G157: 0 | H157: 800001 | I157: =H157-G157 -> 800001 | J157: =IF(I157=0,"",I157/H157) -> 1 | K157: =SUM(K158) -> 3200000
A158: Transport Assets | C158: 0 | D158: 3200000 | E158: 3200000 | F158: 0 | G158: 0 | H158: 800001 | I158: =H158-G158 -> 800001 | J158: =IF(I158=0,"",I158/H158) -> 1 | K158: 3200000
A160: Land | C160: =SUM(C161:C161) -> 0 | D160: 0 | E160: 0 | F160: 0 | G160: 0 | H160: 0 | I160: =H160-G160 -> 0 | J160: =IF(I160=0,"",I160/H160) ->  | K160: =SUM(K161) -> 0
A161: Land | I161: =H161-G161 -> 0 | J161: =IF(I161=0,"",I161/H161) -> 
A163: Zoo's, Marine and Non-biological Animals | C163: =SUM(C164:C164) -> 0 | D163: 0 | E163: 0 | F163: 0 | G163: 0 | H163: 0 | I163: =H163-G163 -> 0 | J163: =IF(I163=0,"",I163/H163) ->  | K163: =SUM(K164) -> 0
A164: Zoo's, Marine and Non-biological Animals | I164: =H164-G164 -> 0 | J164: =IF(I164=0,"",I164/H164) -> 
J165: =IF(I165=0,"",I165/H165) -> 
A166: Total Capital Expenditure on new assets | B166: 1 | C166: =C7+C75+C103+C110+C117+C135+C138+C148+C151+C154+C157+C160+C163 -> 43024763.95 | D166: 127822135 | E166: 127822135 | F166: 0 | G166: 0 | H166: 31955562 | I166: =H166-G166 -> 31955562 | J166: =IF(I166=0,"",I166/H166) -> 1 | K166: =K7+K75+K103+K110+K117+K135+K138+K148+K151+K154+K157+K160+K163 -> 127822135
A168: =head27a -> References
A169: 1. Total Capital Expenditure on new assets (SC13a) plus Total Capital Expenditure on renewal of existing assets (SC13b) plus Total Capital Expenditure on upgrading of existing assets (SC13e) must reconcile to total capital expenditure in Table C5
A171: check balance | C171: =C166+SC13b!C166+SC13e!C166-'C5-Capex'!C40 -> 0 | D171: =D166+SC13b!D166+SC13e!D166-'C5-Capex'!D40 -> 0 | E171: =E166+SC13b!E166+SC13e!E166-'C5-Capex'!E40 -> 0 | F171: =F166+SC13b!F166+SC13e!F166-'C5-Capex'!F40 -> 0 | G171: =G166+SC13b!G166+SC13e!G166-'C5-Capex'!G40 -> 0 | H171: =H166+SC13b!H166+SC13e!H166-'C5-Capex'!H40 -> 0 | K171: =K166+SC13b!K166+SC13e!K166-'C5-Capex'!K40 -> 0

Sheet SC13b
A1: =muni& " - "&S71Sb& " - "&Head57 -> LIM355 Lepelle-Nkumpi - Supporting Table SC13b Monthly Budget Statement - capital expenditure on renewal of existing assets by asset class - M03 September
A2: =desc -> Description | B2: =head27 -> Ref | C2: =Head1 -> 2021/22 | D2: =Head2 -> Budget Year 2022/23
C3: =Head5 -> Audited Outcome | D3: =Head6 -> Original Budget | E3: =Head7 -> Adjusted Budget | F3: =Head38 -> Monthly actual | G3: =Head39 -> YearTD actual | H3: =Head40 -> YearTD budget | I3: =Head41 -> YTD variance | J3: =Head41 -> YTD variance | K3: =Head8 -> Full Year Forecast
A4: R thousands | B4: 1 | J4: %
A5: Capital expenditure on renewal of existing assets by Asset Class/Sub-class
A7: Infrastructure | C7: =C8+C13+C17+C27+C38+C45+C53+C63+C69 -> 8449743.78 | D7: 5875000 | E7: 5875000 | F7: 0 | G7: 0 | H7: 1468752 | I7: =H7-G7 -> 1468752 | J7: =IF(I7=0,"",I7/H7) -> 1 | K7: =K8+K13+K17+K27+K38+K45+K53+K63+K69 -> 5875000
A8: Roads Infrastructure | C8: =SUM(C9:C12) -> 8449743.78 | D8: 5500000 | E8: 5500000 | F8: 0 | G8: 0 | H8: 1375002 | I8: 1375002 | J8: 1 | K8: =SUM(K9:K12) -> 5500000
A9: Roads | C9: 0 | D9: 1000000 | E9: 1000000 | F9: 0 | G9: 0 | H9: 250002 | I9: 250002 | J9: 1 | K9: 1000000
A10: Road Structures | C10: 8449743.78 | D10: 4500000 | E10: 4500000 | F10: 0 | G10: 0 | H10: 1125000 | I10: 1125000 | J10: 1 | K10: 4500000
A11: Road Furniture | I11: 0
A12: Capital Spares | I12: 0
A13: Storm water Infrastructure | C13: =SUM(C14:C16) -> 0 | D13: 0 | E13: 0 | F13: 0 | G13: 0 | H13: 0 | I13: 0 | K13: =SUM(K14:K16) -> 0
A14: Drainage Collection | I14: 0
A15: Storm water Conveyance | I15: 0
A16: Attenuation | I16: 0
A17: Electrical Infrastructure | C17: =SUM(C18:C26) -> 0 | D17: 375000 | E17: 375000 | F17: 0 | G17: 0 | H17: 93750 | I17: 93750 | J17: 1 | K17: =SUM(K18:K26) -> 375000
A18: Power Plants | I18: 0
A19: HV Substations | I19: 0
A20: HV Switching Station | I20: 0
A21: HV Transmission Conductors | I21: 0
A22: MV Substations | I22: 0
A23: MV Switching Stations | I23: 0
A24: MV Networks | I24: 0
A25: LV Networks | C25: 0 | D25: 375000 | E25: 375000 | F25: 0 | G25: 0 | H25: 93750 | I25: 93750 | J25: 1 | K25: 375000
A26: Capital Spares | I26: 0
A27: Water Supply Infrastructure | C27: =SUM(C28:C37) -> 0 | D27: 0 | E27: 0 | F27: 0 | G27: 0 | H27: 0 | I27: 0 | K27: =SUM(K28:K37) -> 0
A28: Dams and Weirs | I28: 0
A29: Boreholes | I29: 0
A30: Reservoirs | I30: 0
A31: Pump Stations | I31: 0
A32: Water Treatment Works | I32: 0
A33: Bulk Mains | I33: 0
A34: Distribution | I34: 0
A35: Distribution Points | I35: 0
A36: PRV Stations | I36: 0
A37: Capital Spares | I37: 0
A38: Sanitation Infrastructure | C38: =SUM(C39:C44) -> 0 | D38: 0 | E38: 0 | F38: 0 | G38: 0 | H38: 0 | I38: 0 | K38: =SUM(K39:K44) -> 0
A39: Pump Station | I39: 0
A40: Reticulation | I40: 0
A41: Waste Water Treatment Works | C41: 0 | D41: 0 | E41: 0 | F41: 0 | G41: 0 | H41: 0 | I41: 0 | K41: 0
A42: Outfall Sewers | I42: 0
A43: Toilet Facilities | I43: 0
A44: Capital Spares | I44: 0
A45: Solid Waste Infrastructure | C45: =SUM(C46:C52) -> 0 | D45: 0 | E45: 0 | F45: 0 | G45: 0 | H45: 0 | I45: 0 | K45: =SUM(K46:K52) -> 0
A46: Landfill Sites | I46: 0
A47: Waste Transfer Stations | I47: 0
A48: Waste Processing Facilities | I48: 0
A49: Waste Drop-off Points | I49: 0
A50: Waste Separation Facilities | I50: 0
A51: Electricity Generation Facilities | I51: 0
A52: Capital Spares | I52: 0
A53: Rail Infrastructure | C53: =SUM(C54:C62) -> 0 | D53: 0 | E53: 0 | F53: 0 | G53: 0 | H53: 0 | I53: 0 | K53: =SUM(K54:K62) -> 0
A54: Rail Lines | I54: 0
A55: Rail Structures | I55: 0
A56: Rail Furniture | I56: 0
A57: Drainage Collection | I57: 0
A58: Storm water Conveyance | I58: 0
A59: Attenuation | I59: 0
A60: MV Substations | I60: 0
A61: LV Networks | I61: 0
A62: Capital Spares | I62: 0
A63: Coastal Infrastructure | C63: =SUM(C64:C68) -> 0 | D63: 0 | E63: 0 | F63: 0 | G63: 0 | H63: 0 | I63: 0 | K63: =SUM(K64:K68) -> 0
A64: Sand Pumps | I64: 0
A65: Piers | I65: 0
A66: Revetments | I66: 0
A67: Promenades | I67: 0
A68: Capital Spares | I68: 0
A69: Information and Communication Infrastructure | C69: =SUM(C70:C73) -> 0 | D69: 0 | E69: 0 | F69: 0 | G69: 0 | H69: 0 | I69: 0 | K69: =SUM(K70:K73) -> 0
A70: Data Centres | I70: 0
A71: Core Layers | I71: 0
A72: Distribution Layers | I72: 0
A73: Capital Spares | I73: 0
A75: Community Assets | C75: =+C76+C99 -> 3546302.61 | D75: 5000000 | E75: 5000000 | F75: 0 | G75: 0 | H75: 1250001 | I75: 1250001 | J75: 1 | K75: =+K76+K99 -> 5000000
A76: Community Facilities | C76: =SUM(C77:C98) -> 0 | D76: 0 | E76: 0 | F76: 0 | G76: 0 | H76: 0 | I76: 0 | K76: =SUM(K77:K98) -> 0
A77: Halls | C77: 0 | D77: 0 | E77: 0 | F77: 0 | G77: 0 | H77: 0 | I77: 0 | K77: 0
A78: Centres | I78: 0
A79: Crèches | I79: 0
A80: Clinics/Care Centres | I80: 0
A81: Fire/Ambulance Stations | I81: 0
A82: Testing Stations | I82: 0
A83: Museums | I83: 0
A84: Galleries | I84: 0
A85: Theatres | I85: 0
A86: Libraries | I86: 0
A87: Cemeteries/Crematoria | I87: 0
A88: Police | I88: 0
A89: Purls | I89: 0
A90: Public Open Space | I90: 0
A91: Nature Reserves | I91: 0
A92: Public Ablution Facilities | I92: 0
A93: Markets | I93: 0
A94: Stalls | I94: 0
A95: Abattoirs | I95: 0
A96: Airports | I96: 0
A97: Taxi Ranks/Bus Terminals | I97: 0
A98: Capital Spares | I98: 0
A99: Sport and Recreation Facilities | C99: =SUM(C100:C102) -> 3546302.61 | D99: 5000000 | E99: 5000000 | F99: 0 | G99: 0 | H99: 1250001 | I99: 1250001 | J99: 1 | K99: =SUM(K100:K102) -> 5000000
A100: Indoor Facilities | I100: 0
A101: Outdoor Facilities | C101: 3546302.61 | D101: 5000000 | E101: 5000000 | F101: 0 | G101: 0 | H101: 1250001 | I101: =H101-G101 -> 1250001 | J101: =IF(I101=0,"",I101/H101) -> 1 | K101: 5000000
A102: Capital Spares | I102: 0
A103: Heritage assets | C103: =SUM(C104:C108) -> 0 | D103: 0 | E103: 0 | F103: 0 | G103: 0 | H103: 0 | I103: 0 | K103: =SUM(K104:K108) -> 0
A104: Monuments | I104: 0
A105: Historic Buildings | I105: 0
A106: Works of Art | I106: 0
A107: Conservation Areas | I107: 0
A108: Other Heritage | I108: 0
I109: 0
A110: Investment properties | C110: =+C111+C114 -> 0 | D110: 0 | E110: 0 | F110: 0 | G110: 0 | H110: 0 | I110: 0 | K110: =+K111+K114 -> 0
A111: Revenue Generating | C111: =SUM(C112:C113) -> 0 | D111: 0 | E111: 0 | F111: 0 | G111: 0 | H111: 0 | I111: 0 | K111: =SUM(K112:K113) -> 0
A112: Improved Property | I112: 0
A113: Unimproved Property | I113: 0
A114: Non-revenue Generating | C114: =SUM(C115:C116) -> 0 | D114: 0 | E114: 0 | F114: 0 | G114: 0 | H114: 0 | I114: 0 | K114: =SUM(K115:K116) -> 0
A115: Improved Property | I115: 0
A116: Unimproved Property | I116: =H116-G116 -> 0 | J116: =IF(I116=0,"",I116/H116) -> 
A117: Other assets | C117: =+C118+C130 -> 0 | D117: 0 | E117: 0 | F117: 0 | G117: 0 | H117: 0 | I117: 0 | K117: =+K118+K130 -> 0
A118: Operational Buildings | C118: =SUM(C119:C129) -> 0 | D118: 0 | E118: 0 | F118: 0 | G118: 0 | H118: 0 | I118: 0 | K118: =SUM(K119:K129) -> 0
A119: Municipal Offices | I119: 0
A120: Pay/Enquiry Points | I120: 0
A121: Building Plan Offices | I121: 0
A122: Workshops | I122: 0
A123: Yards | I123: 0
A124: Stores | I124: 0
A125: Laboratories | I125: 0
A126: Training Centres | I126: 0
A127: Manufacturing Plant | I127: 0
A128: Depots | I128: 0
A129: Capital Spares | I129: 0
A130: Housing | C130: =SUM(C131:C133) -> 0 | D130: 0 | E130: 0 | F130: 0 | G130: 0 | H130: 0 | I130: 0 | K130: =SUM(K131:K133) -> 0
A131: Staff Housing | I131: 0
A132: Social Housing | I132: 0
A133: Capital Spares | I133: 0
A135: Biological or Cultivated Assets | C135: =SUM(C136:C136) -> 0 | D135: 0 | E135: 0 | F135: 0 | G135: 0 | H135: 0 | I135: =H135-G135 -> 0 | K135: =SUM(K136) -> 0
A136: Biological or Cultivated Assets | I136: =H136-G136 -> 0
J137: =IF(I137=0,"",I137/H137) -> 
A138: Intangible Assets | C138: =SUM(C139:C140) -> 0 | D138: 0 | E138: 0 | F138: 0 | G138: 0 | H138: 0 | I138: =H138-G138 -> 0 | K138: =SUM(K139:K140) -> 0
A139: Servitudes | I139: 0
A140: Licences and Rights | C140: =SUM(C141:C146) -> 0 | D140: 0 | E140: 0 | F140: 0 | G140: 0 | H140: 0 | I140: 0 | K140: =SUM(K141:K146) -> 0
A141: Water Rights | I141: 0
A142: Effluent Licenses | I142: 0
A143: Solid Waste Licenses | I143: 0
A144: Computer Software and Applications | I144: 0
A145: Load Settlement Software Applications | I145: 0
A146: Unspecified | I146: 0
A148: Computer Equipment | C148: =SUM(C149:C149) -> 0 | D148: 0 | E148: 0 | F148: 0 | G148: 0 | H148: 0 | I148: =H148-G148 -> 0 | J148: =IF(I148=0,"",I148/H148) ->  | K148: =SUM(K149) -> 0
A149: Computer Equipment | I149: =H149-G149 -> 0 | J149: =IF(I149=0,"",I149/H149) -> 
A151: Furniture and Office Equipment | C151: =SUM(C152:C152) -> 0 | D151: 300000 | E151: 300000 | F151: 0 | G151: 0 | H151: 75003 | I151: =H151-G151 -> 75003 | J151: =IF(I151=0,"",I151/H151) -> 1 | K151: =SUM(K152) -> 300000
A152: Furniture and Office Equipment | C152: 0 | D152: 300000 | E152: 300000 | F152: 0 | G152: 0 | H152: 75003 | I152: =H152-G152 -> 75003 | J152: =IF(I152=0,"",I152/H152) -> 1 | K152: 300000
J153: =IF(I153=0,"",I153/H153) -> 
A154: Machinery and Equipment | C154: =SUM(C155:C155) -> 0 | D154: 0 | E154: 0 | F154: 0 | G154: 0 | H154: 0 | I154: =H154-G154 -> 0 | J154: =IF(I154=0,"",I154/H154) ->  | K154: =SUM(K155) -> 0
A155: Machinery and Equipment | C155: 0 | D155: 0 | E155: 0 | F155: 0 | G155: 0 | H155: 0 | I155: =H155-G155 -> 0 | J155: =IF(I155=0,"",I155/H155) ->  | K155: 0
A157: Transport Assets | C157: =SUM(C158:C158) -> 0 | D157: 0 | E157: 0 | F157: 0 | G157: 0 | H157: 0 | I157: =H157-G157 -> 0 | J157: =IF(I157=0,"",I157/H157) ->  | K157: =SUM(K158) -> 0
A158: Transport Assets | I158: =H158-G158 -> 0 | J158: =IF(I158=0,"",I158/H158) -> 
A160: Land | C160: =SUM(C161:C161) -> 0 | D160: 0 | E160: 0 | F160: 0 | G160: 0 | H160: 0 | I160: =H160-G160 -> 0 | J160: =IF(I160=0,"",I160/H160) ->  | K160: =SUM(K161) -> 0
A161: Land | I161: =H161-G161 -> 0 | J161: =IF(I161=0,"",I161/H161) -> 
J162: .
A163: Zoo's, Marine and Non-biological Animals | C163: =SUM(C164:C164) -> 0 | D163: 0 | E163: 0 | F163: 0 | G163: 0 | H163: 0 | I163: =H163-G163 -> 0 | J163: =IF(I163=0,"",I163/H163) ->  | K163: =SUM(K164) -> 0
A164: Zoo's, Marine and Non-biological Animals | I164: =H164-G164 -> 0 | J164: =IF(I164=0,"",I164/H164) -> 
J165: =IF(I165=0,"",I165/H165) -> 
A166: Total Capital Expenditure on renewal of existing assets | B166: 1 | C166: =C7+C75+C103+C110+C117+C135+C138+C148+C151+C154+C157+C160+C163 -> 11996046.39 | D166: 11175000 | E166: 11175000 | F166: 0 | G166: 0 | H166: 2793756 | I166: =H166-G166 -> 2793756 | J166: =IF(I166=0,"",I166/H166) -> 1 | K166: =K7+K75+K103+K110+K117+K135+K138+K148+K151+K154+K157+K160+K163 -> 11175000
A168: =head27a -> References
A169: 1. Total Capital Expenditure on new assets (SC13a) plus Total Capital Expenditure on renewal of existing assets (SC13b) plus Total Capital Expenditure on upgrading of existing assets (SC13e) must reconcile to total capital expenditure in Table C5
A171: check balance | C171: =C166+SC13a!C166+SC13e!C166-'C5-Capex'!C40 -> 0 | D171: =D166+SC13a!D166+SC13e!D166-'C5-Capex'!D40 -> 0 | E171: =E166+SC13a!E166+SC13e!E166-'C5-Capex'!E40 -> 0 | F171: =F166+SC13a!F166+SC13e!F166-'C5-Capex'!F40 -> 0 | G171: =G166+SC13a!G166+SC13e!G166-'C5-Capex'!G40 -> 0 | H171: =H166+SC13a!H166+SC13e!H166-'C5-Capex'!H40 -> 0 | K171: =K166+SC13a!K166+SC13e!K166-'C5-Capex'!K40 -> 0

Sheet SC13c
A1: =muni& " - "&S71Sc& " - "&Head57 -> LIM355 Lepelle-Nkumpi - Supporting Table SC13c Monthly Budget Statement - expenditure on repairs and maintenance by asset class - M03 September
A2: =desc -> Description | B2: =head27 -> Ref | C2: =Head1 -> 2021/22 | D2: =Head2 -> Budget Year 2022/23
C3: =Head5 -> Audited Outcome | D3: =Head6 -> Original Budget | E3: =Head7 -> Adjusted Budget | F3: =Head38 -> Monthly actual | G3: =Head39 -> YearTD actual | H3: =Head40 -> YearTD budget | I3: =Head41 -> YTD variance | J3: =Head41 -> YTD variance | K3: =Head8 -> Full Year Forecast
A4: R thousands | B4: 1 | J4: %
A5: Repairs and maintenance expenditure by Asset Class/Sub-class
A7: Infrastructure | C7: =C8+C13+C17+C27+C38+C45+C53+C63+C69 -> 1690594.08 | D7: 10724039 | E7: 10724039 | F7: 162450 | G7: 472318.06 | H7: 2681016 | I7: =H7-G7 -> 2208697.94 | J7: =IF(I7=0,"",I7/H7) -> 0.8238287052 | K7: =K8+K13+K17+K27+K38+K45+K53+K63+K69 -> 10724039
A8: Roads Infrastructure | C8: =SUM(C9:C12) -> 1453792.56 | D8: 7624039 | E8: 7624039 | F8: 162450 | G8: 465340.62 | H8: 1906014 | I8: 1440673.38 | J8: 0.7558566621 | K8: =SUM(K9:K12) -> 7624039
A9: Roads | C9: 1451171.04 | D9: 7012904 | E9: 7012904 | F9: 162450 | G9: 465340.62 | H9: 1753227 | I9: 1287886.38 | J9: 0.7345805078 | K9: 7012904
A10: Road Structures | I10: 0
A11: Road Furniture | C11: 2621.52 | D11: 611135 | E11: 611135 | F11: 0 | G11: 0 | H11: 152787 | I11: 152787 | J11: 1 | K11: 611135
A12: Capital Spares | I12: 0
A13: Storm water Infrastructure | C13: =SUM(C14:C16) -> 0 | D13: 0 | E13: 0 | F13: 0 | G13: 0 | H13: 0 | I13: 0 | K13: =SUM(K14:K16) -> 0
A14: Drainage Collection | I14: 0
A15: Storm water Conveyance | I15: 0
A16: Attenuation | I16: 0
A17: Electrical Infrastructure | C17: =SUM(C18:C26) -> 236801.52 | D17: 3100000 | E17: 3100000 | F17: 0 | G17: 6977.44 | H17: 775002 | I17: 768024.56 | J17: 0.9909968748 | K17: =SUM(K18:K26) -> 3100000
A18: Power Plants | I18: 0
A19: HV Substations | I19: 0
A20: HV Switching Station | I20: 0
A21: HV Transmission Conductors | I21: 0
A22: MV Substations | I22: 0
A23: MV Switching Stations | I23: 0
A24: MV Networks | C24: 236801.52 | D24: 1300000 | E24: 1300000 | F24: 0 | G24: 6977.44 | H24: 325002 | I24: 318024.56 | J24: 0.978531086 | K24: 1300000
A25: LV Networks | I25: 0
A26: Capital Spares | C26: 0 | D26: 1800000 | E26: 1800000 | F26: 0 | G26: 0 | H26: 450000 | I26: 450000 | J26: 1 | K26: 1800000
A27: Water Supply Infrastructure | C27: =SUM(C28:C37) -> 0 | D27: 0 | E27: 0 | F27: 0 | G27: 0 | H27: 0 | I27: 0 | K27: =SUM(K28:K37) -> 0
A28: Dams and Weirs | I28: 0
A29: Boreholes | I29: 0
A30: Reservoirs | I30: 0
A31: Pump Stations | I31: 0
A32: Water Treatment Works | I32: 0
A33: Bulk Mains | I33: 0
A34: Distribution | I34: 0
A35: Distribution Points | I35: 0
A36: PRV Stations | I36: 0
A37: Capital Spares | I37: 0
A38: Sanitation Infrastructure | C38: =SUM(C39:C44) -> 0 | D38: 0 | E38: 0 | F38: 0 | G38: 0 | H38: 0 | I38: 0 | K38: =SUM(K39:K44) -> 0
A39: Pump Station | I39: 0
A40: Reticulation | I40: 0
A41: Waste Water Treatment Works | I41: 0
A42: Outfall Sewers | I42: 0
A43: Toilet Facilities | I43: 0
A44: Capital Spares | I44: 0
A45: Solid Waste Infrastructure | C45: =SUM(C46:C52) -> 0 | D45: 0 | E45: 0 | F45: 0 | G45: 0 | H45: 0 | I45: 0 | K45: =SUM(K46:K52) -> 0
A46: Landfill Sites | I46: 0
A47: Waste Transfer Stations | I47: 0
A48: Waste Processing Facilities | I48: 0
A49: Waste Drop-off Points | I49: 0
A50: Waste Separation Facilities | I50: 0
A51: Electricity Generation Facilities | I51: 0
A52: Capital Spares | I52: 0
A53: Rail Infrastructure | C53: =SUM(C54:C62) -> 0 | D53: 0 | E53: 0 | F53: 0 | G53: 0 | H53: 0 | I53: 0 | K53: =SUM(K54:K62) -> 0
A54: Rail Lines | I54: 0
A55: Rail Structures | I55: 0
A56: Rail Furniture | I56: 0
A57: Drainage Collection | I57: 0
A58: Storm water Conveyance | I58: 0
A59: Attenuation | I59: 0
A60: MV Substations | I60: 0
A61: LV Networks | I61: 0
A62: Capital Spares | I62: 0
A63: Coastal Infrastructure | C63: =SUM(C64:C68) -> 0 | D63: 0 | E63: 0 | F63: 0 | G63: 0 | H63: 0 | I63: 0 | K63: =SUM(K64:K68) -> 0
A64: Sand Pumps | I64: 0
A65: Piers | I65: 0
A66: Revetments | I66: 0
A67: Promenades | I67: 0
A68: Capital Spares | I68: 0
A69: Information and Communication Infrastructure | C69: =SUM(C70:C73) -> 0 | D69: 0 | E69: 0 | F69: 0 | G69: 0 | H69: 0 | I69: 0 | K69: =SUM(K70:K73) -> 0
A70: Data Centres | I70: 0
A71: Core Layers | I71: 0
A72: Distribution Layers | I72: 0
A73: Capital Spares | I73: 0
A75: Community Assets | C75: =+C76+C99 -> 0 | D75: 1000000 | E75: 1000000 | F75: 0 | G75: 0 | H75: 250002 | I75: 250002 | J75: 1 | K75: =+K76+K99 -> 1000000
A76: Community Facilities | C76: =SUM(C77:C98) -> 0 | D76: 1000000 | E76: 1000000 | F76: 0 | G76: 0 | H76: 250002 | I76: 250002 | J76: 1 | K76: =SUM(K77:K98) -> 1000000
A77: Halls | C77: 0 | D77: 0 | E77: 0 | F77: 0 | G77: 0 | H77: 0 | I77: 0 | K77: 0
A78: Centres | C78: 0 | D78: 1000000 | E78: 1000000 | F78: 0 | G78: 0 | H78: 250002 | I78: 250002 | J78: 1 | K78: 1000000
A79: Crèches | C79: 0 | D79: 0 | E79: 0 | F79: 0 | G79: 0 | H79: 0 | I79: 0 | K79: 0
A80: Clinics/Care Centres | I80: 0
A81: Fire/Ambulance Stations | I81: 0
A82: Testing Stations | I82: 0
A83: Museums | I83: 0
A84: Galleries | I84: 0
A85: Theatres | I85: 0
A86: Libraries | I86: 0
A87: Cemeteries/Crematoria | C87: 0 | D87: 0 | E87: 0 | F87: 0 | G87: 0 | H87: 0 | I87: 0 | K87: 0
A88: Police | I88: 0
A89: Purls | C89: 0 | D89: 0 | E89: 0 | F89: 0 | G89: 0 | H89: 0 | I89: 0 | K89: 0
A90: Public Open Space | I90: 0
A91: Nature Reserves | I91: 0
A92: Public Ablution Facilities | I92: 0
A93: Markets | I93: 0
A94: Stalls | I94: 0
A95: Abattoirs | I95: 0
A96: Airports | I96: 0
A97: Taxi Ranks/Bus Terminals | I97: 0
A98: Capital Spares | I98: 0
A99: Sport and Recreation Facilities | C99: =SUM(C100:C102) -> 0 | D99: 0 | E99: 0 | F99: 0 | G99: 0 | H99: 0 | I99: 0 | K99: =SUM(K100:K102) -> 0
A100: Indoor Facilities | I100: 0
A101: Outdoor Facilities | C101: 0 | D101: 0 | E101: 0 | F101: 0 | G101: 0 | H101: 0 | I101: =H101-G101 -> 0 | J101: =IF(I101=0,"",I101/H101) ->  | K101: 0
A102: Capital Spares | I102: 0
A103: Heritage assets | C103: =SUM(C104:C108) -> 0 | D103: 0 | E103: 0 | F103: 0 | G103: 0 | H103: 0 | I103: 0 | K103: =SUM(K104:K108) -> 0
A104: Monuments | I104: 0
A105: Historic Buildings | I105: 0
A106: Works of Art | I106: 0
A107: Conservation Areas | I107: 0
A108: Other Heritage | I108: 0
I109: 0
A110: Investment properties | C110: =+C111+C114 -> 0 | D110: 0 | E110: 0 | F110: 0 | G110: 0 | H110: 0 | I110: 0 | K110: =+K111+K114 -> 0
A111: Revenue Generating | C111: =SUM(C112:C113) -> 0 | D111: 0 | E111: 0 | F111: 0 | G111: 0 | H111: 0 | I111: 0 | K111: =SUM(K112:K113) -> 0
A112: Improved Property | I112: 0
A113: Unimproved Property | I113: 0
A114: Non-revenue Generating | C114: =SUM(C115:C116) -> 0 | D114: 0 | E114: 0 | F114: 0 | G114: 0 | H114: 0 | I114: 0 | K114: =SUM(K115:K116) -> 0
A115: Improved Property | I115: 0
A116: Unimproved Property | I116: =H116-G116 -> 0 | J116: =IF(I116=0,"",I116/H116) -> 
A117: Other assets | C117: =+C118+C130 -> 44517.06 | D117: 1000000 | E117: 1000000 | F117: 0 | G117: 90993.66 | H117: 250002 | I117: 159008.34 | J117: 0.6360282718 | K117: =+K118+K130 -> 1000000
A118: Operational Buildings | C118: =SUM(C119:C129) -> 44517.06 | D118: 1000000 | E118: 1000000 | F118: 0 | G118: 90993.66 | H118: 250002 | I118: 159008.34 | J118: 0.6360282718 | K118: =SUM(K119:K129) -> 1000000
A119: Municipal Offices | C119: 44517.06 | D119: 1000000 | E119: 1000000 | F119: 0 | G119: 90993.66 | H119: 250002 | I119: 159008.34 | J119: 0.6360282718 | K119: 1000000
A120: Pay/Enquiry Points | I120: 0
A121: Building Plan Offices | I121: 0
A122: Workshops | I122: 0
A123: Yards | I123: 0
A124: Stores | I124: 0
A125: Laboratories | I125: 0
A126: Training Centres | I126: 0
A127: Manufacturing Plant | I127: 0
A128: Depots | I128: 0
A129: Capital Spares | I129: 0
A130: Housing | C130: =SUM(C131:C133) -> 0 | D130: 0 | E130: 0 | F130: 0 | G130: 0 | H130: 0 | I130: 0 | K130: =SUM(K131:K133) -> 0
A131: Staff Housing | I131: 0
A132: Social Housing | I132: 0
A133: Capital Spares | I133: 0
A135: Biological or Cultivated Assets | C135: =SUM(C136:C136) -> 0 | D135: 0 | E135: 0 | F135: 0 | G135: 0 | H135: 0 | I135: =H135-G135 -> 0 | K135: =SUM(K136) -> 0
A136: Biological or Cultivated Assets | I136: =H136-G136 -> 0
A138: Intangible Assets | C138: =SUM(C139:C140) -> 0 | D138: 0 | E138: 0 | F138: 0 | G138: 0 | H138: 0 | I138: =H138-G138 -> 0 | K138: =SUM(K139:K140) -> 0
A139: Servitudes | I139: 0
A140: Licences and Rights | C140: =SUM(C141:C146) -> 0 | D140: 0 | E140: 0 | F140: 0 | G140: 0 | H140: 0 | I140: 0 | K140: =SUM(K141:K146) -> 0
A141: Water Rights | I141: 0
A142: Effluent Licenses | I142: 0
A143: Solid Waste Licenses | I143: 0
A144: Computer Software and Applications | C144: 0 | D144: 0 | E144: 0 | F144: 0 | G144: 0 | H144: 0 | I144: 0 | K144: 0
A145: Load Settlement Software Applications | I145: 0
A146: Unspecified | C146: 0 | D146: 0 | E146: 0 | F146: 0 | G146: 0 | H146: 0 | I146: 0 | K146: 0
A148: Computer Equipment | C148: =SUM(C149:C149) -> 0 | D148: 0 | E148: 0 | F148: 0 | G148: 0 | H148: 0 | I148: =H148-G148 -> 0 | J148: =IF(I148=0,"",I148/H148) ->  | K148: =SUM(K149) -> 0
A149: Computer Equipment | I149: =H149-G149 -> 0 | J149: =IF(I149=0,"",I149/H149) -> 
A151: Furniture and Office Equipment | C151: =SUM(C152:C152) -> 0 | D151: 0 | E151: 0 | F151: 0 | G151: 0 | H151: 0 | I151: =H151-G151 -> 0 | J151: =IF(I151=0,"",I151/H151) ->  | K151: =SUM(K152) -> 0
A152: Furniture and Office Equipment | I152: =H152-G152 -> 0 | J152: =IF(I152=0,"",I152/H152) -> 
J153: =IF(I153=0,"",I153/H153) -> 
A154: Machinery and Equipment | C154: =SUM(C155:C155) -> 78639.02 | D154: 364800 | E154: 364800 | F154: 0 | G154: 0 | H154: 91203 | I154: =H154-G154 -> 91203 | J154: =IF(I154=0,"",I154/H154) -> 1 | K154: =SUM(K155) -> 364800
A155: Machinery and Equipment | C155: 78639.02 | D155: 364800 | E155: 364800 | F155: 0 | G155: 0 | H155: 91203 | I155: =H155-G155 -> 91203 | J155: =IF(I155=0,"",I155/H155) -> 1 | K155: 364800
A157: Transport Assets | C157: =SUM(C158:C158) -> 144631.09 | D157: 4085157 | E157: 4085157 | F157: 489979.85 | G157: 785687.01 | H157: 1021290 | I157: =H157-G157 -> 235602.99 | J157: =IF(I157=0,"",I157/H157) -> 0.2306915665 | K157: =SUM(K158) -> 4085157
A158: Transport Assets | C158: 144631.09 | D158: 4085157 | E158: 4085157 | F158: 489979.85 | G158: 785687.01 | H158: 1021290 | I158: =H158-G158 -> 235602.99 | J158: =IF(I158=0,"",I158/H158) -> 0.2306915665 | K158: 4085157
A160: Land | C160: =SUM(C161:C161) -> 0 | D160: 0 | E160: 0 | F160: 0 | G160: 0 | H160: 0 | I160: =H160-G160 -> 0 | J160: =IF(I160=0,"",I160/H160) ->  | K160: =SUM(K161) -> 0
A161: Land | I161: =H161-G161 -> 0 | J161: =IF(I161=0,"",I161/H161) -> 
A163: Zoo's, Marine and Non-biological Animals | C163: =SUM(C164:C164) -> 0 | D163: 0 | E163: 0 | F163: 0 | G163: 0 | H163: 0 | I163: =H163-G163 -> 0 | J163: =IF(I163=0,"",I163/H163) ->  | K163: =SUM(K164) -> 0
A164: Zoo's, Marine and Non-biological Animals | I164: =H164-G164 -> 0 | J164: =IF(I164=0,"",I164/H164) -> 
J165: =IF(I165=0,"",I165/H165) -> 
A166: Total Repairs and Maintenance Expenditure | B166: 1 | C166: =C7+C75+C103+C110+C117+C135+C138+C148+C151+C154+C157+C160+C163 -> 1958381.25 | D166: 17173996 | E166: 17173996 | F166: 652429.85 | G166: 1348998.73 | H166: 4293513 | I166: 2944514.27 | J166: 0.6858053696 | K166: =K7+K75+K103+K110+K117+K135+K138+K148+K151+K154+K157+K160+K163 -> 17173996

Sheet SC13d
A1: =muni& " - "&S71Sd& " - "&Head57 -> LIM355 Lepelle-Nkumpi - Supporting Table SC13d Monthly Budget Statement - depreciation by asset class - M03 September
A2: =desc -> Description | B2: =head27 -> Ref | C2: =Head1 -> 2021/22 | D2: =Head2 -> Budget Year 2022/23
C3: =Head5 -> Audited Outcome | D3: =Head6 -> Original Budget | E3: =Head7 -> Adjusted Budget | F3: =Head38 -> Monthly actual | G3: =Head39 -> YearTD actual | H3: =Head40 -> YearTD budget | I3: =Head41 -> YTD variance | J3: =Head41 -> YTD variance | K3: =Head8 -> Full Year Forecast
A4: R thousands | B4: 1 | J4: %
A5: Depreciation by Asset Class/Sub-class
A7: Infrastructure | C7: =C8+C13+C17+C27+C38+C45+C53+C63+C69 -> 13591044.81 | D7: 19321395 | E7: 19321395 | F7: 1098786.77 | G7: 3296360.29 | H7: 4830354 | I7: =H7-G7 -> 1533993.71 | J7: =IF(I7=0,"",I7/H7) -> 0.3175737658 | K7: =K8+K13+K17+K27+K38+K45+K53+K63+K69 -> 19321395
A8: Roads Infrastructure | C8: =SUM(C9:C12) -> 14490247.26 | D8: 17218368 | E8: 17218368 | F8: 972753.82 | G8: 2918261.46 | H8: 4304592 | I8: 1386330.54 | J8: 0.3220585226 | K8: =SUM(K9:K12) -> 17218368
A9: Roads | C9: 14490247.26 | D9: 17218368 | E9: 17218368 | F9: 972753.82 | G9: 2918261.46 | H9: 4304592 | I9: 1386330.54 | J9: 0.3220585226 | K9: 17218368
A10: Road Structures | I10: 0
A11: Road Furniture | I11: 0
A12: Capital Spares | I12: 0
A13: Storm water Infrastructure | C13: =SUM(C14:C16) -> 0 | D13: 0 | E13: 0 | F13: 0 | G13: 0 | H13: 0 | I13: 0 | K13: =SUM(K14:K16) -> 0
A14: Drainage Collection | C14: 0 | D14: 0 | E14: 0 | F14: 0 | G14: 0 | H14: 0 | I14: 0 | K14: 0
A15: Storm water Conveyance | I15: 0
A16: Attenuation | I16: 0
A17: Electrical Infrastructure | C17: =SUM(C18:C26) -> -979409.97 | D17: 1432977 | E17: 1432977 | F17: 80814.19 | G17: 242442.57 | H17: 358245 | I17: 115802.43 | J17: 0.3232492568 | K17: =SUM(K18:K26) -> 1432977
A18: Power Plants | C18: 0 | D18: 0 | E18: 0 | F18: 0 | G18: 0 | H18: 0 | I18: 0 | K18: 0
A19: HV Substations | I19: 0
A20: HV Switching Station | I20: 0
A21: HV Transmission Conductors | I21: 0
A22: MV Substations | I22: 0
A23: MV Switching Stations | I23: 0
A24: MV Networks | C24: 0 | D24: 0 | E24: 0 | F24: 0 | G24: 0 | H24: 0 | I24: 0 | K24: 0
A25: LV Networks | C25: -979409.97 | D25: 1432977 | E25: 1432977 | F25: 80814.19 | G25: 242442.57 | H25: 358245 | I25: 115802.43 | J25: 0.3232492568 | K25: 1432977
A26: Capital Spares | I26: 0
A27: Water Supply Infrastructure | C27: =SUM(C28:C37) -> 0 | D27: 0 | E27: 0 | F27: 0 | G27: 0 | H27: 0 | I27: 0 | K27: =SUM(K28:K37) -> 0
A28: Dams and Weirs | C28: 0 | D28: 0 | E28: 0 | F28: 0 | G28: 0 | H28: 0 | I28: 0 | K28: 0
A29: Boreholes | I29: 0
A30: Reservoirs | I30: 0
A31: Pump Stations | I31: 0
A32: Water Treatment Works | I32: 0
A33: Bulk Mains | C33: 0 | D33: 0 | E33: 0 | F33: 0 | G33: 0 | H33: 0 | I33: 0 | K33: 0
A34: Distribution | I34: 0
A35: Distribution Points | I35: 0
A36: PRV Stations | I36: 0
A37: Capital Spares | C37: 0 | D37: 0 | E37: 0 | F37: 0 | G37: 0 | H37: 0 | I37: 0 | K37: 0
A38: Sanitation Infrastructure | C38: =SUM(C39:C44) -> 0 | D38: 0 | E38: 0 | F38: 0 | G38: 0 | H38: 0 | I38: 0 | K38: =SUM(K39:K44) -> 0
A39: Pump Station | I39: 0
A40: Reticulation | C40: 0 | D40: 0 | E40: 0 | F40: 0 | G40: 0 | H40: 0 | I40: 0 | K40: 0
A41: Waste Water Treatment Works | C41: 0 | D41: 0 | E41: 0 | F41: 0 | G41: 0 | H41: 0 | I41: 0 | K41: 0
A42: Outfall Sewers | I42: 0
A43: Toilet Facilities | I43: 0
A44: Capital Spares | I44: 0
A45: Solid Waste Infrastructure | C45: =SUM(C46:C52) -> 80207.52 | D45: 670050 | E45: 670050 | F45: 45218.76 | G45: 135656.26 | H45: 167517 | I45: 31860.74 | J45: 0.1901940699 | K45: =SUM(K46:K52) -> 670050
A46: Landfill Sites | C46: 25574.04 | D46: 565934 | E46: 565934 | F46: 40665.97 | G46: 121997.89 | H46: 141486 | I46: 19488.11 | J46: 0.1377387869 | K46: 565934
A47: Waste Transfer Stations | C47: 54633.48 | D47: 104116 | E47: 104116 | F47: 4552.79 | G47: 13658.37 | H47: 26031 | I47: 12372.63 | J47: 0.4753036764 | K47: 104116
A48: Waste Processing Facilities | I48: 0
A49: Waste Drop-off Points | I49: 0
A50: Waste Separation Facilities | I50: 0
A51: Electricity Generation Facilities | I51: 0
A52: Capital Spares | I52: 0
A53: Rail Infrastructure | C53: =SUM(C54:C62) -> 0 | D53: 0 | E53: 0 | F53: 0 | G53: 0 | H53: 0 | I53: 0 | K53: =SUM(K54:K62) -> 0
A54: Rail Lines | I54: 0
A55: Rail Structures | I55: 0
A56: Rail Furniture | I56: 0
A57: Drainage Collection | I57: 0
A58: Storm water Conveyance | I58: 0
A59: Attenuation | I59: 0
A60: MV Substations | I60: 0
A61: LV Networks | I61: 0
A62: Capital Spares | I62: 0
A63: Coastal Infrastructure | C63: =SUM(C64:C68) -> 0 | D63: 0 | E63: 0 | F63: 0 | G63: 0 | H63: 0 | I63: 0 | K63: =SUM(K64:K68) -> 0
A64: Sand Pumps | I64: 0
A65: Piers | I65: 0
A66: Revetments | I66: 0
A67: Promenades | I67: 0
A68: Capital Spares | I68: 0
A69: Information and Communication Infrastructure | C69: =SUM(C70:C73) -> 0 | D69: 0 | E69: 0 | F69: 0 | G69: 0 | H69: 0 | I69: 0 | K69: =SUM(K70:K73) -> 0
A70: Data Centres | I70: 0
A71: Core Layers | I71: 0
A72: Distribution Layers | I72: 0
A73: Capital Spares | I73: 0
A75: Community Assets | C75: =+C76+C99 -> 8118766.61 | D75: 10600884 | E75: 10600884 | F75: 776307.82 | G75: 2328923.48 | H75: 2650233 | I75: 321309.52 | J75: 0.1212382157 | K75: =+K76+K99 -> 10600884
A76: Community Facilities | C76: =SUM(C77:C98) -> 7302248.77 | D76: 9065931 | E76: 9065931 | F76: 641062.94 | G76: 1923188.84 | H76: 2266494 | I76: 343305.16 | J76: 0.1514696973 | K76: =SUM(K77:K98) -> 9065931
A77: Halls | C77: 4754591.83 | D77: 5897358 | E77: 5897358 | F77: 418014.41 | G77: 1254043.24 | H77: 1474341 | I77: 220297.76 | J77: 0.1494211719 | K77: 5897358
A78: Centres | I78: 0
A79: Crèches | I79: 0
A80: Clinics/Care Centres | C80: 225118 | D80: 261711 | E80: 261711 | F80: 18759.83 | G80: 56279.5 | H80: 65430 | I80: 9150.5 | J80: 0.13985175 | K80: 261711
A81: Fire/Ambulance Stations | I81: 0
A82: Testing Stations | C82: 48747.45 | D82: 338692 | E82: 338692 | F82: 22337.29 | G82: 67011.87 | H82: 84675 | I82: 17663.13 | J82: 0.2085991143 | K82: 338692
A83: Museums | I83: 0
A84: Galleries | I84: 0
A85: Theatres | I85: 0
A86: Libraries | C86: 834484.41 | D86: 901202 | E86: 901202 | F86: 69344.09 | G86: 208032.27 | H86: 225303 | I86: 17270.73 | J86: 0.0766555705 | K86: 901202
A87: Cemeteries/Crematoria | C87: 589929.24 | D87: 644122 | E87: 644122 | F87: 49160.77 | G87: 147482.31 | H87: 161031 | I87: 13548.69 | J87: 0.08413715372 | K87: 644122
A88: Police | I88: 0
A89: Purls | I89: 0
A90: Public Open Space | I90: 0
A91: Nature Reserves | I91: 0
A92: Public Ablution Facilities | I92: 0
A93: Markets | C93: 52422.55 | D93: 84968 | E93: 84968 | F93: 6502.49 | G93: 19507.47 | H93: 21243 | I93: 1735.53 | J93: 0.08169891258 | K93: 84968
A94: Stalls | I94: 0
A95: Abattoirs | I95: 0
A96: Airports | I96: 0
A97: Taxi Ranks/Bus Terminals | C97: 796955.29 | D97: 937878 | E97: 937878 | F97: 56944.06 | G97: 170832.18 | H97: 234471 | I97: 63638.82 | J97: 0.2714144606 | K97: 937878
A98: Capital Spares | I98: 0
A99: Sport and Recreation Facilities | C99: =SUM(C100:C102) -> 816517.84 | D99: 1534953 | E99: 1534953 | F99: 135244.88 | G99: 405734.64 | H99: 383739 | I99: -21995.64 | J99: -0.05731927169 | K99: =SUM(K100:K102) -> 1534953
A100: Indoor Facilities | I100: 0
A101: Outdoor Facilities | C101: 816517.84 | D101: 1534953 | E101: 1534953 | F101: 135244.88 | G101: 405734.64 | H101: 383739 | I101: =H101-G101 -> -21995.64 | J101: =IF(I101=0,"",I101/H101) -> -0.05731927169 | K101: 1534953
A102: Capital Spares | I102: 0
A103: Heritage assets | C103: =SUM(C104:C108) -> 0 | D103: 0 | E103: 0 | F103: 0 | G103: 0 | H103: 0 | I103: 0 | K103: =SUM(K104:K108) -> 0
A104: Monuments | I104: 0
A105: Historic Buildings | I105: 0
A106: Works of Art | I106: 0
A107: Conservation Areas | I107: 0
A108: Other Heritage | I108: 0
I109: 0
A110: Investment properties | C110: =+C111+C114 -> 0 | D110: 0 | E110: 0 | F110: 0 | G110: 0 | H110: 0 | I110: 0 | K110: =+K111+K114 -> 0
A111: Revenue Generating | C111: =SUM(C112:C113) -> 0 | D111: 0 | E111: 0 | F111: 0 | G111: 0 | H111: 0 | I111: 0 | K111: =SUM(K112:K113) -> 0
A112: Improved Property | C112: 0 | D112: 0 | E112: 0 | F112: 0 | G112: 0 | H112: 0 | I112: 0 | K112: 0
A113: Unimproved Property | C113: 0 | D113: 0 | E113: 0 | F113: 0 | G113: 0 | H113: 0 | I113: 0 | K113: 0
A114: Non-revenue Generating | C114: =SUM(C115:C116) -> 0 | D114: 0 | E114: 0 | F114: 0 | G114: 0 | H114: 0 | I114: 0 | K114: =SUM(K115:K116) -> 0
A115: Improved Property | I115: 0
A116: Unimproved Property | I116: =H116-G116 -> 0 | J116: =IF(I116=0,"",I116/H116) -> 
A117: Other assets | C117: =+C118+C130 -> 3302485.27 | D117: 3368076 | E117: 3368076 | F117: 200675.25 | G117: 602025.75 | H117: 842019 | I117: 239993.25 | J117: 0.2850211812 | K117: =+K118+K130 -> 3368076
A118: Operational Buildings | C118: =SUM(C119:C129) -> 3302485.27 | D118: 3368076 | E118: 3368076 | F118: 200675.25 | G118: 602025.75 | H118: 842019 | I118: 239993.25 | J118: 0.2850211812 | K118: =SUM(K119:K129) -> 3368076
A119: Municipal Offices | C119: 3302485.27 | D119: 3368076 | E119: 3368076 | F119: 200675.25 | G119: 602025.75 | H119: 842019 | I119: 239993.25 | J119: 0.2850211812 | K119: 3368076
A120: Pay/Enquiry Points | I120: 0
A121: Building Plan Offices | I121: 0
A122: Workshops | I122: 0
A123: Yards | I123: 0
A124: Stores | I124: 0
A125: Laboratories | I125: 0
A126: Training Centres | I126: 0
A127: Manufacturing Plant | I127: 0
A128: Depots | I128: 0
A129: Capital Spares | I129: 0
A130: Housing | C130: =SUM(C131:C133) -> 0 | D130: 0 | E130: 0 | F130: 0 | G130: 0 | H130: 0 | I130: 0 | K130: =SUM(K131:K133) -> 0
A131: Staff Housing | I131: 0
A132: Social Housing | I132: 0
A133: Capital Spares | I133: 0
A135: Biological or Cultivated Assets | C135: =SUM(C136:C136) -> 0 | D135: 0 | E135: 0 | F135: 0 | G135: 0 | H135: 0 | I135: =H135-G135 -> 0 | K135: =SUM(K136) -> 0
A136: Biological or Cultivated Assets | I136: =H136-G136 -> 0
A138: Intangible Assets | C138: =SUM(C139:C140) -> 0 | D138: 163542 | E138: 163542 | F138: 0 | G138: 0 | H138: 40887 | I138: =H138-G138 -> 40887 | J138: 1 | K138: =SUM(K139:K140) -> 163542
A139: Servitudes | I139: 0
A140: Licences and Rights | C140: =SUM(C141:C146) -> 0 | D140: 163542 | E140: 163542 | F140: 0 | G140: 0 | H140: 40887 | I140: 40887 | J140: 1 | K140: =SUM(K141:K146) -> 163542
A141: Water Rights | I141: 0
A142: Effluent Licenses | I142: 0
A143: Solid Waste Licenses | I143: 0
A144: Computer Software and Applications | C144: 0 | D144: 163542 | E144: 163542 | F144: 0 | G144: 0 | H144: 40887 | I144: 40887 | J144: 1 | K144: 163542
A145: Load Settlement Software Applications | I145: 0
A146: Unspecified | C146: 0 | D146: 0 | E146: 0 | F146: 0 | G146: 0 | H146: 0 | I146: 0 | K146: 0
A148: Computer Equipment | C148: =SUM(C149:C149) -> 341075.14 | D148: 338929 | E148: 338929 | F148: 20246.45 | G148: 60739.35 | H148: 84735 | I148: =H148-G148 -> 23995.65 | J148: =IF(I148=0,"",I148/H148) -> 0.2831846344 | K148: =SUM(K149) -> 338929
A149: Computer Equipment | C149: 341075.14 | D149: 338929 | E149: 338929 | F149: 20246.45 | G149: 60739.35 | H149: 84735 | I149: =H149-G149 -> 23995.65 | J149: =IF(I149=0,"",I149/H149) -> 0.2831846344 | K149: 338929
A151: Furniture and Office Equipment | C151: =SUM(C152:C152) -> 304567.28 | D151: 344105 | E151: 344105 | F151: 11841 | G151: 35523 | H151: 86028 | I151: =H151-G151 -> 50505 | J151: =IF(I151=0,"",I151/H151) -> 0.5870763007 | K151: =SUM(K152) -> 344105
A152: Furniture and Office Equipment | C152: 304567.28 | D152: 344105 | E152: 344105 | F152: 11841 | G152: 35523 | H152: 86028 | I152: =H152-G152 -> 50505 | J152: =IF(I152=0,"",I152/H152) -> 0.5870763007 | K152: 344105
J153: =IF(I153=0,"",I153/H153) -> 
A154: Machinery and Equipment | C154: =SUM(C155:C155) -> 121728.04 | D154: 150000 | E154: 150000 | F154: 3197.11 | G154: 9591.33 | H154: 37500 | I154: =H154-G154 -> 27908.67 | J154: =IF(I154=0,"",I154/H154) -> 0.7442312 | K154: =SUM(K155) -> 150000
A155: Machinery and Equipment | C155: 121728.04 | D155: 150000 | E155: 150000 | F155: 3197.11 | G155: 9591.33 | H155: 37500 | I155: =H155-G155 -> 27908.67 | J155: =IF(I155=0,"",I155/H155) -> 0.7442312 | K155: 150000
A157: Transport Assets | C157: =SUM(C158:C158) -> 2523326.67 | D157: 3413011 | E157: 3413011 | F157: 227101.77 | G157: 681305.31 | H157: 853254 | I157: =H157-G157 -> 171948.69 | J157: =IF(I157=0,"",I157/H157) -> 0.2015211063 | K157: =SUM(K158) -> 3413011
A158: Transport Assets | C158: 2523326.67 | D158: 3413011 | E158: 3413011 | F158: 227101.77 | G158: 681305.31 | H158: 853254 | I158: =H158-G158 -> 171948.69 | J158: =IF(I158=0,"",I158/H158) -> 0.2015211063 | K158: 3413011
A160: Land | C160: =SUM(C161:C161) -> 0 | D160: 0 | E160: 0 | F160: 0 | G160: 0 | H160: 0 | I160: =H160-G160 -> 0 | J160: =IF(I160=0,"",I160/H160) ->  | K160: =SUM(K161) -> 0
A161: Land | I161: =H161-G161 -> 0 | J161: =IF(I161=0,"",I161/H161) -> 
A163: Zoo's, Marine and Non-biological Animals | C163: =SUM(C164:C164) -> 0 | D163: 0 | E163: 0 | F163: 0 | G163: 0 | H163: 0 | I163: =H163-G163 -> 0 | J163: =IF(I163=0,"",I163/H163) ->  | K163: =SUM(K164) -> 0
A164: Zoo's, Marine and Non-biological Animals | I164: =H164-G164 -> 0 | J164: =IF(I164=0,"",I164/H164) -> 
J165: =IF(I165=0,"",I165/H165) -> 
A166: Total Depreciation | B166: 1 | C166: =C7+C75+C103+C110+C117+C135+C138+C148+C151+C154+C157+C160+C163 -> 28302993.82 | D166: 37699942 | E166: 37699942 | F166: 2338156.17 | G166: 7014468.51 | H166: 9425010 | I166: 2410541.49 | J166: 0.2557600989 | K166: =K7+K75+K103+K110+K117+K135+K138+K148+K151+K154+K157+K160+K163 -> 37699942

Sheet SC13e
A1: =muni& " - "&S71Se& " - "&Head57 -> LIM355 Lepelle-Nkumpi - Supporting Table SC13e Monthly Budget Statement - capital expenditure on upgrading of existing assets by asset class - M03 September
A2: =desc -> Description | B2: =head27 -> Ref | C2: =Head1 -> 2021/22 | D2: =Head2 -> Budget Year 2022/23
C3: =Head5 -> Audited Outcome | D3: =Head6 -> Original Budget | E3: =Head7 -> Adjusted Budget | F3: =Head38 -> Monthly actual | G3: =Head39 -> YearTD actual | H3: =Head40 -> YearTD budget | I3: =Head41 -> YTD variance | J3: =Head41 -> YTD variance | K3: =Head8 -> Full Year Forecast
A4: R thousands | B4: 1 | J4: %
A5: Capital expenditure on upgrading of existing assets by Asset Class/Sub-class
A7: Infrastructure | C7: =C8+C13+C17+C27+C38+C45+C53+C63+C69 -> 1689644.28 | D7: 42733001 | E7: 42733001 | F7: 0 | G7: 4457700.99 | H7: 10683258 | I7: =H7-G7 -> 6225557.01 | J7: =IF(I7=0,"",I7/H7) -> 0.5827395547 | K7: =K8+K13+K17+K27+K38+K45+K53+K63+K69 -> 42733001
A8: Roads Infrastructure | C8: =SUM(C9:C12) -> 1689644.28 | D8: 42233001 | E8: 42233001 | F8: 0 | G8: 4457700.99 | H8: 10558257 | I8: 6100556.01 | J8: 0.5777995374 | K8: =SUM(K9:K12) -> 42233001
A9: Roads | C9: 1689644.28 | D9: 7000000 | E9: 7000000 | F9: 0 | G9: 4457700.99 | H9: 1750002 | I9: -2707698.99 | J9: -1.547254797 | K9: 7000000
A10: Road Structures | C10: 0 | D10: 35233001 | E10: 35233001 | F10: 0 | G10: 0 | H10: 8808255 | I10: 8808255 | J10: 1 | K10: 35233001
A11: Road Furniture | C11: 0 | D11: 0 | E11: 0 | F11: 0 | G11: 0 | H11: 0 | I11: 0 | K11: 0
A12: Capital Spares | I12: 0
A13: Storm water Infrastructure | C13: =SUM(C14:C16) -> 0 | D13: 500000 | E13: 500000 | F13: 0 | G13: 0 | H13: 125001 | I13: 125001 | J13: 1 | K13: =SUM(K14:K16) -> 500000
A14: Drainage Collection | I14: 0
A15: Storm water Conveyance | C15: 0 | D15: 500000 | E15: 500000 | F15: 0 | G15: 0 | H15: 125001 | I15: 125001 | J15: 1 | K15: 500000
A16: Attenuation | I16: 0
A17: Electrical Infrastructure | C17: =SUM(C18:C26) -> 0 | D17: 0 | E17: 0 | F17: 0 | G17: 0 | H17: 0 | I17: 0 | K17: =SUM(K18:K26) -> 0
A18: Power Plants | I18: 0
A19: HV Substations | I19: 0
A20: HV Switching Station | I20: 0
A21: HV Transmission Conductors | I21: 0
A22: MV Substations | I22: 0
A23: MV Switching Stations | I23: 0
A24: MV Networks | C24: 0 | D24: 0 | E24: 0 | F24: 0 | G24: 0 | H24: 0 | I24: 0 | K24: 0
A25: LV Networks | I25: 0
A26: Capital Spares | I26: 0
A27: Water Supply Infrastructure | C27: =SUM(C28:C37) -> 0 | D27: 0 | E27: 0 | F27: 0 | G27: 0 | H27: 0 | I27: 0 | K27: =SUM(K28:K37) -> 0
A28: Dams and Weirs | I28: 0
A29: Boreholes | I29: 0
A30: Reservoirs | I30: 0
A31: Pump Stations | I31: 0
A32: Water Treatment Works | I32: 0
A33: Bulk Mains | I33: 0
A34: Distribution | I34: 0
A35: Distribution Points | I35: 0
A36: PRV Stations | I36: 0
A37: Capital Spares | I37: 0
A38: Sanitation Infrastructure | C38: =SUM(C39:C44) -> 0 | D38: 0 | E38: 0 | F38: 0 | G38: 0 | H38: 0 | I38: 0 | K38: =SUM(K39:K44) -> 0
A39: Pump Station | I39: 0
A40: Reticulation | I40: 0
A41: Waste Water Treatment Works | I41: 0
A42: Outfall Sewers | I42: 0
A43: Toilet Facilities | I43: 0
A44: Capital Spares | I44: 0
A45: Solid Waste Infrastructure | C45: =SUM(C46:C52) -> 0 | D45: 0 | E45: 0 | F45: 0 | G45: 0 | H45: 0 | I45: 0 | K45: =SUM(K46:K52) -> 0
A46: Landfill Sites | I46: 0
A47: Waste Transfer Stations | I47: 0
A48: Waste Processing Facilities | I48: 0
A49: Waste Drop-off Points | I49: 0
A50: Waste Separation Facilities | I50: 0
A51: Electricity Generation Facilities | I51: 0
A52: Capital Spares | I52: 0
A53: Rail Infrastructure | C53: =SUM(C54:C62) -> 0 | D53: 0 | E53: 0 | F53: 0 | G53: 0 | H53: 0 | I53: 0 | K53: =SUM(K54:K62) -> 0
A54: Rail Lines | I54: 0
A55: Rail Structures | I55: 0
A56: Rail Furniture | I56: 0
A57: Drainage Collection | I57: 0
A58: Storm water Conveyance | I58: 0
A59: Attenuation | I59: 0
A60: MV Substations | I60: 0
A61: LV Networks | I61: 0
A62: Capital Spares | I62: 0
A63: Coastal Infrastructure | C63: =SUM(C64:C68) -> 0 | D63: 0 | E63: 0 | F63: 0 | G63: 0 | H63: 0 | I63: 0 | K63: =SUM(K64:K68) -> 0
A64: Sand Pumps | I64: 0
A65: Piers | I65: 0
A66: Revetments | I66: 0
A67: Promenades | I67: 0
A68: Capital Spares | I68: 0
A69: Information and Communication Infrastructure | C69: =SUM(C70:C73) -> 0 | D69: 0 | E69: 0 | F69: 0 | G69: 0 | H69: 0 | I69: 0 | K69: =SUM(K70:K73) -> 0
A70: Data Centres | I70: 0
A71: Core Layers | I71: 0
A72: Distribution Layers | I72: 0
A73: Capital Spares | I73: 0
A75: Community Assets | C75: =+C76+C99 -> 0 | D75: 0 | E75: 0 | F75: 0 | G75: 0 | H75: 0 | I75: 0 | K75: =+K76+K99 -> 0
A76: Community Facilities | C76: =SUM(C77:C98) -> 0 | D76: 0 | E76: 0 | F76: 0 | G76: 0 | H76: 0 | I76: 0 | K76: =SUM(K77:K98) -> 0
A77: Halls | I77: 0
A78: Centres | I78: 0
A79: Crèches | I79: 0
A80: Clinics/Care Centres | I80: 0
A81: Fire/Ambulance Stations | I81: 0
A82: Testing Stations | I82: 0
A83: Museums | I83: 0
A84: Galleries | I84: 0
A85: Theatres | I85: 0
A86: Libraries | I86: 0
A87: Cemeteries/Crematoria | I87: 0
A88: Police | I88: 0
A89: Purls | C89: 0 | D89: 0 | E89: 0 | F89: 0 | G89: 0 | H89: 0 | I89: 0 | K89: 0
A90: Public Open Space | I90: 0
A91: Nature Reserves | I91: 0
A92: Public Ablution Facilities | I92: 0
A93: Markets | I93: 0
A94: Stalls | I94: 0
A95: Abattoirs | I95: 0
A96: Airports | I96: 0
A97: Taxi Ranks/Bus Terminals | I97: 0
A98: Capital Spares | I98: 0
A99: Sport and Recreation Facilities | C99: =SUM(C100:C102) -> 0 | D99: 0 | E99: 0 | F99: 0 | G99: 0 | H99: 0 | I99: 0 | K99: =SUM(K100:K102) -> 0
A100: Indoor Facilities | I100: 0
A101: Outdoor Facilities | C101: 0 | D101: 0 | E101: 0 | F101: 0 | G101: 0 | H101: 0 | I101: =H101-G101 -> 0 | J101: =IF(I101=0,"",I101/H101) ->  | K101: 0
A102: Capital Spares | I102: 0
A103: Heritage assets | C103: =SUM(C104:C108) -> 0 | D103: 0 | E103: 0 | F103: 0 | G103: 0 | H103: 0 | I103: 0 | K103: =SUM(K104:K108) -> 0
A104: Monuments | I104: 0
A105: Historic Buildings | I105: 0
A106: Works of Art | I106: 0
A107: Conservation Areas | I107: 0
A108: Other Heritage | I108: 0
I109: 0
A110: Investment properties | C110: =+C111+C114 -> 0 | D110: 0 | E110: 0 | F110: 0 | G110: 0 | H110: 0 | I110: 0 | K110: =+K111+K114 -> 0
A111: Revenue Generating | C111: =SUM(C112:C113) -> 0 | D111: 0 | E111: 0 | F111: 0 | G111: 0 | H111: 0 | I111: 0 | K111: =SUM(K112:K113) -> 0
A112: Improved Property | I112: 0
A113: Unimproved Property | I113: 0
A114: Non-revenue Generating | C114: =SUM(C115:C116) -> 0 | D114: 0 | E114: 0 | F114: 0 | G114: 0 | H114: 0 | I114: 0 | K114: =SUM(K115:K116) -> 0
A115: Improved Property | I115: 0
A116: Unimproved Property | I116: =H116-G116 -> 0 | J116: =IF(I116=0,"",I116/H116) -> 
A117: Other assets | C117: =+C118+C130 -> 0 | D117: 9600000 | E117: 9600000 | F117: 0 | G117: 0 | H117: 2400000 | I117: 2400000 | J117: 1 | K117: =+K118+K130 -> 9600000
A118: Operational Buildings | C118: =SUM(C119:C129) -> 0 | D118: 9600000 | E118: 9600000 | F118: 0 | G118: 0 | H118: 2400000 | I118: 2400000 | J118: 1 | K118: =SUM(K119:K129) -> 9600000
A119: Municipal Offices | C119: 0 | D119: 9600000 | E119: 9600000 | F119: 0 | G119: 0 | H119: 2400000 | I119: 2400000 | J119: 1 | K119: 9600000
A120: Pay/Enquiry Points | I120: 0
A121: Building Plan Offices | I121: 0
A122: Workshops | I122: 0
A123: Yards | I123: 0
A124: Stores | I124: 0
A125: Laboratories | I125: 0
A126: Training Centres | I126: 0
A127: Manufacturing Plant | I127: 0
A128: Depots | I128: 0
A129: Capital Spares | I129: 0
A130: Housing | C130: =SUM(C131:C133) -> 0 | D130: 0 | E130: 0 | F130: 0 | G130: 0 | H130: 0 | I130: 0 | K130: =SUM(K131:K133) -> 0
A131: Staff Housing | I131: 0
A132: Social Housing | I132: 0
A133: Capital Spares | I133: 0
A135: Biological or Cultivated Assets | C135: =SUM(C136:C136) -> 0 | D135: 0 | E135: 0 | F135: 0 | G135: 0 | H135: 0 | I135: =H135-G135 -> 0 | K135: =SUM(K136) -> 0
A136: Biological or Cultivated Assets | I136: =H136-G136 -> 0
J137: =IF(I137=0,"",I137/H137) -> 
A138: Intangible Assets | C138: =SUM(C139:C140) -> 0 | D138: 0 | E138: 0 | F138: 0 | G138: 0 | H138: 0 | I138: =H138-G138 -> 0 | K138: =SUM(K139:K140) -> 0
A139: Servitudes | I139: 0
A140: Licences and Rights | C140: =SUM(C141:C146) -> 0 | D140: 0 | E140: 0 | F140: 0 | G140: 0 | H140: 0 | I140: 0 | K140: =SUM(K141:K146) -> 0
A141: Water Rights | I141: 0
A142: Effluent Licenses | I142: 0
A143: Solid Waste Licenses | I143: 0
A144: Computer Software and Applications | I144: 0
A145: Load Settlement Software Applications | I145: 0
A146: Unspecified | I146: 0
A148: Computer Equipment | C148: =SUM(C149:C149) -> 0 | D148: 0 | E148: 0 | F148: 0 | G148: 0 | H148: 0 | I148: =H148-G148 -> 0 | J148: =IF(I148=0,"",I148/H148) ->  | K148: =SUM(K149) -> 0
A149: Computer Equipment | I149: =H149-G149 -> 0 | J149: =IF(I149=0,"",I149/H149) -> 
A151: Furniture and Office Equipment | C151: =SUM(C152:C152) -> 0 | D151: 0 | E151: 0 | F151: 0 | G151: 0 | H151: 0 | I151: =H151-G151 -> 0 | J151: =IF(I151=0,"",I151/H151) ->  | K151: =SUM(K152) -> 0
A152: Furniture and Office Equipment | I152: =H152-G152 -> 0 | J152: =IF(I152=0,"",I152/H152) -> 
J153: =IF(I153=0,"",I153/H153) -> 
A154: Machinery and Equipment | C154: =SUM(C155:C155) -> 0 | D154: 0 | E154: 0 | F154: 0 | G154: 0 | H154: 0 | I154: =H154-G154 -> 0 | J154: =IF(I154=0,"",I154/H154) ->  | K154: =SUM(K155) -> 0
A155: Machinery and Equipment | I155: =H155-G155 -> 0 | J155: =IF(I155=0,"",I155/H155) -> 
A157: Transport Assets | C157: =SUM(C158:C158) -> 0 | D157: 0 | E157: 0 | F157: 0 | G157: 0 | H157: 0 | I157: =H157-G157 -> 0 | J157: =IF(I157=0,"",I157/H157) ->  | K157: =SUM(K158) -> 0
A158: Transport Assets | I158: =H158-G158 -> 0 | J158: =IF(I158=0,"",I158/H158) -> 
A160: Land | C160: =SUM(C161:C161) -> 0 | D160: 0 | E160: 0 | F160: 0 | G160: 0 | H160: 0 | I160: =H160-G160 -> 0 | J160: =IF(I160=0,"",I160/H160) ->  | K160: =SUM(K161) -> 0
A161: Land | I161: =H161-G161 -> 0 | J161: =IF(I161=0,"",I161/H161) -> 
J162: .
A163: Zoo's, Marine and Non-biological Animals | C163: =SUM(C164:C164) -> 0 | D163: 0 | E163: 0 | F163: 0 | G163: 0 | H163: 0 | I163: =H163-G163 -> 0 | J163: =IF(I163=0,"",I163/H163) ->  | K163: =SUM(K164) -> 0
A164: Zoo's, Marine and Non-biological Animals | I164: =H164-G164 -> 0 | J164: =IF(I164=0,"",I164/H164) -> 
J165: =IF(I165=0,"",I165/H165) -> 
A166: Total Capital Expenditure on upgrading of existing assets | B166: 1 | C166: =C7+C75+C103+C110+C117+C135+C138+C148+C151+C154+C157+C160+C163 -> 1689644.28 | D166: 52333001 | E166: 52333001 | F166: 0 | G166: 4457700.99 | H166: 13083258 | I166: =H166-G166 -> 8625557.01 | J166: =IF(I166=0,"",I166/H166) -> 0.6592820389 | K166: =K7+K75+K103+K110+K117+K135+K138+K148+K151+K154+K157+K160+K163 -> 52333001
A168: =head27a -> References
A169: 1. Total Capital Expenditure on new assets (SC13a) plus Total Capital Expenditure on renewal of existing assets (SC13b) plus Total Capital Expenditure on upgrading of existing assets (SC13e) must reconcile to total capital expenditure in Table C5
A171: check balance | C171: =C166+SC13a!C166+SC13b!C166-'C5-Capex'!C40 -> 0 | D171: =D166+SC13a!D166+SC13b!D166-'C5-Capex'!D40 -> 0 | E171: =E166+SC13a!E166+SC13b!E166-'C5-Capex'!E40 -> 0 | F171: =F166+SC13a!F166+SC13b!F166-'C5-Capex'!F40 -> 0 | G171: =G166+SC13a!G166+SC13b!G166-'C5-Capex'!G40 -> 0 | H171: =H166+SC13a!H166+SC13b!H166-'C5-Capex'!H40 -> 0 | K171: =K166+SC13a!K166+SC13b!K166-'C5-Capex'!K40 -> 0

Sheet SC71charts
